Workbook

Sheet input➡

Sheet 施設コード
A1: 参照する期間 | B1: ID | C1: 回答エリア | D1: 都道府県 | E1: DMO | F1: 市町村
A2: 3月 | B2: 101 | C2: =IFERROR(VLOOKUP(B2,【M】エリア!A:A,2,0),"ID(施設コード)を入力してください。") -> ID(施設コード)を入力してください。 | D2: 福井県 | E2: =IFERROR(VLOOKUP(B2,【M】エリア!A:B,2,0),"ID(施設コード)を入力してください。") -> (株)まちづくり小浜 | F2: =IFERROR(VLOOKUP(B2,【M】エリア!A:A,3,0),"ID(施設コード)を入力してください。") -> ID(施設コード)を入力してください。
B17: エリア一覧
B18: ID | C18: QRコード名 | D18: 市町 | E18: DMO
B19: 101 | C19: 東尋坊 エリア | D19: 坂井市 | E19: (株)まちづくり小浜
B20: 102 | C20: スーベニアショップ ラプトル エリア | D20: 勝山市 | E20: 勝山市観光まちづくり(株)
B21: 103 | C21: 道の駅「若狭おばま」 エリア | D21: 小浜市 | E21: (一社)DMOさかい観光局
B22: 104 | C22: レインボーライン エリア | D22: 美浜町 | E22: 三方五湖DMO(株)

Sheet output➡

Sheet 回答数
A1: 集計区分 | C1: 回答数 | D1: 回答月 | R1: 回答数 | T1: 回答月
D2: 4月 | E2: 5月 | F2: 6月 | G2: 7月 | H2: 8月 | I2: 9月 | J2: 10月 | K2: 11月 | L2: 12月 | M2: 1月 | N2: 2月 | O2: 3月 | P2: 合計 | T2: 4月 | U2: 5月 | V2: 6月 | W2: 7月 | X2: 8月 | Y2: 9月 | Z2: 10月 | AA2: 11月 | AB2: 12月 | AC2: 1月 | AD2: 2月 | AE2: 3月
A3: 全体 | B3: =施設コード!$D$2 -> 福井県 | D3: =COUNTIFS(OFFSET(raw!$A$1,2,MATCH($D$1,raw!$2:$2,0)-1,COUNTA(raw!$A:$A)-1,1),D$2) -> 234 | E3: =COUNTIFS(OFFSET(raw!$A$1,2,MATCH($D$1,raw!$2:$2,0)-1,COUNTA(raw!$A:$A)-1,1),E$2) -> 2259 | F3: =COUNTIFS(OFFSET(raw!$A$1,2,MATCH($D$1,raw!$2:$2,0)-1,COUNTA(raw!$A:$A)-1,1),F$2) -> 1380 | G3: =COUNTIFS(OFFSET(raw!$A$1,2,MATCH($D$1,raw!$2:$2,0)-1,COUNTA(raw!$A:$A)-1,1),G$2) -> 1314 | H3: =COUNTIFS(OFFSET(raw!$A$1,2,MATCH($D$1,raw!$2:$2,0)-1,COUNTA(raw!$A:$A)-1,1),H$2) -> 1380 | I3: =COUNTIFS(OFFSET(raw!$A$1,2,MATCH($D$1,raw!$2:$2,0)-1,COUNTA(raw!$A:$A)-1,1),I$2) -> 1537 | J3: =COUNTIFS(OFFSET(raw!$A$1,2,MATCH($D$1,raw!$2:$2,0)-1,COUNTA(raw!$A:$A)-1,1),J$2) -> 2662 | K3: =COUNTIFS(OFFSET(raw!$A$1,2,MATCH($D$1,raw!$2:$2,0)-1,COUNTA(raw!$A:$A)-1,1),K$2) -> 3549 | L3: =COUNTIFS(OFFSET(raw!$A$1,2,MATCH($D$1,raw!$2:$2,0)-1,COUNTA(raw!$A:$A)-1,1),L$2) -> 2071 | M3: =COUNTIFS(OFFSET(raw!$A$1,2,MATCH($D$1,raw!$2:$2,0)-1,COUNTA(raw!$A:$A)-1,1),M$2) -> 852 | N3: =COUNTIFS(OFFSET(raw!$A$1,2,MATCH($D$1,raw!$2:$2,0)-1,COUNTA(raw!$A:$A)-1,1),N$2) -> 1040 | O3: =COUNTIFS(OFFSET(raw!$A$1,2,MATCH($D$1,raw!$2:$2,0)-1,COUNTA(raw!$A:$A)-1,1),O$2) -> 472 | P3: =D3+E3+F3+G3+H3+I3+J3+K3+L3+M3+N3+O3 -> 18750 | R3: 福井県 | S3: 単月 | T3: =D3 -> 234 | U3: =E3 -> 2259 | V3: 1380 | W3: 1314 | X3: 1380 | Y3: 1537 | Z3: 2662 | AA3: 3549 | AB3: 2071 | AC3: 852 | AD3: 1040 | AE3: 472
A4: DMO | B4: =施設コード!$E$2 -> (株)まちづくり小浜 | D4: =COUNTIFS( OFFSET(raw!$A$1,2,MATCH(回答数!$A4,raw!$2:$2,0)-1,COUNTA(raw!$A:$A)-1,1),回答数!$B4, OFFSET(raw!$A$1,2,MATCH($D$1,raw!$2:$2,0)-1,COUNTA(raw!$A:$A)-1,1),D$2) -> 11 | E4: =COUNTIFS( OFFSET(raw!$A$1,2,MATCH(回答数!$A4,raw!$2:$2,0)-1,COUNTA(raw!$A:$A)-1,1),回答数!$B4, OFFSET(raw!$A$1,2,MATCH($D$1,raw!$2:$2,0)-1,COUNTA(raw!$A:$A)-1,1),E$2) -> 131 | F4: =COUNTIFS( OFFSET(raw!$A$1,2,MATCH(回答数!$A4,raw!$2:$2,0)-1,COUNTA(raw!$A:$A)-1,1),回答数!$B4, OFFSET(raw!$A$1,2,MATCH($D$1,raw!$2:$2,0)-1,COUNTA(raw!$A:$A)-1,1),F$2) -> 74 | G4: =COUNTIFS( OFFSET(raw!$A$1,2,MATCH(回答数!$A4,raw!$2:$2,0)-1,COUNTA(raw!$A:$A)-1,1),回答数!$B4, OFFSET(raw!$A$1,2,MATCH($D$1,raw!$2:$2,0)-1,COUNTA(raw!$A:$A)-1,1),G$2) -> 94 | H4: =COUNTIFS( OFFSET(raw!$A$1,2,MATCH(回答数!$A4,raw!$2:$2,0)-1,COUNTA(raw!$A:$A)-1,1),回答数!$B4, OFFSET(raw!$A$1,2,MATCH($D$1,raw!$2:$2,0)-1,COUNTA(raw!$A:$A)-1,1),H$2) -> 91 | I4: =COUNTIFS( OFFSET(raw!$A$1,2,MATCH(回答数!$A4,raw!$2:$2,0)-1,COUNTA(raw!$A:$A)-1,1),回答数!$B4, OFFSET(raw!$A$1,2,MATCH($D$1,raw!$2:$2,0)-1,COUNTA(raw!$A:$A)-1,1),I$2) -> 79 | J4: =COUNTIFS( OFFSET(raw!$A$1,2,MATCH(回答数!$A4,raw!$2:$2,0)-1,COUNTA(raw!$A:$A)-1,1),回答数!$B4, OFFSET(raw!$A$1,2,MATCH($D$1,raw!$2:$2,0)-1,COUNTA(raw!$A:$A)-1,1),J$2) -> 144 | K4: =COUNTIFS( OFFSET(raw!$A$1,2,MATCH(回答数!$A4,raw!$2:$2,0)-1,COUNTA(raw!$A:$A)-1,1),回答数!$B4, OFFSET(raw!$A$1,2,MATCH($D$1,raw!$2:$2,0)-1,COUNTA(raw!$A:$A)-1,1),K$2) -> 214 | L4: =COUNTIFS( OFFSET(raw!$A$1,2,MATCH(回答数!$A4,raw!$2:$2,0)-1,COUNTA(raw!$A:$A)-1,1),回答数!$B4, OFFSET(raw!$A$1,2,MATCH($D$1,raw!$2:$2,0)-1,COUNTA(raw!$A:$A)-1,1),L$2) -> 123 | M4: =COUNTIFS( OFFSET(raw!$A$1,2,MATCH(回答数!$A4,raw!$2:$2,0)-1,COUNTA(raw!$A:$A)-1,1),回答数!$B4, OFFSET(raw!$A$1,2,MATCH($D$1,raw!$2:$2,0)-1,COUNTA(raw!$A:$A)-1,1),M$2) -> 75 | N4: =COUNTIFS( OFFSET(raw!$A$1,2,MATCH(回答数!$A4,raw!$2:$2,0)-1,COUNTA(raw!$A:$A)-1,1),回答数!$B4, OFFSET(raw!$A$1,2,MATCH($D$1,raw!$2:$2,0)-1,COUNTA(raw!$A:$A)-1,1),N$2) -> 48 | O4: =COUNTIFS( OFFSET(raw!$A$1,2,MATCH(回答数!$A4,raw!$2:$2,0)-1,COUNTA(raw!$A:$A)-1,1),回答数!$B4, OFFSET(raw!$A$1,2,MATCH($D$1,raw!$2:$2,0)-1,COUNTA(raw!$A:$A)-1,1),O$2) -> 40 | P4: =D4+E4+F4+G4+H4+I4+J4+K4+L4+M4+N4+O4 -> 1124 | S4: 累計 | T4: =T3 -> 234 | U4: =T4+U3 -> 2493 | V4: =U4+V3 -> 3873 | W4: 5187 | X4: 6567 | Y4: 8104 | Z4: 10766 | AA4: 14315 | AB4: 16386 | AC4: 17238 | AD4: 18278 | AE4: 18750
A5: 市町村 | B5: =施設コード!F$2 -> ID(施設コード)を入力してください。 | D5: =COUNTIFS( OFFSET(raw!$A$1,2,MATCH(回答数!$A5,raw!$2:$2,0)-1,COUNTA(raw!$A:$A)-1,1),回答数!$B5, OFFSET(raw!$A$1,2,MATCH($D$1,raw!$2:$2,0)-1,COUNTA(raw!$A:$A)-1,1),D$2) -> 0 | E5: =COUNTIFS( OFFSET(raw!$A$1,2,MATCH(回答数!$A5,raw!$2:$2,0)-1,COUNTA(raw!$A:$A)-1,1),回答数!$B5, OFFSET(raw!$A$1,2,MATCH($D$1,raw!$2:$2,0)-1,COUNTA(raw!$A:$A)-1,1),E$2) -> 0 | F5: =COUNTIFS( OFFSET(raw!$A$1,2,MATCH(回答数!$A5,raw!$2:$2,0)-1,COUNTA(raw!$A:$A)-1,1),回答数!$B5, OFFSET(raw!$A$1,2,MATCH($D$1,raw!$2:$2,0)-1,COUNTA(raw!$A:$A)-1,1),F$2) -> 0 | G5: =COUNTIFS( OFFSET(raw!$A$1,2,MATCH(回答数!$A5,raw!$2:$2,0)-1,COUNTA(raw!$A:$A)-1,1),回答数!$B5, OFFSET(raw!$A$1,2,MATCH($D$1,raw!$2:$2,0)-1,COUNTA(raw!$A:$A)-1,1),G$2) -> 0 | H5: =COUNTIFS( OFFSET(raw!$A$1,2,MATCH(回答数!$A5,raw!$2:$2,0)-1,COUNTA(raw!$A:$A)-1,1),回答数!$B5, OFFSET(raw!$A$1,2,MATCH($D$1,raw!$2:$2,0)-1,COUNTA(raw!$A:$A)-1,1),H$2) -> 0 | I5: =COUNTIFS( OFFSET(raw!$A$1,2,MATCH(回答数!$A5,raw!$2:$2,0)-1,COUNTA(raw!$A:$A)-1,1),回答数!$B5, OFFSET(raw!$A$1,2,MATCH($D$1,raw!$2:$2,0)-1,COUNTA(raw!$A:$A)-1,1),I$2) -> 0 | J5: =COUNTIFS( OFFSET(raw!$A$1,2,MATCH(回答数!$A5,raw!$2:$2,0)-1,COUNTA(raw!$A:$A)-1,1),回答数!$B5, OFFSET(raw!$A$1,2,MATCH($D$1,raw!$2:$2,0)-1,COUNTA(raw!$A:$A)-1,1),J$2) -> 0 | K5: =COUNTIFS( OFFSET(raw!$A$1,2,MATCH(回答数!$A5,raw!$2:$2,0)-1,COUNTA(raw!$A:$A)-1,1),回答数!$B5, OFFSET(raw!$A$1,2,MATCH($D$1,raw!$2:$2,0)-1,COUNTA(raw!$A:$A)-1,1),K$2) -> 0 | L5: =COUNTIFS( OFFSET(raw!$A$1,2,MATCH(回答数!$A5,raw!$2:$2,0)-1,COUNTA(raw!$A:$A)-1,1),回答数!$B5, OFFSET(raw!$A$1,2,MATCH($D$1,raw!$2:$2,0)-1,COUNTA(raw!$A:$A)-1,1),L$2) -> 0 | M5: =COUNTIFS( OFFSET(raw!$A$1,2,MATCH(回答数!$A5,raw!$2:$2,0)-1,COUNTA(raw!$A:$A)-1,1),回答数!$B5, OFFSET(raw!$A$1,2,MATCH($D$1,raw!$2:$2,0)-1,COUNTA(raw!$A:$A)-1,1),M$2) -> 0 | N5: =COUNTIFS( OFFSET(raw!$A$1,2,MATCH(回答数!$A5,raw!$2:$2,0)-1,COUNTA(raw!$A:$A)-1,1),回答数!$B5, OFFSET(raw!$A$1,2,MATCH($D$1,raw!$2:$2,0)-1,COUNTA(raw!$A:$A)-1,1),N$2) -> 0 | O5: =COUNTIFS( OFFSET(raw!$A$1,2,MATCH(回答数!$A5,raw!$2:$2,0)-1,COUNTA(raw!$A:$A)-1,1),回答数!$B5, OFFSET(raw!$A$1,2,MATCH($D$1,raw!$2:$2,0)-1,COUNTA(raw!$A:$A)-1,1),O$2) -> 0 | P5: =D5+E5+F5+G5+H5+I5+J5+K5+L5+M5+N5+O5 -> 0 | R5: =施設コード!$E$2 -> (株)まちづくり小浜 | S5: 単月 | T5: =D4 -> 11 | U5: =E4 -> 131 | V5: 74 | W5: 94 | X5: 91 | Y5: 79 | Z5: 144 | AA5: 214 | AB5: 123 | AC5: 75 | AD5: 48 | AE5: 40
A6: 回答エリア | B6: 一乗谷朝倉氏遺跡 エリア | D6: =COUNTIFS( OFFSET(raw!$A$1,2,MATCH(回答数!$A6,raw!$2:$2,0)-1,COUNTA(raw!$A:$A)-1,1),回答数!$B6, OFFSET(raw!$A$1,2,MATCH($D$1,raw!$2:$2,0)-1,COUNTA(raw!$A:$A)-1,1),D$2) -> 7 | E6: =COUNTIFS( OFFSET(raw!$A$1,2,MATCH(回答数!$A6,raw!$2:$2,0)-1,COUNTA(raw!$A:$A)-1,1),回答数!$B6, OFFSET(raw!$A$1,2,MATCH($D$1,raw!$2:$2,0)-1,COUNTA(raw!$A:$A)-1,1),E$2) -> 86 | F6: =COUNTIFS( OFFSET(raw!$A$1,2,MATCH(回答数!$A6,raw!$2:$2,0)-1,COUNTA(raw!$A:$A)-1,1),回答数!$B6, OFFSET(raw!$A$1,2,MATCH($D$1,raw!$2:$2,0)-1,COUNTA(raw!$A:$A)-1,1),F$2) -> 48 | G6: =COUNTIFS( OFFSET(raw!$A$1,2,MATCH(回答数!$A6,raw!$2:$2,0)-1,COUNTA(raw!$A:$A)-1,1),回答数!$B6, OFFSET(raw!$A$1,2,MATCH($D$1,raw!$2:$2,0)-1,COUNTA(raw!$A:$A)-1,1),G$2) -> 57 | H6: =COUNTIFS( OFFSET(raw!$A$1,2,MATCH(回答数!$A6,raw!$2:$2,0)-1,COUNTA(raw!$A:$A)-1,1),回答数!$B6, OFFSET(raw!$A$1,2,MATCH($D$1,raw!$2:$2,0)-1,COUNTA(raw!$A:$A)-1,1),H$2) -> 39 | I6: =COUNTIFS( OFFSET(raw!$A$1,2,MATCH(回答数!$A6,raw!$2:$2,0)-1,COUNTA(raw!$A:$A)-1,1),回答数!$B6, OFFSET(raw!$A$1,2,MATCH($D$1,raw!$2:$2,0)-1,COUNTA(raw!$A:$A)-1,1),I$2) -> 54 | J6: =COUNTIFS( OFFSET(raw!$A$1,2,MATCH(回答数!$A6,raw!$2:$2,0)-1,COUNTA(raw!$A:$A)-1,1),回答数!$B6, OFFSET(raw!$A$1,2,MATCH($D$1,raw!$2:$2,0)-1,COUNTA(raw!$A:$A)-1,1),J$2) -> 155 | K6: =COUNTIFS( OFFSET(raw!$A$1,2,MATCH(回答数!$A6,raw!$2:$2,0)-1,COUNTA(raw!$A:$A)-1,1),回答数!$B6, OFFSET(raw!$A$1,2,MATCH($D$1,raw!$2:$2,0)-1,COUNTA(raw!$A:$A)-1,1),K$2) -> 173 | L6: =COUNTIFS( OFFSET(raw!$A$1,2,MATCH(回答数!$A6,raw!$2:$2,0)-1,COUNTA(raw!$A:$A)-1,1),回答数!$B6, OFFSET(raw!$A$1,2,MATCH($D$1,raw!$2:$2,0)-1,COUNTA(raw!$A:$A)-1,1),L$2) -> 76 | M6: =COUNTIFS( OFFSET(raw!$A$1,2,MATCH(回答数!$A6,raw!$2:$2,0)-1,COUNTA(raw!$A:$A)-1,1),回答数!$B6, OFFSET(raw!$A$1,2,MATCH($D$1,raw!$2:$2,0)-1,COUNTA(raw!$A:$A)-1,1),M$2) -> 32 | N6: =COUNTIFS( OFFSET(raw!$A$1,2,MATCH(回答数!$A6,raw!$2:$2,0)-1,COUNTA(raw!$A:$A)-1,1),回答数!$B6, OFFSET(raw!$A$1,2,MATCH($D$1,raw!$2:$2,0)-1,COUNTA(raw!$A:$A)-1,1),N$2) -> 55 | O6: =COUNTIFS( OFFSET(raw!$A$1,2,MATCH(回答数!$A6,raw!$2:$2,0)-1,COUNTA(raw!$A:$A)-1,1),回答数!$B6, OFFSET(raw!$A$1,2,MATCH($D$1,raw!$2:$2,0)-1,COUNTA(raw!$A:$A)-1,1),O$2) -> 11 | P6: 793 | S6: 累計 | T6: =T5 -> 11 | U6: =T6+U5 -> 142 | V6: =U6+V5 -> 216 | W6: =V6+W5 -> 310 | X6: =W6+X5 -> 401 | Y6: =X6+Y5 -> 480 | Z6: =Y6+Z5 -> 624 | AA6: =Z6+AA5 -> 838 | AB6: =AA6+AB5 -> 961 | AC6: =AB6+AC5 -> 1036 | AD6: =AC6+AD5 -> 1084 | AE6: =AD6+AE5 -> 1124
A7: 回答エリア | B7: 越前海岸 エリア | D7: =COUNTIFS( OFFSET(raw!$A$1,2,MATCH(回答数!$A7,raw!$2:$2,0)-1,COUNTA(raw!$A:$A)-1,1),回答数!$B7, OFFSET(raw!$A$1,2,MATCH($D$1,raw!$2:$2,0)-1,COUNTA(raw!$A:$A)-1,1),D$2) -> 0 | E7: =COUNTIFS( OFFSET(raw!$A$1,2,MATCH(回答数!$A7,raw!$2:$2,0)-1,COUNTA(raw!$A:$A)-1,1),回答数!$B7, OFFSET(raw!$A$1,2,MATCH($D$1,raw!$2:$2,0)-1,COUNTA(raw!$A:$A)-1,1),E$2) -> 6 | F7: =COUNTIFS( OFFSET(raw!$A$1,2,MATCH(回答数!$A7,raw!$2:$2,0)-1,COUNTA(raw!$A:$A)-1,1),回答数!$B7, OFFSET(raw!$A$1,2,MATCH($D$1,raw!$2:$2,0)-1,COUNTA(raw!$A:$A)-1,1),F$2) -> 4 | G7: =COUNTIFS( OFFSET(raw!$A$1,2,MATCH(回答数!$A7,raw!$2:$2,0)-1,COUNTA(raw!$A:$A)-1,1),回答数!$B7, OFFSET(raw!$A$1,2,MATCH($D$1,raw!$2:$2,0)-1,COUNTA(raw!$A:$A)-1,1),G$2) -> 10 | H7: =COUNTIFS( OFFSET(raw!$A$1,2,MATCH(回答数!$A7,raw!$2:$2,0)-1,COUNTA(raw!$A:$A)-1,1),回答数!$B7, OFFSET(raw!$A$1,2,MATCH($D$1,raw!$2:$2,0)-1,COUNTA(raw!$A:$A)-1,1),H$2) -> 17 | I7: =COUNTIFS( OFFSET(raw!$A$1,2,MATCH(回答数!$A7,raw!$2:$2,0)-1,COUNTA(raw!$A:$A)-1,1),回答数!$B7, OFFSET(raw!$A$1,2,MATCH($D$1,raw!$2:$2,0)-1,COUNTA(raw!$A:$A)-1,1),I$2) -> 17 | J7: =COUNTIFS( OFFSET(raw!$A$1,2,MATCH(回答数!$A7,raw!$2:$2,0)-1,COUNTA(raw!$A:$A)-1,1),回答数!$B7, OFFSET(raw!$A$1,2,MATCH($D$1,raw!$2:$2,0)-1,COUNTA(raw!$A:$A)-1,1),J$2) -> 20 | K7: =COUNTIFS( OFFSET(raw!$A$1,2,MATCH(回答数!$A7,raw!$2:$2,0)-1,COUNTA(raw!$A:$A)-1,1),回答数!$B7, OFFSET(raw!$A$1,2,MATCH($D$1,raw!$2:$2,0)-1,COUNTA(raw!$A:$A)-1,1),K$2) -> 26 | L7: =COUNTIFS( OFFSET(raw!$A$1,2,MATCH(回答数!$A7,raw!$2:$2,0)-1,COUNTA(raw!$A:$A)-1,1),回答数!$B7, OFFSET(raw!$A$1,2,MATCH($D$1,raw!$2:$2,0)-1,COUNTA(raw!$A:$A)-1,1),L$2) -> 19 | M7: =COUNTIFS( OFFSET(raw!$A$1,2,MATCH(回答数!$A7,raw!$2:$2,0)-1,COUNTA(raw!$A:$A)-1,1),回答数!$B7, OFFSET(raw!$A$1,2,MATCH($D$1,raw!$2:$2,0)-1,COUNTA(raw!$A:$A)-1,1),M$2) -> 3 | N7: =COUNTIFS( OFFSET(raw!$A$1,2,MATCH(回答数!$A7,raw!$2:$2,0)-1,COUNTA(raw!$A:$A)-1,1),回答数!$B7, OFFSET(raw!$A$1,2,MATCH($D$1,raw!$2:$2,0)-1,COUNTA(raw!$A:$A)-1,1),N$2) -> 9 | O7: =COUNTIFS( OFFSET(raw!$A$1,2,MATCH(回答数!$A7,raw!$2:$2,0)-1,COUNTA(raw!$A:$A)-1,1),回答数!$B7, OFFSET(raw!$A$1,2,MATCH($D$1,raw!$2:$2,0)-1,COUNTA(raw!$A:$A)-1,1),O$2) -> 6 | P7: =D7+E7+F7+G7+H7+I7+J7+K7+L7+M7+N7+O7 -> 137
A8: 回答エリア | B8: ガラガラ山キャンプ場 エリア | D8: =COUNTIFS( OFFSET(raw!$A$1,2,MATCH(回答数!$A8,raw!$2:$2,0)-1,COUNTA(raw!$A:$A)-1,1),回答数!$B8, OFFSET(raw!$A$1,2,MATCH($D$1,raw!$2:$2,0)-1,COUNTA(raw!$A:$A)-1,1),D$2) -> 0 | E8: =COUNTIFS( OFFSET(raw!$A$1,2,MATCH(回答数!$A8,raw!$2:$2,0)-1,COUNTA(raw!$A:$A)-1,1),回答数!$B8, OFFSET(raw!$A$1,2,MATCH($D$1,raw!$2:$2,0)-1,COUNTA(raw!$A:$A)-1,1),E$2) -> 3 | F8: =COUNTIFS( OFFSET(raw!$A$1,2,MATCH(回答数!$A8,raw!$2:$2,0)-1,COUNTA(raw!$A:$A)-1,1),回答数!$B8, OFFSET(raw!$A$1,2,MATCH($D$1,raw!$2:$2,0)-1,COUNTA(raw!$A:$A)-1,1),F$2) -> 5 | G8: =COUNTIFS( OFFSET(raw!$A$1,2,MATCH(回答数!$A8,raw!$2:$2,0)-1,COUNTA(raw!$A:$A)-1,1),回答数!$B8, OFFSET(raw!$A$1,2,MATCH($D$1,raw!$2:$2,0)-1,COUNTA(raw!$A:$A)-1,1),G$2) -> 4 | H8: =COUNTIFS( OFFSET(raw!$A$1,2,MATCH(回答数!$A8,raw!$2:$2,0)-1,COUNTA(raw!$A:$A)-1,1),回答数!$B8, OFFSET(raw!$A$1,2,MATCH($D$1,raw!$2:$2,0)-1,COUNTA(raw!$A:$A)-1,1),H$2) -> 5 | I8: =COUNTIFS( OFFSET(raw!$A$1,2,MATCH(回答数!$A8,raw!$2:$2,0)-1,COUNTA(raw!$A:$A)-1,1),回答数!$B8, OFFSET(raw!$A$1,2,MATCH($D$1,raw!$2:$2,0)-1,COUNTA(raw!$A:$A)-1,1),I$2) -> 4 | J8: =COUNTIFS( OFFSET(raw!$A$1,2,MATCH(回答数!$A8,raw!$2:$2,0)-1,COUNTA(raw!$A:$A)-1,1),回答数!$B8, OFFSET(raw!$A$1,2,MATCH($D$1,raw!$2:$2,0)-1,COUNTA(raw!$A:$A)-1,1),J$2) -> 2 | K8: =COUNTIFS( OFFSET(raw!$A$1,2,MATCH(回答数!$A8,raw!$2:$2,0)-1,COUNTA(raw!$A:$A)-1,1),回答数!$B8, OFFSET(raw!$A$1,2,MATCH($D$1,raw!$2:$2,0)-1,COUNTA(raw!$A:$A)-1,1),K$2) -> 6 | L8: =COUNTIFS( OFFSET(raw!$A$1,2,MATCH(回答数!$A8,raw!$2:$2,0)-1,COUNTA(raw!$A:$A)-1,1),回答数!$B8, OFFSET(raw!$A$1,2,MATCH($D$1,raw!$2:$2,0)-1,COUNTA(raw!$A:$A)-1,1),L$2) -> 5 | M8: =COUNTIFS( OFFSET(raw!$A$1,2,MATCH(回答数!$A8,raw!$2:$2,0)-1,COUNTA(raw!$A:$A)-1,1),回答数!$B8, OFFSET(raw!$A$1,2,MATCH($D$1,raw!$2:$2,0)-1,COUNTA(raw!$A:$A)-1,1),M$2) -> 3 | N8: =COUNTIFS( OFFSET(raw!$A$1,2,MATCH(回答数!$A8,raw!$2:$2,0)-1,COUNTA(raw!$A:$A)-1,1),回答数!$B8, OFFSET(raw!$A$1,2,MATCH($D$1,raw!$2:$2,0)-1,COUNTA(raw!$A:$A)-1,1),N$2) -> 0 | O8: =COUNTIFS( OFFSET(raw!$A$1,2,MATCH(回答数!$A8,raw!$2:$2,0)-1,COUNTA(raw!$A:$A)-1,1),回答数!$B8, OFFSET(raw!$A$1,2,MATCH($D$1,raw!$2:$2,0)-1,COUNTA(raw!$A:$A)-1,1),O$2) -> 0 | P8: 37
A9: 回答エリア | B9: 福井駅前 エリア | D9: =COUNTIFS( OFFSET(raw!$A$1,2,MATCH(回答数!$A9,raw!$2:$2,0)-1,COUNTA(raw!$A:$A)-1,1),回答数!$B9, OFFSET(raw!$A$1,2,MATCH($D$1,raw!$2:$2,0)-1,COUNTA(raw!$A:$A)-1,1),D$2) -> 6 | E9: =COUNTIFS( OFFSET(raw!$A$1,2,MATCH(回答数!$A9,raw!$2:$2,0)-1,COUNTA(raw!$A:$A)-1,1),回答数!$B9, OFFSET(raw!$A$1,2,MATCH($D$1,raw!$2:$2,0)-1,COUNTA(raw!$A:$A)-1,1),E$2) -> 58 | F9: =COUNTIFS( OFFSET(raw!$A$1,2,MATCH(回答数!$A9,raw!$2:$2,0)-1,COUNTA(raw!$A:$A)-1,1),回答数!$B9, OFFSET(raw!$A$1,2,MATCH($D$1,raw!$2:$2,0)-1,COUNTA(raw!$A:$A)-1,1),F$2) -> 42 | G9: =COUNTIFS( OFFSET(raw!$A$1,2,MATCH(回答数!$A9,raw!$2:$2,0)-1,COUNTA(raw!$A:$A)-1,1),回答数!$B9, OFFSET(raw!$A$1,2,MATCH($D$1,raw!$2:$2,0)-1,COUNTA(raw!$A:$A)-1,1),G$2) -> 50 | H9: =COUNTIFS( OFFSET(raw!$A$1,2,MATCH(回答数!$A9,raw!$2:$2,0)-1,COUNTA(raw!$A:$A)-1,1),回答数!$B9, OFFSET(raw!$A$1,2,MATCH($D$1,raw!$2:$2,0)-1,COUNTA(raw!$A:$A)-1,1),H$2) -> 48 | I9: =COUNTIFS( OFFSET(raw!$A$1,2,MATCH(回答数!$A9,raw!$2:$2,0)-1,COUNTA(raw!$A:$A)-1,1),回答数!$B9, OFFSET(raw!$A$1,2,MATCH($D$1,raw!$2:$2,0)-1,COUNTA(raw!$A:$A)-1,1),I$2) -> 74 | J9: =COUNTIFS( OFFSET(raw!$A$1,2,MATCH(回答数!$A9,raw!$2:$2,0)-1,COUNTA(raw!$A:$A)-1,1),回答数!$B9, OFFSET(raw!$A$1,2,MATCH($D$1,raw!$2:$2,0)-1,COUNTA(raw!$A:$A)-1,1),J$2) -> 150 | K9: =COUNTIFS( OFFSET(raw!$A$1,2,MATCH(回答数!$A9,raw!$2:$2,0)-1,COUNTA(raw!$A:$A)-1,1),回答数!$B9, OFFSET(raw!$A$1,2,MATCH($D$1,raw!$2:$2,0)-1,COUNTA(raw!$A:$A)-1,1),K$2) -> 195 | L9: =COUNTIFS( OFFSET(raw!$A$1,2,MATCH(回答数!$A9,raw!$2:$2,0)-1,COUNTA(raw!$A:$A)-1,1),回答数!$B9, OFFSET(raw!$A$1,2,MATCH($D$1,raw!$2:$2,0)-1,COUNTA(raw!$A:$A)-1,1),L$2) -> 125 | M9: =COUNTIFS( OFFSET(raw!$A$1,2,MATCH(回答数!$A9,raw!$2:$2,0)-1,COUNTA(raw!$A:$A)-1,1),回答数!$B9, OFFSET(raw!$A$1,2,MATCH($D$1,raw!$2:$2,0)-1,COUNTA(raw!$A:$A)-1,1),M$2) -> 34 | N9: =COUNTIFS( OFFSET(raw!$A$1,2,MATCH(回答数!$A9,raw!$2:$2,0)-1,COUNTA(raw!$A:$A)-1,1),回答数!$B9, OFFSET(raw!$A$1,2,MATCH($D$1,raw!$2:$2,0)-1,COUNTA(raw!$A:$A)-1,1),N$2) -> 81 | O9: =COUNTIFS( OFFSET(raw!$A$1,2,MATCH(回答数!$A9,raw!$2:$2,0)-1,COUNTA(raw!$A:$A)-1,1),回答数!$B9, OFFSET(raw!$A$1,2,MATCH($D$1,raw!$2:$2,0)-1,COUNTA(raw!$A:$A)-1,1),O$2) -> 30 | P9: 893
A10: 回答エリア | B10: 名勝 養浩館庭園 エリア | D10: =COUNTIFS( OFFSET(raw!$A$1,2,MATCH(回答数!$A10,raw!$2:$2,0)-1,COUNTA(raw!$A:$A)-1,1),回答数!$B10, OFFSET(raw!$A$1,2,MATCH($D$1,raw!$2:$2,0)-1,COUNTA(raw!$A:$A)-1,1),D$2) -> 1 | E10: =COUNTIFS( OFFSET(raw!$A$1,2,MATCH(回答数!$A10,raw!$2:$2,0)-1,COUNTA(raw!$A:$A)-1,1),回答数!$B10, OFFSET(raw!$A$1,2,MATCH($D$1,raw!$2:$2,0)-1,COUNTA(raw!$A:$A)-1,1),E$2) -> 23 | F10: =COUNTIFS( OFFSET(raw!$A$1,2,MATCH(回答数!$A10,raw!$2:$2,0)-1,COUNTA(raw!$A:$A)-1,1),回答数!$B10, OFFSET(raw!$A$1,2,MATCH($D$1,raw!$2:$2,0)-1,COUNTA(raw!$A:$A)-1,1),F$2) -> 2 | G10: =COUNTIFS( OFFSET(raw!$A$1,2,MATCH(回答数!$A10,raw!$2:$2,0)-1,COUNTA(raw!$A:$A)-1,1),回答数!$B10, OFFSET(raw!$A$1,2,MATCH($D$1,raw!$2:$2,0)-1,COUNTA(raw!$A:$A)-1,1),G$2) -> 0 | H10: =COUNTIFS( OFFSET(raw!$A$1,2,MATCH(回答数!$A10,raw!$2:$2,0)-1,COUNTA(raw!$A:$A)-1,1),回答数!$B10, OFFSET(raw!$A$1,2,MATCH($D$1,raw!$2:$2,0)-1,COUNTA(raw!$A:$A)-1,1),H$2) -> 5 | I10: =COUNTIFS( OFFSET(raw!$A$1,2,MATCH(回答数!$A10,raw!$2:$2,0)-1,COUNTA(raw!$A:$A)-1,1),回答数!$B10, OFFSET(raw!$A$1,2,MATCH($D$1,raw!$2:$2,0)-1,COUNTA(raw!$A:$A)-1,1),I$2) -> 1 | J10: =COUNTIFS( OFFSET(raw!$A$1,2,MATCH(回答数!$A10,raw!$2:$2,0)-1,COUNTA(raw!$A:$A)-1,1),回答数!$B10, OFFSET(raw!$A$1,2,MATCH($D$1,raw!$2:$2,0)-1,COUNTA(raw!$A:$A)-1,1),J$2) -> 24 | K10: =COUNTIFS( OFFSET(raw!$A$1,2,MATCH(回答数!$A10,raw!$2:$2,0)-1,COUNTA(raw!$A:$A)-1,1),回答数!$B10, OFFSET(raw!$A$1,2,MATCH($D$1,raw!$2:$2,0)-1,COUNTA(raw!$A:$A)-1,1),K$2) -> 36 | L10: =COUNTIFS( OFFSET(raw!$A$1,2,MATCH(回答数!$A10,raw!$2:$2,0)-1,COUNTA(raw!$A:$A)-1,1),回答数!$B10, OFFSET(raw!$A$1,2,MATCH($D$1,raw!$2:$2,0)-1,COUNTA(raw!$A:$A)-1,1),L$2) -> 11 | M10: =COUNTIFS( OFFSET(raw!$A$1,2,MATCH(回答数!$A10,raw!$2:$2,0)-1,COUNTA(raw!$A:$A)-1,1),回答数!$B10, OFFSET(raw!$A$1,2,MATCH($D$1,raw!$2:$2,0)-1,COUNTA(raw!$A:$A)-1,1),M$2) -> 2 | N10: =COUNTIFS( OFFSET(raw!$A$1,2,MATCH(回答数!$A10,raw!$2:$2,0)-1,COUNTA(raw!$A:$A)-1,1),回答数!$B10, OFFSET(raw!$A$1,2,MATCH($D$1,raw!$2:$2,0)-1,COUNTA(raw!$A:$A)-1,1),N$2) -> 19 | O10: =COUNTIFS( OFFSET(raw!$A$1,2,MATCH(回答数!$A10,raw!$2:$2,0)-1,COUNTA(raw!$A:$A)-1,1),回答数!$B10, OFFSET(raw!$A$1,2,MATCH($D$1,raw!$2:$2,0)-1,COUNTA(raw!$A:$A)-1,1),O$2) -> 3 | P10: 127
A11: 回答エリア | B11: 東尋坊 エリア | D11: =COUNTIFS( OFFSET(raw!$A$1,2,MATCH(回答数!$A11,raw!$2:$2,0)-1,COUNTA(raw!$A:$A)-1,1),回答数!$B11, OFFSET(raw!$A$1,2,MATCH($D$1,raw!$2:$2,0)-1,COUNTA(raw!$A:$A)-1,1),D$2) -> 17 | E11: =COUNTIFS( OFFSET(raw!$A$1,2,MATCH(回答数!$A11,raw!$2:$2,0)-1,COUNTA(raw!$A:$A)-1,1),回答数!$B11, OFFSET(raw!$A$1,2,MATCH($D$1,raw!$2:$2,0)-1,COUNTA(raw!$A:$A)-1,1),E$2) -> 61 | F11: =COUNTIFS( OFFSET(raw!$A$1,2,MATCH(回答数!$A11,raw!$2:$2,0)-1,COUNTA(raw!$A:$A)-1,1),回答数!$B11, OFFSET(raw!$A$1,2,MATCH($D$1,raw!$2:$2,0)-1,COUNTA(raw!$A:$A)-1,1),F$2) -> 22 | G11: =COUNTIFS( OFFSET(raw!$A$1,2,MATCH(回答数!$A11,raw!$2:$2,0)-1,COUNTA(raw!$A:$A)-1,1),回答数!$B11, OFFSET(raw!$A$1,2,MATCH($D$1,raw!$2:$2,0)-1,COUNTA(raw!$A:$A)-1,1),G$2) -> 38 | H11: =COUNTIFS( OFFSET(raw!$A$1,2,MATCH(回答数!$A11,raw!$2:$2,0)-1,COUNTA(raw!$A:$A)-1,1),回答数!$B11, OFFSET(raw!$A$1,2,MATCH($D$1,raw!$2:$2,0)-1,COUNTA(raw!$A:$A)-1,1),H$2) -> 44 | I11: =COUNTIFS( OFFSET(raw!$A$1,2,MATCH(回答数!$A11,raw!$2:$2,0)-1,COUNTA(raw!$A:$A)-1,1),回答数!$B11, OFFSET(raw!$A$1,2,MATCH($D$1,raw!$2:$2,0)-1,COUNTA(raw!$A:$A)-1,1),I$2) -> 59 | J11: =COUNTIFS( OFFSET(raw!$A$1,2,MATCH(回答数!$A11,raw!$2:$2,0)-1,COUNTA(raw!$A:$A)-1,1),回答数!$B11, OFFSET(raw!$A$1,2,MATCH($D$1,raw!$2:$2,0)-1,COUNTA(raw!$A:$A)-1,1),J$2) -> 129 | K11: =COUNTIFS( OFFSET(raw!$A$1,2,MATCH(回答数!$A11,raw!$2:$2,0)-1,COUNTA(raw!$A:$A)-1,1),回答数!$B11, OFFSET(raw!$A$1,2,MATCH($D$1,raw!$2:$2,0)-1,COUNTA(raw!$A:$A)-1,1),K$2) -> 149 | L11: =COUNTIFS( OFFSET(raw!$A$1,2,MATCH(回答数!$A11,raw!$2:$2,0)-1,COUNTA(raw!$A:$A)-1,1),回答数!$B11, OFFSET(raw!$A$1,2,MATCH($D$1,raw!$2:$2,0)-1,COUNTA(raw!$A:$A)-1,1),L$2) -> 100 | M11: =COUNTIFS( OFFSET(raw!$A$1,2,MATCH(回答数!$A11,raw!$2:$2,0)-1,COUNTA(raw!$A:$A)-1,1),回答数!$B11, OFFSET(raw!$A$1,2,MATCH($D$1,raw!$2:$2,0)-1,COUNTA(raw!$A:$A)-1,1),M$2) -> 36 | N11: =COUNTIFS( OFFSET(raw!$A$1,2,MATCH(回答数!$A11,raw!$2:$2,0)-1,COUNTA(raw!$A:$A)-1,1),回答数!$B11, OFFSET(raw!$A$1,2,MATCH($D$1,raw!$2:$2,0)-1,COUNTA(raw!$A:$A)-1,1),N$2) -> 35 | O11: =COUNTIFS( OFFSET(raw!$A$1,2,MATCH(回答数!$A11,raw!$2:$2,0)-1,COUNTA(raw!$A:$A)-1,1),回答数!$B11, OFFSET(raw!$A$1,2,MATCH($D$1,raw!$2:$2,0)-1,COUNTA(raw!$A:$A)-1,1),O$2) -> 14 | P11: 704
A12: 回答エリア | B12: 芝政ワールド エリア | D12: =COUNTIFS( OFFSET(raw!$A$1,2,MATCH(回答数!$A12,raw!$2:$2,0)-1,COUNTA(raw!$A:$A)-1,1),回答数!$B12, OFFSET(raw!$A$1,2,MATCH($D$1,raw!$2:$2,0)-1,COUNTA(raw!$A:$A)-1,1),D$2) -> 1 | E12: =COUNTIFS( OFFSET(raw!$A$1,2,MATCH(回答数!$A12,raw!$2:$2,0)-1,COUNTA(raw!$A:$A)-1,1),回答数!$B12, OFFSET(raw!$A$1,2,MATCH($D$1,raw!$2:$2,0)-1,COUNTA(raw!$A:$A)-1,1),E$2) -> 5 | F12: =COUNTIFS( OFFSET(raw!$A$1,2,MATCH(回答数!$A12,raw!$2:$2,0)-1,COUNTA(raw!$A:$A)-1,1),回答数!$B12, OFFSET(raw!$A$1,2,MATCH($D$1,raw!$2:$2,0)-1,COUNTA(raw!$A:$A)-1,1),F$2) -> 1 | G12: =COUNTIFS( OFFSET(raw!$A$1,2,MATCH(回答数!$A12,raw!$2:$2,0)-1,COUNTA(raw!$A:$A)-1,1),回答数!$B12, OFFSET(raw!$A$1,2,MATCH($D$1,raw!$2:$2,0)-1,COUNTA(raw!$A:$A)-1,1),G$2) -> 4 | H12: =COUNTIFS( OFFSET(raw!$A$1,2,MATCH(回答数!$A12,raw!$2:$2,0)-1,COUNTA(raw!$A:$A)-1,1),回答数!$B12, OFFSET(raw!$A$1,2,MATCH($D$1,raw!$2:$2,0)-1,COUNTA(raw!$A:$A)-1,1),H$2) -> 33 | I12: =COUNTIFS( OFFSET(raw!$A$1,2,MATCH(回答数!$A12,raw!$2:$2,0)-1,COUNTA(raw!$A:$A)-1,1),回答数!$B12, OFFSET(raw!$A$1,2,MATCH($D$1,raw!$2:$2,0)-1,COUNTA(raw!$A:$A)-1,1),I$2) -> 12 | J12: =COUNTIFS( OFFSET(raw!$A$1,2,MATCH(回答数!$A12,raw!$2:$2,0)-1,COUNTA(raw!$A:$A)-1,1),回答数!$B12, OFFSET(raw!$A$1,2,MATCH($D$1,raw!$2:$2,0)-1,COUNTA(raw!$A:$A)-1,1),J$2) -> 25 | K12: =COUNTIFS( OFFSET(raw!$A$1,2,MATCH(回答数!$A12,raw!$2:$2,0)-1,COUNTA(raw!$A:$A)-1,1),回答数!$B12, OFFSET(raw!$A$1,2,MATCH($D$1,raw!$2:$2,0)-1,COUNTA(raw!$A:$A)-1,1),K$2) -> 36 | L12: =COUNTIFS( OFFSET(raw!$A$1,2,MATCH(回答数!$A12,raw!$2:$2,0)-1,COUNTA(raw!$A:$A)-1,1),回答数!$B12, OFFSET(raw!$A$1,2,MATCH($D$1,raw!$2:$2,0)-1,COUNTA(raw!$A:$A)-1,1),L$2) -> 16 | M12: =COUNTIFS( OFFSET(raw!$A$1,2,MATCH(回答数!$A12,raw!$2:$2,0)-1,COUNTA(raw!$A:$A)-1,1),回答数!$B12, OFFSET(raw!$A$1,2,MATCH($D$1,raw!$2:$2,0)-1,COUNTA(raw!$A:$A)-1,1),M$2) -> 19 | N12: =COUNTIFS( OFFSET(raw!$A$1,2,MATCH(回答数!$A12,raw!$2:$2,0)-1,COUNTA(raw!$A:$A)-1,1),回答数!$B12, OFFSET(raw!$A$1,2,MATCH($D$1,raw!$2:$2,0)-1,COUNTA(raw!$A:$A)-1,1),N$2) -> 16 | O12: =COUNTIFS( OFFSET(raw!$A$1,2,MATCH(回答数!$A12,raw!$2:$2,0)-1,COUNTA(raw!$A:$A)-1,1),回答数!$B12, OFFSET(raw!$A$1,2,MATCH($D$1,raw!$2:$2,0)-1,COUNTA(raw!$A:$A)-1,1),O$2) -> 2 | P12: 170
A13: 回答エリア | B13: 丸岡城 エリア | D13: =COUNTIFS( OFFSET(raw!$A$1,2,MATCH(回答数!$A13,raw!$2:$2,0)-1,COUNTA(raw!$A:$A)-1,1),回答数!$B13, OFFSET(raw!$A$1,2,MATCH($D$1,raw!$2:$2,0)-1,COUNTA(raw!$A:$A)-1,1),D$2) -> 0 | E13: =COUNTIFS( OFFSET(raw!$A$1,2,MATCH(回答数!$A13,raw!$2:$2,0)-1,COUNTA(raw!$A:$A)-1,1),回答数!$B13, OFFSET(raw!$A$1,2,MATCH($D$1,raw!$2:$2,0)-1,COUNTA(raw!$A:$A)-1,1),E$2) -> 12 | F13: =COUNTIFS( OFFSET(raw!$A$1,2,MATCH(回答数!$A13,raw!$2:$2,0)-1,COUNTA(raw!$A:$A)-1,1),回答数!$B13, OFFSET(raw!$A$1,2,MATCH($D$1,raw!$2:$2,0)-1,COUNTA(raw!$A:$A)-1,1),F$2) -> 12 | G13: =COUNTIFS( OFFSET(raw!$A$1,2,MATCH(回答数!$A13,raw!$2:$2,0)-1,COUNTA(raw!$A:$A)-1,1),回答数!$B13, OFFSET(raw!$A$1,2,MATCH($D$1,raw!$2:$2,0)-1,COUNTA(raw!$A:$A)-1,1),G$2) -> 14 | H13: =COUNTIFS( OFFSET(raw!$A$1,2,MATCH(回答数!$A13,raw!$2:$2,0)-1,COUNTA(raw!$A:$A)-1,1),回答数!$B13, OFFSET(raw!$A$1,2,MATCH($D$1,raw!$2:$2,0)-1,COUNTA(raw!$A:$A)-1,1),H$2) -> 17 | I13: =COUNTIFS( OFFSET(raw!$A$1,2,MATCH(回答数!$A13,raw!$2:$2,0)-1,COUNTA(raw!$A:$A)-1,1),回答数!$B13, OFFSET(raw!$A$1,2,MATCH($D$1,raw!$2:$2,0)-1,COUNTA(raw!$A:$A)-1,1),I$2) -> 24 | J13: =COUNTIFS( OFFSET(raw!$A$1,2,MATCH(回答数!$A13,raw!$2:$2,0)-1,COUNTA(raw!$A:$A)-1,1),回答数!$B13, OFFSET(raw!$A$1,2,MATCH($D$1,raw!$2:$2,0)-1,COUNTA(raw!$A:$A)-1,1),J$2) -> 63 | K13: =COUNTIFS( OFFSET(raw!$A$1,2,MATCH(回答数!$A13,raw!$2:$2,0)-1,COUNTA(raw!$A:$A)-1,1),回答数!$B13, OFFSET(raw!$A$1,2,MATCH($D$1,raw!$2:$2,0)-1,COUNTA(raw!$A:$A)-1,1),K$2) -> 95 | L13: =COUNTIFS( OFFSET(raw!$A$1,2,MATCH(回答数!$A13,raw!$2:$2,0)-1,COUNTA(raw!$A:$A)-1,1),回答数!$B13, OFFSET(raw!$A$1,2,MATCH($D$1,raw!$2:$2,0)-1,COUNTA(raw!$A:$A)-1,1),L$2) -> 41 | M13: =COUNTIFS( OFFSET(raw!$A$1,2,MATCH(回答数!$A13,raw!$2:$2,0)-1,COUNTA(raw!$A:$A)-1,1),回答数!$B13, OFFSET(raw!$A$1,2,MATCH($D$1,raw!$2:$2,0)-1,COUNTA(raw!$A:$A)-1,1),M$2) -> 23 | N13: =COUNTIFS( OFFSET(raw!$A$1,2,MATCH(回答数!$A13,raw!$2:$2,0)-1,COUNTA(raw!$A:$A)-1,1),回答数!$B13, OFFSET(raw!$A$1,2,MATCH($D$1,raw!$2:$2,0)-1,COUNTA(raw!$A:$A)-1,1),N$2) -> 24 | O13: =COUNTIFS( OFFSET(raw!$A$1,2,MATCH(回答数!$A13,raw!$2:$2,0)-1,COUNTA(raw!$A:$A)-1,1),回答数!$B13, OFFSET(raw!$A$1,2,MATCH($D$1,raw!$2:$2,0)-1,COUNTA(raw!$A:$A)-1,1),O$2) -> 7 | P13: 332
A14: 回答エリア | B14: 花の駅 ゆりの里公園 エリア | D14: =COUNTIFS( OFFSET(raw!$A$1,2,MATCH(回答数!$A14,raw!$2:$2,0)-1,COUNTA(raw!$A:$A)-1,1),回答数!$B14, OFFSET(raw!$A$1,2,MATCH($D$1,raw!$2:$2,0)-1,COUNTA(raw!$A:$A)-1,1),D$2) -> 3 | E14: =COUNTIFS( OFFSET(raw!$A$1,2,MATCH(回答数!$A14,raw!$2:$2,0)-1,COUNTA(raw!$A:$A)-1,1),回答数!$B14, OFFSET(raw!$A$1,2,MATCH($D$1,raw!$2:$2,0)-1,COUNTA(raw!$A:$A)-1,1),E$2) -> 52 | F14: =COUNTIFS( OFFSET(raw!$A$1,2,MATCH(回答数!$A14,raw!$2:$2,0)-1,COUNTA(raw!$A:$A)-1,1),回答数!$B14, OFFSET(raw!$A$1,2,MATCH($D$1,raw!$2:$2,0)-1,COUNTA(raw!$A:$A)-1,1),F$2) -> 60 | G14: =COUNTIFS( OFFSET(raw!$A$1,2,MATCH(回答数!$A14,raw!$2:$2,0)-1,COUNTA(raw!$A:$A)-1,1),回答数!$B14, OFFSET(raw!$A$1,2,MATCH($D$1,raw!$2:$2,0)-1,COUNTA(raw!$A:$A)-1,1),G$2) -> 17 | H14: =COUNTIFS( OFFSET(raw!$A$1,2,MATCH(回答数!$A14,raw!$2:$2,0)-1,COUNTA(raw!$A:$A)-1,1),回答数!$B14, OFFSET(raw!$A$1,2,MATCH($D$1,raw!$2:$2,0)-1,COUNTA(raw!$A:$A)-1,1),H$2) -> 13 | I14: =COUNTIFS( OFFSET(raw!$A$1,2,MATCH(回答数!$A14,raw!$2:$2,0)-1,COUNTA(raw!$A:$A)-1,1),回答数!$B14, OFFSET(raw!$A$1,2,MATCH($D$1,raw!$2:$2,0)-1,COUNTA(raw!$A:$A)-1,1),I$2) -> 20 | J14: =COUNTIFS( OFFSET(raw!$A$1,2,MATCH(回答数!$A14,raw!$2:$2,0)-1,COUNTA(raw!$A:$A)-1,1),回答数!$B14, OFFSET(raw!$A$1,2,MATCH($D$1,raw!$2:$2,0)-1,COUNTA(raw!$A:$A)-1,1),J$2) -> 36 | K14: =COUNTIFS( OFFSET(raw!$A$1,2,MATCH(回答数!$A14,raw!$2:$2,0)-1,COUNTA(raw!$A:$A)-1,1),回答数!$B14, OFFSET(raw!$A$1,2,MATCH($D$1,raw!$2:$2,0)-1,COUNTA(raw!$A:$A)-1,1),K$2) -> 26 | L14: =COUNTIFS( OFFSET(raw!$A$1,2,MATCH(回答数!$A14,raw!$2:$2,0)-1,COUNTA(raw!$A:$A)-1,1),回答数!$B14, OFFSET(raw!$A$1,2,MATCH($D$1,raw!$2:$2,0)-1,COUNTA(raw!$A:$A)-1,1),L$2) -> 24 | M14: =COUNTIFS( OFFSET(raw!$A$1,2,MATCH(回答数!$A14,raw!$2:$2,0)-1,COUNTA(raw!$A:$A)-1,1),回答数!$B14, OFFSET(raw!$A$1,2,MATCH($D$1,raw!$2:$2,0)-1,COUNTA(raw!$A:$A)-1,1),M$2) -> 10 | N14: =COUNTIFS( OFFSET(raw!$A$1,2,MATCH(回答数!$A14,raw!$2:$2,0)-1,COUNTA(raw!$A:$A)-1,1),回答数!$B14, OFFSET(raw!$A$1,2,MATCH($D$1,raw!$2:$2,0)-1,COUNTA(raw!$A:$A)-1,1),N$2) -> 19 | O14: =COUNTIFS( OFFSET(raw!$A$1,2,MATCH(回答数!$A14,raw!$2:$2,0)-1,COUNTA(raw!$A:$A)-1,1),回答数!$B14, OFFSET(raw!$A$1,2,MATCH($D$1,raw!$2:$2,0)-1,COUNTA(raw!$A:$A)-1,1),O$2) -> 6 | P14: 286
A15: 回答エリア | B15: 道の駅みくに ふれあいパーク三里浜 エリア | D15: =COUNTIFS( OFFSET(raw!$A$1,2,MATCH(回答数!$A15,raw!$2:$2,0)-1,COUNTA(raw!$A:$A)-1,1),回答数!$B15, OFFSET(raw!$A$1,2,MATCH($D$1,raw!$2:$2,0)-1,COUNTA(raw!$A:$A)-1,1),D$2) -> 6 | E15: =COUNTIFS( OFFSET(raw!$A$1,2,MATCH(回答数!$A15,raw!$2:$2,0)-1,COUNTA(raw!$A:$A)-1,1),回答数!$B15, OFFSET(raw!$A$1,2,MATCH($D$1,raw!$2:$2,0)-1,COUNTA(raw!$A:$A)-1,1),E$2) -> 27 | F15: =COUNTIFS( OFFSET(raw!$A$1,2,MATCH(回答数!$A15,raw!$2:$2,0)-1,COUNTA(raw!$A:$A)-1,1),回答数!$B15, OFFSET(raw!$A$1,2,MATCH($D$1,raw!$2:$2,0)-1,COUNTA(raw!$A:$A)-1,1),F$2) -> 29 | G15: =COUNTIFS( OFFSET(raw!$A$1,2,MATCH(回答数!$A15,raw!$2:$2,0)-1,COUNTA(raw!$A:$A)-1,1),回答数!$B15, OFFSET(raw!$A$1,2,MATCH($D$1,raw!$2:$2,0)-1,COUNTA(raw!$A:$A)-1,1),G$2) -> 28 | H15: =COUNTIFS( OFFSET(raw!$A$1,2,MATCH(回答数!$A15,raw!$2:$2,0)-1,COUNTA(raw!$A:$A)-1,1),回答数!$B15, OFFSET(raw!$A$1,2,MATCH($D$1,raw!$2:$2,0)-1,COUNTA(raw!$A:$A)-1,1),H$2) -> 19 | I15: =COUNTIFS( OFFSET(raw!$A$1,2,MATCH(回答数!$A15,raw!$2:$2,0)-1,COUNTA(raw!$A:$A)-1,1),回答数!$B15, OFFSET(raw!$A$1,2,MATCH($D$1,raw!$2:$2,0)-1,COUNTA(raw!$A:$A)-1,1),I$2) -> 28 | J15: =COUNTIFS( OFFSET(raw!$A$1,2,MATCH(回答数!$A15,raw!$2:$2,0)-1,COUNTA(raw!$A:$A)-1,1),回答数!$B15, OFFSET(raw!$A$1,2,MATCH($D$1,raw!$2:$2,0)-1,COUNTA(raw!$A:$A)-1,1),J$2) -> 35 | K15: =COUNTIFS( OFFSET(raw!$A$1,2,MATCH(回答数!$A15,raw!$2:$2,0)-1,COUNTA(raw!$A:$A)-1,1),回答数!$B15, OFFSET(raw!$A$1,2,MATCH($D$1,raw!$2:$2,0)-1,COUNTA(raw!$A:$A)-1,1),K$2) -> 62 | L15: =COUNTIFS( OFFSET(raw!$A$1,2,MATCH(回答数!$A15,raw!$2:$2,0)-1,COUNTA(raw!$A:$A)-1,1),回答数!$B15, OFFSET(raw!$A$1,2,MATCH($D$1,raw!$2:$2,0)-1,COUNTA(raw!$A:$A)-1,1),L$2) -> 36 | M15: =COUNTIFS( OFFSET(raw!$A$1,2,MATCH(回答数!$A15,raw!$2:$2,0)-1,COUNTA(raw!$A:$A)-1,1),回答数!$B15, OFFSET(raw!$A$1,2,MATCH($D$1,raw!$2:$2,0)-1,COUNTA(raw!$A:$A)-1,1),M$2) -> 14 | N15: =COUNTIFS( OFFSET(raw!$A$1,2,MATCH(回答数!$A15,raw!$2:$2,0)-1,COUNTA(raw!$A:$A)-1,1),回答数!$B15, OFFSET(raw!$A$1,2,MATCH($D$1,raw!$2:$2,0)-1,COUNTA(raw!$A:$A)-1,1),N$2) -> 12 | O15: =COUNTIFS( OFFSET(raw!$A$1,2,MATCH(回答数!$A15,raw!$2:$2,0)-1,COUNTA(raw!$A:$A)-1,1),回答数!$B15, OFFSET(raw!$A$1,2,MATCH($D$1,raw!$2:$2,0)-1,COUNTA(raw!$A:$A)-1,1),O$2) -> 8 | P15: 304
A16: 回答エリア | B16: あわら温泉 エリア | D16: =COUNTIFS( OFFSET(raw!$A$1,2,MATCH(回答数!$A16,raw!$2:$2,0)-1,COUNTA(raw!$A:$A)-1,1),回答数!$B16, OFFSET(raw!$A$1,2,MATCH($D$1,raw!$2:$2,0)-1,COUNTA(raw!$A:$A)-1,1),D$2) -> 12 | E16: =COUNTIFS( OFFSET(raw!$A$1,2,MATCH(回答数!$A16,raw!$2:$2,0)-1,COUNTA(raw!$A:$A)-1,1),回答数!$B16, OFFSET(raw!$A$1,2,MATCH($D$1,raw!$2:$2,0)-1,COUNTA(raw!$A:$A)-1,1),E$2) -> 102 | F16: =COUNTIFS( OFFSET(raw!$A$1,2,MATCH(回答数!$A16,raw!$2:$2,0)-1,COUNTA(raw!$A:$A)-1,1),回答数!$B16, OFFSET(raw!$A$1,2,MATCH($D$1,raw!$2:$2,0)-1,COUNTA(raw!$A:$A)-1,1),F$2) -> 57 | G16: =COUNTIFS( OFFSET(raw!$A$1,2,MATCH(回答数!$A16,raw!$2:$2,0)-1,COUNTA(raw!$A:$A)-1,1),回答数!$B16, OFFSET(raw!$A$1,2,MATCH($D$1,raw!$2:$2,0)-1,COUNTA(raw!$A:$A)-1,1),G$2) -> 73 | H16: =COUNTIFS( OFFSET(raw!$A$1,2,MATCH(回答数!$A16,raw!$2:$2,0)-1,COUNTA(raw!$A:$A)-1,1),回答数!$B16, OFFSET(raw!$A$1,2,MATCH($D$1,raw!$2:$2,0)-1,COUNTA(raw!$A:$A)-1,1),H$2) -> 86 | I16: =COUNTIFS( OFFSET(raw!$A$1,2,MATCH(回答数!$A16,raw!$2:$2,0)-1,COUNTA(raw!$A:$A)-1,1),回答数!$B16, OFFSET(raw!$A$1,2,MATCH($D$1,raw!$2:$2,0)-1,COUNTA(raw!$A:$A)-1,1),I$2) -> 106 | J16: =COUNTIFS( OFFSET(raw!$A$1,2,MATCH(回答数!$A16,raw!$2:$2,0)-1,COUNTA(raw!$A:$A)-1,1),回答数!$B16, OFFSET(raw!$A$1,2,MATCH($D$1,raw!$2:$2,0)-1,COUNTA(raw!$A:$A)-1,1),J$2) -> 258 | K16: =COUNTIFS( OFFSET(raw!$A$1,2,MATCH(回答数!$A16,raw!$2:$2,0)-1,COUNTA(raw!$A:$A)-1,1),回答数!$B16, OFFSET(raw!$A$1,2,MATCH($D$1,raw!$2:$2,0)-1,COUNTA(raw!$A:$A)-1,1),K$2) -> 305 | L16: =COUNTIFS( OFFSET(raw!$A$1,2,MATCH(回答数!$A16,raw!$2:$2,0)-1,COUNTA(raw!$A:$A)-1,1),回答数!$B16, OFFSET(raw!$A$1,2,MATCH($D$1,raw!$2:$2,0)-1,COUNTA(raw!$A:$A)-1,1),L$2) -> 186 | M16: =COUNTIFS( OFFSET(raw!$A$1,2,MATCH(回答数!$A16,raw!$2:$2,0)-1,COUNTA(raw!$A:$A)-1,1),回答数!$B16, OFFSET(raw!$A$1,2,MATCH($D$1,raw!$2:$2,0)-1,COUNTA(raw!$A:$A)-1,1),M$2) -> 72 | N16: =COUNTIFS( OFFSET(raw!$A$1,2,MATCH(回答数!$A16,raw!$2:$2,0)-1,COUNTA(raw!$A:$A)-1,1),回答数!$B16, OFFSET(raw!$A$1,2,MATCH($D$1,raw!$2:$2,0)-1,COUNTA(raw!$A:$A)-1,1),N$2) -> 82 | O16: =COUNTIFS( OFFSET(raw!$A$1,2,MATCH(回答数!$A16,raw!$2:$2,0)-1,COUNTA(raw!$A:$A)-1,1),回答数!$B16, OFFSET(raw!$A$1,2,MATCH($D$1,raw!$2:$2,0)-1,COUNTA(raw!$A:$A)-1,1),O$2) -> 30 | P16: 1369
A17: 回答エリア | B17: 金津創作の森 エリア | D17: =COUNTIFS( OFFSET(raw!$A$1,2,MATCH(回答数!$A17,raw!$2:$2,0)-1,COUNTA(raw!$A:$A)-1,1),回答数!$B17, OFFSET(raw!$A$1,2,MATCH($D$1,raw!$2:$2,0)-1,COUNTA(raw!$A:$A)-1,1),D$2) -> 0 | E17: =COUNTIFS( OFFSET(raw!$A$1,2,MATCH(回答数!$A17,raw!$2:$2,0)-1,COUNTA(raw!$A:$A)-1,1),回答数!$B17, OFFSET(raw!$A$1,2,MATCH($D$1,raw!$2:$2,0)-1,COUNTA(raw!$A:$A)-1,1),E$2) -> 0 | F17: =COUNTIFS( OFFSET(raw!$A$1,2,MATCH(回答数!$A17,raw!$2:$2,0)-1,COUNTA(raw!$A:$A)-1,1),回答数!$B17, OFFSET(raw!$A$1,2,MATCH($D$1,raw!$2:$2,0)-1,COUNTA(raw!$A:$A)-1,1),F$2) -> 0 | G17: =COUNTIFS( OFFSET(raw!$A$1,2,MATCH(回答数!$A17,raw!$2:$2,0)-1,COUNTA(raw!$A:$A)-1,1),回答数!$B17, OFFSET(raw!$A$1,2,MATCH($D$1,raw!$2:$2,0)-1,COUNTA(raw!$A:$A)-1,1),G$2) -> 7 | H17: =COUNTIFS( OFFSET(raw!$A$1,2,MATCH(回答数!$A17,raw!$2:$2,0)-1,COUNTA(raw!$A:$A)-1,1),回答数!$B17, OFFSET(raw!$A$1,2,MATCH($D$1,raw!$2:$2,0)-1,COUNTA(raw!$A:$A)-1,1),H$2) -> 6 | I17: =COUNTIFS( OFFSET(raw!$A$1,2,MATCH(回答数!$A17,raw!$2:$2,0)-1,COUNTA(raw!$A:$A)-1,1),回答数!$B17, OFFSET(raw!$A$1,2,MATCH($D$1,raw!$2:$2,0)-1,COUNTA(raw!$A:$A)-1,1),I$2) -> 9 | J17: =COUNTIFS( OFFSET(raw!$A$1,2,MATCH(回答数!$A17,raw!$2:$2,0)-1,COUNTA(raw!$A:$A)-1,1),回答数!$B17, OFFSET(raw!$A$1,2,MATCH($D$1,raw!$2:$2,0)-1,COUNTA(raw!$A:$A)-1,1),J$2) -> 4 | K17: =COUNTIFS( OFFSET(raw!$A$1,2,MATCH(回答数!$A17,raw!$2:$2,0)-1,COUNTA(raw!$A:$A)-1,1),回答数!$B17, OFFSET(raw!$A$1,2,MATCH($D$1,raw!$2:$2,0)-1,COUNTA(raw!$A:$A)-1,1),K$2) -> 9 | L17: =COUNTIFS( OFFSET(raw!$A$1,2,MATCH(回答数!$A17,raw!$2:$2,0)-1,COUNTA(raw!$A:$A)-1,1),回答数!$B17, OFFSET(raw!$A$1,2,MATCH($D$1,raw!$2:$2,0)-1,COUNTA(raw!$A:$A)-1,1),L$2) -> 3 | M17: =COUNTIFS( OFFSET(raw!$A$1,2,MATCH(回答数!$A17,raw!$2:$2,0)-1,COUNTA(raw!$A:$A)-1,1),回答数!$B17, OFFSET(raw!$A$1,2,MATCH($D$1,raw!$2:$2,0)-1,COUNTA(raw!$A:$A)-1,1),M$2) -> 0 | N17: =COUNTIFS( OFFSET(raw!$A$1,2,MATCH(回答数!$A17,raw!$2:$2,0)-1,COUNTA(raw!$A:$A)-1,1),回答数!$B17, OFFSET(raw!$A$1,2,MATCH($D$1,raw!$2:$2,0)-1,COUNTA(raw!$A:$A)-1,1),N$2) -> 0 | O17: =COUNTIFS( OFFSET(raw!$A$1,2,MATCH(回答数!$A17,raw!$2:$2,0)-1,COUNTA(raw!$A:$A)-1,1),回答数!$B17, OFFSET(raw!$A$1,2,MATCH($D$1,raw!$2:$2,0)-1,COUNTA(raw!$A:$A)-1,1),O$2) -> 1 | P17: 39
A18: 回答エリア | B18: JA福井県ファーマーズマーケットきららの丘 エリア | D18: =COUNTIFS( OFFSET(raw!$A$1,2,MATCH(回答数!$A18,raw!$2:$2,0)-1,COUNTA(raw!$A:$A)-1,1),回答数!$B18, OFFSET(raw!$A$1,2,MATCH($D$1,raw!$2:$2,0)-1,COUNTA(raw!$A:$A)-1,1),D$2) -> 0 | E18: =COUNTIFS( OFFSET(raw!$A$1,2,MATCH(回答数!$A18,raw!$2:$2,0)-1,COUNTA(raw!$A:$A)-1,1),回答数!$B18, OFFSET(raw!$A$1,2,MATCH($D$1,raw!$2:$2,0)-1,COUNTA(raw!$A:$A)-1,1),E$2) -> 26 | F18: =COUNTIFS( OFFSET(raw!$A$1,2,MATCH(回答数!$A18,raw!$2:$2,0)-1,COUNTA(raw!$A:$A)-1,1),回答数!$B18, OFFSET(raw!$A$1,2,MATCH($D$1,raw!$2:$2,0)-1,COUNTA(raw!$A:$A)-1,1),F$2) -> 29 | G18: =COUNTIFS( OFFSET(raw!$A$1,2,MATCH(回答数!$A18,raw!$2:$2,0)-1,COUNTA(raw!$A:$A)-1,1),回答数!$B18, OFFSET(raw!$A$1,2,MATCH($D$1,raw!$2:$2,0)-1,COUNTA(raw!$A:$A)-1,1),G$2) -> 35 | H18: =COUNTIFS( OFFSET(raw!$A$1,2,MATCH(回答数!$A18,raw!$2:$2,0)-1,COUNTA(raw!$A:$A)-1,1),回答数!$B18, OFFSET(raw!$A$1,2,MATCH($D$1,raw!$2:$2,0)-1,COUNTA(raw!$A:$A)-1,1),H$2) -> 33 | I18: =COUNTIFS( OFFSET(raw!$A$1,2,MATCH(回答数!$A18,raw!$2:$2,0)-1,COUNTA(raw!$A:$A)-1,1),回答数!$B18, OFFSET(raw!$A$1,2,MATCH($D$1,raw!$2:$2,0)-1,COUNTA(raw!$A:$A)-1,1),I$2) -> 39 | J18: =COUNTIFS( OFFSET(raw!$A$1,2,MATCH(回答数!$A18,raw!$2:$2,0)-1,COUNTA(raw!$A:$A)-1,1),回答数!$B18, OFFSET(raw!$A$1,2,MATCH($D$1,raw!$2:$2,0)-1,COUNTA(raw!$A:$A)-1,1),J$2) -> 28 | K18: =COUNTIFS( OFFSET(raw!$A$1,2,MATCH(回答数!$A18,raw!$2:$2,0)-1,COUNTA(raw!$A:$A)-1,1),回答数!$B18, OFFSET(raw!$A$1,2,MATCH($D$1,raw!$2:$2,0)-1,COUNTA(raw!$A:$A)-1,1),K$2) -> 44 | L18: =COUNTIFS( OFFSET(raw!$A$1,2,MATCH(回答数!$A18,raw!$2:$2,0)-1,COUNTA(raw!$A:$A)-1,1),回答数!$B18, OFFSET(raw!$A$1,2,MATCH($D$1,raw!$2:$2,0)-1,COUNTA(raw!$A:$A)-1,1),L$2) -> 27 | M18: =COUNTIFS( OFFSET(raw!$A$1,2,MATCH(回答数!$A18,raw!$2:$2,0)-1,COUNTA(raw!$A:$A)-1,1),回答数!$B18, OFFSET(raw!$A$1,2,MATCH($D$1,raw!$2:$2,0)-1,COUNTA(raw!$A:$A)-1,1),M$2) -> 12 | N18: =COUNTIFS( OFFSET(raw!$A$1,2,MATCH(回答数!$A18,raw!$2:$2,0)-1,COUNTA(raw!$A:$A)-1,1),回答数!$B18, OFFSET(raw!$A$1,2,MATCH($D$1,raw!$2:$2,0)-1,COUNTA(raw!$A:$A)-1,1),N$2) -> 14 | O18: =COUNTIFS( OFFSET(raw!$A$1,2,MATCH(回答数!$A18,raw!$2:$2,0)-1,COUNTA(raw!$A:$A)-1,1),回答数!$B18, OFFSET(raw!$A$1,2,MATCH($D$1,raw!$2:$2,0)-1,COUNTA(raw!$A:$A)-1,1),O$2) -> 9 | P18: 296
A19: 回答エリア | B19: 北潟湖 エリア | D19: =COUNTIFS( OFFSET(raw!$A$1,2,MATCH(回答数!$A19,raw!$2:$2,0)-1,COUNTA(raw!$A:$A)-1,1),回答数!$B19, OFFSET(raw!$A$1,2,MATCH($D$1,raw!$2:$2,0)-1,COUNTA(raw!$A:$A)-1,1),D$2) -> 1 | E19: =COUNTIFS( OFFSET(raw!$A$1,2,MATCH(回答数!$A19,raw!$2:$2,0)-1,COUNTA(raw!$A:$A)-1,1),回答数!$B19, OFFSET(raw!$A$1,2,MATCH($D$1,raw!$2:$2,0)-1,COUNTA(raw!$A:$A)-1,1),E$2) -> 8 | F19: =COUNTIFS( OFFSET(raw!$A$1,2,MATCH(回答数!$A19,raw!$2:$2,0)-1,COUNTA(raw!$A:$A)-1,1),回答数!$B19, OFFSET(raw!$A$1,2,MATCH($D$1,raw!$2:$2,0)-1,COUNTA(raw!$A:$A)-1,1),F$2) -> 12 | G19: =COUNTIFS( OFFSET(raw!$A$1,2,MATCH(回答数!$A19,raw!$2:$2,0)-1,COUNTA(raw!$A:$A)-1,1),回答数!$B19, OFFSET(raw!$A$1,2,MATCH($D$1,raw!$2:$2,0)-1,COUNTA(raw!$A:$A)-1,1),G$2) -> 5 | H19: =COUNTIFS( OFFSET(raw!$A$1,2,MATCH(回答数!$A19,raw!$2:$2,0)-1,COUNTA(raw!$A:$A)-1,1),回答数!$B19, OFFSET(raw!$A$1,2,MATCH($D$1,raw!$2:$2,0)-1,COUNTA(raw!$A:$A)-1,1),H$2) -> 3 | I19: =COUNTIFS( OFFSET(raw!$A$1,2,MATCH(回答数!$A19,raw!$2:$2,0)-1,COUNTA(raw!$A:$A)-1,1),回答数!$B19, OFFSET(raw!$A$1,2,MATCH($D$1,raw!$2:$2,0)-1,COUNTA(raw!$A:$A)-1,1),I$2) -> 13 | J19: =COUNTIFS( OFFSET(raw!$A$1,2,MATCH(回答数!$A19,raw!$2:$2,0)-1,COUNTA(raw!$A:$A)-1,1),回答数!$B19, OFFSET(raw!$A$1,2,MATCH($D$1,raw!$2:$2,0)-1,COUNTA(raw!$A:$A)-1,1),J$2) -> 25 | K19: =COUNTIFS( OFFSET(raw!$A$1,2,MATCH(回答数!$A19,raw!$2:$2,0)-1,COUNTA(raw!$A:$A)-1,1),回答数!$B19, OFFSET(raw!$A$1,2,MATCH($D$1,raw!$2:$2,0)-1,COUNTA(raw!$A:$A)-1,1),K$2) -> 21 | L19: =COUNTIFS( OFFSET(raw!$A$1,2,MATCH(回答数!$A19,raw!$2:$2,0)-1,COUNTA(raw!$A:$A)-1,1),回答数!$B19, OFFSET(raw!$A$1,2,MATCH($D$1,raw!$2:$2,0)-1,COUNTA(raw!$A:$A)-1,1),L$2) -> 12 | M19: =COUNTIFS( OFFSET(raw!$A$1,2,MATCH(回答数!$A19,raw!$2:$2,0)-1,COUNTA(raw!$A:$A)-1,1),回答数!$B19, OFFSET(raw!$A$1,2,MATCH($D$1,raw!$2:$2,0)-1,COUNTA(raw!$A:$A)-1,1),M$2) -> 2 | N19: =COUNTIFS( OFFSET(raw!$A$1,2,MATCH(回答数!$A19,raw!$2:$2,0)-1,COUNTA(raw!$A:$A)-1,1),回答数!$B19, OFFSET(raw!$A$1,2,MATCH($D$1,raw!$2:$2,0)-1,COUNTA(raw!$A:$A)-1,1),N$2) -> 10 | O19: =COUNTIFS( OFFSET(raw!$A$1,2,MATCH(回答数!$A19,raw!$2:$2,0)-1,COUNTA(raw!$A:$A)-1,1),回答数!$B19, OFFSET(raw!$A$1,2,MATCH($D$1,raw!$2:$2,0)-1,COUNTA(raw!$A:$A)-1,1),O$2) -> 2 | P19: 114
A20: 回答エリア | B20: 越前大野城・城下町 エリア | D20: =COUNTIFS( OFFSET(raw!$A$1,2,MATCH(回答数!$A20,raw!$2:$2,0)-1,COUNTA(raw!$A:$A)-1,1),回答数!$B20, OFFSET(raw!$A$1,2,MATCH($D$1,raw!$2:$2,0)-1,COUNTA(raw!$A:$A)-1,1),D$2) -> 7 | E20: =COUNTIFS( OFFSET(raw!$A$1,2,MATCH(回答数!$A20,raw!$2:$2,0)-1,COUNTA(raw!$A:$A)-1,1),回答数!$B20, OFFSET(raw!$A$1,2,MATCH($D$1,raw!$2:$2,0)-1,COUNTA(raw!$A:$A)-1,1),E$2) -> 52 | F20: =COUNTIFS( OFFSET(raw!$A$1,2,MATCH(回答数!$A20,raw!$2:$2,0)-1,COUNTA(raw!$A:$A)-1,1),回答数!$B20, OFFSET(raw!$A$1,2,MATCH($D$1,raw!$2:$2,0)-1,COUNTA(raw!$A:$A)-1,1),F$2) -> 30 | G20: =COUNTIFS( OFFSET(raw!$A$1,2,MATCH(回答数!$A20,raw!$2:$2,0)-1,COUNTA(raw!$A:$A)-1,1),回答数!$B20, OFFSET(raw!$A$1,2,MATCH($D$1,raw!$2:$2,0)-1,COUNTA(raw!$A:$A)-1,1),G$2) -> 38 | H20: =COUNTIFS( OFFSET(raw!$A$1,2,MATCH(回答数!$A20,raw!$2:$2,0)-1,COUNTA(raw!$A:$A)-1,1),回答数!$B20, OFFSET(raw!$A$1,2,MATCH($D$1,raw!$2:$2,0)-1,COUNTA(raw!$A:$A)-1,1),H$2) -> 34 | I20: =COUNTIFS( OFFSET(raw!$A$1,2,MATCH(回答数!$A20,raw!$2:$2,0)-1,COUNTA(raw!$A:$A)-1,1),回答数!$B20, OFFSET(raw!$A$1,2,MATCH($D$1,raw!$2:$2,0)-1,COUNTA(raw!$A:$A)-1,1),I$2) -> 37 | J20: =COUNTIFS( OFFSET(raw!$A$1,2,MATCH(回答数!$A20,raw!$2:$2,0)-1,COUNTA(raw!$A:$A)-1,1),回答数!$B20, OFFSET(raw!$A$1,2,MATCH($D$1,raw!$2:$2,0)-1,COUNTA(raw!$A:$A)-1,1),J$2) -> 69 | K20: =COUNTIFS( OFFSET(raw!$A$1,2,MATCH(回答数!$A20,raw!$2:$2,0)-1,COUNTA(raw!$A:$A)-1,1),回答数!$B20, OFFSET(raw!$A$1,2,MATCH($D$1,raw!$2:$2,0)-1,COUNTA(raw!$A:$A)-1,1),K$2) -> 102 | L20: =COUNTIFS( OFFSET(raw!$A$1,2,MATCH(回答数!$A20,raw!$2:$2,0)-1,COUNTA(raw!$A:$A)-1,1),回答数!$B20, OFFSET(raw!$A$1,2,MATCH($D$1,raw!$2:$2,0)-1,COUNTA(raw!$A:$A)-1,1),L$2) -> 13 | M20: =COUNTIFS( OFFSET(raw!$A$1,2,MATCH(回答数!$A20,raw!$2:$2,0)-1,COUNTA(raw!$A:$A)-1,1),回答数!$B20, OFFSET(raw!$A$1,2,MATCH($D$1,raw!$2:$2,0)-1,COUNTA(raw!$A:$A)-1,1),M$2) -> 5 | N20: =COUNTIFS( OFFSET(raw!$A$1,2,MATCH(回答数!$A20,raw!$2:$2,0)-1,COUNTA(raw!$A:$A)-1,1),回答数!$B20, OFFSET(raw!$A$1,2,MATCH($D$1,raw!$2:$2,0)-1,COUNTA(raw!$A:$A)-1,1),N$2) -> 27 | O20: =COUNTIFS( OFFSET(raw!$A$1,2,MATCH(回答数!$A20,raw!$2:$2,0)-1,COUNTA(raw!$A:$A)-1,1),回答数!$B20, OFFSET(raw!$A$1,2,MATCH($D$1,raw!$2:$2,0)-1,COUNTA(raw!$A:$A)-1,1),O$2) -> 4 | P20: 418
A21: 回答エリア | B21: 道の駅「越前おおの荒島の郷」 エリア | D21: =COUNTIFS( OFFSET(raw!$A$1,2,MATCH(回答数!$A21,raw!$2:$2,0)-1,COUNTA(raw!$A:$A)-1,1),回答数!$B21, OFFSET(raw!$A$1,2,MATCH($D$1,raw!$2:$2,0)-1,COUNTA(raw!$A:$A)-1,1),D$2) -> 7 | E21: =COUNTIFS( OFFSET(raw!$A$1,2,MATCH(回答数!$A21,raw!$2:$2,0)-1,COUNTA(raw!$A:$A)-1,1),回答数!$B21, OFFSET(raw!$A$1,2,MATCH($D$1,raw!$2:$2,0)-1,COUNTA(raw!$A:$A)-1,1),E$2) -> 121 | F21: =COUNTIFS( OFFSET(raw!$A$1,2,MATCH(回答数!$A21,raw!$2:$2,0)-1,COUNTA(raw!$A:$A)-1,1),回答数!$B21, OFFSET(raw!$A$1,2,MATCH($D$1,raw!$2:$2,0)-1,COUNTA(raw!$A:$A)-1,1),F$2) -> 65 | G21: =COUNTIFS( OFFSET(raw!$A$1,2,MATCH(回答数!$A21,raw!$2:$2,0)-1,COUNTA(raw!$A:$A)-1,1),回答数!$B21, OFFSET(raw!$A$1,2,MATCH($D$1,raw!$2:$2,0)-1,COUNTA(raw!$A:$A)-1,1),G$2) -> 65 | H21: =COUNTIFS( OFFSET(raw!$A$1,2,MATCH(回答数!$A21,raw!$2:$2,0)-1,COUNTA(raw!$A:$A)-1,1),回答数!$B21, OFFSET(raw!$A$1,2,MATCH($D$1,raw!$2:$2,0)-1,COUNTA(raw!$A:$A)-1,1),H$2) -> 68 | I21: =COUNTIFS( OFFSET(raw!$A$1,2,MATCH(回答数!$A21,raw!$2:$2,0)-1,COUNTA(raw!$A:$A)-1,1),回答数!$B21, OFFSET(raw!$A$1,2,MATCH($D$1,raw!$2:$2,0)-1,COUNTA(raw!$A:$A)-1,1),I$2) -> 54 | J21: =COUNTIFS( OFFSET(raw!$A$1,2,MATCH(回答数!$A21,raw!$2:$2,0)-1,COUNTA(raw!$A:$A)-1,1),回答数!$B21, OFFSET(raw!$A$1,2,MATCH($D$1,raw!$2:$2,0)-1,COUNTA(raw!$A:$A)-1,1),J$2) -> 99 | K21: =COUNTIFS( OFFSET(raw!$A$1,2,MATCH(回答数!$A21,raw!$2:$2,0)-1,COUNTA(raw!$A:$A)-1,1),回答数!$B21, OFFSET(raw!$A$1,2,MATCH($D$1,raw!$2:$2,0)-1,COUNTA(raw!$A:$A)-1,1),K$2) -> 144 | L21: =COUNTIFS( OFFSET(raw!$A$1,2,MATCH(回答数!$A21,raw!$2:$2,0)-1,COUNTA(raw!$A:$A)-1,1),回答数!$B21, OFFSET(raw!$A$1,2,MATCH($D$1,raw!$2:$2,0)-1,COUNTA(raw!$A:$A)-1,1),L$2) -> 47 | M21: =COUNTIFS( OFFSET(raw!$A$1,2,MATCH(回答数!$A21,raw!$2:$2,0)-1,COUNTA(raw!$A:$A)-1,1),回答数!$B21, OFFSET(raw!$A$1,2,MATCH($D$1,raw!$2:$2,0)-1,COUNTA(raw!$A:$A)-1,1),M$2) -> 36 | N21: =COUNTIFS( OFFSET(raw!$A$1,2,MATCH(回答数!$A21,raw!$2:$2,0)-1,COUNTA(raw!$A:$A)-1,1),回答数!$B21, OFFSET(raw!$A$1,2,MATCH($D$1,raw!$2:$2,0)-1,COUNTA(raw!$A:$A)-1,1),N$2) -> 30 | O21: =COUNTIFS( OFFSET(raw!$A$1,2,MATCH(回答数!$A21,raw!$2:$2,0)-1,COUNTA(raw!$A:$A)-1,1),回答数!$B21, OFFSET(raw!$A$1,2,MATCH($D$1,raw!$2:$2,0)-1,COUNTA(raw!$A:$A)-1,1),O$2) -> 14 | P21: 750
A22: 回答エリア | B22: 道の駅「九頭竜」 エリア | D22: =COUNTIFS( OFFSET(raw!$A$1,2,MATCH(回答数!$A22,raw!$2:$2,0)-1,COUNTA(raw!$A:$A)-1,1),回答数!$B22, OFFSET(raw!$A$1,2,MATCH($D$1,raw!$2:$2,0)-1,COUNTA(raw!$A:$A)-1,1),D$2) -> 1 | E22: =COUNTIFS( OFFSET(raw!$A$1,2,MATCH(回答数!$A22,raw!$2:$2,0)-1,COUNTA(raw!$A:$A)-1,1),回答数!$B22, OFFSET(raw!$A$1,2,MATCH($D$1,raw!$2:$2,0)-1,COUNTA(raw!$A:$A)-1,1),E$2) -> 30 | F22: =COUNTIFS( OFFSET(raw!$A$1,2,MATCH(回答数!$A22,raw!$2:$2,0)-1,COUNTA(raw!$A:$A)-1,1),回答数!$B22, OFFSET(raw!$A$1,2,MATCH($D$1,raw!$2:$2,0)-1,COUNTA(raw!$A:$A)-1,1),F$2) -> 12 | G22: =COUNTIFS( OFFSET(raw!$A$1,2,MATCH(回答数!$A22,raw!$2:$2,0)-1,COUNTA(raw!$A:$A)-1,1),回答数!$B22, OFFSET(raw!$A$1,2,MATCH($D$1,raw!$2:$2,0)-1,COUNTA(raw!$A:$A)-1,1),G$2) -> 21 | H22: =COUNTIFS( OFFSET(raw!$A$1,2,MATCH(回答数!$A22,raw!$2:$2,0)-1,COUNTA(raw!$A:$A)-1,1),回答数!$B22, OFFSET(raw!$A$1,2,MATCH($D$1,raw!$2:$2,0)-1,COUNTA(raw!$A:$A)-1,1),H$2) -> 14 | I22: =COUNTIFS( OFFSET(raw!$A$1,2,MATCH(回答数!$A22,raw!$2:$2,0)-1,COUNTA(raw!$A:$A)-1,1),回答数!$B22, OFFSET(raw!$A$1,2,MATCH($D$1,raw!$2:$2,0)-1,COUNTA(raw!$A:$A)-1,1),I$2) -> 18 | J22: =COUNTIFS( OFFSET(raw!$A$1,2,MATCH(回答数!$A22,raw!$2:$2,0)-1,COUNTA(raw!$A:$A)-1,1),回答数!$B22, OFFSET(raw!$A$1,2,MATCH($D$1,raw!$2:$2,0)-1,COUNTA(raw!$A:$A)-1,1),J$2) -> 37 | K22: =COUNTIFS( OFFSET(raw!$A$1,2,MATCH(回答数!$A22,raw!$2:$2,0)-1,COUNTA(raw!$A:$A)-1,1),回答数!$B22, OFFSET(raw!$A$1,2,MATCH($D$1,raw!$2:$2,0)-1,COUNTA(raw!$A:$A)-1,1),K$2) -> 36 | L22: =COUNTIFS( OFFSET(raw!$A$1,2,MATCH(回答数!$A22,raw!$2:$2,0)-1,COUNTA(raw!$A:$A)-1,1),回答数!$B22, OFFSET(raw!$A$1,2,MATCH($D$1,raw!$2:$2,0)-1,COUNTA(raw!$A:$A)-1,1),L$2) -> 12 | M22: =COUNTIFS( OFFSET(raw!$A$1,2,MATCH(回答数!$A22,raw!$2:$2,0)-1,COUNTA(raw!$A:$A)-1,1),回答数!$B22, OFFSET(raw!$A$1,2,MATCH($D$1,raw!$2:$2,0)-1,COUNTA(raw!$A:$A)-1,1),M$2) -> 6 | N22: =COUNTIFS( OFFSET(raw!$A$1,2,MATCH(回答数!$A22,raw!$2:$2,0)-1,COUNTA(raw!$A:$A)-1,1),回答数!$B22, OFFSET(raw!$A$1,2,MATCH($D$1,raw!$2:$2,0)-1,COUNTA(raw!$A:$A)-1,1),N$2) -> 2 | O22: =COUNTIFS( OFFSET(raw!$A$1,2,MATCH(回答数!$A22,raw!$2:$2,0)-1,COUNTA(raw!$A:$A)-1,1),回答数!$B22, OFFSET(raw!$A$1,2,MATCH($D$1,raw!$2:$2,0)-1,COUNTA(raw!$A:$A)-1,1),O$2) -> 3 | P22: 192
A23: 回答エリア | B23: 六呂師高原 エリア | D23: =COUNTIFS( OFFSET(raw!$A$1,2,MATCH(回答数!$A23,raw!$2:$2,0)-1,COUNTA(raw!$A:$A)-1,1),回答数!$B23, OFFSET(raw!$A$1,2,MATCH($D$1,raw!$2:$2,0)-1,COUNTA(raw!$A:$A)-1,1),D$2) -> 1 | E23: =COUNTIFS( OFFSET(raw!$A$1,2,MATCH(回答数!$A23,raw!$2:$2,0)-1,COUNTA(raw!$A:$A)-1,1),回答数!$B23, OFFSET(raw!$A$1,2,MATCH($D$1,raw!$2:$2,0)-1,COUNTA(raw!$A:$A)-1,1),E$2) -> 17 | F23: =COUNTIFS( OFFSET(raw!$A$1,2,MATCH(回答数!$A23,raw!$2:$2,0)-1,COUNTA(raw!$A:$A)-1,1),回答数!$B23, OFFSET(raw!$A$1,2,MATCH($D$1,raw!$2:$2,0)-1,COUNTA(raw!$A:$A)-1,1),F$2) -> 8 | G23: =COUNTIFS( OFFSET(raw!$A$1,2,MATCH(回答数!$A23,raw!$2:$2,0)-1,COUNTA(raw!$A:$A)-1,1),回答数!$B23, OFFSET(raw!$A$1,2,MATCH($D$1,raw!$2:$2,0)-1,COUNTA(raw!$A:$A)-1,1),G$2) -> 6 | H23: =COUNTIFS( OFFSET(raw!$A$1,2,MATCH(回答数!$A23,raw!$2:$2,0)-1,COUNTA(raw!$A:$A)-1,1),回答数!$B23, OFFSET(raw!$A$1,2,MATCH($D$1,raw!$2:$2,0)-1,COUNTA(raw!$A:$A)-1,1),H$2) -> 6 | I23: =COUNTIFS( OFFSET(raw!$A$1,2,MATCH(回答数!$A23,raw!$2:$2,0)-1,COUNTA(raw!$A:$A)-1,1),回答数!$B23, OFFSET(raw!$A$1,2,MATCH($D$1,raw!$2:$2,0)-1,COUNTA(raw!$A:$A)-1,1),I$2) -> 9 | J23: =COUNTIFS( OFFSET(raw!$A$1,2,MATCH(回答数!$A23,raw!$2:$2,0)-1,COUNTA(raw!$A:$A)-1,1),回答数!$B23, OFFSET(raw!$A$1,2,MATCH($D$1,raw!$2:$2,0)-1,COUNTA(raw!$A:$A)-1,1),J$2) -> 6 | K23: =COUNTIFS( OFFSET(raw!$A$1,2,MATCH(回答数!$A23,raw!$2:$2,0)-1,COUNTA(raw!$A:$A)-1,1),回答数!$B23, OFFSET(raw!$A$1,2,MATCH($D$1,raw!$2:$2,0)-1,COUNTA(raw!$A:$A)-1,1),K$2) -> 12 | L23: =COUNTIFS( OFFSET(raw!$A$1,2,MATCH(回答数!$A23,raw!$2:$2,0)-1,COUNTA(raw!$A:$A)-1,1),回答数!$B23, OFFSET(raw!$A$1,2,MATCH($D$1,raw!$2:$2,0)-1,COUNTA(raw!$A:$A)-1,1),L$2) -> 0 | M23: =COUNTIFS( OFFSET(raw!$A$1,2,MATCH(回答数!$A23,raw!$2:$2,0)-1,COUNTA(raw!$A:$A)-1,1),回答数!$B23, OFFSET(raw!$A$1,2,MATCH($D$1,raw!$2:$2,0)-1,COUNTA(raw!$A:$A)-1,1),M$2) -> 0 | N23: =COUNTIFS( OFFSET(raw!$A$1,2,MATCH(回答数!$A23,raw!$2:$2,0)-1,COUNTA(raw!$A:$A)-1,1),回答数!$B23, OFFSET(raw!$A$1,2,MATCH($D$1,raw!$2:$2,0)-1,COUNTA(raw!$A:$A)-1,1),N$2) -> 0 | O23: =COUNTIFS( OFFSET(raw!$A$1,2,MATCH(回答数!$A23,raw!$2:$2,0)-1,COUNTA(raw!$A:$A)-1,1),回答数!$B23, OFFSET(raw!$A$1,2,MATCH($D$1,raw!$2:$2,0)-1,COUNTA(raw!$A:$A)-1,1),O$2) -> 3 | P23: 68
A24: 回答エリア | B24: スーベニアショップ ラプトル エリア | D24: =COUNTIFS( OFFSET(raw!$A$1,2,MATCH(回答数!$A24,raw!$2:$2,0)-1,COUNTA(raw!$A:$A)-1,1),回答数!$B24, OFFSET(raw!$A$1,2,MATCH($D$1,raw!$2:$2,0)-1,COUNTA(raw!$A:$A)-1,1),D$2) -> 18 | E24: =COUNTIFS( OFFSET(raw!$A$1,2,MATCH(回答数!$A24,raw!$2:$2,0)-1,COUNTA(raw!$A:$A)-1,1),回答数!$B24, OFFSET(raw!$A$1,2,MATCH($D$1,raw!$2:$2,0)-1,COUNTA(raw!$A:$A)-1,1),E$2) -> 50 | F24: =COUNTIFS( OFFSET(raw!$A$1,2,MATCH(回答数!$A24,raw!$2:$2,0)-1,COUNTA(raw!$A:$A)-1,1),回答数!$B24, OFFSET(raw!$A$1,2,MATCH($D$1,raw!$2:$2,0)-1,COUNTA(raw!$A:$A)-1,1),F$2) -> 28 | G24: =COUNTIFS( OFFSET(raw!$A$1,2,MATCH(回答数!$A24,raw!$2:$2,0)-1,COUNTA(raw!$A:$A)-1,1),回答数!$B24, OFFSET(raw!$A$1,2,MATCH($D$1,raw!$2:$2,0)-1,COUNTA(raw!$A:$A)-1,1),G$2) -> 36 | H24: =COUNTIFS( OFFSET(raw!$A$1,2,MATCH(回答数!$A24,raw!$2:$2,0)-1,COUNTA(raw!$A:$A)-1,1),回答数!$B24, OFFSET(raw!$A$1,2,MATCH($D$1,raw!$2:$2,0)-1,COUNTA(raw!$A:$A)-1,1),H$2) -> 68 | I24: =COUNTIFS( OFFSET(raw!$A$1,2,MATCH(回答数!$A24,raw!$2:$2,0)-1,COUNTA(raw!$A:$A)-1,1),回答数!$B24, OFFSET(raw!$A$1,2,MATCH($D$1,raw!$2:$2,0)-1,COUNTA(raw!$A:$A)-1,1),I$2) -> 43 | J24: =COUNTIFS( OFFSET(raw!$A$1,2,MATCH(回答数!$A24,raw!$2:$2,0)-1,COUNTA(raw!$A:$A)-1,1),回答数!$B24, OFFSET(raw!$A$1,2,MATCH($D$1,raw!$2:$2,0)-1,COUNTA(raw!$A:$A)-1,1),J$2) -> 89 | K24: =COUNTIFS( OFFSET(raw!$A$1,2,MATCH(回答数!$A24,raw!$2:$2,0)-1,COUNTA(raw!$A:$A)-1,1),回答数!$B24, OFFSET(raw!$A$1,2,MATCH($D$1,raw!$2:$2,0)-1,COUNTA(raw!$A:$A)-1,1),K$2) -> 131 | L24: =COUNTIFS( OFFSET(raw!$A$1,2,MATCH(回答数!$A24,raw!$2:$2,0)-1,COUNTA(raw!$A:$A)-1,1),回答数!$B24, OFFSET(raw!$A$1,2,MATCH($D$1,raw!$2:$2,0)-1,COUNTA(raw!$A:$A)-1,1),L$2) -> 22 | M24: =COUNTIFS( OFFSET(raw!$A$1,2,MATCH(回答数!$A24,raw!$2:$2,0)-1,COUNTA(raw!$A:$A)-1,1),回答数!$B24, OFFSET(raw!$A$1,2,MATCH($D$1,raw!$2:$2,0)-1,COUNTA(raw!$A:$A)-1,1),M$2) -> 0 | N24: =COUNTIFS( OFFSET(raw!$A$1,2,MATCH(回答数!$A24,raw!$2:$2,0)-1,COUNTA(raw!$A:$A)-1,1),回答数!$B24, OFFSET(raw!$A$1,2,MATCH($D$1,raw!$2:$2,0)-1,COUNTA(raw!$A:$A)-1,1),N$2) -> 8 | O24: =COUNTIFS( OFFSET(raw!$A$1,2,MATCH(回答数!$A24,raw!$2:$2,0)-1,COUNTA(raw!$A:$A)-1,1),回答数!$B24, OFFSET(raw!$A$1,2,MATCH($D$1,raw!$2:$2,0)-1,COUNTA(raw!$A:$A)-1,1),O$2) -> 2 | P24: 495
A25: 回答エリア | B25: 道の駅「恐竜渓谷かつやま」 エリア | D25: =COUNTIFS( OFFSET(raw!$A$1,2,MATCH(回答数!$A25,raw!$2:$2,0)-1,COUNTA(raw!$A:$A)-1,1),回答数!$B25, OFFSET(raw!$A$1,2,MATCH($D$1,raw!$2:$2,0)-1,COUNTA(raw!$A:$A)-1,1),D$2) -> 13 | E25: =COUNTIFS( OFFSET(raw!$A$1,2,MATCH(回答数!$A25,raw!$2:$2,0)-1,COUNTA(raw!$A:$A)-1,1),回答数!$B25, OFFSET(raw!$A$1,2,MATCH($D$1,raw!$2:$2,0)-1,COUNTA(raw!$A:$A)-1,1),E$2) -> 83 | F25: =COUNTIFS( OFFSET(raw!$A$1,2,MATCH(回答数!$A25,raw!$2:$2,0)-1,COUNTA(raw!$A:$A)-1,1),回答数!$B25, OFFSET(raw!$A$1,2,MATCH($D$1,raw!$2:$2,0)-1,COUNTA(raw!$A:$A)-1,1),F$2) -> 26 | G25: =COUNTIFS( OFFSET(raw!$A$1,2,MATCH(回答数!$A25,raw!$2:$2,0)-1,COUNTA(raw!$A:$A)-1,1),回答数!$B25, OFFSET(raw!$A$1,2,MATCH($D$1,raw!$2:$2,0)-1,COUNTA(raw!$A:$A)-1,1),G$2) -> 46 | H25: =COUNTIFS( OFFSET(raw!$A$1,2,MATCH(回答数!$A25,raw!$2:$2,0)-1,COUNTA(raw!$A:$A)-1,1),回答数!$B25, OFFSET(raw!$A$1,2,MATCH($D$1,raw!$2:$2,0)-1,COUNTA(raw!$A:$A)-1,1),H$2) -> 32 | I25: =COUNTIFS( OFFSET(raw!$A$1,2,MATCH(回答数!$A25,raw!$2:$2,0)-1,COUNTA(raw!$A:$A)-1,1),回答数!$B25, OFFSET(raw!$A$1,2,MATCH($D$1,raw!$2:$2,0)-1,COUNTA(raw!$A:$A)-1,1),I$2) -> 51 | J25: =COUNTIFS( OFFSET(raw!$A$1,2,MATCH(回答数!$A25,raw!$2:$2,0)-1,COUNTA(raw!$A:$A)-1,1),回答数!$B25, OFFSET(raw!$A$1,2,MATCH($D$1,raw!$2:$2,0)-1,COUNTA(raw!$A:$A)-1,1),J$2) -> 66 | K25: =COUNTIFS( OFFSET(raw!$A$1,2,MATCH(回答数!$A25,raw!$2:$2,0)-1,COUNTA(raw!$A:$A)-1,1),回答数!$B25, OFFSET(raw!$A$1,2,MATCH($D$1,raw!$2:$2,0)-1,COUNTA(raw!$A:$A)-1,1),K$2) -> 75 | L25: =COUNTIFS( OFFSET(raw!$A$1,2,MATCH(回答数!$A25,raw!$2:$2,0)-1,COUNTA(raw!$A:$A)-1,1),回答数!$B25, OFFSET(raw!$A$1,2,MATCH($D$1,raw!$2:$2,0)-1,COUNTA(raw!$A:$A)-1,1),L$2) -> 22 | M25: =COUNTIFS( OFFSET(raw!$A$1,2,MATCH(回答数!$A25,raw!$2:$2,0)-1,COUNTA(raw!$A:$A)-1,1),回答数!$B25, OFFSET(raw!$A$1,2,MATCH($D$1,raw!$2:$2,0)-1,COUNTA(raw!$A:$A)-1,1),M$2) -> 13 | N25: =COUNTIFS( OFFSET(raw!$A$1,2,MATCH(回答数!$A25,raw!$2:$2,0)-1,COUNTA(raw!$A:$A)-1,1),回答数!$B25, OFFSET(raw!$A$1,2,MATCH($D$1,raw!$2:$2,0)-1,COUNTA(raw!$A:$A)-1,1),N$2) -> 19 | O25: =COUNTIFS( OFFSET(raw!$A$1,2,MATCH(回答数!$A25,raw!$2:$2,0)-1,COUNTA(raw!$A:$A)-1,1),回答数!$B25, OFFSET(raw!$A$1,2,MATCH($D$1,raw!$2:$2,0)-1,COUNTA(raw!$A:$A)-1,1),O$2) -> 6 | P25: 452
A26: 回答エリア | B26: スキージャム勝山 エリア | D26: =COUNTIFS( OFFSET(raw!$A$1,2,MATCH(回答数!$A26,raw!$2:$2,0)-1,COUNTA(raw!$A:$A)-1,1),回答数!$B26, OFFSET(raw!$A$1,2,MATCH($D$1,raw!$2:$2,0)-1,COUNTA(raw!$A:$A)-1,1),D$2) -> 0 | E26: =COUNTIFS( OFFSET(raw!$A$1,2,MATCH(回答数!$A26,raw!$2:$2,0)-1,COUNTA(raw!$A:$A)-1,1),回答数!$B26, OFFSET(raw!$A$1,2,MATCH($D$1,raw!$2:$2,0)-1,COUNTA(raw!$A:$A)-1,1),E$2) -> 4 | F26: =COUNTIFS( OFFSET(raw!$A$1,2,MATCH(回答数!$A26,raw!$2:$2,0)-1,COUNTA(raw!$A:$A)-1,1),回答数!$B26, OFFSET(raw!$A$1,2,MATCH($D$1,raw!$2:$2,0)-1,COUNTA(raw!$A:$A)-1,1),F$2) -> 2 | G26: =COUNTIFS( OFFSET(raw!$A$1,2,MATCH(回答数!$A26,raw!$2:$2,0)-1,COUNTA(raw!$A:$A)-1,1),回答数!$B26, OFFSET(raw!$A$1,2,MATCH($D$1,raw!$2:$2,0)-1,COUNTA(raw!$A:$A)-1,1),G$2) -> 12 | H26: =COUNTIFS( OFFSET(raw!$A$1,2,MATCH(回答数!$A26,raw!$2:$2,0)-1,COUNTA(raw!$A:$A)-1,1),回答数!$B26, OFFSET(raw!$A$1,2,MATCH($D$1,raw!$2:$2,0)-1,COUNTA(raw!$A:$A)-1,1),H$2) -> 15 | I26: =COUNTIFS( OFFSET(raw!$A$1,2,MATCH(回答数!$A26,raw!$2:$2,0)-1,COUNTA(raw!$A:$A)-1,1),回答数!$B26, OFFSET(raw!$A$1,2,MATCH($D$1,raw!$2:$2,0)-1,COUNTA(raw!$A:$A)-1,1),I$2) -> 10 | J26: =COUNTIFS( OFFSET(raw!$A$1,2,MATCH(回答数!$A26,raw!$2:$2,0)-1,COUNTA(raw!$A:$A)-1,1),回答数!$B26, OFFSET(raw!$A$1,2,MATCH($D$1,raw!$2:$2,0)-1,COUNTA(raw!$A:$A)-1,1),J$2) -> 28 | K26: =COUNTIFS( OFFSET(raw!$A$1,2,MATCH(回答数!$A26,raw!$2:$2,0)-1,COUNTA(raw!$A:$A)-1,1),回答数!$B26, OFFSET(raw!$A$1,2,MATCH($D$1,raw!$2:$2,0)-1,COUNTA(raw!$A:$A)-1,1),K$2) -> 25 | L26: =COUNTIFS( OFFSET(raw!$A$1,2,MATCH(回答数!$A26,raw!$2:$2,0)-1,COUNTA(raw!$A:$A)-1,1),回答数!$B26, OFFSET(raw!$A$1,2,MATCH($D$1,raw!$2:$2,0)-1,COUNTA(raw!$A:$A)-1,1),L$2) -> 15 | M26: =COUNTIFS( OFFSET(raw!$A$1,2,MATCH(回答数!$A26,raw!$2:$2,0)-1,COUNTA(raw!$A:$A)-1,1),回答数!$B26, OFFSET(raw!$A$1,2,MATCH($D$1,raw!$2:$2,0)-1,COUNTA(raw!$A:$A)-1,1),M$2) -> 48 | N26: =COUNTIFS( OFFSET(raw!$A$1,2,MATCH(回答数!$A26,raw!$2:$2,0)-1,COUNTA(raw!$A:$A)-1,1),回答数!$B26, OFFSET(raw!$A$1,2,MATCH($D$1,raw!$2:$2,0)-1,COUNTA(raw!$A:$A)-1,1),N$2) -> 36 | O26: =COUNTIFS( OFFSET(raw!$A$1,2,MATCH(回答数!$A26,raw!$2:$2,0)-1,COUNTA(raw!$A:$A)-1,1),回答数!$B26, OFFSET(raw!$A$1,2,MATCH($D$1,raw!$2:$2,0)-1,COUNTA(raw!$A:$A)-1,1),O$2) -> 7 | P26: 202
A27: 回答エリア | B27: 越前大仏 エリア | D27: =COUNTIFS( OFFSET(raw!$A$1,2,MATCH(回答数!$A27,raw!$2:$2,0)-1,COUNTA(raw!$A:$A)-1,1),回答数!$B27, OFFSET(raw!$A$1,2,MATCH($D$1,raw!$2:$2,0)-1,COUNTA(raw!$A:$A)-1,1),D$2) -> 0 | E27: =COUNTIFS( OFFSET(raw!$A$1,2,MATCH(回答数!$A27,raw!$2:$2,0)-1,COUNTA(raw!$A:$A)-1,1),回答数!$B27, OFFSET(raw!$A$1,2,MATCH($D$1,raw!$2:$2,0)-1,COUNTA(raw!$A:$A)-1,1),E$2) -> 17 | F27: =COUNTIFS( OFFSET(raw!$A$1,2,MATCH(回答数!$A27,raw!$2:$2,0)-1,COUNTA(raw!$A:$A)-1,1),回答数!$B27, OFFSET(raw!$A$1,2,MATCH($D$1,raw!$2:$2,0)-1,COUNTA(raw!$A:$A)-1,1),F$2) -> 7 | G27: =COUNTIFS( OFFSET(raw!$A$1,2,MATCH(回答数!$A27,raw!$2:$2,0)-1,COUNTA(raw!$A:$A)-1,1),回答数!$B27, OFFSET(raw!$A$1,2,MATCH($D$1,raw!$2:$2,0)-1,COUNTA(raw!$A:$A)-1,1),G$2) -> 5 | H27: =COUNTIFS( OFFSET(raw!$A$1,2,MATCH(回答数!$A27,raw!$2:$2,0)-1,COUNTA(raw!$A:$A)-1,1),回答数!$B27, OFFSET(raw!$A$1,2,MATCH($D$1,raw!$2:$2,0)-1,COUNTA(raw!$A:$A)-1,1),H$2) -> 9 | I27: =COUNTIFS( OFFSET(raw!$A$1,2,MATCH(回答数!$A27,raw!$2:$2,0)-1,COUNTA(raw!$A:$A)-1,1),回答数!$B27, OFFSET(raw!$A$1,2,MATCH($D$1,raw!$2:$2,0)-1,COUNTA(raw!$A:$A)-1,1),I$2) -> 7 | J27: =COUNTIFS( OFFSET(raw!$A$1,2,MATCH(回答数!$A27,raw!$2:$2,0)-1,COUNTA(raw!$A:$A)-1,1),回答数!$B27, OFFSET(raw!$A$1,2,MATCH($D$1,raw!$2:$2,0)-1,COUNTA(raw!$A:$A)-1,1),J$2) -> 19 | K27: =COUNTIFS( OFFSET(raw!$A$1,2,MATCH(回答数!$A27,raw!$2:$2,0)-1,COUNTA(raw!$A:$A)-1,1),回答数!$B27, OFFSET(raw!$A$1,2,MATCH($D$1,raw!$2:$2,0)-1,COUNTA(raw!$A:$A)-1,1),K$2) -> 35 | L27: =COUNTIFS( OFFSET(raw!$A$1,2,MATCH(回答数!$A27,raw!$2:$2,0)-1,COUNTA(raw!$A:$A)-1,1),回答数!$B27, OFFSET(raw!$A$1,2,MATCH($D$1,raw!$2:$2,0)-1,COUNTA(raw!$A:$A)-1,1),L$2) -> 22 | M27: =COUNTIFS( OFFSET(raw!$A$1,2,MATCH(回答数!$A27,raw!$2:$2,0)-1,COUNTA(raw!$A:$A)-1,1),回答数!$B27, OFFSET(raw!$A$1,2,MATCH($D$1,raw!$2:$2,0)-1,COUNTA(raw!$A:$A)-1,1),M$2) -> 8 | N27: =COUNTIFS( OFFSET(raw!$A$1,2,MATCH(回答数!$A27,raw!$2:$2,0)-1,COUNTA(raw!$A:$A)-1,1),回答数!$B27, OFFSET(raw!$A$1,2,MATCH($D$1,raw!$2:$2,0)-1,COUNTA(raw!$A:$A)-1,1),N$2) -> 8 | O27: =COUNTIFS( OFFSET(raw!$A$1,2,MATCH(回答数!$A27,raw!$2:$2,0)-1,COUNTA(raw!$A:$A)-1,1),回答数!$B27, OFFSET(raw!$A$1,2,MATCH($D$1,raw!$2:$2,0)-1,COUNTA(raw!$A:$A)-1,1),O$2) -> 5 | P27: 142
A28: 回答エリア | B28: 平泉寺白山神社 エリア | D28: =COUNTIFS( OFFSET(raw!$A$1,2,MATCH(回答数!$A28,raw!$2:$2,0)-1,COUNTA(raw!$A:$A)-1,1),回答数!$B28, OFFSET(raw!$A$1,2,MATCH($D$1,raw!$2:$2,0)-1,COUNTA(raw!$A:$A)-1,1),D$2) -> 1 | E28: =COUNTIFS( OFFSET(raw!$A$1,2,MATCH(回答数!$A28,raw!$2:$2,0)-1,COUNTA(raw!$A:$A)-1,1),回答数!$B28, OFFSET(raw!$A$1,2,MATCH($D$1,raw!$2:$2,0)-1,COUNTA(raw!$A:$A)-1,1),E$2) -> 35 | F28: =COUNTIFS( OFFSET(raw!$A$1,2,MATCH(回答数!$A28,raw!$2:$2,0)-1,COUNTA(raw!$A:$A)-1,1),回答数!$B28, OFFSET(raw!$A$1,2,MATCH($D$1,raw!$2:$2,0)-1,COUNTA(raw!$A:$A)-1,1),F$2) -> 3 | G28: =COUNTIFS( OFFSET(raw!$A$1,2,MATCH(回答数!$A28,raw!$2:$2,0)-1,COUNTA(raw!$A:$A)-1,1),回答数!$B28, OFFSET(raw!$A$1,2,MATCH($D$1,raw!$2:$2,0)-1,COUNTA(raw!$A:$A)-1,1),G$2) -> 7 | H28: =COUNTIFS( OFFSET(raw!$A$1,2,MATCH(回答数!$A28,raw!$2:$2,0)-1,COUNTA(raw!$A:$A)-1,1),回答数!$B28, OFFSET(raw!$A$1,2,MATCH($D$1,raw!$2:$2,0)-1,COUNTA(raw!$A:$A)-1,1),H$2) -> 9 | I28: =COUNTIFS( OFFSET(raw!$A$1,2,MATCH(回答数!$A28,raw!$2:$2,0)-1,COUNTA(raw!$A:$A)-1,1),回答数!$B28, OFFSET(raw!$A$1,2,MATCH($D$1,raw!$2:$2,0)-1,COUNTA(raw!$A:$A)-1,1),I$2) -> 10 | J28: =COUNTIFS( OFFSET(raw!$A$1,2,MATCH(回答数!$A28,raw!$2:$2,0)-1,COUNTA(raw!$A:$A)-1,1),回答数!$B28, OFFSET(raw!$A$1,2,MATCH($D$1,raw!$2:$2,0)-1,COUNTA(raw!$A:$A)-1,1),J$2) -> 23 | K28: =COUNTIFS( OFFSET(raw!$A$1,2,MATCH(回答数!$A28,raw!$2:$2,0)-1,COUNTA(raw!$A:$A)-1,1),回答数!$B28, OFFSET(raw!$A$1,2,MATCH($D$1,raw!$2:$2,0)-1,COUNTA(raw!$A:$A)-1,1),K$2) -> 47 | L28: =COUNTIFS( OFFSET(raw!$A$1,2,MATCH(回答数!$A28,raw!$2:$2,0)-1,COUNTA(raw!$A:$A)-1,1),回答数!$B28, OFFSET(raw!$A$1,2,MATCH($D$1,raw!$2:$2,0)-1,COUNTA(raw!$A:$A)-1,1),L$2) -> 7 | M28: =COUNTIFS( OFFSET(raw!$A$1,2,MATCH(回答数!$A28,raw!$2:$2,0)-1,COUNTA(raw!$A:$A)-1,1),回答数!$B28, OFFSET(raw!$A$1,2,MATCH($D$1,raw!$2:$2,0)-1,COUNTA(raw!$A:$A)-1,1),M$2) -> 3 | N28: =COUNTIFS( OFFSET(raw!$A$1,2,MATCH(回答数!$A28,raw!$2:$2,0)-1,COUNTA(raw!$A:$A)-1,1),回答数!$B28, OFFSET(raw!$A$1,2,MATCH($D$1,raw!$2:$2,0)-1,COUNTA(raw!$A:$A)-1,1),N$2) -> 5 | O28: =COUNTIFS( OFFSET(raw!$A$1,2,MATCH(回答数!$A28,raw!$2:$2,0)-1,COUNTA(raw!$A:$A)-1,1),回答数!$B28, OFFSET(raw!$A$1,2,MATCH($D$1,raw!$2:$2,0)-1,COUNTA(raw!$A:$A)-1,1),O$2) -> 4 | P28: 154
A29: 回答エリア | B29: はたや記念館 ゆめおーれ勝山 エリア | D29: =COUNTIFS( OFFSET(raw!$A$1,2,MATCH(回答数!$A29,raw!$2:$2,0)-1,COUNTA(raw!$A:$A)-1,1),回答数!$B29, OFFSET(raw!$A$1,2,MATCH($D$1,raw!$2:$2,0)-1,COUNTA(raw!$A:$A)-1,1),D$2) -> 0 | E29: =COUNTIFS( OFFSET(raw!$A$1,2,MATCH(回答数!$A29,raw!$2:$2,0)-1,COUNTA(raw!$A:$A)-1,1),回答数!$B29, OFFSET(raw!$A$1,2,MATCH($D$1,raw!$2:$2,0)-1,COUNTA(raw!$A:$A)-1,1),E$2) -> 21 | F29: =COUNTIFS( OFFSET(raw!$A$1,2,MATCH(回答数!$A29,raw!$2:$2,0)-1,COUNTA(raw!$A:$A)-1,1),回答数!$B29, OFFSET(raw!$A$1,2,MATCH($D$1,raw!$2:$2,0)-1,COUNTA(raw!$A:$A)-1,1),F$2) -> 11 | G29: =COUNTIFS( OFFSET(raw!$A$1,2,MATCH(回答数!$A29,raw!$2:$2,0)-1,COUNTA(raw!$A:$A)-1,1),回答数!$B29, OFFSET(raw!$A$1,2,MATCH($D$1,raw!$2:$2,0)-1,COUNTA(raw!$A:$A)-1,1),G$2) -> 11 | H29: =COUNTIFS( OFFSET(raw!$A$1,2,MATCH(回答数!$A29,raw!$2:$2,0)-1,COUNTA(raw!$A:$A)-1,1),回答数!$B29, OFFSET(raw!$A$1,2,MATCH($D$1,raw!$2:$2,0)-1,COUNTA(raw!$A:$A)-1,1),H$2) -> 13 | I29: =COUNTIFS( OFFSET(raw!$A$1,2,MATCH(回答数!$A29,raw!$2:$2,0)-1,COUNTA(raw!$A:$A)-1,1),回答数!$B29, OFFSET(raw!$A$1,2,MATCH($D$1,raw!$2:$2,0)-1,COUNTA(raw!$A:$A)-1,1),I$2) -> 13 | J29: =COUNTIFS( OFFSET(raw!$A$1,2,MATCH(回答数!$A29,raw!$2:$2,0)-1,COUNTA(raw!$A:$A)-1,1),回答数!$B29, OFFSET(raw!$A$1,2,MATCH($D$1,raw!$2:$2,0)-1,COUNTA(raw!$A:$A)-1,1),J$2) -> 13 | K29: =COUNTIFS( OFFSET(raw!$A$1,2,MATCH(回答数!$A29,raw!$2:$2,0)-1,COUNTA(raw!$A:$A)-1,1),回答数!$B29, OFFSET(raw!$A$1,2,MATCH($D$1,raw!$2:$2,0)-1,COUNTA(raw!$A:$A)-1,1),K$2) -> 25 | L29: =COUNTIFS( OFFSET(raw!$A$1,2,MATCH(回答数!$A29,raw!$2:$2,0)-1,COUNTA(raw!$A:$A)-1,1),回答数!$B29, OFFSET(raw!$A$1,2,MATCH($D$1,raw!$2:$2,0)-1,COUNTA(raw!$A:$A)-1,1),L$2) -> 7 | M29: =COUNTIFS( OFFSET(raw!$A$1,2,MATCH(回答数!$A29,raw!$2:$2,0)-1,COUNTA(raw!$A:$A)-1,1),回答数!$B29, OFFSET(raw!$A$1,2,MATCH($D$1,raw!$2:$2,0)-1,COUNTA(raw!$A:$A)-1,1),M$2) -> 9 | N29: =COUNTIFS( OFFSET(raw!$A$1,2,MATCH(回答数!$A29,raw!$2:$2,0)-1,COUNTA(raw!$A:$A)-1,1),回答数!$B29, OFFSET(raw!$A$1,2,MATCH($D$1,raw!$2:$2,0)-1,COUNTA(raw!$A:$A)-1,1),N$2) -> 21 | O29: =COUNTIFS( OFFSET(raw!$A$1,2,MATCH(回答数!$A29,raw!$2:$2,0)-1,COUNTA(raw!$A:$A)-1,1),回答数!$B29, OFFSET(raw!$A$1,2,MATCH($D$1,raw!$2:$2,0)-1,COUNTA(raw!$A:$A)-1,1),O$2) -> 5 | P29: 149
A30: 回答エリア | B30: 永平寺門前 エリア | D30: =COUNTIFS( OFFSET(raw!$A$1,2,MATCH(回答数!$A30,raw!$2:$2,0)-1,COUNTA(raw!$A:$A)-1,1),回答数!$B30, OFFSET(raw!$A$1,2,MATCH($D$1,raw!$2:$2,0)-1,COUNTA(raw!$A:$A)-1,1),D$2) -> 4 | E30: =COUNTIFS( OFFSET(raw!$A$1,2,MATCH(回答数!$A30,raw!$2:$2,0)-1,COUNTA(raw!$A:$A)-1,1),回答数!$B30, OFFSET(raw!$A$1,2,MATCH($D$1,raw!$2:$2,0)-1,COUNTA(raw!$A:$A)-1,1),E$2) -> 62 | F30: =COUNTIFS( OFFSET(raw!$A$1,2,MATCH(回答数!$A30,raw!$2:$2,0)-1,COUNTA(raw!$A:$A)-1,1),回答数!$B30, OFFSET(raw!$A$1,2,MATCH($D$1,raw!$2:$2,0)-1,COUNTA(raw!$A:$A)-1,1),F$2) -> 21 | G30: =COUNTIFS( OFFSET(raw!$A$1,2,MATCH(回答数!$A30,raw!$2:$2,0)-1,COUNTA(raw!$A:$A)-1,1),回答数!$B30, OFFSET(raw!$A$1,2,MATCH($D$1,raw!$2:$2,0)-1,COUNTA(raw!$A:$A)-1,1),G$2) -> 18 | H30: =COUNTIFS( OFFSET(raw!$A$1,2,MATCH(回答数!$A30,raw!$2:$2,0)-1,COUNTA(raw!$A:$A)-1,1),回答数!$B30, OFFSET(raw!$A$1,2,MATCH($D$1,raw!$2:$2,0)-1,COUNTA(raw!$A:$A)-1,1),H$2) -> 30 | I30: =COUNTIFS( OFFSET(raw!$A$1,2,MATCH(回答数!$A30,raw!$2:$2,0)-1,COUNTA(raw!$A:$A)-1,1),回答数!$B30, OFFSET(raw!$A$1,2,MATCH($D$1,raw!$2:$2,0)-1,COUNTA(raw!$A:$A)-1,1),I$2) -> 17 | J30: =COUNTIFS( OFFSET(raw!$A$1,2,MATCH(回答数!$A30,raw!$2:$2,0)-1,COUNTA(raw!$A:$A)-1,1),回答数!$B30, OFFSET(raw!$A$1,2,MATCH($D$1,raw!$2:$2,0)-1,COUNTA(raw!$A:$A)-1,1),J$2) -> 51 | K30: =COUNTIFS( OFFSET(raw!$A$1,2,MATCH(回答数!$A30,raw!$2:$2,0)-1,COUNTA(raw!$A:$A)-1,1),回答数!$B30, OFFSET(raw!$A$1,2,MATCH($D$1,raw!$2:$2,0)-1,COUNTA(raw!$A:$A)-1,1),K$2) -> 58 | L30: =COUNTIFS( OFFSET(raw!$A$1,2,MATCH(回答数!$A30,raw!$2:$2,0)-1,COUNTA(raw!$A:$A)-1,1),回答数!$B30, OFFSET(raw!$A$1,2,MATCH($D$1,raw!$2:$2,0)-1,COUNTA(raw!$A:$A)-1,1),L$2) -> 33 | M30: =COUNTIFS( OFFSET(raw!$A$1,2,MATCH(回答数!$A30,raw!$2:$2,0)-1,COUNTA(raw!$A:$A)-1,1),回答数!$B30, OFFSET(raw!$A$1,2,MATCH($D$1,raw!$2:$2,0)-1,COUNTA(raw!$A:$A)-1,1),M$2) -> 17 | N30: =COUNTIFS( OFFSET(raw!$A$1,2,MATCH(回答数!$A30,raw!$2:$2,0)-1,COUNTA(raw!$A:$A)-1,1),回答数!$B30, OFFSET(raw!$A$1,2,MATCH($D$1,raw!$2:$2,0)-1,COUNTA(raw!$A:$A)-1,1),N$2) -> 16 | O30: =COUNTIFS( OFFSET(raw!$A$1,2,MATCH(回答数!$A30,raw!$2:$2,0)-1,COUNTA(raw!$A:$A)-1,1),回答数!$B30, OFFSET(raw!$A$1,2,MATCH($D$1,raw!$2:$2,0)-1,COUNTA(raw!$A:$A)-1,1),O$2) -> 6 | P30: 333
A31: 回答エリア | B31: 道の駅「禅の里」 エリア | D31: =COUNTIFS( OFFSET(raw!$A$1,2,MATCH(回答数!$A31,raw!$2:$2,0)-1,COUNTA(raw!$A:$A)-1,1),回答数!$B31, OFFSET(raw!$A$1,2,MATCH($D$1,raw!$2:$2,0)-1,COUNTA(raw!$A:$A)-1,1),D$2) -> 2 | E31: =COUNTIFS( OFFSET(raw!$A$1,2,MATCH(回答数!$A31,raw!$2:$2,0)-1,COUNTA(raw!$A:$A)-1,1),回答数!$B31, OFFSET(raw!$A$1,2,MATCH($D$1,raw!$2:$2,0)-1,COUNTA(raw!$A:$A)-1,1),E$2) -> 11 | F31: =COUNTIFS( OFFSET(raw!$A$1,2,MATCH(回答数!$A31,raw!$2:$2,0)-1,COUNTA(raw!$A:$A)-1,1),回答数!$B31, OFFSET(raw!$A$1,2,MATCH($D$1,raw!$2:$2,0)-1,COUNTA(raw!$A:$A)-1,1),F$2) -> 14 | G31: =COUNTIFS( OFFSET(raw!$A$1,2,MATCH(回答数!$A31,raw!$2:$2,0)-1,COUNTA(raw!$A:$A)-1,1),回答数!$B31, OFFSET(raw!$A$1,2,MATCH($D$1,raw!$2:$2,0)-1,COUNTA(raw!$A:$A)-1,1),G$2) -> 15 | H31: =COUNTIFS( OFFSET(raw!$A$1,2,MATCH(回答数!$A31,raw!$2:$2,0)-1,COUNTA(raw!$A:$A)-1,1),回答数!$B31, OFFSET(raw!$A$1,2,MATCH($D$1,raw!$2:$2,0)-1,COUNTA(raw!$A:$A)-1,1),H$2) -> 14 | I31: =COUNTIFS( OFFSET(raw!$A$1,2,MATCH(回答数!$A31,raw!$2:$2,0)-1,COUNTA(raw!$A:$A)-1,1),回答数!$B31, OFFSET(raw!$A$1,2,MATCH($D$1,raw!$2:$2,0)-1,COUNTA(raw!$A:$A)-1,1),I$2) -> 17 | J31: =COUNTIFS( OFFSET(raw!$A$1,2,MATCH(回答数!$A31,raw!$2:$2,0)-1,COUNTA(raw!$A:$A)-1,1),回答数!$B31, OFFSET(raw!$A$1,2,MATCH($D$1,raw!$2:$2,0)-1,COUNTA(raw!$A:$A)-1,1),J$2) -> 23 | K31: =COUNTIFS( OFFSET(raw!$A$1,2,MATCH(回答数!$A31,raw!$2:$2,0)-1,COUNTA(raw!$A:$A)-1,1),回答数!$B31, OFFSET(raw!$A$1,2,MATCH($D$1,raw!$2:$2,0)-1,COUNTA(raw!$A:$A)-1,1),K$2) -> 49 | L31: =COUNTIFS( OFFSET(raw!$A$1,2,MATCH(回答数!$A31,raw!$2:$2,0)-1,COUNTA(raw!$A:$A)-1,1),回答数!$B31, OFFSET(raw!$A$1,2,MATCH($D$1,raw!$2:$2,0)-1,COUNTA(raw!$A:$A)-1,1),L$2) -> 19 | M31: =COUNTIFS( OFFSET(raw!$A$1,2,MATCH(回答数!$A31,raw!$2:$2,0)-1,COUNTA(raw!$A:$A)-1,1),回答数!$B31, OFFSET(raw!$A$1,2,MATCH($D$1,raw!$2:$2,0)-1,COUNTA(raw!$A:$A)-1,1),M$2) -> 5 | N31: =COUNTIFS( OFFSET(raw!$A$1,2,MATCH(回答数!$A31,raw!$2:$2,0)-1,COUNTA(raw!$A:$A)-1,1),回答数!$B31, OFFSET(raw!$A$1,2,MATCH($D$1,raw!$2:$2,0)-1,COUNTA(raw!$A:$A)-1,1),N$2) -> 15 | O31: =COUNTIFS( OFFSET(raw!$A$1,2,MATCH(回答数!$A31,raw!$2:$2,0)-1,COUNTA(raw!$A:$A)-1,1),回答数!$B31, OFFSET(raw!$A$1,2,MATCH($D$1,raw!$2:$2,0)-1,COUNTA(raw!$A:$A)-1,1),O$2) -> 4 | P31: 188
A32: 回答エリア | B32: 永平寺町 エリア | D32: =COUNTIFS( OFFSET(raw!$A$1,2,MATCH(回答数!$A32,raw!$2:$2,0)-1,COUNTA(raw!$A:$A)-1,1),回答数!$B32, OFFSET(raw!$A$1,2,MATCH($D$1,raw!$2:$2,0)-1,COUNTA(raw!$A:$A)-1,1),D$2) -> 2 | E32: =COUNTIFS( OFFSET(raw!$A$1,2,MATCH(回答数!$A32,raw!$2:$2,0)-1,COUNTA(raw!$A:$A)-1,1),回答数!$B32, OFFSET(raw!$A$1,2,MATCH($D$1,raw!$2:$2,0)-1,COUNTA(raw!$A:$A)-1,1),E$2) -> 31 | F32: =COUNTIFS( OFFSET(raw!$A$1,2,MATCH(回答数!$A32,raw!$2:$2,0)-1,COUNTA(raw!$A:$A)-1,1),回答数!$B32, OFFSET(raw!$A$1,2,MATCH($D$1,raw!$2:$2,0)-1,COUNTA(raw!$A:$A)-1,1),F$2) -> 22 | G32: =COUNTIFS( OFFSET(raw!$A$1,2,MATCH(回答数!$A32,raw!$2:$2,0)-1,COUNTA(raw!$A:$A)-1,1),回答数!$B32, OFFSET(raw!$A$1,2,MATCH($D$1,raw!$2:$2,0)-1,COUNTA(raw!$A:$A)-1,1),G$2) -> 19 | H32: =COUNTIFS( OFFSET(raw!$A$1,2,MATCH(回答数!$A32,raw!$2:$2,0)-1,COUNTA(raw!$A:$A)-1,1),回答数!$B32, OFFSET(raw!$A$1,2,MATCH($D$1,raw!$2:$2,0)-1,COUNTA(raw!$A:$A)-1,1),H$2) -> 6 | I32: =COUNTIFS( OFFSET(raw!$A$1,2,MATCH(回答数!$A32,raw!$2:$2,0)-1,COUNTA(raw!$A:$A)-1,1),回答数!$B32, OFFSET(raw!$A$1,2,MATCH($D$1,raw!$2:$2,0)-1,COUNTA(raw!$A:$A)-1,1),I$2) -> 13 | J32: =COUNTIFS( OFFSET(raw!$A$1,2,MATCH(回答数!$A32,raw!$2:$2,0)-1,COUNTA(raw!$A:$A)-1,1),回答数!$B32, OFFSET(raw!$A$1,2,MATCH($D$1,raw!$2:$2,0)-1,COUNTA(raw!$A:$A)-1,1),J$2) -> 33 | K32: =COUNTIFS( OFFSET(raw!$A$1,2,MATCH(回答数!$A32,raw!$2:$2,0)-1,COUNTA(raw!$A:$A)-1,1),回答数!$B32, OFFSET(raw!$A$1,2,MATCH($D$1,raw!$2:$2,0)-1,COUNTA(raw!$A:$A)-1,1),K$2) -> 44 | L32: =COUNTIFS( OFFSET(raw!$A$1,2,MATCH(回答数!$A32,raw!$2:$2,0)-1,COUNTA(raw!$A:$A)-1,1),回答数!$B32, OFFSET(raw!$A$1,2,MATCH($D$1,raw!$2:$2,0)-1,COUNTA(raw!$A:$A)-1,1),L$2) -> 41 | M32: =COUNTIFS( OFFSET(raw!$A$1,2,MATCH(回答数!$A32,raw!$2:$2,0)-1,COUNTA(raw!$A:$A)-1,1),回答数!$B32, OFFSET(raw!$A$1,2,MATCH($D$1,raw!$2:$2,0)-1,COUNTA(raw!$A:$A)-1,1),M$2) -> 30 | N32: =COUNTIFS( OFFSET(raw!$A$1,2,MATCH(回答数!$A32,raw!$2:$2,0)-1,COUNTA(raw!$A:$A)-1,1),回答数!$B32, OFFSET(raw!$A$1,2,MATCH($D$1,raw!$2:$2,0)-1,COUNTA(raw!$A:$A)-1,1),N$2) -> 42 | O32: =COUNTIFS( OFFSET(raw!$A$1,2,MATCH(回答数!$A32,raw!$2:$2,0)-1,COUNTA(raw!$A:$A)-1,1),回答数!$B32, OFFSET(raw!$A$1,2,MATCH($D$1,raw!$2:$2,0)-1,COUNTA(raw!$A:$A)-1,1),O$2) -> 2 | P32: 285
A33: 回答エリア | B33: 越前和紙の里 エリア | D33: =COUNTIFS( OFFSET(raw!$A$1,2,MATCH(回答数!$A33,raw!$2:$2,0)-1,COUNTA(raw!$A:$A)-1,1),回答数!$B33, OFFSET(raw!$A$1,2,MATCH($D$1,raw!$2:$2,0)-1,COUNTA(raw!$A:$A)-1,1),D$2) -> 4 | E33: =COUNTIFS( OFFSET(raw!$A$1,2,MATCH(回答数!$A33,raw!$2:$2,0)-1,COUNTA(raw!$A:$A)-1,1),回答数!$B33, OFFSET(raw!$A$1,2,MATCH($D$1,raw!$2:$2,0)-1,COUNTA(raw!$A:$A)-1,1),E$2) -> 46 | F33: =COUNTIFS( OFFSET(raw!$A$1,2,MATCH(回答数!$A33,raw!$2:$2,0)-1,COUNTA(raw!$A:$A)-1,1),回答数!$B33, OFFSET(raw!$A$1,2,MATCH($D$1,raw!$2:$2,0)-1,COUNTA(raw!$A:$A)-1,1),F$2) -> 29 | G33: =COUNTIFS( OFFSET(raw!$A$1,2,MATCH(回答数!$A33,raw!$2:$2,0)-1,COUNTA(raw!$A:$A)-1,1),回答数!$B33, OFFSET(raw!$A$1,2,MATCH($D$1,raw!$2:$2,0)-1,COUNTA(raw!$A:$A)-1,1),G$2) -> 15 | H33: =COUNTIFS( OFFSET(raw!$A$1,2,MATCH(回答数!$A33,raw!$2:$2,0)-1,COUNTA(raw!$A:$A)-1,1),回答数!$B33, OFFSET(raw!$A$1,2,MATCH($D$1,raw!$2:$2,0)-1,COUNTA(raw!$A:$A)-1,1),H$2) -> 19 | I33: =COUNTIFS( OFFSET(raw!$A$1,2,MATCH(回答数!$A33,raw!$2:$2,0)-1,COUNTA(raw!$A:$A)-1,1),回答数!$B33, OFFSET(raw!$A$1,2,MATCH($D$1,raw!$2:$2,0)-1,COUNTA(raw!$A:$A)-1,1),I$2) -> 16 | J33: =COUNTIFS( OFFSET(raw!$A$1,2,MATCH(回答数!$A33,raw!$2:$2,0)-1,COUNTA(raw!$A:$A)-1,1),回答数!$B33, OFFSET(raw!$A$1,2,MATCH($D$1,raw!$2:$2,0)-1,COUNTA(raw!$A:$A)-1,1),J$2) -> 20 | K33: =COUNTIFS( OFFSET(raw!$A$1,2,MATCH(回答数!$A33,raw!$2:$2,0)-1,COUNTA(raw!$A:$A)-1,1),回答数!$B33, OFFSET(raw!$A$1,2,MATCH($D$1,raw!$2:$2,0)-1,COUNTA(raw!$A:$A)-1,1),K$2) -> 25 | L33: =COUNTIFS( OFFSET(raw!$A$1,2,MATCH(回答数!$A33,raw!$2:$2,0)-1,COUNTA(raw!$A:$A)-1,1),回答数!$B33, OFFSET(raw!$A$1,2,MATCH($D$1,raw!$2:$2,0)-1,COUNTA(raw!$A:$A)-1,1),L$2) -> 11 | M33: =COUNTIFS( OFFSET(raw!$A$1,2,MATCH(回答数!$A33,raw!$2:$2,0)-1,COUNTA(raw!$A:$A)-1,1),回答数!$B33, OFFSET(raw!$A$1,2,MATCH($D$1,raw!$2:$2,0)-1,COUNTA(raw!$A:$A)-1,1),M$2) -> 8 | N33: =COUNTIFS( OFFSET(raw!$A$1,2,MATCH(回答数!$A33,raw!$2:$2,0)-1,COUNTA(raw!$A:$A)-1,1),回答数!$B33, OFFSET(raw!$A$1,2,MATCH($D$1,raw!$2:$2,0)-1,COUNTA(raw!$A:$A)-1,1),N$2) -> 4 | O33: =COUNTIFS( OFFSET(raw!$A$1,2,MATCH(回答数!$A33,raw!$2:$2,0)-1,COUNTA(raw!$A:$A)-1,1),回答数!$B33, OFFSET(raw!$A$1,2,MATCH($D$1,raw!$2:$2,0)-1,COUNTA(raw!$A:$A)-1,1),O$2) -> 12 | P33: 209
A34: 回答エリア | B34: 越前そばの里 エリア | D34: =COUNTIFS( OFFSET(raw!$A$1,2,MATCH(回答数!$A34,raw!$2:$2,0)-1,COUNTA(raw!$A:$A)-1,1),回答数!$B34, OFFSET(raw!$A$1,2,MATCH($D$1,raw!$2:$2,0)-1,COUNTA(raw!$A:$A)-1,1),D$2) -> 4 | E34: =COUNTIFS( OFFSET(raw!$A$1,2,MATCH(回答数!$A34,raw!$2:$2,0)-1,COUNTA(raw!$A:$A)-1,1),回答数!$B34, OFFSET(raw!$A$1,2,MATCH($D$1,raw!$2:$2,0)-1,COUNTA(raw!$A:$A)-1,1),E$2) -> 39 | F34: =COUNTIFS( OFFSET(raw!$A$1,2,MATCH(回答数!$A34,raw!$2:$2,0)-1,COUNTA(raw!$A:$A)-1,1),回答数!$B34, OFFSET(raw!$A$1,2,MATCH($D$1,raw!$2:$2,0)-1,COUNTA(raw!$A:$A)-1,1),F$2) -> 136 | G34: =COUNTIFS( OFFSET(raw!$A$1,2,MATCH(回答数!$A34,raw!$2:$2,0)-1,COUNTA(raw!$A:$A)-1,1),回答数!$B34, OFFSET(raw!$A$1,2,MATCH($D$1,raw!$2:$2,0)-1,COUNTA(raw!$A:$A)-1,1),G$2) -> 85 | H34: =COUNTIFS( OFFSET(raw!$A$1,2,MATCH(回答数!$A34,raw!$2:$2,0)-1,COUNTA(raw!$A:$A)-1,1),回答数!$B34, OFFSET(raw!$A$1,2,MATCH($D$1,raw!$2:$2,0)-1,COUNTA(raw!$A:$A)-1,1),H$2) -> 45 | I34: =COUNTIFS( OFFSET(raw!$A$1,2,MATCH(回答数!$A34,raw!$2:$2,0)-1,COUNTA(raw!$A:$A)-1,1),回答数!$B34, OFFSET(raw!$A$1,2,MATCH($D$1,raw!$2:$2,0)-1,COUNTA(raw!$A:$A)-1,1),I$2) -> 127 | J34: =COUNTIFS( OFFSET(raw!$A$1,2,MATCH(回答数!$A34,raw!$2:$2,0)-1,COUNTA(raw!$A:$A)-1,1),回答数!$B34, OFFSET(raw!$A$1,2,MATCH($D$1,raw!$2:$2,0)-1,COUNTA(raw!$A:$A)-1,1),J$2) -> 103 | K34: =COUNTIFS( OFFSET(raw!$A$1,2,MATCH(回答数!$A34,raw!$2:$2,0)-1,COUNTA(raw!$A:$A)-1,1),回答数!$B34, OFFSET(raw!$A$1,2,MATCH($D$1,raw!$2:$2,0)-1,COUNTA(raw!$A:$A)-1,1),K$2) -> 55 | L34: =COUNTIFS( OFFSET(raw!$A$1,2,MATCH(回答数!$A34,raw!$2:$2,0)-1,COUNTA(raw!$A:$A)-1,1),回答数!$B34, OFFSET(raw!$A$1,2,MATCH($D$1,raw!$2:$2,0)-1,COUNTA(raw!$A:$A)-1,1),L$2) -> 35 | M34: =COUNTIFS( OFFSET(raw!$A$1,2,MATCH(回答数!$A34,raw!$2:$2,0)-1,COUNTA(raw!$A:$A)-1,1),回答数!$B34, OFFSET(raw!$A$1,2,MATCH($D$1,raw!$2:$2,0)-1,COUNTA(raw!$A:$A)-1,1),M$2) -> 8 | N34: =COUNTIFS( OFFSET(raw!$A$1,2,MATCH(回答数!$A34,raw!$2:$2,0)-1,COUNTA(raw!$A:$A)-1,1),回答数!$B34, OFFSET(raw!$A$1,2,MATCH($D$1,raw!$2:$2,0)-1,COUNTA(raw!$A:$A)-1,1),N$2) -> 19 | O34: =COUNTIFS( OFFSET(raw!$A$1,2,MATCH(回答数!$A34,raw!$2:$2,0)-1,COUNTA(raw!$A:$A)-1,1),回答数!$B34, OFFSET(raw!$A$1,2,MATCH($D$1,raw!$2:$2,0)-1,COUNTA(raw!$A:$A)-1,1),O$2) -> 7 | P34: 663
A35: 回答エリア | B35: タケフナイフビレッジ エリア | D35: =COUNTIFS( OFFSET(raw!$A$1,2,MATCH(回答数!$A35,raw!$2:$2,0)-1,COUNTA(raw!$A:$A)-1,1),回答数!$B35, OFFSET(raw!$A$1,2,MATCH($D$1,raw!$2:$2,0)-1,COUNTA(raw!$A:$A)-1,1),D$2) -> 0 | E35: =COUNTIFS( OFFSET(raw!$A$1,2,MATCH(回答数!$A35,raw!$2:$2,0)-1,COUNTA(raw!$A:$A)-1,1),回答数!$B35, OFFSET(raw!$A$1,2,MATCH($D$1,raw!$2:$2,0)-1,COUNTA(raw!$A:$A)-1,1),E$2) -> 9 | F35: =COUNTIFS( OFFSET(raw!$A$1,2,MATCH(回答数!$A35,raw!$2:$2,0)-1,COUNTA(raw!$A:$A)-1,1),回答数!$B35, OFFSET(raw!$A$1,2,MATCH($D$1,raw!$2:$2,0)-1,COUNTA(raw!$A:$A)-1,1),F$2) -> 2 | G35: =COUNTIFS( OFFSET(raw!$A$1,2,MATCH(回答数!$A35,raw!$2:$2,0)-1,COUNTA(raw!$A:$A)-1,1),回答数!$B35, OFFSET(raw!$A$1,2,MATCH($D$1,raw!$2:$2,0)-1,COUNTA(raw!$A:$A)-1,1),G$2) -> 1 | H35: =COUNTIFS( OFFSET(raw!$A$1,2,MATCH(回答数!$A35,raw!$2:$2,0)-1,COUNTA(raw!$A:$A)-1,1),回答数!$B35, OFFSET(raw!$A$1,2,MATCH($D$1,raw!$2:$2,0)-1,COUNTA(raw!$A:$A)-1,1),H$2) -> 26 | I35: =COUNTIFS( OFFSET(raw!$A$1,2,MATCH(回答数!$A35,raw!$2:$2,0)-1,COUNTA(raw!$A:$A)-1,1),回答数!$B35, OFFSET(raw!$A$1,2,MATCH($D$1,raw!$2:$2,0)-1,COUNTA(raw!$A:$A)-1,1),I$2) -> 11 | J35: =COUNTIFS( OFFSET(raw!$A$1,2,MATCH(回答数!$A35,raw!$2:$2,0)-1,COUNTA(raw!$A:$A)-1,1),回答数!$B35, OFFSET(raw!$A$1,2,MATCH($D$1,raw!$2:$2,0)-1,COUNTA(raw!$A:$A)-1,1),J$2) -> 33 | K35: =COUNTIFS( OFFSET(raw!$A$1,2,MATCH(回答数!$A35,raw!$2:$2,0)-1,COUNTA(raw!$A:$A)-1,1),回答数!$B35, OFFSET(raw!$A$1,2,MATCH($D$1,raw!$2:$2,0)-1,COUNTA(raw!$A:$A)-1,1),K$2) -> 33 | L35: =COUNTIFS( OFFSET(raw!$A$1,2,MATCH(回答数!$A35,raw!$2:$2,0)-1,COUNTA(raw!$A:$A)-1,1),回答数!$B35, OFFSET(raw!$A$1,2,MATCH($D$1,raw!$2:$2,0)-1,COUNTA(raw!$A:$A)-1,1),L$2) -> 5 | M35: =COUNTIFS( OFFSET(raw!$A$1,2,MATCH(回答数!$A35,raw!$2:$2,0)-1,COUNTA(raw!$A:$A)-1,1),回答数!$B35, OFFSET(raw!$A$1,2,MATCH($D$1,raw!$2:$2,0)-1,COUNTA(raw!$A:$A)-1,1),M$2) -> 1 | N35: =COUNTIFS( OFFSET(raw!$A$1,2,MATCH(回答数!$A35,raw!$2:$2,0)-1,COUNTA(raw!$A:$A)-1,1),回答数!$B35, OFFSET(raw!$A$1,2,MATCH($D$1,raw!$2:$2,0)-1,COUNTA(raw!$A:$A)-1,1),N$2) -> 4 | O35: =COUNTIFS( OFFSET(raw!$A$1,2,MATCH(回答数!$A35,raw!$2:$2,0)-1,COUNTA(raw!$A:$A)-1,1),回答数!$B35, OFFSET(raw!$A$1,2,MATCH($D$1,raw!$2:$2,0)-1,COUNTA(raw!$A:$A)-1,1),O$2) -> 3 | P35: 128
A36: 回答エリア | B36: ちひろの生まれた家記念館 エリア | D36: =COUNTIFS( OFFSET(raw!$A$1,2,MATCH(回答数!$A36,raw!$2:$2,0)-1,COUNTA(raw!$A:$A)-1,1),回答数!$B36, OFFSET(raw!$A$1,2,MATCH($D$1,raw!$2:$2,0)-1,COUNTA(raw!$A:$A)-1,1),D$2) -> 0 | E36: =COUNTIFS( OFFSET(raw!$A$1,2,MATCH(回答数!$A36,raw!$2:$2,0)-1,COUNTA(raw!$A:$A)-1,1),回答数!$B36, OFFSET(raw!$A$1,2,MATCH($D$1,raw!$2:$2,0)-1,COUNTA(raw!$A:$A)-1,1),E$2) -> 10 | F36: =COUNTIFS( OFFSET(raw!$A$1,2,MATCH(回答数!$A36,raw!$2:$2,0)-1,COUNTA(raw!$A:$A)-1,1),回答数!$B36, OFFSET(raw!$A$1,2,MATCH($D$1,raw!$2:$2,0)-1,COUNTA(raw!$A:$A)-1,1),F$2) -> 19 | G36: =COUNTIFS( OFFSET(raw!$A$1,2,MATCH(回答数!$A36,raw!$2:$2,0)-1,COUNTA(raw!$A:$A)-1,1),回答数!$B36, OFFSET(raw!$A$1,2,MATCH($D$1,raw!$2:$2,0)-1,COUNTA(raw!$A:$A)-1,1),G$2) -> 11 | H36: =COUNTIFS( OFFSET(raw!$A$1,2,MATCH(回答数!$A36,raw!$2:$2,0)-1,COUNTA(raw!$A:$A)-1,1),回答数!$B36, OFFSET(raw!$A$1,2,MATCH($D$1,raw!$2:$2,0)-1,COUNTA(raw!$A:$A)-1,1),H$2) -> 11 | I36: =COUNTIFS( OFFSET(raw!$A$1,2,MATCH(回答数!$A36,raw!$2:$2,0)-1,COUNTA(raw!$A:$A)-1,1),回答数!$B36, OFFSET(raw!$A$1,2,MATCH($D$1,raw!$2:$2,0)-1,COUNTA(raw!$A:$A)-1,1),I$2) -> 10 | J36: =COUNTIFS( OFFSET(raw!$A$1,2,MATCH(回答数!$A36,raw!$2:$2,0)-1,COUNTA(raw!$A:$A)-1,1),回答数!$B36, OFFSET(raw!$A$1,2,MATCH($D$1,raw!$2:$2,0)-1,COUNTA(raw!$A:$A)-1,1),J$2) -> 35 | K36: =COUNTIFS( OFFSET(raw!$A$1,2,MATCH(回答数!$A36,raw!$2:$2,0)-1,COUNTA(raw!$A:$A)-1,1),回答数!$B36, OFFSET(raw!$A$1,2,MATCH($D$1,raw!$2:$2,0)-1,COUNTA(raw!$A:$A)-1,1),K$2) -> 15 | L36: =COUNTIFS( OFFSET(raw!$A$1,2,MATCH(回答数!$A36,raw!$2:$2,0)-1,COUNTA(raw!$A:$A)-1,1),回答数!$B36, OFFSET(raw!$A$1,2,MATCH($D$1,raw!$2:$2,0)-1,COUNTA(raw!$A:$A)-1,1),L$2) -> 6 | M36: =COUNTIFS( OFFSET(raw!$A$1,2,MATCH(回答数!$A36,raw!$2:$2,0)-1,COUNTA(raw!$A:$A)-1,1),回答数!$B36, OFFSET(raw!$A$1,2,MATCH($D$1,raw!$2:$2,0)-1,COUNTA(raw!$A:$A)-1,1),M$2) -> 1 | N36: =COUNTIFS( OFFSET(raw!$A$1,2,MATCH(回答数!$A36,raw!$2:$2,0)-1,COUNTA(raw!$A:$A)-1,1),回答数!$B36, OFFSET(raw!$A$1,2,MATCH($D$1,raw!$2:$2,0)-1,COUNTA(raw!$A:$A)-1,1),N$2) -> 3 | O36: =COUNTIFS( OFFSET(raw!$A$1,2,MATCH(回答数!$A36,raw!$2:$2,0)-1,COUNTA(raw!$A:$A)-1,1),回答数!$B36, OFFSET(raw!$A$1,2,MATCH($D$1,raw!$2:$2,0)-1,COUNTA(raw!$A:$A)-1,1),O$2) -> 0 | P36: 121
A37: 回答エリア | B37: 道の駅「西山公園」 エリア | D37: =COUNTIFS( OFFSET(raw!$A$1,2,MATCH(回答数!$A37,raw!$2:$2,0)-1,COUNTA(raw!$A:$A)-1,1),回答数!$B37, OFFSET(raw!$A$1,2,MATCH($D$1,raw!$2:$2,0)-1,COUNTA(raw!$A:$A)-1,1),D$2) -> 5 | E37: =COUNTIFS( OFFSET(raw!$A$1,2,MATCH(回答数!$A37,raw!$2:$2,0)-1,COUNTA(raw!$A:$A)-1,1),回答数!$B37, OFFSET(raw!$A$1,2,MATCH($D$1,raw!$2:$2,0)-1,COUNTA(raw!$A:$A)-1,1),E$2) -> 23 | F37: =COUNTIFS( OFFSET(raw!$A$1,2,MATCH(回答数!$A37,raw!$2:$2,0)-1,COUNTA(raw!$A:$A)-1,1),回答数!$B37, OFFSET(raw!$A$1,2,MATCH($D$1,raw!$2:$2,0)-1,COUNTA(raw!$A:$A)-1,1),F$2) -> 29 | G37: =COUNTIFS( OFFSET(raw!$A$1,2,MATCH(回答数!$A37,raw!$2:$2,0)-1,COUNTA(raw!$A:$A)-1,1),回答数!$B37, OFFSET(raw!$A$1,2,MATCH($D$1,raw!$2:$2,0)-1,COUNTA(raw!$A:$A)-1,1),G$2) -> 33 | H37: =COUNTIFS( OFFSET(raw!$A$1,2,MATCH(回答数!$A37,raw!$2:$2,0)-1,COUNTA(raw!$A:$A)-1,1),回答数!$B37, OFFSET(raw!$A$1,2,MATCH($D$1,raw!$2:$2,0)-1,COUNTA(raw!$A:$A)-1,1),H$2) -> 39 | I37: =COUNTIFS( OFFSET(raw!$A$1,2,MATCH(回答数!$A37,raw!$2:$2,0)-1,COUNTA(raw!$A:$A)-1,1),回答数!$B37, OFFSET(raw!$A$1,2,MATCH($D$1,raw!$2:$2,0)-1,COUNTA(raw!$A:$A)-1,1),I$2) -> 39 | J37: =COUNTIFS( OFFSET(raw!$A$1,2,MATCH(回答数!$A37,raw!$2:$2,0)-1,COUNTA(raw!$A:$A)-1,1),回答数!$B37, OFFSET(raw!$A$1,2,MATCH($D$1,raw!$2:$2,0)-1,COUNTA(raw!$A:$A)-1,1),J$2) -> 50 | K37: =COUNTIFS( OFFSET(raw!$A$1,2,MATCH(回答数!$A37,raw!$2:$2,0)-1,COUNTA(raw!$A:$A)-1,1),回答数!$B37, OFFSET(raw!$A$1,2,MATCH($D$1,raw!$2:$2,0)-1,COUNTA(raw!$A:$A)-1,1),K$2) -> 53 | L37: =COUNTIFS( OFFSET(raw!$A$1,2,MATCH(回答数!$A37,raw!$2:$2,0)-1,COUNTA(raw!$A:$A)-1,1),回答数!$B37, OFFSET(raw!$A$1,2,MATCH($D$1,raw!$2:$2,0)-1,COUNTA(raw!$A:$A)-1,1),L$2) -> 62 | M37: =COUNTIFS( OFFSET(raw!$A$1,2,MATCH(回答数!$A37,raw!$2:$2,0)-1,COUNTA(raw!$A:$A)-1,1),回答数!$B37, OFFSET(raw!$A$1,2,MATCH($D$1,raw!$2:$2,0)-1,COUNTA(raw!$A:$A)-1,1),M$2) -> 8 | N37: =COUNTIFS( OFFSET(raw!$A$1,2,MATCH(回答数!$A37,raw!$2:$2,0)-1,COUNTA(raw!$A:$A)-1,1),回答数!$B37, OFFSET(raw!$A$1,2,MATCH($D$1,raw!$2:$2,0)-1,COUNTA(raw!$A:$A)-1,1),N$2) -> 10 | O37: =COUNTIFS( OFFSET(raw!$A$1,2,MATCH(回答数!$A37,raw!$2:$2,0)-1,COUNTA(raw!$A:$A)-1,1),回答数!$B37, OFFSET(raw!$A$1,2,MATCH($D$1,raw!$2:$2,0)-1,COUNTA(raw!$A:$A)-1,1),O$2) -> 10 | P37: 361
A38: 回答エリア | B38: めがねミュージアム エリア | D38: =COUNTIFS( OFFSET(raw!$A$1,2,MATCH(回答数!$A38,raw!$2:$2,0)-1,COUNTA(raw!$A:$A)-1,1),回答数!$B38, OFFSET(raw!$A$1,2,MATCH($D$1,raw!$2:$2,0)-1,COUNTA(raw!$A:$A)-1,1),D$2) -> 1 | E38: =COUNTIFS( OFFSET(raw!$A$1,2,MATCH(回答数!$A38,raw!$2:$2,0)-1,COUNTA(raw!$A:$A)-1,1),回答数!$B38, OFFSET(raw!$A$1,2,MATCH($D$1,raw!$2:$2,0)-1,COUNTA(raw!$A:$A)-1,1),E$2) -> 11 | F38: =COUNTIFS( OFFSET(raw!$A$1,2,MATCH(回答数!$A38,raw!$2:$2,0)-1,COUNTA(raw!$A:$A)-1,1),回答数!$B38, OFFSET(raw!$A$1,2,MATCH($D$1,raw!$2:$2,0)-1,COUNTA(raw!$A:$A)-1,1),F$2) -> 9 | G38: =COUNTIFS( OFFSET(raw!$A$1,2,MATCH(回答数!$A38,raw!$2:$2,0)-1,COUNTA(raw!$A:$A)-1,1),回答数!$B38, OFFSET(raw!$A$1,2,MATCH($D$1,raw!$2:$2,0)-1,COUNTA(raw!$A:$A)-1,1),G$2) -> 9 | H38: =COUNTIFS( OFFSET(raw!$A$1,2,MATCH(回答数!$A38,raw!$2:$2,0)-1,COUNTA(raw!$A:$A)-1,1),回答数!$B38, OFFSET(raw!$A$1,2,MATCH($D$1,raw!$2:$2,0)-1,COUNTA(raw!$A:$A)-1,1),H$2) -> 14 | I38: =COUNTIFS( OFFSET(raw!$A$1,2,MATCH(回答数!$A38,raw!$2:$2,0)-1,COUNTA(raw!$A:$A)-1,1),回答数!$B38, OFFSET(raw!$A$1,2,MATCH($D$1,raw!$2:$2,0)-1,COUNTA(raw!$A:$A)-1,1),I$2) -> 23 | J38: =COUNTIFS( OFFSET(raw!$A$1,2,MATCH(回答数!$A38,raw!$2:$2,0)-1,COUNTA(raw!$A:$A)-1,1),回答数!$B38, OFFSET(raw!$A$1,2,MATCH($D$1,raw!$2:$2,0)-1,COUNTA(raw!$A:$A)-1,1),J$2) -> 28 | K38: =COUNTIFS( OFFSET(raw!$A$1,2,MATCH(回答数!$A38,raw!$2:$2,0)-1,COUNTA(raw!$A:$A)-1,1),回答数!$B38, OFFSET(raw!$A$1,2,MATCH($D$1,raw!$2:$2,0)-1,COUNTA(raw!$A:$A)-1,1),K$2) -> 36 | L38: =COUNTIFS( OFFSET(raw!$A$1,2,MATCH(回答数!$A38,raw!$2:$2,0)-1,COUNTA(raw!$A:$A)-1,1),回答数!$B38, OFFSET(raw!$A$1,2,MATCH($D$1,raw!$2:$2,0)-1,COUNTA(raw!$A:$A)-1,1),L$2) -> 25 | M38: =COUNTIFS( OFFSET(raw!$A$1,2,MATCH(回答数!$A38,raw!$2:$2,0)-1,COUNTA(raw!$A:$A)-1,1),回答数!$B38, OFFSET(raw!$A$1,2,MATCH($D$1,raw!$2:$2,0)-1,COUNTA(raw!$A:$A)-1,1),M$2) -> 5 | N38: =COUNTIFS( OFFSET(raw!$A$1,2,MATCH(回答数!$A38,raw!$2:$2,0)-1,COUNTA(raw!$A:$A)-1,1),回答数!$B38, OFFSET(raw!$A$1,2,MATCH($D$1,raw!$2:$2,0)-1,COUNTA(raw!$A:$A)-1,1),N$2) -> 0 | O38: =COUNTIFS( OFFSET(raw!$A$1,2,MATCH(回答数!$A38,raw!$2:$2,0)-1,COUNTA(raw!$A:$A)-1,1),回答数!$B38, OFFSET(raw!$A$1,2,MATCH($D$1,raw!$2:$2,0)-1,COUNTA(raw!$A:$A)-1,1),O$2) -> 2 | P38: 163
A39: 回答エリア | B39: うるしの里 エリア | D39: =COUNTIFS( OFFSET(raw!$A$1,2,MATCH(回答数!$A39,raw!$2:$2,0)-1,COUNTA(raw!$A:$A)-1,1),回答数!$B39, OFFSET(raw!$A$1,2,MATCH($D$1,raw!$2:$2,0)-1,COUNTA(raw!$A:$A)-1,1),D$2) -> 7 | E39: =COUNTIFS( OFFSET(raw!$A$1,2,MATCH(回答数!$A39,raw!$2:$2,0)-1,COUNTA(raw!$A:$A)-1,1),回答数!$B39, OFFSET(raw!$A$1,2,MATCH($D$1,raw!$2:$2,0)-1,COUNTA(raw!$A:$A)-1,1),E$2) -> 35 | F39: =COUNTIFS( OFFSET(raw!$A$1,2,MATCH(回答数!$A39,raw!$2:$2,0)-1,COUNTA(raw!$A:$A)-1,1),回答数!$B39, OFFSET(raw!$A$1,2,MATCH($D$1,raw!$2:$2,0)-1,COUNTA(raw!$A:$A)-1,1),F$2) -> 9 | G39: =COUNTIFS( OFFSET(raw!$A$1,2,MATCH(回答数!$A39,raw!$2:$2,0)-1,COUNTA(raw!$A:$A)-1,1),回答数!$B39, OFFSET(raw!$A$1,2,MATCH($D$1,raw!$2:$2,0)-1,COUNTA(raw!$A:$A)-1,1),G$2) -> 12 | H39: =COUNTIFS( OFFSET(raw!$A$1,2,MATCH(回答数!$A39,raw!$2:$2,0)-1,COUNTA(raw!$A:$A)-1,1),回答数!$B39, OFFSET(raw!$A$1,2,MATCH($D$1,raw!$2:$2,0)-1,COUNTA(raw!$A:$A)-1,1),H$2) -> 23 | I39: =COUNTIFS( OFFSET(raw!$A$1,2,MATCH(回答数!$A39,raw!$2:$2,0)-1,COUNTA(raw!$A:$A)-1,1),回答数!$B39, OFFSET(raw!$A$1,2,MATCH($D$1,raw!$2:$2,0)-1,COUNTA(raw!$A:$A)-1,1),I$2) -> 14 | J39: =COUNTIFS( OFFSET(raw!$A$1,2,MATCH(回答数!$A39,raw!$2:$2,0)-1,COUNTA(raw!$A:$A)-1,1),回答数!$B39, OFFSET(raw!$A$1,2,MATCH($D$1,raw!$2:$2,0)-1,COUNTA(raw!$A:$A)-1,1),J$2) -> 24 | K39: =COUNTIFS( OFFSET(raw!$A$1,2,MATCH(回答数!$A39,raw!$2:$2,0)-1,COUNTA(raw!$A:$A)-1,1),回答数!$B39, OFFSET(raw!$A$1,2,MATCH($D$1,raw!$2:$2,0)-1,COUNTA(raw!$A:$A)-1,1),K$2) -> 26 | L39: =COUNTIFS( OFFSET(raw!$A$1,2,MATCH(回答数!$A39,raw!$2:$2,0)-1,COUNTA(raw!$A:$A)-1,1),回答数!$B39, OFFSET(raw!$A$1,2,MATCH($D$1,raw!$2:$2,0)-1,COUNTA(raw!$A:$A)-1,1),L$2) -> 21 | M39: =COUNTIFS( OFFSET(raw!$A$1,2,MATCH(回答数!$A39,raw!$2:$2,0)-1,COUNTA(raw!$A:$A)-1,1),回答数!$B39, OFFSET(raw!$A$1,2,MATCH($D$1,raw!$2:$2,0)-1,COUNTA(raw!$A:$A)-1,1),M$2) -> 9 | N39: =COUNTIFS( OFFSET(raw!$A$1,2,MATCH(回答数!$A39,raw!$2:$2,0)-1,COUNTA(raw!$A:$A)-1,1),回答数!$B39, OFFSET(raw!$A$1,2,MATCH($D$1,raw!$2:$2,0)-1,COUNTA(raw!$A:$A)-1,1),N$2) -> 9 | O39: =COUNTIFS( OFFSET(raw!$A$1,2,MATCH(回答数!$A39,raw!$2:$2,0)-1,COUNTA(raw!$A:$A)-1,1),回答数!$B39, OFFSET(raw!$A$1,2,MATCH($D$1,raw!$2:$2,0)-1,COUNTA(raw!$A:$A)-1,1),O$2) -> 3 | P39: 192
A40: 回答エリア | B40: まちの市場 こってコテいけだ エリア | D40: =COUNTIFS( OFFSET(raw!$A$1,2,MATCH(回答数!$A40,raw!$2:$2,0)-1,COUNTA(raw!$A:$A)-1,1),回答数!$B40, OFFSET(raw!$A$1,2,MATCH($D$1,raw!$2:$2,0)-1,COUNTA(raw!$A:$A)-1,1),D$2) -> 3 | E40: =COUNTIFS( OFFSET(raw!$A$1,2,MATCH(回答数!$A40,raw!$2:$2,0)-1,COUNTA(raw!$A:$A)-1,1),回答数!$B40, OFFSET(raw!$A$1,2,MATCH($D$1,raw!$2:$2,0)-1,COUNTA(raw!$A:$A)-1,1),E$2) -> 19 | F40: =COUNTIFS( OFFSET(raw!$A$1,2,MATCH(回答数!$A40,raw!$2:$2,0)-1,COUNTA(raw!$A:$A)-1,1),回答数!$B40, OFFSET(raw!$A$1,2,MATCH($D$1,raw!$2:$2,0)-1,COUNTA(raw!$A:$A)-1,1),F$2) -> 20 | G40: =COUNTIFS( OFFSET(raw!$A$1,2,MATCH(回答数!$A40,raw!$2:$2,0)-1,COUNTA(raw!$A:$A)-1,1),回答数!$B40, OFFSET(raw!$A$1,2,MATCH($D$1,raw!$2:$2,0)-1,COUNTA(raw!$A:$A)-1,1),G$2) -> 17 | H40: =COUNTIFS( OFFSET(raw!$A$1,2,MATCH(回答数!$A40,raw!$2:$2,0)-1,COUNTA(raw!$A:$A)-1,1),回答数!$B40, OFFSET(raw!$A$1,2,MATCH($D$1,raw!$2:$2,0)-1,COUNTA(raw!$A:$A)-1,1),H$2) -> 18 | I40: =COUNTIFS( OFFSET(raw!$A$1,2,MATCH(回答数!$A40,raw!$2:$2,0)-1,COUNTA(raw!$A:$A)-1,1),回答数!$B40, OFFSET(raw!$A$1,2,MATCH($D$1,raw!$2:$2,0)-1,COUNTA(raw!$A:$A)-1,1),I$2) -> 10 | J40: =COUNTIFS( OFFSET(raw!$A$1,2,MATCH(回答数!$A40,raw!$2:$2,0)-1,COUNTA(raw!$A:$A)-1,1),回答数!$B40, OFFSET(raw!$A$1,2,MATCH($D$1,raw!$2:$2,0)-1,COUNTA(raw!$A:$A)-1,1),J$2) -> 7 | K40: =COUNTIFS( OFFSET(raw!$A$1,2,MATCH(回答数!$A40,raw!$2:$2,0)-1,COUNTA(raw!$A:$A)-1,1),回答数!$B40, OFFSET(raw!$A$1,2,MATCH($D$1,raw!$2:$2,0)-1,COUNTA(raw!$A:$A)-1,1),K$2) -> 18 | L40: =COUNTIFS( OFFSET(raw!$A$1,2,MATCH(回答数!$A40,raw!$2:$2,0)-1,COUNTA(raw!$A:$A)-1,1),回答数!$B40, OFFSET(raw!$A$1,2,MATCH($D$1,raw!$2:$2,0)-1,COUNTA(raw!$A:$A)-1,1),L$2) -> 10 | M40: =COUNTIFS( OFFSET(raw!$A$1,2,MATCH(回答数!$A40,raw!$2:$2,0)-1,COUNTA(raw!$A:$A)-1,1),回答数!$B40, OFFSET(raw!$A$1,2,MATCH($D$1,raw!$2:$2,0)-1,COUNTA(raw!$A:$A)-1,1),M$2) -> 4 | N40: =COUNTIFS( OFFSET(raw!$A$1,2,MATCH(回答数!$A40,raw!$2:$2,0)-1,COUNTA(raw!$A:$A)-1,1),回答数!$B40, OFFSET(raw!$A$1,2,MATCH($D$1,raw!$2:$2,0)-1,COUNTA(raw!$A:$A)-1,1),N$2) -> 7 | O40: =COUNTIFS( OFFSET(raw!$A$1,2,MATCH(回答数!$A40,raw!$2:$2,0)-1,COUNTA(raw!$A:$A)-1,1),回答数!$B40, OFFSET(raw!$A$1,2,MATCH($D$1,raw!$2:$2,0)-1,COUNTA(raw!$A:$A)-1,1),O$2) -> 1 | P40: 134
A41: 回答エリア | B41: ツリーピクニックアドベンチャーいけだ エリア | D41: =COUNTIFS( OFFSET(raw!$A$1,2,MATCH(回答数!$A41,raw!$2:$2,0)-1,COUNTA(raw!$A:$A)-1,1),回答数!$B41, OFFSET(raw!$A$1,2,MATCH($D$1,raw!$2:$2,0)-1,COUNTA(raw!$A:$A)-1,1),D$2) -> 1 | E41: =COUNTIFS( OFFSET(raw!$A$1,2,MATCH(回答数!$A41,raw!$2:$2,0)-1,COUNTA(raw!$A:$A)-1,1),回答数!$B41, OFFSET(raw!$A$1,2,MATCH($D$1,raw!$2:$2,0)-1,COUNTA(raw!$A:$A)-1,1),E$2) -> 4 | F41: =COUNTIFS( OFFSET(raw!$A$1,2,MATCH(回答数!$A41,raw!$2:$2,0)-1,COUNTA(raw!$A:$A)-1,1),回答数!$B41, OFFSET(raw!$A$1,2,MATCH($D$1,raw!$2:$2,0)-1,COUNTA(raw!$A:$A)-1,1),F$2) -> 2 | G41: =COUNTIFS( OFFSET(raw!$A$1,2,MATCH(回答数!$A41,raw!$2:$2,0)-1,COUNTA(raw!$A:$A)-1,1),回答数!$B41, OFFSET(raw!$A$1,2,MATCH($D$1,raw!$2:$2,0)-1,COUNTA(raw!$A:$A)-1,1),G$2) -> 2 | H41: =COUNTIFS( OFFSET(raw!$A$1,2,MATCH(回答数!$A41,raw!$2:$2,0)-1,COUNTA(raw!$A:$A)-1,1),回答数!$B41, OFFSET(raw!$A$1,2,MATCH($D$1,raw!$2:$2,0)-1,COUNTA(raw!$A:$A)-1,1),H$2) -> 6 | I41: =COUNTIFS( OFFSET(raw!$A$1,2,MATCH(回答数!$A41,raw!$2:$2,0)-1,COUNTA(raw!$A:$A)-1,1),回答数!$B41, OFFSET(raw!$A$1,2,MATCH($D$1,raw!$2:$2,0)-1,COUNTA(raw!$A:$A)-1,1),I$2) -> 1 | J41: =COUNTIFS( OFFSET(raw!$A$1,2,MATCH(回答数!$A41,raw!$2:$2,0)-1,COUNTA(raw!$A:$A)-1,1),回答数!$B41, OFFSET(raw!$A$1,2,MATCH($D$1,raw!$2:$2,0)-1,COUNTA(raw!$A:$A)-1,1),J$2) -> 3 | K41: =COUNTIFS( OFFSET(raw!$A$1,2,MATCH(回答数!$A41,raw!$2:$2,0)-1,COUNTA(raw!$A:$A)-1,1),回答数!$B41, OFFSET(raw!$A$1,2,MATCH($D$1,raw!$2:$2,0)-1,COUNTA(raw!$A:$A)-1,1),K$2) -> 0 | L41: =COUNTIFS( OFFSET(raw!$A$1,2,MATCH(回答数!$A41,raw!$2:$2,0)-1,COUNTA(raw!$A:$A)-1,1),回答数!$B41, OFFSET(raw!$A$1,2,MATCH($D$1,raw!$2:$2,0)-1,COUNTA(raw!$A:$A)-1,1),L$2) -> 0 | M41: =COUNTIFS( OFFSET(raw!$A$1,2,MATCH(回答数!$A41,raw!$2:$2,0)-1,COUNTA(raw!$A:$A)-1,1),回答数!$B41, OFFSET(raw!$A$1,2,MATCH($D$1,raw!$2:$2,0)-1,COUNTA(raw!$A:$A)-1,1),M$2) -> 0 | N41: =COUNTIFS( OFFSET(raw!$A$1,2,MATCH(回答数!$A41,raw!$2:$2,0)-1,COUNTA(raw!$A:$A)-1,1),回答数!$B41, OFFSET(raw!$A$1,2,MATCH($D$1,raw!$2:$2,0)-1,COUNTA(raw!$A:$A)-1,1),N$2) -> 1 | O41: =COUNTIFS( OFFSET(raw!$A$1,2,MATCH(回答数!$A41,raw!$2:$2,0)-1,COUNTA(raw!$A:$A)-1,1),回答数!$B41, OFFSET(raw!$A$1,2,MATCH($D$1,raw!$2:$2,0)-1,COUNTA(raw!$A:$A)-1,1),O$2) -> 1 | P41: 21
A42: 回答エリア | B42: かずら橋 エリア | D42: =COUNTIFS( OFFSET(raw!$A$1,2,MATCH(回答数!$A42,raw!$2:$2,0)-1,COUNTA(raw!$A:$A)-1,1),回答数!$B42, OFFSET(raw!$A$1,2,MATCH($D$1,raw!$2:$2,0)-1,COUNTA(raw!$A:$A)-1,1),D$2) -> 4 | E42: =COUNTIFS( OFFSET(raw!$A$1,2,MATCH(回答数!$A42,raw!$2:$2,0)-1,COUNTA(raw!$A:$A)-1,1),回答数!$B42, OFFSET(raw!$A$1,2,MATCH($D$1,raw!$2:$2,0)-1,COUNTA(raw!$A:$A)-1,1),E$2) -> 47 | F42: =COUNTIFS( OFFSET(raw!$A$1,2,MATCH(回答数!$A42,raw!$2:$2,0)-1,COUNTA(raw!$A:$A)-1,1),回答数!$B42, OFFSET(raw!$A$1,2,MATCH($D$1,raw!$2:$2,0)-1,COUNTA(raw!$A:$A)-1,1),F$2) -> 21 | G42: =COUNTIFS( OFFSET(raw!$A$1,2,MATCH(回答数!$A42,raw!$2:$2,0)-1,COUNTA(raw!$A:$A)-1,1),回答数!$B42, OFFSET(raw!$A$1,2,MATCH($D$1,raw!$2:$2,0)-1,COUNTA(raw!$A:$A)-1,1),G$2) -> 17 | H42: =COUNTIFS( OFFSET(raw!$A$1,2,MATCH(回答数!$A42,raw!$2:$2,0)-1,COUNTA(raw!$A:$A)-1,1),回答数!$B42, OFFSET(raw!$A$1,2,MATCH($D$1,raw!$2:$2,0)-1,COUNTA(raw!$A:$A)-1,1),H$2) -> 13 | I42: =COUNTIFS( OFFSET(raw!$A$1,2,MATCH(回答数!$A42,raw!$2:$2,0)-1,COUNTA(raw!$A:$A)-1,1),回答数!$B42, OFFSET(raw!$A$1,2,MATCH($D$1,raw!$2:$2,0)-1,COUNTA(raw!$A:$A)-1,1),I$2) -> 20 | J42: =COUNTIFS( OFFSET(raw!$A$1,2,MATCH(回答数!$A42,raw!$2:$2,0)-1,COUNTA(raw!$A:$A)-1,1),回答数!$B42, OFFSET(raw!$A$1,2,MATCH($D$1,raw!$2:$2,0)-1,COUNTA(raw!$A:$A)-1,1),J$2) -> 41 | K42: =COUNTIFS( OFFSET(raw!$A$1,2,MATCH(回答数!$A42,raw!$2:$2,0)-1,COUNTA(raw!$A:$A)-1,1),回答数!$B42, OFFSET(raw!$A$1,2,MATCH($D$1,raw!$2:$2,0)-1,COUNTA(raw!$A:$A)-1,1),K$2) -> 25 | L42: =COUNTIFS( OFFSET(raw!$A$1,2,MATCH(回答数!$A42,raw!$2:$2,0)-1,COUNTA(raw!$A:$A)-1,1),回答数!$B42, OFFSET(raw!$A$1,2,MATCH($D$1,raw!$2:$2,0)-1,COUNTA(raw!$A:$A)-1,1),L$2) -> 17 | M42: =COUNTIFS( OFFSET(raw!$A$1,2,MATCH(回答数!$A42,raw!$2:$2,0)-1,COUNTA(raw!$A:$A)-1,1),回答数!$B42, OFFSET(raw!$A$1,2,MATCH($D$1,raw!$2:$2,0)-1,COUNTA(raw!$A:$A)-1,1),M$2) -> 6 | N42: =COUNTIFS( OFFSET(raw!$A$1,2,MATCH(回答数!$A42,raw!$2:$2,0)-1,COUNTA(raw!$A:$A)-1,1),回答数!$B42, OFFSET(raw!$A$1,2,MATCH($D$1,raw!$2:$2,0)-1,COUNTA(raw!$A:$A)-1,1),N$2) -> 5 | O42: =COUNTIFS( OFFSET(raw!$A$1,2,MATCH(回答数!$A42,raw!$2:$2,0)-1,COUNTA(raw!$A:$A)-1,1),回答数!$B42, OFFSET(raw!$A$1,2,MATCH($D$1,raw!$2:$2,0)-1,COUNTA(raw!$A:$A)-1,1),O$2) -> 4 | P42: 220
A43: 回答エリア | B43: 道の駅「越前」 エリア | D43: =COUNTIFS( OFFSET(raw!$A$1,2,MATCH(回答数!$A43,raw!$2:$2,0)-1,COUNTA(raw!$A:$A)-1,1),回答数!$B43, OFFSET(raw!$A$1,2,MATCH($D$1,raw!$2:$2,0)-1,COUNTA(raw!$A:$A)-1,1),D$2) -> 13 | E43: =COUNTIFS( OFFSET(raw!$A$1,2,MATCH(回答数!$A43,raw!$2:$2,0)-1,COUNTA(raw!$A:$A)-1,1),回答数!$B43, OFFSET(raw!$A$1,2,MATCH($D$1,raw!$2:$2,0)-1,COUNTA(raw!$A:$A)-1,1),E$2) -> 93 | F43: =COUNTIFS( OFFSET(raw!$A$1,2,MATCH(回答数!$A43,raw!$2:$2,0)-1,COUNTA(raw!$A:$A)-1,1),回答数!$B43, OFFSET(raw!$A$1,2,MATCH($D$1,raw!$2:$2,0)-1,COUNTA(raw!$A:$A)-1,1),F$2) -> 42 | G43: =COUNTIFS( OFFSET(raw!$A$1,2,MATCH(回答数!$A43,raw!$2:$2,0)-1,COUNTA(raw!$A:$A)-1,1),回答数!$B43, OFFSET(raw!$A$1,2,MATCH($D$1,raw!$2:$2,0)-1,COUNTA(raw!$A:$A)-1,1),G$2) -> 50 | H43: =COUNTIFS( OFFSET(raw!$A$1,2,MATCH(回答数!$A43,raw!$2:$2,0)-1,COUNTA(raw!$A:$A)-1,1),回答数!$B43, OFFSET(raw!$A$1,2,MATCH($D$1,raw!$2:$2,0)-1,COUNTA(raw!$A:$A)-1,1),H$2) -> 50 | I43: =COUNTIFS( OFFSET(raw!$A$1,2,MATCH(回答数!$A43,raw!$2:$2,0)-1,COUNTA(raw!$A:$A)-1,1),回答数!$B43, OFFSET(raw!$A$1,2,MATCH($D$1,raw!$2:$2,0)-1,COUNTA(raw!$A:$A)-1,1),I$2) -> 53 | J43: =COUNTIFS( OFFSET(raw!$A$1,2,MATCH(回答数!$A43,raw!$2:$2,0)-1,COUNTA(raw!$A:$A)-1,1),回答数!$B43, OFFSET(raw!$A$1,2,MATCH($D$1,raw!$2:$2,0)-1,COUNTA(raw!$A:$A)-1,1),J$2) -> 70 | K43: =COUNTIFS( OFFSET(raw!$A$1,2,MATCH(回答数!$A43,raw!$2:$2,0)-1,COUNTA(raw!$A:$A)-1,1),回答数!$B43, OFFSET(raw!$A$1,2,MATCH($D$1,raw!$2:$2,0)-1,COUNTA(raw!$A:$A)-1,1),K$2) -> 208 | L43: =COUNTIFS( OFFSET(raw!$A$1,2,MATCH(回答数!$A43,raw!$2:$2,0)-1,COUNTA(raw!$A:$A)-1,1),回答数!$B43, OFFSET(raw!$A$1,2,MATCH($D$1,raw!$2:$2,0)-1,COUNTA(raw!$A:$A)-1,1),L$2) -> 137 | M43: =COUNTIFS( OFFSET(raw!$A$1,2,MATCH(回答数!$A43,raw!$2:$2,0)-1,COUNTA(raw!$A:$A)-1,1),回答数!$B43, OFFSET(raw!$A$1,2,MATCH($D$1,raw!$2:$2,0)-1,COUNTA(raw!$A:$A)-1,1),M$2) -> 26 | N43: =COUNTIFS( OFFSET(raw!$A$1,2,MATCH(回答数!$A43,raw!$2:$2,0)-1,COUNTA(raw!$A:$A)-1,1),回答数!$B43, OFFSET(raw!$A$1,2,MATCH($D$1,raw!$2:$2,0)-1,COUNTA(raw!$A:$A)-1,1),N$2) -> 41 | O43: =COUNTIFS( OFFSET(raw!$A$1,2,MATCH(回答数!$A43,raw!$2:$2,0)-1,COUNTA(raw!$A:$A)-1,1),回答数!$B43, OFFSET(raw!$A$1,2,MATCH($D$1,raw!$2:$2,0)-1,COUNTA(raw!$A:$A)-1,1),O$2) -> 40 | P43: 823
A44: 回答エリア | B44: 道の駅「パークイン丹生ヶ丘」 エリア | D44: =COUNTIFS( OFFSET(raw!$A$1,2,MATCH(回答数!$A44,raw!$2:$2,0)-1,COUNTA(raw!$A:$A)-1,1),回答数!$B44, OFFSET(raw!$A$1,2,MATCH($D$1,raw!$2:$2,0)-1,COUNTA(raw!$A:$A)-1,1),D$2) -> 5 | E44: =COUNTIFS( OFFSET(raw!$A$1,2,MATCH(回答数!$A44,raw!$2:$2,0)-1,COUNTA(raw!$A:$A)-1,1),回答数!$B44, OFFSET(raw!$A$1,2,MATCH($D$1,raw!$2:$2,0)-1,COUNTA(raw!$A:$A)-1,1),E$2) -> 51 | F44: =COUNTIFS( OFFSET(raw!$A$1,2,MATCH(回答数!$A44,raw!$2:$2,0)-1,COUNTA(raw!$A:$A)-1,1),回答数!$B44, OFFSET(raw!$A$1,2,MATCH($D$1,raw!$2:$2,0)-1,COUNTA(raw!$A:$A)-1,1),F$2) -> 39 | G44: =COUNTIFS( OFFSET(raw!$A$1,2,MATCH(回答数!$A44,raw!$2:$2,0)-1,COUNTA(raw!$A:$A)-1,1),回答数!$B44, OFFSET(raw!$A$1,2,MATCH($D$1,raw!$2:$2,0)-1,COUNTA(raw!$A:$A)-1,1),G$2) -> 18 | H44: =COUNTIFS( OFFSET(raw!$A$1,2,MATCH(回答数!$A44,raw!$2:$2,0)-1,COUNTA(raw!$A:$A)-1,1),回答数!$B44, OFFSET(raw!$A$1,2,MATCH($D$1,raw!$2:$2,0)-1,COUNTA(raw!$A:$A)-1,1),H$2) -> 32 | I44: =COUNTIFS( OFFSET(raw!$A$1,2,MATCH(回答数!$A44,raw!$2:$2,0)-1,COUNTA(raw!$A:$A)-1,1),回答数!$B44, OFFSET(raw!$A$1,2,MATCH($D$1,raw!$2:$2,0)-1,COUNTA(raw!$A:$A)-1,1),I$2) -> 31 | J44: =COUNTIFS( OFFSET(raw!$A$1,2,MATCH(回答数!$A44,raw!$2:$2,0)-1,COUNTA(raw!$A:$A)-1,1),回答数!$B44, OFFSET(raw!$A$1,2,MATCH($D$1,raw!$2:$2,0)-1,COUNTA(raw!$A:$A)-1,1),J$2) -> 38 | K44: =COUNTIFS( OFFSET(raw!$A$1,2,MATCH(回答数!$A44,raw!$2:$2,0)-1,COUNTA(raw!$A:$A)-1,1),回答数!$B44, OFFSET(raw!$A$1,2,MATCH($D$1,raw!$2:$2,0)-1,COUNTA(raw!$A:$A)-1,1),K$2) -> 36 | L44: =COUNTIFS( OFFSET(raw!$A$1,2,MATCH(回答数!$A44,raw!$2:$2,0)-1,COUNTA(raw!$A:$A)-1,1),回答数!$B44, OFFSET(raw!$A$1,2,MATCH($D$1,raw!$2:$2,0)-1,COUNTA(raw!$A:$A)-1,1),L$2) -> 26 | M44: =COUNTIFS( OFFSET(raw!$A$1,2,MATCH(回答数!$A44,raw!$2:$2,0)-1,COUNTA(raw!$A:$A)-1,1),回答数!$B44, OFFSET(raw!$A$1,2,MATCH($D$1,raw!$2:$2,0)-1,COUNTA(raw!$A:$A)-1,1),M$2) -> 12 | N44: =COUNTIFS( OFFSET(raw!$A$1,2,MATCH(回答数!$A44,raw!$2:$2,0)-1,COUNTA(raw!$A:$A)-1,1),回答数!$B44, OFFSET(raw!$A$1,2,MATCH($D$1,raw!$2:$2,0)-1,COUNTA(raw!$A:$A)-1,1),N$2) -> 20 | O44: =COUNTIFS( OFFSET(raw!$A$1,2,MATCH(回答数!$A44,raw!$2:$2,0)-1,COUNTA(raw!$A:$A)-1,1),回答数!$B44, OFFSET(raw!$A$1,2,MATCH($D$1,raw!$2:$2,0)-1,COUNTA(raw!$A:$A)-1,1),O$2) -> 19 | P44: 327
A45: 回答エリア | B45: 劔神社 エリア | D45: =COUNTIFS( OFFSET(raw!$A$1,2,MATCH(回答数!$A45,raw!$2:$2,0)-1,COUNTA(raw!$A:$A)-1,1),回答数!$B45, OFFSET(raw!$A$1,2,MATCH($D$1,raw!$2:$2,0)-1,COUNTA(raw!$A:$A)-1,1),D$2) -> 1 | E45: =COUNTIFS( OFFSET(raw!$A$1,2,MATCH(回答数!$A45,raw!$2:$2,0)-1,COUNTA(raw!$A:$A)-1,1),回答数!$B45, OFFSET(raw!$A$1,2,MATCH($D$1,raw!$2:$2,0)-1,COUNTA(raw!$A:$A)-1,1),E$2) -> 14 | F45: =COUNTIFS( OFFSET(raw!$A$1,2,MATCH(回答数!$A45,raw!$2:$2,0)-1,COUNTA(raw!$A:$A)-1,1),回答数!$B45, OFFSET(raw!$A$1,2,MATCH($D$1,raw!$2:$2,0)-1,COUNTA(raw!$A:$A)-1,1),F$2) -> 33 | G45: =COUNTIFS( OFFSET(raw!$A$1,2,MATCH(回答数!$A45,raw!$2:$2,0)-1,COUNTA(raw!$A:$A)-1,1),回答数!$B45, OFFSET(raw!$A$1,2,MATCH($D$1,raw!$2:$2,0)-1,COUNTA(raw!$A:$A)-1,1),G$2) -> 0 | H45: =COUNTIFS( OFFSET(raw!$A$1,2,MATCH(回答数!$A45,raw!$2:$2,0)-1,COUNTA(raw!$A:$A)-1,1),回答数!$B45, OFFSET(raw!$A$1,2,MATCH($D$1,raw!$2:$2,0)-1,COUNTA(raw!$A:$A)-1,1),H$2) -> 10 | I45: =COUNTIFS( OFFSET(raw!$A$1,2,MATCH(回答数!$A45,raw!$2:$2,0)-1,COUNTA(raw!$A:$A)-1,1),回答数!$B45, OFFSET(raw!$A$1,2,MATCH($D$1,raw!$2:$2,0)-1,COUNTA(raw!$A:$A)-1,1),I$2) -> 5 | J45: =COUNTIFS( OFFSET(raw!$A$1,2,MATCH(回答数!$A45,raw!$2:$2,0)-1,COUNTA(raw!$A:$A)-1,1),回答数!$B45, OFFSET(raw!$A$1,2,MATCH($D$1,raw!$2:$2,0)-1,COUNTA(raw!$A:$A)-1,1),J$2) -> 11 | K45: =COUNTIFS( OFFSET(raw!$A$1,2,MATCH(回答数!$A45,raw!$2:$2,0)-1,COUNTA(raw!$A:$A)-1,1),回答数!$B45, OFFSET(raw!$A$1,2,MATCH($D$1,raw!$2:$2,0)-1,COUNTA(raw!$A:$A)-1,1),K$2) -> 16 | L45: =COUNTIFS( OFFSET(raw!$A$1,2,MATCH(回答数!$A45,raw!$2:$2,0)-1,COUNTA(raw!$A:$A)-1,1),回答数!$B45, OFFSET(raw!$A$1,2,MATCH($D$1,raw!$2:$2,0)-1,COUNTA(raw!$A:$A)-1,1),L$2) -> 7 | M45: =COUNTIFS( OFFSET(raw!$A$1,2,MATCH(回答数!$A45,raw!$2:$2,0)-1,COUNTA(raw!$A:$A)-1,1),回答数!$B45, OFFSET(raw!$A$1,2,MATCH($D$1,raw!$2:$2,0)-1,COUNTA(raw!$A:$A)-1,1),M$2) -> 3 | N45: =COUNTIFS( OFFSET(raw!$A$1,2,MATCH(回答数!$A45,raw!$2:$2,0)-1,COUNTA(raw!$A:$A)-1,1),回答数!$B45, OFFSET(raw!$A$1,2,MATCH($D$1,raw!$2:$2,0)-1,COUNTA(raw!$A:$A)-1,1),N$2) -> 3 | O45: =COUNTIFS( OFFSET(raw!$A$1,2,MATCH(回答数!$A45,raw!$2:$2,0)-1,COUNTA(raw!$A:$A)-1,1),回答数!$B45, OFFSET(raw!$A$1,2,MATCH($D$1,raw!$2:$2,0)-1,COUNTA(raw!$A:$A)-1,1),O$2) -> 1 | P45: 104
A46: 回答エリア | B46: 越前陶芸村 エリア | D46: =COUNTIFS( OFFSET(raw!$A$1,2,MATCH(回答数!$A46,raw!$2:$2,0)-1,COUNTA(raw!$A:$A)-1,1),回答数!$B46, OFFSET(raw!$A$1,2,MATCH($D$1,raw!$2:$2,0)-1,COUNTA(raw!$A:$A)-1,1),D$2) -> 0 | E46: =COUNTIFS( OFFSET(raw!$A$1,2,MATCH(回答数!$A46,raw!$2:$2,0)-1,COUNTA(raw!$A:$A)-1,1),回答数!$B46, OFFSET(raw!$A$1,2,MATCH($D$1,raw!$2:$2,0)-1,COUNTA(raw!$A:$A)-1,1),E$2) -> 17 | F46: =COUNTIFS( OFFSET(raw!$A$1,2,MATCH(回答数!$A46,raw!$2:$2,0)-1,COUNTA(raw!$A:$A)-1,1),回答数!$B46, OFFSET(raw!$A$1,2,MATCH($D$1,raw!$2:$2,0)-1,COUNTA(raw!$A:$A)-1,1),F$2) -> 21 | G46: =COUNTIFS( OFFSET(raw!$A$1,2,MATCH(回答数!$A46,raw!$2:$2,0)-1,COUNTA(raw!$A:$A)-1,1),回答数!$B46, OFFSET(raw!$A$1,2,MATCH($D$1,raw!$2:$2,0)-1,COUNTA(raw!$A:$A)-1,1),G$2) -> 19 | H46: =COUNTIFS( OFFSET(raw!$A$1,2,MATCH(回答数!$A46,raw!$2:$2,0)-1,COUNTA(raw!$A:$A)-1,1),回答数!$B46, OFFSET(raw!$A$1,2,MATCH($D$1,raw!$2:$2,0)-1,COUNTA(raw!$A:$A)-1,1),H$2) -> 12 | I46: =COUNTIFS( OFFSET(raw!$A$1,2,MATCH(回答数!$A46,raw!$2:$2,0)-1,COUNTA(raw!$A:$A)-1,1),回答数!$B46, OFFSET(raw!$A$1,2,MATCH($D$1,raw!$2:$2,0)-1,COUNTA(raw!$A:$A)-1,1),I$2) -> 26 | J46: =COUNTIFS( OFFSET(raw!$A$1,2,MATCH(回答数!$A46,raw!$2:$2,0)-1,COUNTA(raw!$A:$A)-1,1),回答数!$B46, OFFSET(raw!$A$1,2,MATCH($D$1,raw!$2:$2,0)-1,COUNTA(raw!$A:$A)-1,1),J$2) -> 40 | K46: =COUNTIFS( OFFSET(raw!$A$1,2,MATCH(回答数!$A46,raw!$2:$2,0)-1,COUNTA(raw!$A:$A)-1,1),回答数!$B46, OFFSET(raw!$A$1,2,MATCH($D$1,raw!$2:$2,0)-1,COUNTA(raw!$A:$A)-1,1),K$2) -> 51 | L46: =COUNTIFS( OFFSET(raw!$A$1,2,MATCH(回答数!$A46,raw!$2:$2,0)-1,COUNTA(raw!$A:$A)-1,1),回答数!$B46, OFFSET(raw!$A$1,2,MATCH($D$1,raw!$2:$2,0)-1,COUNTA(raw!$A:$A)-1,1),L$2) -> 30 | M46: =COUNTIFS( OFFSET(raw!$A$1,2,MATCH(回答数!$A46,raw!$2:$2,0)-1,COUNTA(raw!$A:$A)-1,1),回答数!$B46, OFFSET(raw!$A$1,2,MATCH($D$1,raw!$2:$2,0)-1,COUNTA(raw!$A:$A)-1,1),M$2) -> 20 | N46: =COUNTIFS( OFFSET(raw!$A$1,2,MATCH(回答数!$A46,raw!$2:$2,0)-1,COUNTA(raw!$A:$A)-1,1),回答数!$B46, OFFSET(raw!$A$1,2,MATCH($D$1,raw!$2:$2,0)-1,COUNTA(raw!$A:$A)-1,1),N$2) -> 20 | O46: =COUNTIFS( OFFSET(raw!$A$1,2,MATCH(回答数!$A46,raw!$2:$2,0)-1,COUNTA(raw!$A:$A)-1,1),回答数!$B46, OFFSET(raw!$A$1,2,MATCH($D$1,raw!$2:$2,0)-1,COUNTA(raw!$A:$A)-1,1),O$2) -> 9 | P46: 265
A47: 回答エリア | B47: 越前岬 エリア | D47: =COUNTIFS( OFFSET(raw!$A$1,2,MATCH(回答数!$A47,raw!$2:$2,0)-1,COUNTA(raw!$A:$A)-1,1),回答数!$B47, OFFSET(raw!$A$1,2,MATCH($D$1,raw!$2:$2,0)-1,COUNTA(raw!$A:$A)-1,1),D$2) -> 0 | E47: =COUNTIFS( OFFSET(raw!$A$1,2,MATCH(回答数!$A47,raw!$2:$2,0)-1,COUNTA(raw!$A:$A)-1,1),回答数!$B47, OFFSET(raw!$A$1,2,MATCH($D$1,raw!$2:$2,0)-1,COUNTA(raw!$A:$A)-1,1),E$2) -> 4 | F47: =COUNTIFS( OFFSET(raw!$A$1,2,MATCH(回答数!$A47,raw!$2:$2,0)-1,COUNTA(raw!$A:$A)-1,1),回答数!$B47, OFFSET(raw!$A$1,2,MATCH($D$1,raw!$2:$2,0)-1,COUNTA(raw!$A:$A)-1,1),F$2) -> 2 | G47: =COUNTIFS( OFFSET(raw!$A$1,2,MATCH(回答数!$A47,raw!$2:$2,0)-1,COUNTA(raw!$A:$A)-1,1),回答数!$B47, OFFSET(raw!$A$1,2,MATCH($D$1,raw!$2:$2,0)-1,COUNTA(raw!$A:$A)-1,1),G$2) -> 3 | H47: =COUNTIFS( OFFSET(raw!$A$1,2,MATCH(回答数!$A47,raw!$2:$2,0)-1,COUNTA(raw!$A:$A)-1,1),回答数!$B47, OFFSET(raw!$A$1,2,MATCH($D$1,raw!$2:$2,0)-1,COUNTA(raw!$A:$A)-1,1),H$2) -> 8 | I47: =COUNTIFS( OFFSET(raw!$A$1,2,MATCH(回答数!$A47,raw!$2:$2,0)-1,COUNTA(raw!$A:$A)-1,1),回答数!$B47, OFFSET(raw!$A$1,2,MATCH($D$1,raw!$2:$2,0)-1,COUNTA(raw!$A:$A)-1,1),I$2) -> 5 | J47: =COUNTIFS( OFFSET(raw!$A$1,2,MATCH(回答数!$A47,raw!$2:$2,0)-1,COUNTA(raw!$A:$A)-1,1),回答数!$B47, OFFSET(raw!$A$1,2,MATCH($D$1,raw!$2:$2,0)-1,COUNTA(raw!$A:$A)-1,1),J$2) -> 15 | K47: =COUNTIFS( OFFSET(raw!$A$1,2,MATCH(回答数!$A47,raw!$2:$2,0)-1,COUNTA(raw!$A:$A)-1,1),回答数!$B47, OFFSET(raw!$A$1,2,MATCH($D$1,raw!$2:$2,0)-1,COUNTA(raw!$A:$A)-1,1),K$2) -> 52 | L47: =COUNTIFS( OFFSET(raw!$A$1,2,MATCH(回答数!$A47,raw!$2:$2,0)-1,COUNTA(raw!$A:$A)-1,1),回答数!$B47, OFFSET(raw!$A$1,2,MATCH($D$1,raw!$2:$2,0)-1,COUNTA(raw!$A:$A)-1,1),L$2) -> 77 | M47: =COUNTIFS( OFFSET(raw!$A$1,2,MATCH(回答数!$A47,raw!$2:$2,0)-1,COUNTA(raw!$A:$A)-1,1),回答数!$B47, OFFSET(raw!$A$1,2,MATCH($D$1,raw!$2:$2,0)-1,COUNTA(raw!$A:$A)-1,1),M$2) -> 39 | N47: =COUNTIFS( OFFSET(raw!$A$1,2,MATCH(回答数!$A47,raw!$2:$2,0)-1,COUNTA(raw!$A:$A)-1,1),回答数!$B47, OFFSET(raw!$A$1,2,MATCH($D$1,raw!$2:$2,0)-1,COUNTA(raw!$A:$A)-1,1),N$2) -> 21 | O47: =COUNTIFS( OFFSET(raw!$A$1,2,MATCH(回答数!$A47,raw!$2:$2,0)-1,COUNTA(raw!$A:$A)-1,1),回答数!$B47, OFFSET(raw!$A$1,2,MATCH($D$1,raw!$2:$2,0)-1,COUNTA(raw!$A:$A)-1,1),O$2) -> 2 | P47: 228
A48: 回答エリア | B48: 道の駅「南えちぜん山海里」 エリア | D48: =COUNTIFS( OFFSET(raw!$A$1,2,MATCH(回答数!$A48,raw!$2:$2,0)-1,COUNTA(raw!$A:$A)-1,1),回答数!$B48, OFFSET(raw!$A$1,2,MATCH($D$1,raw!$2:$2,0)-1,COUNTA(raw!$A:$A)-1,1),D$2) -> 5 | E48: =COUNTIFS( OFFSET(raw!$A$1,2,MATCH(回答数!$A48,raw!$2:$2,0)-1,COUNTA(raw!$A:$A)-1,1),回答数!$B48, OFFSET(raw!$A$1,2,MATCH($D$1,raw!$2:$2,0)-1,COUNTA(raw!$A:$A)-1,1),E$2) -> 77 | F48: =COUNTIFS( OFFSET(raw!$A$1,2,MATCH(回答数!$A48,raw!$2:$2,0)-1,COUNTA(raw!$A:$A)-1,1),回答数!$B48, OFFSET(raw!$A$1,2,MATCH($D$1,raw!$2:$2,0)-1,COUNTA(raw!$A:$A)-1,1),F$2) -> 43 | G48: =COUNTIFS( OFFSET(raw!$A$1,2,MATCH(回答数!$A48,raw!$2:$2,0)-1,COUNTA(raw!$A:$A)-1,1),回答数!$B48, OFFSET(raw!$A$1,2,MATCH($D$1,raw!$2:$2,0)-1,COUNTA(raw!$A:$A)-1,1),G$2) -> 39 | H48: =COUNTIFS( OFFSET(raw!$A$1,2,MATCH(回答数!$A48,raw!$2:$2,0)-1,COUNTA(raw!$A:$A)-1,1),回答数!$B48, OFFSET(raw!$A$1,2,MATCH($D$1,raw!$2:$2,0)-1,COUNTA(raw!$A:$A)-1,1),H$2) -> 46 | I48: =COUNTIFS( OFFSET(raw!$A$1,2,MATCH(回答数!$A48,raw!$2:$2,0)-1,COUNTA(raw!$A:$A)-1,1),回答数!$B48, OFFSET(raw!$A$1,2,MATCH($D$1,raw!$2:$2,0)-1,COUNTA(raw!$A:$A)-1,1),I$2) -> 35 | J48: =COUNTIFS( OFFSET(raw!$A$1,2,MATCH(回答数!$A48,raw!$2:$2,0)-1,COUNTA(raw!$A:$A)-1,1),回答数!$B48, OFFSET(raw!$A$1,2,MATCH($D$1,raw!$2:$2,0)-1,COUNTA(raw!$A:$A)-1,1),J$2) -> 31 | K48: =COUNTIFS( OFFSET(raw!$A$1,2,MATCH(回答数!$A48,raw!$2:$2,0)-1,COUNTA(raw!$A:$A)-1,1),回答数!$B48, OFFSET(raw!$A$1,2,MATCH($D$1,raw!$2:$2,0)-1,COUNTA(raw!$A:$A)-1,1),K$2) -> 94 | L48: =COUNTIFS( OFFSET(raw!$A$1,2,MATCH(回答数!$A48,raw!$2:$2,0)-1,COUNTA(raw!$A:$A)-1,1),回答数!$B48, OFFSET(raw!$A$1,2,MATCH($D$1,raw!$2:$2,0)-1,COUNTA(raw!$A:$A)-1,1),L$2) -> 54 | M48: =COUNTIFS( OFFSET(raw!$A$1,2,MATCH(回答数!$A48,raw!$2:$2,0)-1,COUNTA(raw!$A:$A)-1,1),回答数!$B48, OFFSET(raw!$A$1,2,MATCH($D$1,raw!$2:$2,0)-1,COUNTA(raw!$A:$A)-1,1),M$2) -> 23 | N48: =COUNTIFS( OFFSET(raw!$A$1,2,MATCH(回答数!$A48,raw!$2:$2,0)-1,COUNTA(raw!$A:$A)-1,1),回答数!$B48, OFFSET(raw!$A$1,2,MATCH($D$1,raw!$2:$2,0)-1,COUNTA(raw!$A:$A)-1,1),N$2) -> 27 | O48: =COUNTIFS( OFFSET(raw!$A$1,2,MATCH(回答数!$A48,raw!$2:$2,0)-1,COUNTA(raw!$A:$A)-1,1),回答数!$B48, OFFSET(raw!$A$1,2,MATCH($D$1,raw!$2:$2,0)-1,COUNTA(raw!$A:$A)-1,1),O$2) -> 10 | P48: 484
A49: 回答エリア | B49: 北前船主の館 右近家 エリア | D49: =COUNTIFS( OFFSET(raw!$A$1,2,MATCH(回答数!$A49,raw!$2:$2,0)-1,COUNTA(raw!$A:$A)-1,1),回答数!$B49, OFFSET(raw!$A$1,2,MATCH($D$1,raw!$2:$2,0)-1,COUNTA(raw!$A:$A)-1,1),D$2) -> 2 | E49: =COUNTIFS( OFFSET(raw!$A$1,2,MATCH(回答数!$A49,raw!$2:$2,0)-1,COUNTA(raw!$A:$A)-1,1),回答数!$B49, OFFSET(raw!$A$1,2,MATCH($D$1,raw!$2:$2,0)-1,COUNTA(raw!$A:$A)-1,1),E$2) -> 5 | F49: =COUNTIFS( OFFSET(raw!$A$1,2,MATCH(回答数!$A49,raw!$2:$2,0)-1,COUNTA(raw!$A:$A)-1,1),回答数!$B49, OFFSET(raw!$A$1,2,MATCH($D$1,raw!$2:$2,0)-1,COUNTA(raw!$A:$A)-1,1),F$2) -> 10 | G49: =COUNTIFS( OFFSET(raw!$A$1,2,MATCH(回答数!$A49,raw!$2:$2,0)-1,COUNTA(raw!$A:$A)-1,1),回答数!$B49, OFFSET(raw!$A$1,2,MATCH($D$1,raw!$2:$2,0)-1,COUNTA(raw!$A:$A)-1,1),G$2) -> 9 | H49: =COUNTIFS( OFFSET(raw!$A$1,2,MATCH(回答数!$A49,raw!$2:$2,0)-1,COUNTA(raw!$A:$A)-1,1),回答数!$B49, OFFSET(raw!$A$1,2,MATCH($D$1,raw!$2:$2,0)-1,COUNTA(raw!$A:$A)-1,1),H$2) -> 4 | I49: =COUNTIFS( OFFSET(raw!$A$1,2,MATCH(回答数!$A49,raw!$2:$2,0)-1,COUNTA(raw!$A:$A)-1,1),回答数!$B49, OFFSET(raw!$A$1,2,MATCH($D$1,raw!$2:$2,0)-1,COUNTA(raw!$A:$A)-1,1),I$2) -> 5 | J49: =COUNTIFS( OFFSET(raw!$A$1,2,MATCH(回答数!$A49,raw!$2:$2,0)-1,COUNTA(raw!$A:$A)-1,1),回答数!$B49, OFFSET(raw!$A$1,2,MATCH($D$1,raw!$2:$2,0)-1,COUNTA(raw!$A:$A)-1,1),J$2) -> 8 | K49: =COUNTIFS( OFFSET(raw!$A$1,2,MATCH(回答数!$A49,raw!$2:$2,0)-1,COUNTA(raw!$A:$A)-1,1),回答数!$B49, OFFSET(raw!$A$1,2,MATCH($D$1,raw!$2:$2,0)-1,COUNTA(raw!$A:$A)-1,1),K$2) -> 15 | L49: =COUNTIFS( OFFSET(raw!$A$1,2,MATCH(回答数!$A49,raw!$2:$2,0)-1,COUNTA(raw!$A:$A)-1,1),回答数!$B49, OFFSET(raw!$A$1,2,MATCH($D$1,raw!$2:$2,0)-1,COUNTA(raw!$A:$A)-1,1),L$2) -> 12 | M49: =COUNTIFS( OFFSET(raw!$A$1,2,MATCH(回答数!$A49,raw!$2:$2,0)-1,COUNTA(raw!$A:$A)-1,1),回答数!$B49, OFFSET(raw!$A$1,2,MATCH($D$1,raw!$2:$2,0)-1,COUNTA(raw!$A:$A)-1,1),M$2) -> 5 | N49: =COUNTIFS( OFFSET(raw!$A$1,2,MATCH(回答数!$A49,raw!$2:$2,0)-1,COUNTA(raw!$A:$A)-1,1),回答数!$B49, OFFSET(raw!$A$1,2,MATCH($D$1,raw!$2:$2,0)-1,COUNTA(raw!$A:$A)-1,1),N$2) -> 10 | O49: =COUNTIFS( OFFSET(raw!$A$1,2,MATCH(回答数!$A49,raw!$2:$2,0)-1,COUNTA(raw!$A:$A)-1,1),回答数!$B49, OFFSET(raw!$A$1,2,MATCH($D$1,raw!$2:$2,0)-1,COUNTA(raw!$A:$A)-1,1),O$2) -> 4 | P49: 89
A50: 回答エリア | B50: 今庄宿 エリア | D50: =COUNTIFS( OFFSET(raw!$A$1,2,MATCH(回答数!$A50,raw!$2:$2,0)-1,COUNTA(raw!$A:$A)-1,1),回答数!$B50, OFFSET(raw!$A$1,2,MATCH($D$1,raw!$2:$2,0)-1,COUNTA(raw!$A:$A)-1,1),D$2) -> 0 | E50: =COUNTIFS( OFFSET(raw!$A$1,2,MATCH(回答数!$A50,raw!$2:$2,0)-1,COUNTA(raw!$A:$A)-1,1),回答数!$B50, OFFSET(raw!$A$1,2,MATCH($D$1,raw!$2:$2,0)-1,COUNTA(raw!$A:$A)-1,1),E$2) -> 14 | F50: =COUNTIFS( OFFSET(raw!$A$1,2,MATCH(回答数!$A50,raw!$2:$2,0)-1,COUNTA(raw!$A:$A)-1,1),回答数!$B50, OFFSET(raw!$A$1,2,MATCH($D$1,raw!$2:$2,0)-1,COUNTA(raw!$A:$A)-1,1),F$2) -> 8 | G50: =COUNTIFS( OFFSET(raw!$A$1,2,MATCH(回答数!$A50,raw!$2:$2,0)-1,COUNTA(raw!$A:$A)-1,1),回答数!$B50, OFFSET(raw!$A$1,2,MATCH($D$1,raw!$2:$2,0)-1,COUNTA(raw!$A:$A)-1,1),G$2) -> 10 | H50: =COUNTIFS( OFFSET(raw!$A$1,2,MATCH(回答数!$A50,raw!$2:$2,0)-1,COUNTA(raw!$A:$A)-1,1),回答数!$B50, OFFSET(raw!$A$1,2,MATCH($D$1,raw!$2:$2,0)-1,COUNTA(raw!$A:$A)-1,1),H$2) -> 4 | I50: =COUNTIFS( OFFSET(raw!$A$1,2,MATCH(回答数!$A50,raw!$2:$2,0)-1,COUNTA(raw!$A:$A)-1,1),回答数!$B50, OFFSET(raw!$A$1,2,MATCH($D$1,raw!$2:$2,0)-1,COUNTA(raw!$A:$A)-1,1),I$2) -> 1 | J50: =COUNTIFS( OFFSET(raw!$A$1,2,MATCH(回答数!$A50,raw!$2:$2,0)-1,COUNTA(raw!$A:$A)-1,1),回答数!$B50, OFFSET(raw!$A$1,2,MATCH($D$1,raw!$2:$2,0)-1,COUNTA(raw!$A:$A)-1,1),J$2) -> 12 | K50: =COUNTIFS( OFFSET(raw!$A$1,2,MATCH(回答数!$A50,raw!$2:$2,0)-1,COUNTA(raw!$A:$A)-1,1),回答数!$B50, OFFSET(raw!$A$1,2,MATCH($D$1,raw!$2:$2,0)-1,COUNTA(raw!$A:$A)-1,1),K$2) -> 19 | L50: =COUNTIFS( OFFSET(raw!$A$1,2,MATCH(回答数!$A50,raw!$2:$2,0)-1,COUNTA(raw!$A:$A)-1,1),回答数!$B50, OFFSET(raw!$A$1,2,MATCH($D$1,raw!$2:$2,0)-1,COUNTA(raw!$A:$A)-1,1),L$2) -> 12 | M50: =COUNTIFS( OFFSET(raw!$A$1,2,MATCH(回答数!$A50,raw!$2:$2,0)-1,COUNTA(raw!$A:$A)-1,1),回答数!$B50, OFFSET(raw!$A$1,2,MATCH($D$1,raw!$2:$2,0)-1,COUNTA(raw!$A:$A)-1,1),M$2) -> 6 | N50: =COUNTIFS( OFFSET(raw!$A$1,2,MATCH(回答数!$A50,raw!$2:$2,0)-1,COUNTA(raw!$A:$A)-1,1),回答数!$B50, OFFSET(raw!$A$1,2,MATCH($D$1,raw!$2:$2,0)-1,COUNTA(raw!$A:$A)-1,1),N$2) -> 5 | O50: =COUNTIFS( OFFSET(raw!$A$1,2,MATCH(回答数!$A50,raw!$2:$2,0)-1,COUNTA(raw!$A:$A)-1,1),回答数!$B50, OFFSET(raw!$A$1,2,MATCH($D$1,raw!$2:$2,0)-1,COUNTA(raw!$A:$A)-1,1),O$2) -> 8 | P50: 99
A51: 回答エリア | B51: 日本海さかな街 エリア | D51: =COUNTIFS( OFFSET(raw!$A$1,2,MATCH(回答数!$A51,raw!$2:$2,0)-1,COUNTA(raw!$A:$A)-1,1),回答数!$B51, OFFSET(raw!$A$1,2,MATCH($D$1,raw!$2:$2,0)-1,COUNTA(raw!$A:$A)-1,1),D$2) -> 2 | E51: =COUNTIFS( OFFSET(raw!$A$1,2,MATCH(回答数!$A51,raw!$2:$2,0)-1,COUNTA(raw!$A:$A)-1,1),回答数!$B51, OFFSET(raw!$A$1,2,MATCH($D$1,raw!$2:$2,0)-1,COUNTA(raw!$A:$A)-1,1),E$2) -> 38 | F51: =COUNTIFS( OFFSET(raw!$A$1,2,MATCH(回答数!$A51,raw!$2:$2,0)-1,COUNTA(raw!$A:$A)-1,1),回答数!$B51, OFFSET(raw!$A$1,2,MATCH($D$1,raw!$2:$2,0)-1,COUNTA(raw!$A:$A)-1,1),F$2) -> 18 | G51: =COUNTIFS( OFFSET(raw!$A$1,2,MATCH(回答数!$A51,raw!$2:$2,0)-1,COUNTA(raw!$A:$A)-1,1),回答数!$B51, OFFSET(raw!$A$1,2,MATCH($D$1,raw!$2:$2,0)-1,COUNTA(raw!$A:$A)-1,1),G$2) -> 28 | H51: =COUNTIFS( OFFSET(raw!$A$1,2,MATCH(回答数!$A51,raw!$2:$2,0)-1,COUNTA(raw!$A:$A)-1,1),回答数!$B51, OFFSET(raw!$A$1,2,MATCH($D$1,raw!$2:$2,0)-1,COUNTA(raw!$A:$A)-1,1),H$2) -> 19 | I51: =COUNTIFS( OFFSET(raw!$A$1,2,MATCH(回答数!$A51,raw!$2:$2,0)-1,COUNTA(raw!$A:$A)-1,1),回答数!$B51, OFFSET(raw!$A$1,2,MATCH($D$1,raw!$2:$2,0)-1,COUNTA(raw!$A:$A)-1,1),I$2) -> 22 | J51: =COUNTIFS( OFFSET(raw!$A$1,2,MATCH(回答数!$A51,raw!$2:$2,0)-1,COUNTA(raw!$A:$A)-1,1),回答数!$B51, OFFSET(raw!$A$1,2,MATCH($D$1,raw!$2:$2,0)-1,COUNTA(raw!$A:$A)-1,1),J$2) -> 50 | K51: =COUNTIFS( OFFSET(raw!$A$1,2,MATCH(回答数!$A51,raw!$2:$2,0)-1,COUNTA(raw!$A:$A)-1,1),回答数!$B51, OFFSET(raw!$A$1,2,MATCH($D$1,raw!$2:$2,0)-1,COUNTA(raw!$A:$A)-1,1),K$2) -> 70 | L51: =COUNTIFS( OFFSET(raw!$A$1,2,MATCH(回答数!$A51,raw!$2:$2,0)-1,COUNTA(raw!$A:$A)-1,1),回答数!$B51, OFFSET(raw!$A$1,2,MATCH($D$1,raw!$2:$2,0)-1,COUNTA(raw!$A:$A)-1,1),L$2) -> 80 | M51: =COUNTIFS( OFFSET(raw!$A$1,2,MATCH(回答数!$A51,raw!$2:$2,0)-1,COUNTA(raw!$A:$A)-1,1),回答数!$B51, OFFSET(raw!$A$1,2,MATCH($D$1,raw!$2:$2,0)-1,COUNTA(raw!$A:$A)-1,1),M$2) -> 13 | N51: =COUNTIFS( OFFSET(raw!$A$1,2,MATCH(回答数!$A51,raw!$2:$2,0)-1,COUNTA(raw!$A:$A)-1,1),回答数!$B51, OFFSET(raw!$A$1,2,MATCH($D$1,raw!$2:$2,0)-1,COUNTA(raw!$A:$A)-1,1),N$2) -> 30 | O51: =COUNTIFS( OFFSET(raw!$A$1,2,MATCH(回答数!$A51,raw!$2:$2,0)-1,COUNTA(raw!$A:$A)-1,1),回答数!$B51, OFFSET(raw!$A$1,2,MATCH($D$1,raw!$2:$2,0)-1,COUNTA(raw!$A:$A)-1,1),O$2) -> 7 | P51: 377
A52: 回答エリア | B52: 氣比神宮 エリア | D52: =COUNTIFS( OFFSET(raw!$A$1,2,MATCH(回答数!$A52,raw!$2:$2,0)-1,COUNTA(raw!$A:$A)-1,1),回答数!$B52, OFFSET(raw!$A$1,2,MATCH($D$1,raw!$2:$2,0)-1,COUNTA(raw!$A:$A)-1,1),D$2) -> 1 | E52: =COUNTIFS( OFFSET(raw!$A$1,2,MATCH(回答数!$A52,raw!$2:$2,0)-1,COUNTA(raw!$A:$A)-1,1),回答数!$B52, OFFSET(raw!$A$1,2,MATCH($D$1,raw!$2:$2,0)-1,COUNTA(raw!$A:$A)-1,1),E$2) -> 17 | F52: =COUNTIFS( OFFSET(raw!$A$1,2,MATCH(回答数!$A52,raw!$2:$2,0)-1,COUNTA(raw!$A:$A)-1,1),回答数!$B52, OFFSET(raw!$A$1,2,MATCH($D$1,raw!$2:$2,0)-1,COUNTA(raw!$A:$A)-1,1),F$2) -> 4 | G52: =COUNTIFS( OFFSET(raw!$A$1,2,MATCH(回答数!$A52,raw!$2:$2,0)-1,COUNTA(raw!$A:$A)-1,1),回答数!$B52, OFFSET(raw!$A$1,2,MATCH($D$1,raw!$2:$2,0)-1,COUNTA(raw!$A:$A)-1,1),G$2) -> 7 | H52: =COUNTIFS( OFFSET(raw!$A$1,2,MATCH(回答数!$A52,raw!$2:$2,0)-1,COUNTA(raw!$A:$A)-1,1),回答数!$B52, OFFSET(raw!$A$1,2,MATCH($D$1,raw!$2:$2,0)-1,COUNTA(raw!$A:$A)-1,1),H$2) -> 6 | I52: =COUNTIFS( OFFSET(raw!$A$1,2,MATCH(回答数!$A52,raw!$2:$2,0)-1,COUNTA(raw!$A:$A)-1,1),回答数!$B52, OFFSET(raw!$A$1,2,MATCH($D$1,raw!$2:$2,0)-1,COUNTA(raw!$A:$A)-1,1),I$2) -> 11 | J52: =COUNTIFS( OFFSET(raw!$A$1,2,MATCH(回答数!$A52,raw!$2:$2,0)-1,COUNTA(raw!$A:$A)-1,1),回答数!$B52, OFFSET(raw!$A$1,2,MATCH($D$1,raw!$2:$2,0)-1,COUNTA(raw!$A:$A)-1,1),J$2) -> 24 | K52: =COUNTIFS( OFFSET(raw!$A$1,2,MATCH(回答数!$A52,raw!$2:$2,0)-1,COUNTA(raw!$A:$A)-1,1),回答数!$B52, OFFSET(raw!$A$1,2,MATCH($D$1,raw!$2:$2,0)-1,COUNTA(raw!$A:$A)-1,1),K$2) -> 39 | L52: =COUNTIFS( OFFSET(raw!$A$1,2,MATCH(回答数!$A52,raw!$2:$2,0)-1,COUNTA(raw!$A:$A)-1,1),回答数!$B52, OFFSET(raw!$A$1,2,MATCH($D$1,raw!$2:$2,0)-1,COUNTA(raw!$A:$A)-1,1),L$2) -> 37 | M52: =COUNTIFS( OFFSET(raw!$A$1,2,MATCH(回答数!$A52,raw!$2:$2,0)-1,COUNTA(raw!$A:$A)-1,1),回答数!$B52, OFFSET(raw!$A$1,2,MATCH($D$1,raw!$2:$2,0)-1,COUNTA(raw!$A:$A)-1,1),M$2) -> 6 | N52: =COUNTIFS( OFFSET(raw!$A$1,2,MATCH(回答数!$A52,raw!$2:$2,0)-1,COUNTA(raw!$A:$A)-1,1),回答数!$B52, OFFSET(raw!$A$1,2,MATCH($D$1,raw!$2:$2,0)-1,COUNTA(raw!$A:$A)-1,1),N$2) -> 8 | O52: =COUNTIFS( OFFSET(raw!$A$1,2,MATCH(回答数!$A52,raw!$2:$2,0)-1,COUNTA(raw!$A:$A)-1,1),回答数!$B52, OFFSET(raw!$A$1,2,MATCH($D$1,raw!$2:$2,0)-1,COUNTA(raw!$A:$A)-1,1),O$2) -> 5 | P52: 165
A53: 回答エリア | B53: JR敦賀駅前 エリア | D53: =COUNTIFS( OFFSET(raw!$A$1,2,MATCH(回答数!$A53,raw!$2:$2,0)-1,COUNTA(raw!$A:$A)-1,1),回答数!$B53, OFFSET(raw!$A$1,2,MATCH($D$1,raw!$2:$2,0)-1,COUNTA(raw!$A:$A)-1,1),D$2) -> 0 | E53: =COUNTIFS( OFFSET(raw!$A$1,2,MATCH(回答数!$A53,raw!$2:$2,0)-1,COUNTA(raw!$A:$A)-1,1),回答数!$B53, OFFSET(raw!$A$1,2,MATCH($D$1,raw!$2:$2,0)-1,COUNTA(raw!$A:$A)-1,1),E$2) -> 17 | F53: =COUNTIFS( OFFSET(raw!$A$1,2,MATCH(回答数!$A53,raw!$2:$2,0)-1,COUNTA(raw!$A:$A)-1,1),回答数!$B53, OFFSET(raw!$A$1,2,MATCH($D$1,raw!$2:$2,0)-1,COUNTA(raw!$A:$A)-1,1),F$2) -> 12 | G53: =COUNTIFS( OFFSET(raw!$A$1,2,MATCH(回答数!$A53,raw!$2:$2,0)-1,COUNTA(raw!$A:$A)-1,1),回答数!$B53, OFFSET(raw!$A$1,2,MATCH($D$1,raw!$2:$2,0)-1,COUNTA(raw!$A:$A)-1,1),G$2) -> 11 | H53: =COUNTIFS( OFFSET(raw!$A$1,2,MATCH(回答数!$A53,raw!$2:$2,0)-1,COUNTA(raw!$A:$A)-1,1),回答数!$B53, OFFSET(raw!$A$1,2,MATCH($D$1,raw!$2:$2,0)-1,COUNTA(raw!$A:$A)-1,1),H$2) -> 14 | I53: =COUNTIFS( OFFSET(raw!$A$1,2,MATCH(回答数!$A53,raw!$2:$2,0)-1,COUNTA(raw!$A:$A)-1,1),回答数!$B53, OFFSET(raw!$A$1,2,MATCH($D$1,raw!$2:$2,0)-1,COUNTA(raw!$A:$A)-1,1),I$2) -> 14 | J53: =COUNTIFS( OFFSET(raw!$A$1,2,MATCH(回答数!$A53,raw!$2:$2,0)-1,COUNTA(raw!$A:$A)-1,1),回答数!$B53, OFFSET(raw!$A$1,2,MATCH($D$1,raw!$2:$2,0)-1,COUNTA(raw!$A:$A)-1,1),J$2) -> 50 | K53: =COUNTIFS( OFFSET(raw!$A$1,2,MATCH(回答数!$A53,raw!$2:$2,0)-1,COUNTA(raw!$A:$A)-1,1),回答数!$B53, OFFSET(raw!$A$1,2,MATCH($D$1,raw!$2:$2,0)-1,COUNTA(raw!$A:$A)-1,1),K$2) -> 50 | L53: =COUNTIFS( OFFSET(raw!$A$1,2,MATCH(回答数!$A53,raw!$2:$2,0)-1,COUNTA(raw!$A:$A)-1,1),回答数!$B53, OFFSET(raw!$A$1,2,MATCH($D$1,raw!$2:$2,0)-1,COUNTA(raw!$A:$A)-1,1),L$2) -> 35 | M53: =COUNTIFS( OFFSET(raw!$A$1,2,MATCH(回答数!$A53,raw!$2:$2,0)-1,COUNTA(raw!$A:$A)-1,1),回答数!$B53, OFFSET(raw!$A$1,2,MATCH($D$1,raw!$2:$2,0)-1,COUNTA(raw!$A:$A)-1,1),M$2) -> 24 | N53: =COUNTIFS( OFFSET(raw!$A$1,2,MATCH(回答数!$A53,raw!$2:$2,0)-1,COUNTA(raw!$A:$A)-1,1),回答数!$B53, OFFSET(raw!$A$1,2,MATCH($D$1,raw!$2:$2,0)-1,COUNTA(raw!$A:$A)-1,1),N$2) -> 17 | O53: =COUNTIFS( OFFSET(raw!$A$1,2,MATCH(回答数!$A53,raw!$2:$2,0)-1,COUNTA(raw!$A:$A)-1,1),回答数!$B53, OFFSET(raw!$A$1,2,MATCH($D$1,raw!$2:$2,0)-1,COUNTA(raw!$A:$A)-1,1),O$2) -> 16 | P53: 260
A54: 回答エリア | B54: 金ヶ崎 エリア | D54: =COUNTIFS( OFFSET(raw!$A$1,2,MATCH(回答数!$A54,raw!$2:$2,0)-1,COUNTA(raw!$A:$A)-1,1),回答数!$B54, OFFSET(raw!$A$1,2,MATCH($D$1,raw!$2:$2,0)-1,COUNTA(raw!$A:$A)-1,1),D$2) -> 8 | E54: =COUNTIFS( OFFSET(raw!$A$1,2,MATCH(回答数!$A54,raw!$2:$2,0)-1,COUNTA(raw!$A:$A)-1,1),回答数!$B54, OFFSET(raw!$A$1,2,MATCH($D$1,raw!$2:$2,0)-1,COUNTA(raw!$A:$A)-1,1),E$2) -> 43 | F54: =COUNTIFS( OFFSET(raw!$A$1,2,MATCH(回答数!$A54,raw!$2:$2,0)-1,COUNTA(raw!$A:$A)-1,1),回答数!$B54, OFFSET(raw!$A$1,2,MATCH($D$1,raw!$2:$2,0)-1,COUNTA(raw!$A:$A)-1,1),F$2) -> 14 | G54: =COUNTIFS( OFFSET(raw!$A$1,2,MATCH(回答数!$A54,raw!$2:$2,0)-1,COUNTA(raw!$A:$A)-1,1),回答数!$B54, OFFSET(raw!$A$1,2,MATCH($D$1,raw!$2:$2,0)-1,COUNTA(raw!$A:$A)-1,1),G$2) -> 18 | H54: =COUNTIFS( OFFSET(raw!$A$1,2,MATCH(回答数!$A54,raw!$2:$2,0)-1,COUNTA(raw!$A:$A)-1,1),回答数!$B54, OFFSET(raw!$A$1,2,MATCH($D$1,raw!$2:$2,0)-1,COUNTA(raw!$A:$A)-1,1),H$2) -> 19 | I54: =COUNTIFS( OFFSET(raw!$A$1,2,MATCH(回答数!$A54,raw!$2:$2,0)-1,COUNTA(raw!$A:$A)-1,1),回答数!$B54, OFFSET(raw!$A$1,2,MATCH($D$1,raw!$2:$2,0)-1,COUNTA(raw!$A:$A)-1,1),I$2) -> 21 | J54: =COUNTIFS( OFFSET(raw!$A$1,2,MATCH(回答数!$A54,raw!$2:$2,0)-1,COUNTA(raw!$A:$A)-1,1),回答数!$B54, OFFSET(raw!$A$1,2,MATCH($D$1,raw!$2:$2,0)-1,COUNTA(raw!$A:$A)-1,1),J$2) -> 43 | K54: =COUNTIFS( OFFSET(raw!$A$1,2,MATCH(回答数!$A54,raw!$2:$2,0)-1,COUNTA(raw!$A:$A)-1,1),回答数!$B54, OFFSET(raw!$A$1,2,MATCH($D$1,raw!$2:$2,0)-1,COUNTA(raw!$A:$A)-1,1),K$2) -> 66 | L54: =COUNTIFS( OFFSET(raw!$A$1,2,MATCH(回答数!$A54,raw!$2:$2,0)-1,COUNTA(raw!$A:$A)-1,1),回答数!$B54, OFFSET(raw!$A$1,2,MATCH($D$1,raw!$2:$2,0)-1,COUNTA(raw!$A:$A)-1,1),L$2) -> 62 | M54: =COUNTIFS( OFFSET(raw!$A$1,2,MATCH(回答数!$A54,raw!$2:$2,0)-1,COUNTA(raw!$A:$A)-1,1),回答数!$B54, OFFSET(raw!$A$1,2,MATCH($D$1,raw!$2:$2,0)-1,COUNTA(raw!$A:$A)-1,1),M$2) -> 15 | N54: =COUNTIFS( OFFSET(raw!$A$1,2,MATCH(回答数!$A54,raw!$2:$2,0)-1,COUNTA(raw!$A:$A)-1,1),回答数!$B54, OFFSET(raw!$A$1,2,MATCH($D$1,raw!$2:$2,0)-1,COUNTA(raw!$A:$A)-1,1),N$2) -> 18 | O54: =COUNTIFS( OFFSET(raw!$A$1,2,MATCH(回答数!$A54,raw!$2:$2,0)-1,COUNTA(raw!$A:$A)-1,1),回答数!$B54, OFFSET(raw!$A$1,2,MATCH($D$1,raw!$2:$2,0)-1,COUNTA(raw!$A:$A)-1,1),O$2) -> 9 | P54: 336
A55: 回答エリア | B55: 敦賀市立博物館 エリア | D55: =COUNTIFS( OFFSET(raw!$A$1,2,MATCH(回答数!$A55,raw!$2:$2,0)-1,COUNTA(raw!$A:$A)-1,1),回答数!$B55, OFFSET(raw!$A$1,2,MATCH($D$1,raw!$2:$2,0)-1,COUNTA(raw!$A:$A)-1,1),D$2) -> 1 | E55: =COUNTIFS( OFFSET(raw!$A$1,2,MATCH(回答数!$A55,raw!$2:$2,0)-1,COUNTA(raw!$A:$A)-1,1),回答数!$B55, OFFSET(raw!$A$1,2,MATCH($D$1,raw!$2:$2,0)-1,COUNTA(raw!$A:$A)-1,1),E$2) -> 0 | F55: =COUNTIFS( OFFSET(raw!$A$1,2,MATCH(回答数!$A55,raw!$2:$2,0)-1,COUNTA(raw!$A:$A)-1,1),回答数!$B55, OFFSET(raw!$A$1,2,MATCH($D$1,raw!$2:$2,0)-1,COUNTA(raw!$A:$A)-1,1),F$2) -> 2 | G55: =COUNTIFS( OFFSET(raw!$A$1,2,MATCH(回答数!$A55,raw!$2:$2,0)-1,COUNTA(raw!$A:$A)-1,1),回答数!$B55, OFFSET(raw!$A$1,2,MATCH($D$1,raw!$2:$2,0)-1,COUNTA(raw!$A:$A)-1,1),G$2) -> 4 | H55: =COUNTIFS( OFFSET(raw!$A$1,2,MATCH(回答数!$A55,raw!$2:$2,0)-1,COUNTA(raw!$A:$A)-1,1),回答数!$B55, OFFSET(raw!$A$1,2,MATCH($D$1,raw!$2:$2,0)-1,COUNTA(raw!$A:$A)-1,1),H$2) -> 3 | I55: =COUNTIFS( OFFSET(raw!$A$1,2,MATCH(回答数!$A55,raw!$2:$2,0)-1,COUNTA(raw!$A:$A)-1,1),回答数!$B55, OFFSET(raw!$A$1,2,MATCH($D$1,raw!$2:$2,0)-1,COUNTA(raw!$A:$A)-1,1),I$2) -> 3 | J55: =COUNTIFS( OFFSET(raw!$A$1,2,MATCH(回答数!$A55,raw!$2:$2,0)-1,COUNTA(raw!$A:$A)-1,1),回答数!$B55, OFFSET(raw!$A$1,2,MATCH($D$1,raw!$2:$2,0)-1,COUNTA(raw!$A:$A)-1,1),J$2) -> 13 | K55: =COUNTIFS( OFFSET(raw!$A$1,2,MATCH(回答数!$A55,raw!$2:$2,0)-1,COUNTA(raw!$A:$A)-1,1),回答数!$B55, OFFSET(raw!$A$1,2,MATCH($D$1,raw!$2:$2,0)-1,COUNTA(raw!$A:$A)-1,1),K$2) -> 19 | L55: =COUNTIFS( OFFSET(raw!$A$1,2,MATCH(回答数!$A55,raw!$2:$2,0)-1,COUNTA(raw!$A:$A)-1,1),回答数!$B55, OFFSET(raw!$A$1,2,MATCH($D$1,raw!$2:$2,0)-1,COUNTA(raw!$A:$A)-1,1),L$2) -> 15 | M55: =COUNTIFS( OFFSET(raw!$A$1,2,MATCH(回答数!$A55,raw!$2:$2,0)-1,COUNTA(raw!$A:$A)-1,1),回答数!$B55, OFFSET(raw!$A$1,2,MATCH($D$1,raw!$2:$2,0)-1,COUNTA(raw!$A:$A)-1,1),M$2) -> 4 | N55: =COUNTIFS( OFFSET(raw!$A$1,2,MATCH(回答数!$A55,raw!$2:$2,0)-1,COUNTA(raw!$A:$A)-1,1),回答数!$B55, OFFSET(raw!$A$1,2,MATCH($D$1,raw!$2:$2,0)-1,COUNTA(raw!$A:$A)-1,1),N$2) -> 2 | O55: =COUNTIFS( OFFSET(raw!$A$1,2,MATCH(回答数!$A55,raw!$2:$2,0)-1,COUNTA(raw!$A:$A)-1,1),回答数!$B55, OFFSET(raw!$A$1,2,MATCH($D$1,raw!$2:$2,0)-1,COUNTA(raw!$A:$A)-1,1),O$2) -> 2 | P55: 68
A56: 回答エリア | B56: 道の駅「若狭おばま」 エリア | D56: =COUNTIFS( OFFSET(raw!$A$1,2,MATCH(回答数!$A56,raw!$2:$2,0)-1,COUNTA(raw!$A:$A)-1,1),回答数!$B56, OFFSET(raw!$A$1,2,MATCH($D$1,raw!$2:$2,0)-1,COUNTA(raw!$A:$A)-1,1),D$2) -> 5 | E56: =COUNTIFS( OFFSET(raw!$A$1,2,MATCH(回答数!$A56,raw!$2:$2,0)-1,COUNTA(raw!$A:$A)-1,1),回答数!$B56, OFFSET(raw!$A$1,2,MATCH($D$1,raw!$2:$2,0)-1,COUNTA(raw!$A:$A)-1,1),E$2) -> 49 | F56: =COUNTIFS( OFFSET(raw!$A$1,2,MATCH(回答数!$A56,raw!$2:$2,0)-1,COUNTA(raw!$A:$A)-1,1),回答数!$B56, OFFSET(raw!$A$1,2,MATCH($D$1,raw!$2:$2,0)-1,COUNTA(raw!$A:$A)-1,1),F$2) -> 34 | G56: =COUNTIFS( OFFSET(raw!$A$1,2,MATCH(回答数!$A56,raw!$2:$2,0)-1,COUNTA(raw!$A:$A)-1,1),回答数!$B56, OFFSET(raw!$A$1,2,MATCH($D$1,raw!$2:$2,0)-1,COUNTA(raw!$A:$A)-1,1),G$2) -> 53 | H56: =COUNTIFS( OFFSET(raw!$A$1,2,MATCH(回答数!$A56,raw!$2:$2,0)-1,COUNTA(raw!$A:$A)-1,1),回答数!$B56, OFFSET(raw!$A$1,2,MATCH($D$1,raw!$2:$2,0)-1,COUNTA(raw!$A:$A)-1,1),H$2) -> 33 | I56: =COUNTIFS( OFFSET(raw!$A$1,2,MATCH(回答数!$A56,raw!$2:$2,0)-1,COUNTA(raw!$A:$A)-1,1),回答数!$B56, OFFSET(raw!$A$1,2,MATCH($D$1,raw!$2:$2,0)-1,COUNTA(raw!$A:$A)-1,1),I$2) -> 23 | J56: =COUNTIFS( OFFSET(raw!$A$1,2,MATCH(回答数!$A56,raw!$2:$2,0)-1,COUNTA(raw!$A:$A)-1,1),回答数!$B56, OFFSET(raw!$A$1,2,MATCH($D$1,raw!$2:$2,0)-1,COUNTA(raw!$A:$A)-1,1),J$2) -> 28 | K56: =COUNTIFS( OFFSET(raw!$A$1,2,MATCH(回答数!$A56,raw!$2:$2,0)-1,COUNTA(raw!$A:$A)-1,1),回答数!$B56, OFFSET(raw!$A$1,2,MATCH($D$1,raw!$2:$2,0)-1,COUNTA(raw!$A:$A)-1,1),K$2) -> 62 | L56: =COUNTIFS( OFFSET(raw!$A$1,2,MATCH(回答数!$A56,raw!$2:$2,0)-1,COUNTA(raw!$A:$A)-1,1),回答数!$B56, OFFSET(raw!$A$1,2,MATCH($D$1,raw!$2:$2,0)-1,COUNTA(raw!$A:$A)-1,1),L$2) -> 32 | M56: =COUNTIFS( OFFSET(raw!$A$1,2,MATCH(回答数!$A56,raw!$2:$2,0)-1,COUNTA(raw!$A:$A)-1,1),回答数!$B56, OFFSET(raw!$A$1,2,MATCH($D$1,raw!$2:$2,0)-1,COUNTA(raw!$A:$A)-1,1),M$2) -> 36 | N56: =COUNTIFS( OFFSET(raw!$A$1,2,MATCH(回答数!$A56,raw!$2:$2,0)-1,COUNTA(raw!$A:$A)-1,1),回答数!$B56, OFFSET(raw!$A$1,2,MATCH($D$1,raw!$2:$2,0)-1,COUNTA(raw!$A:$A)-1,1),N$2) -> 9 | O56: =COUNTIFS( OFFSET(raw!$A$1,2,MATCH(回答数!$A56,raw!$2:$2,0)-1,COUNTA(raw!$A:$A)-1,1),回答数!$B56, OFFSET(raw!$A$1,2,MATCH($D$1,raw!$2:$2,0)-1,COUNTA(raw!$A:$A)-1,1),O$2) -> 6 | P56: 370
A57: 回答エリア | B57: 小浜町家ステイ エリア | D57: =COUNTIFS( OFFSET(raw!$A$1,2,MATCH(回答数!$A57,raw!$2:$2,0)-1,COUNTA(raw!$A:$A)-1,1),回答数!$B57, OFFSET(raw!$A$1,2,MATCH($D$1,raw!$2:$2,0)-1,COUNTA(raw!$A:$A)-1,1),D$2) -> 0 | E57: =COUNTIFS( OFFSET(raw!$A$1,2,MATCH(回答数!$A57,raw!$2:$2,0)-1,COUNTA(raw!$A:$A)-1,1),回答数!$B57, OFFSET(raw!$A$1,2,MATCH($D$1,raw!$2:$2,0)-1,COUNTA(raw!$A:$A)-1,1),E$2) -> 1 | F57: =COUNTIFS( OFFSET(raw!$A$1,2,MATCH(回答数!$A57,raw!$2:$2,0)-1,COUNTA(raw!$A:$A)-1,1),回答数!$B57, OFFSET(raw!$A$1,2,MATCH($D$1,raw!$2:$2,0)-1,COUNTA(raw!$A:$A)-1,1),F$2) -> 0 | G57: =COUNTIFS( OFFSET(raw!$A$1,2,MATCH(回答数!$A57,raw!$2:$2,0)-1,COUNTA(raw!$A:$A)-1,1),回答数!$B57, OFFSET(raw!$A$1,2,MATCH($D$1,raw!$2:$2,0)-1,COUNTA(raw!$A:$A)-1,1),G$2) -> 2 | H57: =COUNTIFS( OFFSET(raw!$A$1,2,MATCH(回答数!$A57,raw!$2:$2,0)-1,COUNTA(raw!$A:$A)-1,1),回答数!$B57, OFFSET(raw!$A$1,2,MATCH($D$1,raw!$2:$2,0)-1,COUNTA(raw!$A:$A)-1,1),H$2) -> 8 | I57: =COUNTIFS( OFFSET(raw!$A$1,2,MATCH(回答数!$A57,raw!$2:$2,0)-1,COUNTA(raw!$A:$A)-1,1),回答数!$B57, OFFSET(raw!$A$1,2,MATCH($D$1,raw!$2:$2,0)-1,COUNTA(raw!$A:$A)-1,1),I$2) -> 2 | J57: =COUNTIFS( OFFSET(raw!$A$1,2,MATCH(回答数!$A57,raw!$2:$2,0)-1,COUNTA(raw!$A:$A)-1,1),回答数!$B57, OFFSET(raw!$A$1,2,MATCH($D$1,raw!$2:$2,0)-1,COUNTA(raw!$A:$A)-1,1),J$2) -> 6 | K57: =COUNTIFS( OFFSET(raw!$A$1,2,MATCH(回答数!$A57,raw!$2:$2,0)-1,COUNTA(raw!$A:$A)-1,1),回答数!$B57, OFFSET(raw!$A$1,2,MATCH($D$1,raw!$2:$2,0)-1,COUNTA(raw!$A:$A)-1,1),K$2) -> 17 | L57: =COUNTIFS( OFFSET(raw!$A$1,2,MATCH(回答数!$A57,raw!$2:$2,0)-1,COUNTA(raw!$A:$A)-1,1),回答数!$B57, OFFSET(raw!$A$1,2,MATCH($D$1,raw!$2:$2,0)-1,COUNTA(raw!$A:$A)-1,1),L$2) -> 19 | M57: =COUNTIFS( OFFSET(raw!$A$1,2,MATCH(回答数!$A57,raw!$2:$2,0)-1,COUNTA(raw!$A:$A)-1,1),回答数!$B57, OFFSET(raw!$A$1,2,MATCH($D$1,raw!$2:$2,0)-1,COUNTA(raw!$A:$A)-1,1),M$2) -> 1 | N57: =COUNTIFS( OFFSET(raw!$A$1,2,MATCH(回答数!$A57,raw!$2:$2,0)-1,COUNTA(raw!$A:$A)-1,1),回答数!$B57, OFFSET(raw!$A$1,2,MATCH($D$1,raw!$2:$2,0)-1,COUNTA(raw!$A:$A)-1,1),N$2) -> 4 | O57: =COUNTIFS( OFFSET(raw!$A$1,2,MATCH(回答数!$A57,raw!$2:$2,0)-1,COUNTA(raw!$A:$A)-1,1),回答数!$B57, OFFSET(raw!$A$1,2,MATCH($D$1,raw!$2:$2,0)-1,COUNTA(raw!$A:$A)-1,1),O$2) -> 4 | P57: 64
A58: 回答エリア | B58: 若狭フィッシャーマンズワーフ エリア | D58: =COUNTIFS( OFFSET(raw!$A$1,2,MATCH(回答数!$A58,raw!$2:$2,0)-1,COUNTA(raw!$A:$A)-1,1),回答数!$B58, OFFSET(raw!$A$1,2,MATCH($D$1,raw!$2:$2,0)-1,COUNTA(raw!$A:$A)-1,1),D$2) -> 3 | E58: =COUNTIFS( OFFSET(raw!$A$1,2,MATCH(回答数!$A58,raw!$2:$2,0)-1,COUNTA(raw!$A:$A)-1,1),回答数!$B58, OFFSET(raw!$A$1,2,MATCH($D$1,raw!$2:$2,0)-1,COUNTA(raw!$A:$A)-1,1),E$2) -> 31 | F58: =COUNTIFS( OFFSET(raw!$A$1,2,MATCH(回答数!$A58,raw!$2:$2,0)-1,COUNTA(raw!$A:$A)-1,1),回答数!$B58, OFFSET(raw!$A$1,2,MATCH($D$1,raw!$2:$2,0)-1,COUNTA(raw!$A:$A)-1,1),F$2) -> 19 | G58: =COUNTIFS( OFFSET(raw!$A$1,2,MATCH(回答数!$A58,raw!$2:$2,0)-1,COUNTA(raw!$A:$A)-1,1),回答数!$B58, OFFSET(raw!$A$1,2,MATCH($D$1,raw!$2:$2,0)-1,COUNTA(raw!$A:$A)-1,1),G$2) -> 16 | H58: =COUNTIFS( OFFSET(raw!$A$1,2,MATCH(回答数!$A58,raw!$2:$2,0)-1,COUNTA(raw!$A:$A)-1,1),回答数!$B58, OFFSET(raw!$A$1,2,MATCH($D$1,raw!$2:$2,0)-1,COUNTA(raw!$A:$A)-1,1),H$2) -> 16 | I58: =COUNTIFS( OFFSET(raw!$A$1,2,MATCH(回答数!$A58,raw!$2:$2,0)-1,COUNTA(raw!$A:$A)-1,1),回答数!$B58, OFFSET(raw!$A$1,2,MATCH($D$1,raw!$2:$2,0)-1,COUNTA(raw!$A:$A)-1,1),I$2) -> 16 | J58: =COUNTIFS( OFFSET(raw!$A$1,2,MATCH(回答数!$A58,raw!$2:$2,0)-1,COUNTA(raw!$A:$A)-1,1),回答数!$B58, OFFSET(raw!$A$1,2,MATCH($D$1,raw!$2:$2,0)-1,COUNTA(raw!$A:$A)-1,1),J$2) -> 30 | K58: =COUNTIFS( OFFSET(raw!$A$1,2,MATCH(回答数!$A58,raw!$2:$2,0)-1,COUNTA(raw!$A:$A)-1,1),回答数!$B58, OFFSET(raw!$A$1,2,MATCH($D$1,raw!$2:$2,0)-1,COUNTA(raw!$A:$A)-1,1),K$2) -> 49 | L58: =COUNTIFS( OFFSET(raw!$A$1,2,MATCH(回答数!$A58,raw!$2:$2,0)-1,COUNTA(raw!$A:$A)-1,1),回答数!$B58, OFFSET(raw!$A$1,2,MATCH($D$1,raw!$2:$2,0)-1,COUNTA(raw!$A:$A)-1,1),L$2) -> 25 | M58: =COUNTIFS( OFFSET(raw!$A$1,2,MATCH(回答数!$A58,raw!$2:$2,0)-1,COUNTA(raw!$A:$A)-1,1),回答数!$B58, OFFSET(raw!$A$1,2,MATCH($D$1,raw!$2:$2,0)-1,COUNTA(raw!$A:$A)-1,1),M$2) -> 14 | N58: =COUNTIFS( OFFSET(raw!$A$1,2,MATCH(回答数!$A58,raw!$2:$2,0)-1,COUNTA(raw!$A:$A)-1,1),回答数!$B58, OFFSET(raw!$A$1,2,MATCH($D$1,raw!$2:$2,0)-1,COUNTA(raw!$A:$A)-1,1),N$2) -> 16 | O58: =COUNTIFS( OFFSET(raw!$A$1,2,MATCH(回答数!$A58,raw!$2:$2,0)-1,COUNTA(raw!$A:$A)-1,1),回答数!$B58, OFFSET(raw!$A$1,2,MATCH($D$1,raw!$2:$2,0)-1,COUNTA(raw!$A:$A)-1,1),O$2) -> 12 | P58: 247
A59: 回答エリア | B59: 御食国若狭おばま食文化館 エリア | D59: =COUNTIFS( OFFSET(raw!$A$1,2,MATCH(回答数!$A59,raw!$2:$2,0)-1,COUNTA(raw!$A:$A)-1,1),回答数!$B59, OFFSET(raw!$A$1,2,MATCH($D$1,raw!$2:$2,0)-1,COUNTA(raw!$A:$A)-1,1),D$2) -> 1 | E59: =COUNTIFS( OFFSET(raw!$A$1,2,MATCH(回答数!$A59,raw!$2:$2,0)-1,COUNTA(raw!$A:$A)-1,1),回答数!$B59, OFFSET(raw!$A$1,2,MATCH($D$1,raw!$2:$2,0)-1,COUNTA(raw!$A:$A)-1,1),E$2) -> 23 | F59: =COUNTIFS( OFFSET(raw!$A$1,2,MATCH(回答数!$A59,raw!$2:$2,0)-1,COUNTA(raw!$A:$A)-1,1),回答数!$B59, OFFSET(raw!$A$1,2,MATCH($D$1,raw!$2:$2,0)-1,COUNTA(raw!$A:$A)-1,1),F$2) -> 13 | G59: =COUNTIFS( OFFSET(raw!$A$1,2,MATCH(回答数!$A59,raw!$2:$2,0)-1,COUNTA(raw!$A:$A)-1,1),回答数!$B59, OFFSET(raw!$A$1,2,MATCH($D$1,raw!$2:$2,0)-1,COUNTA(raw!$A:$A)-1,1),G$2) -> 14 | H59: =COUNTIFS( OFFSET(raw!$A$1,2,MATCH(回答数!$A59,raw!$2:$2,0)-1,COUNTA(raw!$A:$A)-1,1),回答数!$B59, OFFSET(raw!$A$1,2,MATCH($D$1,raw!$2:$2,0)-1,COUNTA(raw!$A:$A)-1,1),H$2) -> 15 | I59: =COUNTIFS( OFFSET(raw!$A$1,2,MATCH(回答数!$A59,raw!$2:$2,0)-1,COUNTA(raw!$A:$A)-1,1),回答数!$B59, OFFSET(raw!$A$1,2,MATCH($D$1,raw!$2:$2,0)-1,COUNTA(raw!$A:$A)-1,1),I$2) -> 14 | J59: =COUNTIFS( OFFSET(raw!$A$1,2,MATCH(回答数!$A59,raw!$2:$2,0)-1,COUNTA(raw!$A:$A)-1,1),回答数!$B59, OFFSET(raw!$A$1,2,MATCH($D$1,raw!$2:$2,0)-1,COUNTA(raw!$A:$A)-1,1),J$2) -> 35 | K59: =COUNTIFS( OFFSET(raw!$A$1,2,MATCH(回答数!$A59,raw!$2:$2,0)-1,COUNTA(raw!$A:$A)-1,1),回答数!$B59, OFFSET(raw!$A$1,2,MATCH($D$1,raw!$2:$2,0)-1,COUNTA(raw!$A:$A)-1,1),K$2) -> 43 | L59: =COUNTIFS( OFFSET(raw!$A$1,2,MATCH(回答数!$A59,raw!$2:$2,0)-1,COUNTA(raw!$A:$A)-1,1),回答数!$B59, OFFSET(raw!$A$1,2,MATCH($D$1,raw!$2:$2,0)-1,COUNTA(raw!$A:$A)-1,1),L$2) -> 23 | M59: =COUNTIFS( OFFSET(raw!$A$1,2,MATCH(回答数!$A59,raw!$2:$2,0)-1,COUNTA(raw!$A:$A)-1,1),回答数!$B59, OFFSET(raw!$A$1,2,MATCH($D$1,raw!$2:$2,0)-1,COUNTA(raw!$A:$A)-1,1),M$2) -> 11 | N59: =COUNTIFS( OFFSET(raw!$A$1,2,MATCH(回答数!$A59,raw!$2:$2,0)-1,COUNTA(raw!$A:$A)-1,1),回答数!$B59, OFFSET(raw!$A$1,2,MATCH($D$1,raw!$2:$2,0)-1,COUNTA(raw!$A:$A)-1,1),N$2) -> 7 | O59: =COUNTIFS( OFFSET(raw!$A$1,2,MATCH(回答数!$A59,raw!$2:$2,0)-1,COUNTA(raw!$A:$A)-1,1),回答数!$B59, OFFSET(raw!$A$1,2,MATCH($D$1,raw!$2:$2,0)-1,COUNTA(raw!$A:$A)-1,1),O$2) -> 7 | P59: 206
A60: 回答エリア | B60: 福井県立若狭歴史博物館 エリア | D60: =COUNTIFS( OFFSET(raw!$A$1,2,MATCH(回答数!$A60,raw!$2:$2,0)-1,COUNTA(raw!$A:$A)-1,1),回答数!$B60, OFFSET(raw!$A$1,2,MATCH($D$1,raw!$2:$2,0)-1,COUNTA(raw!$A:$A)-1,1),D$2) -> 1 | E60: =COUNTIFS( OFFSET(raw!$A$1,2,MATCH(回答数!$A60,raw!$2:$2,0)-1,COUNTA(raw!$A:$A)-1,1),回答数!$B60, OFFSET(raw!$A$1,2,MATCH($D$1,raw!$2:$2,0)-1,COUNTA(raw!$A:$A)-1,1),E$2) -> 7 | F60: =COUNTIFS( OFFSET(raw!$A$1,2,MATCH(回答数!$A60,raw!$2:$2,0)-1,COUNTA(raw!$A:$A)-1,1),回答数!$B60, OFFSET(raw!$A$1,2,MATCH($D$1,raw!$2:$2,0)-1,COUNTA(raw!$A:$A)-1,1),F$2) -> 1 | G60: =COUNTIFS( OFFSET(raw!$A$1,2,MATCH(回答数!$A60,raw!$2:$2,0)-1,COUNTA(raw!$A:$A)-1,1),回答数!$B60, OFFSET(raw!$A$1,2,MATCH($D$1,raw!$2:$2,0)-1,COUNTA(raw!$A:$A)-1,1),G$2) -> 2 | H60: =COUNTIFS( OFFSET(raw!$A$1,2,MATCH(回答数!$A60,raw!$2:$2,0)-1,COUNTA(raw!$A:$A)-1,1),回答数!$B60, OFFSET(raw!$A$1,2,MATCH($D$1,raw!$2:$2,0)-1,COUNTA(raw!$A:$A)-1,1),H$2) -> 4 | I60: =COUNTIFS( OFFSET(raw!$A$1,2,MATCH(回答数!$A60,raw!$2:$2,0)-1,COUNTA(raw!$A:$A)-1,1),回答数!$B60, OFFSET(raw!$A$1,2,MATCH($D$1,raw!$2:$2,0)-1,COUNTA(raw!$A:$A)-1,1),I$2) -> 3 | J60: =COUNTIFS( OFFSET(raw!$A$1,2,MATCH(回答数!$A60,raw!$2:$2,0)-1,COUNTA(raw!$A:$A)-1,1),回答数!$B60, OFFSET(raw!$A$1,2,MATCH($D$1,raw!$2:$2,0)-1,COUNTA(raw!$A:$A)-1,1),J$2) -> 9 | K60: =COUNTIFS( OFFSET(raw!$A$1,2,MATCH(回答数!$A60,raw!$2:$2,0)-1,COUNTA(raw!$A:$A)-1,1),回答数!$B60, OFFSET(raw!$A$1,2,MATCH($D$1,raw!$2:$2,0)-1,COUNTA(raw!$A:$A)-1,1),K$2) -> 11 | L60: =COUNTIFS( OFFSET(raw!$A$1,2,MATCH(回答数!$A60,raw!$2:$2,0)-1,COUNTA(raw!$A:$A)-1,1),回答数!$B60, OFFSET(raw!$A$1,2,MATCH($D$1,raw!$2:$2,0)-1,COUNTA(raw!$A:$A)-1,1),L$2) -> 3 | M60: =COUNTIFS( OFFSET(raw!$A$1,2,MATCH(回答数!$A60,raw!$2:$2,0)-1,COUNTA(raw!$A:$A)-1,1),回答数!$B60, OFFSET(raw!$A$1,2,MATCH($D$1,raw!$2:$2,0)-1,COUNTA(raw!$A:$A)-1,1),M$2) -> 5 | N60: =COUNTIFS( OFFSET(raw!$A$1,2,MATCH(回答数!$A60,raw!$2:$2,0)-1,COUNTA(raw!$A:$A)-1,1),回答数!$B60, OFFSET(raw!$A$1,2,MATCH($D$1,raw!$2:$2,0)-1,COUNTA(raw!$A:$A)-1,1),N$2) -> 0 | O60: =COUNTIFS( OFFSET(raw!$A$1,2,MATCH(回答数!$A60,raw!$2:$2,0)-1,COUNTA(raw!$A:$A)-1,1),回答数!$B60, OFFSET(raw!$A$1,2,MATCH($D$1,raw!$2:$2,0)-1,COUNTA(raw!$A:$A)-1,1),O$2) -> 2 | P60: 48
A61: 回答エリア | B61: 小浜市まちの駅 エリア | D61: =COUNTIFS( OFFSET(raw!$A$1,2,MATCH(回答数!$A61,raw!$2:$2,0)-1,COUNTA(raw!$A:$A)-1,1),回答数!$B61, OFFSET(raw!$A$1,2,MATCH($D$1,raw!$2:$2,0)-1,COUNTA(raw!$A:$A)-1,1),D$2) -> 0 | E61: =COUNTIFS( OFFSET(raw!$A$1,2,MATCH(回答数!$A61,raw!$2:$2,0)-1,COUNTA(raw!$A:$A)-1,1),回答数!$B61, OFFSET(raw!$A$1,2,MATCH($D$1,raw!$2:$2,0)-1,COUNTA(raw!$A:$A)-1,1),E$2) -> 14 | F61: =COUNTIFS( OFFSET(raw!$A$1,2,MATCH(回答数!$A61,raw!$2:$2,0)-1,COUNTA(raw!$A:$A)-1,1),回答数!$B61, OFFSET(raw!$A$1,2,MATCH($D$1,raw!$2:$2,0)-1,COUNTA(raw!$A:$A)-1,1),F$2) -> 6 | G61: =COUNTIFS( OFFSET(raw!$A$1,2,MATCH(回答数!$A61,raw!$2:$2,0)-1,COUNTA(raw!$A:$A)-1,1),回答数!$B61, OFFSET(raw!$A$1,2,MATCH($D$1,raw!$2:$2,0)-1,COUNTA(raw!$A:$A)-1,1),G$2) -> 4 | H61: =COUNTIFS( OFFSET(raw!$A$1,2,MATCH(回答数!$A61,raw!$2:$2,0)-1,COUNTA(raw!$A:$A)-1,1),回答数!$B61, OFFSET(raw!$A$1,2,MATCH($D$1,raw!$2:$2,0)-1,COUNTA(raw!$A:$A)-1,1),H$2) -> 5 | I61: =COUNTIFS( OFFSET(raw!$A$1,2,MATCH(回答数!$A61,raw!$2:$2,0)-1,COUNTA(raw!$A:$A)-1,1),回答数!$B61, OFFSET(raw!$A$1,2,MATCH($D$1,raw!$2:$2,0)-1,COUNTA(raw!$A:$A)-1,1),I$2) -> 6 | J61: =COUNTIFS( OFFSET(raw!$A$1,2,MATCH(回答数!$A61,raw!$2:$2,0)-1,COUNTA(raw!$A:$A)-1,1),回答数!$B61, OFFSET(raw!$A$1,2,MATCH($D$1,raw!$2:$2,0)-1,COUNTA(raw!$A:$A)-1,1),J$2) -> 18 | K61: =COUNTIFS( OFFSET(raw!$A$1,2,MATCH(回答数!$A61,raw!$2:$2,0)-1,COUNTA(raw!$A:$A)-1,1),回答数!$B61, OFFSET(raw!$A$1,2,MATCH($D$1,raw!$2:$2,0)-1,COUNTA(raw!$A:$A)-1,1),K$2) -> 18 | L61: =COUNTIFS( OFFSET(raw!$A$1,2,MATCH(回答数!$A61,raw!$2:$2,0)-1,COUNTA(raw!$A:$A)-1,1),回答数!$B61, OFFSET(raw!$A$1,2,MATCH($D$1,raw!$2:$2,0)-1,COUNTA(raw!$A:$A)-1,1),L$2) -> 15 | M61: =COUNTIFS( OFFSET(raw!$A$1,2,MATCH(回答数!$A61,raw!$2:$2,0)-1,COUNTA(raw!$A:$A)-1,1),回答数!$B61, OFFSET(raw!$A$1,2,MATCH($D$1,raw!$2:$2,0)-1,COUNTA(raw!$A:$A)-1,1),M$2) -> 6 | N61: =COUNTIFS( OFFSET(raw!$A$1,2,MATCH(回答数!$A61,raw!$2:$2,0)-1,COUNTA(raw!$A:$A)-1,1),回答数!$B61, OFFSET(raw!$A$1,2,MATCH($D$1,raw!$2:$2,0)-1,COUNTA(raw!$A:$A)-1,1),N$2) -> 11 | O61: =COUNTIFS( OFFSET(raw!$A$1,2,MATCH(回答数!$A61,raw!$2:$2,0)-1,COUNTA(raw!$A:$A)-1,1),回答数!$B61, OFFSET(raw!$A$1,2,MATCH($D$1,raw!$2:$2,0)-1,COUNTA(raw!$A:$A)-1,1),O$2) -> 7 | P61: 110
A62: 回答エリア | B62: 明通寺 エリア | D62: =COUNTIFS( OFFSET(raw!$A$1,2,MATCH(回答数!$A62,raw!$2:$2,0)-1,COUNTA(raw!$A:$A)-1,1),回答数!$B62, OFFSET(raw!$A$1,2,MATCH($D$1,raw!$2:$2,0)-1,COUNTA(raw!$A:$A)-1,1),D$2) -> 0 | E62: =COUNTIFS( OFFSET(raw!$A$1,2,MATCH(回答数!$A62,raw!$2:$2,0)-1,COUNTA(raw!$A:$A)-1,1),回答数!$B62, OFFSET(raw!$A$1,2,MATCH($D$1,raw!$2:$2,0)-1,COUNTA(raw!$A:$A)-1,1),E$2) -> 2 | F62: =COUNTIFS( OFFSET(raw!$A$1,2,MATCH(回答数!$A62,raw!$2:$2,0)-1,COUNTA(raw!$A:$A)-1,1),回答数!$B62, OFFSET(raw!$A$1,2,MATCH($D$1,raw!$2:$2,0)-1,COUNTA(raw!$A:$A)-1,1),F$2) -> 0 | G62: =COUNTIFS( OFFSET(raw!$A$1,2,MATCH(回答数!$A62,raw!$2:$2,0)-1,COUNTA(raw!$A:$A)-1,1),回答数!$B62, OFFSET(raw!$A$1,2,MATCH($D$1,raw!$2:$2,0)-1,COUNTA(raw!$A:$A)-1,1),G$2) -> 0 | H62: =COUNTIFS( OFFSET(raw!$A$1,2,MATCH(回答数!$A62,raw!$2:$2,0)-1,COUNTA(raw!$A:$A)-1,1),回答数!$B62, OFFSET(raw!$A$1,2,MATCH($D$1,raw!$2:$2,0)-1,COUNTA(raw!$A:$A)-1,1),H$2) -> 8 | I62: =COUNTIFS( OFFSET(raw!$A$1,2,MATCH(回答数!$A62,raw!$2:$2,0)-1,COUNTA(raw!$A:$A)-1,1),回答数!$B62, OFFSET(raw!$A$1,2,MATCH($D$1,raw!$2:$2,0)-1,COUNTA(raw!$A:$A)-1,1),I$2) -> 8 | J62: =COUNTIFS( OFFSET(raw!$A$1,2,MATCH(回答数!$A62,raw!$2:$2,0)-1,COUNTA(raw!$A:$A)-1,1),回答数!$B62, OFFSET(raw!$A$1,2,MATCH($D$1,raw!$2:$2,0)-1,COUNTA(raw!$A:$A)-1,1),J$2) -> 13 | K62: =COUNTIFS( OFFSET(raw!$A$1,2,MATCH(回答数!$A62,raw!$2:$2,0)-1,COUNTA(raw!$A:$A)-1,1),回答数!$B62, OFFSET(raw!$A$1,2,MATCH($D$1,raw!$2:$2,0)-1,COUNTA(raw!$A:$A)-1,1),K$2) -> 7 | L62: =COUNTIFS( OFFSET(raw!$A$1,2,MATCH(回答数!$A62,raw!$2:$2,0)-1,COUNTA(raw!$A:$A)-1,1),回答数!$B62, OFFSET(raw!$A$1,2,MATCH($D$1,raw!$2:$2,0)-1,COUNTA(raw!$A:$A)-1,1),L$2) -> 2 | M62: =COUNTIFS( OFFSET(raw!$A$1,2,MATCH(回答数!$A62,raw!$2:$2,0)-1,COUNTA(raw!$A:$A)-1,1),回答数!$B62, OFFSET(raw!$A$1,2,MATCH($D$1,raw!$2:$2,0)-1,COUNTA(raw!$A:$A)-1,1),M$2) -> 1 | N62: =COUNTIFS( OFFSET(raw!$A$1,2,MATCH(回答数!$A62,raw!$2:$2,0)-1,COUNTA(raw!$A:$A)-1,1),回答数!$B62, OFFSET(raw!$A$1,2,MATCH($D$1,raw!$2:$2,0)-1,COUNTA(raw!$A:$A)-1,1),N$2) -> 0 | O62: =COUNTIFS( OFFSET(raw!$A$1,2,MATCH(回答数!$A62,raw!$2:$2,0)-1,COUNTA(raw!$A:$A)-1,1),回答数!$B62, OFFSET(raw!$A$1,2,MATCH($D$1,raw!$2:$2,0)-1,COUNTA(raw!$A:$A)-1,1),O$2) -> 0 | P62: 41
A63: 回答エリア | B63: 箸のふるさと館WAKASA エリア | D63: =COUNTIFS( OFFSET(raw!$A$1,2,MATCH(回答数!$A63,raw!$2:$2,0)-1,COUNTA(raw!$A:$A)-1,1),回答数!$B63, OFFSET(raw!$A$1,2,MATCH($D$1,raw!$2:$2,0)-1,COUNTA(raw!$A:$A)-1,1),D$2) -> 1 | E63: =COUNTIFS( OFFSET(raw!$A$1,2,MATCH(回答数!$A63,raw!$2:$2,0)-1,COUNTA(raw!$A:$A)-1,1),回答数!$B63, OFFSET(raw!$A$1,2,MATCH($D$1,raw!$2:$2,0)-1,COUNTA(raw!$A:$A)-1,1),E$2) -> 4 | F63: =COUNTIFS( OFFSET(raw!$A$1,2,MATCH(回答数!$A63,raw!$2:$2,0)-1,COUNTA(raw!$A:$A)-1,1),回答数!$B63, OFFSET(raw!$A$1,2,MATCH($D$1,raw!$2:$2,0)-1,COUNTA(raw!$A:$A)-1,1),F$2) -> 1 | G63: =COUNTIFS( OFFSET(raw!$A$1,2,MATCH(回答数!$A63,raw!$2:$2,0)-1,COUNTA(raw!$A:$A)-1,1),回答数!$B63, OFFSET(raw!$A$1,2,MATCH($D$1,raw!$2:$2,0)-1,COUNTA(raw!$A:$A)-1,1),G$2) -> 3 | H63: =COUNTIFS( OFFSET(raw!$A$1,2,MATCH(回答数!$A63,raw!$2:$2,0)-1,COUNTA(raw!$A:$A)-1,1),回答数!$B63, OFFSET(raw!$A$1,2,MATCH($D$1,raw!$2:$2,0)-1,COUNTA(raw!$A:$A)-1,1),H$2) -> 2 | I63: =COUNTIFS( OFFSET(raw!$A$1,2,MATCH(回答数!$A63,raw!$2:$2,0)-1,COUNTA(raw!$A:$A)-1,1),回答数!$B63, OFFSET(raw!$A$1,2,MATCH($D$1,raw!$2:$2,0)-1,COUNTA(raw!$A:$A)-1,1),I$2) -> 7 | J63: =COUNTIFS( OFFSET(raw!$A$1,2,MATCH(回答数!$A63,raw!$2:$2,0)-1,COUNTA(raw!$A:$A)-1,1),回答数!$B63, OFFSET(raw!$A$1,2,MATCH($D$1,raw!$2:$2,0)-1,COUNTA(raw!$A:$A)-1,1),J$2) -> 5 | K63: =COUNTIFS( OFFSET(raw!$A$1,2,MATCH(回答数!$A63,raw!$2:$2,0)-1,COUNTA(raw!$A:$A)-1,1),回答数!$B63, OFFSET(raw!$A$1,2,MATCH($D$1,raw!$2:$2,0)-1,COUNTA(raw!$A:$A)-1,1),K$2) -> 7 | L63: =COUNTIFS( OFFSET(raw!$A$1,2,MATCH(回答数!$A63,raw!$2:$2,0)-1,COUNTA(raw!$A:$A)-1,1),回答数!$B63, OFFSET(raw!$A$1,2,MATCH($D$1,raw!$2:$2,0)-1,COUNTA(raw!$A:$A)-1,1),L$2) -> 4 | M63: =COUNTIFS( OFFSET(raw!$A$1,2,MATCH(回答数!$A63,raw!$2:$2,0)-1,COUNTA(raw!$A:$A)-1,1),回答数!$B63, OFFSET(raw!$A$1,2,MATCH($D$1,raw!$2:$2,0)-1,COUNTA(raw!$A:$A)-1,1),M$2) -> 1 | N63: =COUNTIFS( OFFSET(raw!$A$1,2,MATCH(回答数!$A63,raw!$2:$2,0)-1,COUNTA(raw!$A:$A)-1,1),回答数!$B63, OFFSET(raw!$A$1,2,MATCH($D$1,raw!$2:$2,0)-1,COUNTA(raw!$A:$A)-1,1),N$2) -> 1 | O63: =COUNTIFS( OFFSET(raw!$A$1,2,MATCH(回答数!$A63,raw!$2:$2,0)-1,COUNTA(raw!$A:$A)-1,1),回答数!$B63, OFFSET(raw!$A$1,2,MATCH($D$1,raw!$2:$2,0)-1,COUNTA(raw!$A:$A)-1,1),O$2) -> 2 | P63: 38
A64: 回答エリア | B64: レインボーライン エリア | D64: =COUNTIFS( OFFSET(raw!$A$1,2,MATCH(回答数!$A64,raw!$2:$2,0)-1,COUNTA(raw!$A:$A)-1,1),回答数!$B64, OFFSET(raw!$A$1,2,MATCH($D$1,raw!$2:$2,0)-1,COUNTA(raw!$A:$A)-1,1),D$2) -> 21 | E64: =COUNTIFS( OFFSET(raw!$A$1,2,MATCH(回答数!$A64,raw!$2:$2,0)-1,COUNTA(raw!$A:$A)-1,1),回答数!$B64, OFFSET(raw!$A$1,2,MATCH($D$1,raw!$2:$2,0)-1,COUNTA(raw!$A:$A)-1,1),E$2) -> 191 | F64: =COUNTIFS( OFFSET(raw!$A$1,2,MATCH(回答数!$A64,raw!$2:$2,0)-1,COUNTA(raw!$A:$A)-1,1),回答数!$B64, OFFSET(raw!$A$1,2,MATCH($D$1,raw!$2:$2,0)-1,COUNTA(raw!$A:$A)-1,1),F$2) -> 51 | G64: =COUNTIFS( OFFSET(raw!$A$1,2,MATCH(回答数!$A64,raw!$2:$2,0)-1,COUNTA(raw!$A:$A)-1,1),回答数!$B64, OFFSET(raw!$A$1,2,MATCH($D$1,raw!$2:$2,0)-1,COUNTA(raw!$A:$A)-1,1),G$2) -> 27 | H64: =COUNTIFS( OFFSET(raw!$A$1,2,MATCH(回答数!$A64,raw!$2:$2,0)-1,COUNTA(raw!$A:$A)-1,1),回答数!$B64, OFFSET(raw!$A$1,2,MATCH($D$1,raw!$2:$2,0)-1,COUNTA(raw!$A:$A)-1,1),H$2) -> 33 | I64: =COUNTIFS( OFFSET(raw!$A$1,2,MATCH(回答数!$A64,raw!$2:$2,0)-1,COUNTA(raw!$A:$A)-1,1),回答数!$B64, OFFSET(raw!$A$1,2,MATCH($D$1,raw!$2:$2,0)-1,COUNTA(raw!$A:$A)-1,1),I$2) -> 29 | J64: =COUNTIFS( OFFSET(raw!$A$1,2,MATCH(回答数!$A64,raw!$2:$2,0)-1,COUNTA(raw!$A:$A)-1,1),回答数!$B64, OFFSET(raw!$A$1,2,MATCH($D$1,raw!$2:$2,0)-1,COUNTA(raw!$A:$A)-1,1),J$2) -> 43 | K64: =COUNTIFS( OFFSET(raw!$A$1,2,MATCH(回答数!$A64,raw!$2:$2,0)-1,COUNTA(raw!$A:$A)-1,1),回答数!$B64, OFFSET(raw!$A$1,2,MATCH($D$1,raw!$2:$2,0)-1,COUNTA(raw!$A:$A)-1,1),K$2) -> 49 | L64: =COUNTIFS( OFFSET(raw!$A$1,2,MATCH(回答数!$A64,raw!$2:$2,0)-1,COUNTA(raw!$A:$A)-1,1),回答数!$B64, OFFSET(raw!$A$1,2,MATCH($D$1,raw!$2:$2,0)-1,COUNTA(raw!$A:$A)-1,1),L$2) -> 26 | M64: =COUNTIFS( OFFSET(raw!$A$1,2,MATCH(回答数!$A64,raw!$2:$2,0)-1,COUNTA(raw!$A:$A)-1,1),回答数!$B64, OFFSET(raw!$A$1,2,MATCH($D$1,raw!$2:$2,0)-1,COUNTA(raw!$A:$A)-1,1),M$2) -> 10 | N64: =COUNTIFS( OFFSET(raw!$A$1,2,MATCH(回答数!$A64,raw!$2:$2,0)-1,COUNTA(raw!$A:$A)-1,1),回答数!$B64, OFFSET(raw!$A$1,2,MATCH($D$1,raw!$2:$2,0)-1,COUNTA(raw!$A:$A)-1,1),N$2) -> 16 | O64: =COUNTIFS( OFFSET(raw!$A$1,2,MATCH(回答数!$A64,raw!$2:$2,0)-1,COUNTA(raw!$A:$A)-1,1),回答数!$B64, OFFSET(raw!$A$1,2,MATCH($D$1,raw!$2:$2,0)-1,COUNTA(raw!$A:$A)-1,1),O$2) -> 6 | P64: 502
A65: 回答エリア | B65: 若狭海遊バザール 千鳥苑 エリア | D65: =COUNTIFS( OFFSET(raw!$A$1,2,MATCH(回答数!$A65,raw!$2:$2,0)-1,COUNTA(raw!$A:$A)-1,1),回答数!$B65, OFFSET(raw!$A$1,2,MATCH($D$1,raw!$2:$2,0)-1,COUNTA(raw!$A:$A)-1,1),D$2) -> 2 | E65: =COUNTIFS( OFFSET(raw!$A$1,2,MATCH(回答数!$A65,raw!$2:$2,0)-1,COUNTA(raw!$A:$A)-1,1),回答数!$B65, OFFSET(raw!$A$1,2,MATCH($D$1,raw!$2:$2,0)-1,COUNTA(raw!$A:$A)-1,1),E$2) -> 14 | F65: =COUNTIFS( OFFSET(raw!$A$1,2,MATCH(回答数!$A65,raw!$2:$2,0)-1,COUNTA(raw!$A:$A)-1,1),回答数!$B65, OFFSET(raw!$A$1,2,MATCH($D$1,raw!$2:$2,0)-1,COUNTA(raw!$A:$A)-1,1),F$2) -> 4 | G65: =COUNTIFS( OFFSET(raw!$A$1,2,MATCH(回答数!$A65,raw!$2:$2,0)-1,COUNTA(raw!$A:$A)-1,1),回答数!$B65, OFFSET(raw!$A$1,2,MATCH($D$1,raw!$2:$2,0)-1,COUNTA(raw!$A:$A)-1,1),G$2) -> 10 | H65: =COUNTIFS( OFFSET(raw!$A$1,2,MATCH(回答数!$A65,raw!$2:$2,0)-1,COUNTA(raw!$A:$A)-1,1),回答数!$B65, OFFSET(raw!$A$1,2,MATCH($D$1,raw!$2:$2,0)-1,COUNTA(raw!$A:$A)-1,1),H$2) -> 7 | I65: =COUNTIFS( OFFSET(raw!$A$1,2,MATCH(回答数!$A65,raw!$2:$2,0)-1,COUNTA(raw!$A:$A)-1,1),回答数!$B65, OFFSET(raw!$A$1,2,MATCH($D$1,raw!$2:$2,0)-1,COUNTA(raw!$A:$A)-1,1),I$2) -> 9 | J65: =COUNTIFS( OFFSET(raw!$A$1,2,MATCH(回答数!$A65,raw!$2:$2,0)-1,COUNTA(raw!$A:$A)-1,1),回答数!$B65, OFFSET(raw!$A$1,2,MATCH($D$1,raw!$2:$2,0)-1,COUNTA(raw!$A:$A)-1,1),J$2) -> 9 | K65: =COUNTIFS( OFFSET(raw!$A$1,2,MATCH(回答数!$A65,raw!$2:$2,0)-1,COUNTA(raw!$A:$A)-1,1),回答数!$B65, OFFSET(raw!$A$1,2,MATCH($D$1,raw!$2:$2,0)-1,COUNTA(raw!$A:$A)-1,1),K$2) -> 15 | L65: =COUNTIFS( OFFSET(raw!$A$1,2,MATCH(回答数!$A65,raw!$2:$2,0)-1,COUNTA(raw!$A:$A)-1,1),回答数!$B65, OFFSET(raw!$A$1,2,MATCH($D$1,raw!$2:$2,0)-1,COUNTA(raw!$A:$A)-1,1),L$2) -> 32 | M65: =COUNTIFS( OFFSET(raw!$A$1,2,MATCH(回答数!$A65,raw!$2:$2,0)-1,COUNTA(raw!$A:$A)-1,1),回答数!$B65, OFFSET(raw!$A$1,2,MATCH($D$1,raw!$2:$2,0)-1,COUNTA(raw!$A:$A)-1,1),M$2) -> 10 | N65: =COUNTIFS( OFFSET(raw!$A$1,2,MATCH(回答数!$A65,raw!$2:$2,0)-1,COUNTA(raw!$A:$A)-1,1),回答数!$B65, OFFSET(raw!$A$1,2,MATCH($D$1,raw!$2:$2,0)-1,COUNTA(raw!$A:$A)-1,1),N$2) -> 10 | O65: =COUNTIFS( OFFSET(raw!$A$1,2,MATCH(回答数!$A65,raw!$2:$2,0)-1,COUNTA(raw!$A:$A)-1,1),回答数!$B65, OFFSET(raw!$A$1,2,MATCH($D$1,raw!$2:$2,0)-1,COUNTA(raw!$A:$A)-1,1),O$2) -> 2 | P65: 124
A66: 回答エリア | B66: 五湖の駅 エリア | D66: =COUNTIFS( OFFSET(raw!$A$1,2,MATCH(回答数!$A66,raw!$2:$2,0)-1,COUNTA(raw!$A:$A)-1,1),回答数!$B66, OFFSET(raw!$A$1,2,MATCH($D$1,raw!$2:$2,0)-1,COUNTA(raw!$A:$A)-1,1),D$2) -> 2 | E66: =COUNTIFS( OFFSET(raw!$A$1,2,MATCH(回答数!$A66,raw!$2:$2,0)-1,COUNTA(raw!$A:$A)-1,1),回答数!$B66, OFFSET(raw!$A$1,2,MATCH($D$1,raw!$2:$2,0)-1,COUNTA(raw!$A:$A)-1,1),E$2) -> 22 | F66: =COUNTIFS( OFFSET(raw!$A$1,2,MATCH(回答数!$A66,raw!$2:$2,0)-1,COUNTA(raw!$A:$A)-1,1),回答数!$B66, OFFSET(raw!$A$1,2,MATCH($D$1,raw!$2:$2,0)-1,COUNTA(raw!$A:$A)-1,1),F$2) -> 12 | G66: =COUNTIFS( OFFSET(raw!$A$1,2,MATCH(回答数!$A66,raw!$2:$2,0)-1,COUNTA(raw!$A:$A)-1,1),回答数!$B66, OFFSET(raw!$A$1,2,MATCH($D$1,raw!$2:$2,0)-1,COUNTA(raw!$A:$A)-1,1),G$2) -> 1 | H66: =COUNTIFS( OFFSET(raw!$A$1,2,MATCH(回答数!$A66,raw!$2:$2,0)-1,COUNTA(raw!$A:$A)-1,1),回答数!$B66, OFFSET(raw!$A$1,2,MATCH($D$1,raw!$2:$2,0)-1,COUNTA(raw!$A:$A)-1,1),H$2) -> 8 | I66: =COUNTIFS( OFFSET(raw!$A$1,2,MATCH(回答数!$A66,raw!$2:$2,0)-1,COUNTA(raw!$A:$A)-1,1),回答数!$B66, OFFSET(raw!$A$1,2,MATCH($D$1,raw!$2:$2,0)-1,COUNTA(raw!$A:$A)-1,1),I$2) -> 14 | J66: =COUNTIFS( OFFSET(raw!$A$1,2,MATCH(回答数!$A66,raw!$2:$2,0)-1,COUNTA(raw!$A:$A)-1,1),回答数!$B66, OFFSET(raw!$A$1,2,MATCH($D$1,raw!$2:$2,0)-1,COUNTA(raw!$A:$A)-1,1),J$2) -> 5 | K66: =COUNTIFS( OFFSET(raw!$A$1,2,MATCH(回答数!$A66,raw!$2:$2,0)-1,COUNTA(raw!$A:$A)-1,1),回答数!$B66, OFFSET(raw!$A$1,2,MATCH($D$1,raw!$2:$2,0)-1,COUNTA(raw!$A:$A)-1,1),K$2) -> 12 | L66: =COUNTIFS( OFFSET(raw!$A$1,2,MATCH(回答数!$A66,raw!$2:$2,0)-1,COUNTA(raw!$A:$A)-1,1),回答数!$B66, OFFSET(raw!$A$1,2,MATCH($D$1,raw!$2:$2,0)-1,COUNTA(raw!$A:$A)-1,1),L$2) -> 12 | M66: =COUNTIFS( OFFSET(raw!$A$1,2,MATCH(回答数!$A66,raw!$2:$2,0)-1,COUNTA(raw!$A:$A)-1,1),回答数!$B66, OFFSET(raw!$A$1,2,MATCH($D$1,raw!$2:$2,0)-1,COUNTA(raw!$A:$A)-1,1),M$2) -> 2 | N66: =COUNTIFS( OFFSET(raw!$A$1,2,MATCH(回答数!$A66,raw!$2:$2,0)-1,COUNTA(raw!$A:$A)-1,1),回答数!$B66, OFFSET(raw!$A$1,2,MATCH($D$1,raw!$2:$2,0)-1,COUNTA(raw!$A:$A)-1,1),N$2) -> 1 | O66: =COUNTIFS( OFFSET(raw!$A$1,2,MATCH(回答数!$A66,raw!$2:$2,0)-1,COUNTA(raw!$A:$A)-1,1),回答数!$B66, OFFSET(raw!$A$1,2,MATCH($D$1,raw!$2:$2,0)-1,COUNTA(raw!$A:$A)-1,1),O$2) -> 4 | P66: 95
A67: 回答エリア | B67: 熊川宿 エリア | D67: =COUNTIFS( OFFSET(raw!$A$1,2,MATCH(回答数!$A67,raw!$2:$2,0)-1,COUNTA(raw!$A:$A)-1,1),回答数!$B67, OFFSET(raw!$A$1,2,MATCH($D$1,raw!$2:$2,0)-1,COUNTA(raw!$A:$A)-1,1),D$2) -> 5 | E67: =COUNTIFS( OFFSET(raw!$A$1,2,MATCH(回答数!$A67,raw!$2:$2,0)-1,COUNTA(raw!$A:$A)-1,1),回答数!$B67, OFFSET(raw!$A$1,2,MATCH($D$1,raw!$2:$2,0)-1,COUNTA(raw!$A:$A)-1,1),E$2) -> 45 | F67: =COUNTIFS( OFFSET(raw!$A$1,2,MATCH(回答数!$A67,raw!$2:$2,0)-1,COUNTA(raw!$A:$A)-1,1),回答数!$B67, OFFSET(raw!$A$1,2,MATCH($D$1,raw!$2:$2,0)-1,COUNTA(raw!$A:$A)-1,1),F$2) -> 31 | G67: =COUNTIFS( OFFSET(raw!$A$1,2,MATCH(回答数!$A67,raw!$2:$2,0)-1,COUNTA(raw!$A:$A)-1,1),回答数!$B67, OFFSET(raw!$A$1,2,MATCH($D$1,raw!$2:$2,0)-1,COUNTA(raw!$A:$A)-1,1),G$2) -> 46 | H67: =COUNTIFS( OFFSET(raw!$A$1,2,MATCH(回答数!$A67,raw!$2:$2,0)-1,COUNTA(raw!$A:$A)-1,1),回答数!$B67, OFFSET(raw!$A$1,2,MATCH($D$1,raw!$2:$2,0)-1,COUNTA(raw!$A:$A)-1,1),H$2) -> 27 | I67: =COUNTIFS( OFFSET(raw!$A$1,2,MATCH(回答数!$A67,raw!$2:$2,0)-1,COUNTA(raw!$A:$A)-1,1),回答数!$B67, OFFSET(raw!$A$1,2,MATCH($D$1,raw!$2:$2,0)-1,COUNTA(raw!$A:$A)-1,1),I$2) -> 33 | J67: =COUNTIFS( OFFSET(raw!$A$1,2,MATCH(回答数!$A67,raw!$2:$2,0)-1,COUNTA(raw!$A:$A)-1,1),回答数!$B67, OFFSET(raw!$A$1,2,MATCH($D$1,raw!$2:$2,0)-1,COUNTA(raw!$A:$A)-1,1),J$2) -> 63 | K67: =COUNTIFS( OFFSET(raw!$A$1,2,MATCH(回答数!$A67,raw!$2:$2,0)-1,COUNTA(raw!$A:$A)-1,1),回答数!$B67, OFFSET(raw!$A$1,2,MATCH($D$1,raw!$2:$2,0)-1,COUNTA(raw!$A:$A)-1,1),K$2) -> 86 | L67: =COUNTIFS( OFFSET(raw!$A$1,2,MATCH(回答数!$A67,raw!$2:$2,0)-1,COUNTA(raw!$A:$A)-1,1),回答数!$B67, OFFSET(raw!$A$1,2,MATCH($D$1,raw!$2:$2,0)-1,COUNTA(raw!$A:$A)-1,1),L$2) -> 55 | M67: =COUNTIFS( OFFSET(raw!$A$1,2,MATCH(回答数!$A67,raw!$2:$2,0)-1,COUNTA(raw!$A:$A)-1,1),回答数!$B67, OFFSET(raw!$A$1,2,MATCH($D$1,raw!$2:$2,0)-1,COUNTA(raw!$A:$A)-1,1),M$2) -> 23 | N67: =COUNTIFS( OFFSET(raw!$A$1,2,MATCH(回答数!$A67,raw!$2:$2,0)-1,COUNTA(raw!$A:$A)-1,1),回答数!$B67, OFFSET(raw!$A$1,2,MATCH($D$1,raw!$2:$2,0)-1,COUNTA(raw!$A:$A)-1,1),N$2) -> 25 | O67: =COUNTIFS( OFFSET(raw!$A$1,2,MATCH(回答数!$A67,raw!$2:$2,0)-1,COUNTA(raw!$A:$A)-1,1),回答数!$B67, OFFSET(raw!$A$1,2,MATCH($D$1,raw!$2:$2,0)-1,COUNTA(raw!$A:$A)-1,1),O$2) -> 15 | P67: 454
A68: 回答エリア | B68: 三方五湖 エリア | D68: =COUNTIFS( OFFSET(raw!$A$1,2,MATCH(回答数!$A68,raw!$2:$2,0)-1,COUNTA(raw!$A:$A)-1,1),回答数!$B68, OFFSET(raw!$A$1,2,MATCH($D$1,raw!$2:$2,0)-1,COUNTA(raw!$A:$A)-1,1),D$2) -> 5 | E68: =COUNTIFS( OFFSET(raw!$A$1,2,MATCH(回答数!$A68,raw!$2:$2,0)-1,COUNTA(raw!$A:$A)-1,1),回答数!$B68, OFFSET(raw!$A$1,2,MATCH($D$1,raw!$2:$2,0)-1,COUNTA(raw!$A:$A)-1,1),E$2) -> 39 | F68: =COUNTIFS( OFFSET(raw!$A$1,2,MATCH(回答数!$A68,raw!$2:$2,0)-1,COUNTA(raw!$A:$A)-1,1),回答数!$B68, OFFSET(raw!$A$1,2,MATCH($D$1,raw!$2:$2,0)-1,COUNTA(raw!$A:$A)-1,1),F$2) -> 36 | G68: =COUNTIFS( OFFSET(raw!$A$1,2,MATCH(回答数!$A68,raw!$2:$2,0)-1,COUNTA(raw!$A:$A)-1,1),回答数!$B68, OFFSET(raw!$A$1,2,MATCH($D$1,raw!$2:$2,0)-1,COUNTA(raw!$A:$A)-1,1),G$2) -> 17 | H68: =COUNTIFS( OFFSET(raw!$A$1,2,MATCH(回答数!$A68,raw!$2:$2,0)-1,COUNTA(raw!$A:$A)-1,1),回答数!$B68, OFFSET(raw!$A$1,2,MATCH($D$1,raw!$2:$2,0)-1,COUNTA(raw!$A:$A)-1,1),H$2) -> 22 | I68: =COUNTIFS( OFFSET(raw!$A$1,2,MATCH(回答数!$A68,raw!$2:$2,0)-1,COUNTA(raw!$A:$A)-1,1),回答数!$B68, OFFSET(raw!$A$1,2,MATCH($D$1,raw!$2:$2,0)-1,COUNTA(raw!$A:$A)-1,1),I$2) -> 23 | J68: =COUNTIFS( OFFSET(raw!$A$1,2,MATCH(回答数!$A68,raw!$2:$2,0)-1,COUNTA(raw!$A:$A)-1,1),回答数!$B68, OFFSET(raw!$A$1,2,MATCH($D$1,raw!$2:$2,0)-1,COUNTA(raw!$A:$A)-1,1),J$2) -> 59 | K68: =COUNTIFS( OFFSET(raw!$A$1,2,MATCH(回答数!$A68,raw!$2:$2,0)-1,COUNTA(raw!$A:$A)-1,1),回答数!$B68, OFFSET(raw!$A$1,2,MATCH($D$1,raw!$2:$2,0)-1,COUNTA(raw!$A:$A)-1,1),K$2) -> 54 | L68: =COUNTIFS( OFFSET(raw!$A$1,2,MATCH(回答数!$A68,raw!$2:$2,0)-1,COUNTA(raw!$A:$A)-1,1),回答数!$B68, OFFSET(raw!$A$1,2,MATCH($D$1,raw!$2:$2,0)-1,COUNTA(raw!$A:$A)-1,1),L$2) -> 51 | M68: =COUNTIFS( OFFSET(raw!$A$1,2,MATCH(回答数!$A68,raw!$2:$2,0)-1,COUNTA(raw!$A:$A)-1,1),回答数!$B68, OFFSET(raw!$A$1,2,MATCH($D$1,raw!$2:$2,0)-1,COUNTA(raw!$A:$A)-1,1),M$2) -> 12 | N68: =COUNTIFS( OFFSET(raw!$A$1,2,MATCH(回答数!$A68,raw!$2:$2,0)-1,COUNTA(raw!$A:$A)-1,1),回答数!$B68, OFFSET(raw!$A$1,2,MATCH($D$1,raw!$2:$2,0)-1,COUNTA(raw!$A:$A)-1,1),N$2) -> 19 | O68: =COUNTIFS( OFFSET(raw!$A$1,2,MATCH(回答数!$A68,raw!$2:$2,0)-1,COUNTA(raw!$A:$A)-1,1),回答数!$B68, OFFSET(raw!$A$1,2,MATCH($D$1,raw!$2:$2,0)-1,COUNTA(raw!$A:$A)-1,1),O$2) -> 13 | P68: 350
A69: 回答エリア | B69: うみんぴあ大飯 エリア | D69: =COUNTIFS( OFFSET(raw!$A$1,2,MATCH(回答数!$A69,raw!$2:$2,0)-1,COUNTA(raw!$A:$A)-1,1),回答数!$B69, OFFSET(raw!$A$1,2,MATCH($D$1,raw!$2:$2,0)-1,COUNTA(raw!$A:$A)-1,1),D$2) -> 10 | E69: =COUNTIFS( OFFSET(raw!$A$1,2,MATCH(回答数!$A69,raw!$2:$2,0)-1,COUNTA(raw!$A:$A)-1,1),回答数!$B69, OFFSET(raw!$A$1,2,MATCH($D$1,raw!$2:$2,0)-1,COUNTA(raw!$A:$A)-1,1),E$2) -> 117 | F69: =COUNTIFS( OFFSET(raw!$A$1,2,MATCH(回答数!$A69,raw!$2:$2,0)-1,COUNTA(raw!$A:$A)-1,1),回答数!$B69, OFFSET(raw!$A$1,2,MATCH($D$1,raw!$2:$2,0)-1,COUNTA(raw!$A:$A)-1,1),F$2) -> 33 | G69: =COUNTIFS( OFFSET(raw!$A$1,2,MATCH(回答数!$A69,raw!$2:$2,0)-1,COUNTA(raw!$A:$A)-1,1),回答数!$B69, OFFSET(raw!$A$1,2,MATCH($D$1,raw!$2:$2,0)-1,COUNTA(raw!$A:$A)-1,1),G$2) -> 28 | H69: =COUNTIFS( OFFSET(raw!$A$1,2,MATCH(回答数!$A69,raw!$2:$2,0)-1,COUNTA(raw!$A:$A)-1,1),回答数!$B69, OFFSET(raw!$A$1,2,MATCH($D$1,raw!$2:$2,0)-1,COUNTA(raw!$A:$A)-1,1),H$2) -> 33 | I69: =COUNTIFS( OFFSET(raw!$A$1,2,MATCH(回答数!$A69,raw!$2:$2,0)-1,COUNTA(raw!$A:$A)-1,1),回答数!$B69, OFFSET(raw!$A$1,2,MATCH($D$1,raw!$2:$2,0)-1,COUNTA(raw!$A:$A)-1,1),I$2) -> 35 | J69: =COUNTIFS( OFFSET(raw!$A$1,2,MATCH(回答数!$A69,raw!$2:$2,0)-1,COUNTA(raw!$A:$A)-1,1),回答数!$B69, OFFSET(raw!$A$1,2,MATCH($D$1,raw!$2:$2,0)-1,COUNTA(raw!$A:$A)-1,1),J$2) -> 39 | K69: =COUNTIFS( OFFSET(raw!$A$1,2,MATCH(回答数!$A69,raw!$2:$2,0)-1,COUNTA(raw!$A:$A)-1,1),回答数!$B69, OFFSET(raw!$A$1,2,MATCH($D$1,raw!$2:$2,0)-1,COUNTA(raw!$A:$A)-1,1),K$2) -> 63 | L69: =COUNTIFS( OFFSET(raw!$A$1,2,MATCH(回答数!$A69,raw!$2:$2,0)-1,COUNTA(raw!$A:$A)-1,1),回答数!$B69, OFFSET(raw!$A$1,2,MATCH($D$1,raw!$2:$2,0)-1,COUNTA(raw!$A:$A)-1,1),L$2) -> 24 | M69: =COUNTIFS( OFFSET(raw!$A$1,2,MATCH(回答数!$A69,raw!$2:$2,0)-1,COUNTA(raw!$A:$A)-1,1),回答数!$B69, OFFSET(raw!$A$1,2,MATCH($D$1,raw!$2:$2,0)-1,COUNTA(raw!$A:$A)-1,1),M$2) -> 11 | N69: =COUNTIFS( OFFSET(raw!$A$1,2,MATCH(回答数!$A69,raw!$2:$2,0)-1,COUNTA(raw!$A:$A)-1,1),回答数!$B69, OFFSET(raw!$A$1,2,MATCH($D$1,raw!$2:$2,0)-1,COUNTA(raw!$A:$A)-1,1),N$2) -> 15 | O69: =COUNTIFS( OFFSET(raw!$A$1,2,MATCH(回答数!$A69,raw!$2:$2,0)-1,COUNTA(raw!$A:$A)-1,1),回答数!$B69, OFFSET(raw!$A$1,2,MATCH($D$1,raw!$2:$2,0)-1,COUNTA(raw!$A:$A)-1,1),O$2) -> 11 | P69: 419
A70: 回答エリア | B70: きのこの森 エリア | D70: =COUNTIFS( OFFSET(raw!$A$1,2,MATCH(回答数!$A70,raw!$2:$2,0)-1,COUNTA(raw!$A:$A)-1,1),回答数!$B70, OFFSET(raw!$A$1,2,MATCH($D$1,raw!$2:$2,0)-1,COUNTA(raw!$A:$A)-1,1),D$2) -> 0 | E70: =COUNTIFS( OFFSET(raw!$A$1,2,MATCH(回答数!$A70,raw!$2:$2,0)-1,COUNTA(raw!$A:$A)-1,1),回答数!$B70, OFFSET(raw!$A$1,2,MATCH($D$1,raw!$2:$2,0)-1,COUNTA(raw!$A:$A)-1,1),E$2) -> 5 | F70: =COUNTIFS( OFFSET(raw!$A$1,2,MATCH(回答数!$A70,raw!$2:$2,0)-1,COUNTA(raw!$A:$A)-1,1),回答数!$B70, OFFSET(raw!$A$1,2,MATCH($D$1,raw!$2:$2,0)-1,COUNTA(raw!$A:$A)-1,1),F$2) -> 1 | G70: =COUNTIFS( OFFSET(raw!$A$1,2,MATCH(回答数!$A70,raw!$2:$2,0)-1,COUNTA(raw!$A:$A)-1,1),回答数!$B70, OFFSET(raw!$A$1,2,MATCH($D$1,raw!$2:$2,0)-1,COUNTA(raw!$A:$A)-1,1),G$2) -> 3 | H70: =COUNTIFS( OFFSET(raw!$A$1,2,MATCH(回答数!$A70,raw!$2:$2,0)-1,COUNTA(raw!$A:$A)-1,1),回答数!$B70, OFFSET(raw!$A$1,2,MATCH($D$1,raw!$2:$2,0)-1,COUNTA(raw!$A:$A)-1,1),H$2) -> 2 | I70: =COUNTIFS( OFFSET(raw!$A$1,2,MATCH(回答数!$A70,raw!$2:$2,0)-1,COUNTA(raw!$A:$A)-1,1),回答数!$B70, OFFSET(raw!$A$1,2,MATCH($D$1,raw!$2:$2,0)-1,COUNTA(raw!$A:$A)-1,1),I$2) -> 7 | J70: =COUNTIFS( OFFSET(raw!$A$1,2,MATCH(回答数!$A70,raw!$2:$2,0)-1,COUNTA(raw!$A:$A)-1,1),回答数!$B70, OFFSET(raw!$A$1,2,MATCH($D$1,raw!$2:$2,0)-1,COUNTA(raw!$A:$A)-1,1),J$2) -> 1 | K70: =COUNTIFS( OFFSET(raw!$A$1,2,MATCH(回答数!$A70,raw!$2:$2,0)-1,COUNTA(raw!$A:$A)-1,1),回答数!$B70, OFFSET(raw!$A$1,2,MATCH($D$1,raw!$2:$2,0)-1,COUNTA(raw!$A:$A)-1,1),K$2) -> 4 | L70: =COUNTIFS( OFFSET(raw!$A$1,2,MATCH(回答数!$A70,raw!$2:$2,0)-1,COUNTA(raw!$A:$A)-1,1),回答数!$B70, OFFSET(raw!$A$1,2,MATCH($D$1,raw!$2:$2,0)-1,COUNTA(raw!$A:$A)-1,1),L$2) -> 2 | M70: =COUNTIFS( OFFSET(raw!$A$1,2,MATCH(回答数!$A70,raw!$2:$2,0)-1,COUNTA(raw!$A:$A)-1,1),回答数!$B70, OFFSET(raw!$A$1,2,MATCH($D$1,raw!$2:$2,0)-1,COUNTA(raw!$A:$A)-1,1),M$2) -> 0 | N70: =COUNTIFS( OFFSET(raw!$A$1,2,MATCH(回答数!$A70,raw!$2:$2,0)-1,COUNTA(raw!$A:$A)-1,1),回答数!$B70, OFFSET(raw!$A$1,2,MATCH($D$1,raw!$2:$2,0)-1,COUNTA(raw!$A:$A)-1,1),N$2) -> 1 | O70: =COUNTIFS( OFFSET(raw!$A$1,2,MATCH(回答数!$A70,raw!$2:$2,0)-1,COUNTA(raw!$A:$A)-1,1),回答数!$B70, OFFSET(raw!$A$1,2,MATCH($D$1,raw!$2:$2,0)-1,COUNTA(raw!$A:$A)-1,1),O$2) -> 2 | P70: 28
A71: 回答エリア | B71: 道の駅「名田庄」 エリア | D71: =COUNTIFS( OFFSET(raw!$A$1,2,MATCH(回答数!$A71,raw!$2:$2,0)-1,COUNTA(raw!$A:$A)-1,1),回答数!$B71, OFFSET(raw!$A$1,2,MATCH($D$1,raw!$2:$2,0)-1,COUNTA(raw!$A:$A)-1,1),D$2) -> 0 | E71: =COUNTIFS( OFFSET(raw!$A$1,2,MATCH(回答数!$A71,raw!$2:$2,0)-1,COUNTA(raw!$A:$A)-1,1),回答数!$B71, OFFSET(raw!$A$1,2,MATCH($D$1,raw!$2:$2,0)-1,COUNTA(raw!$A:$A)-1,1),E$2) -> 19 | F71: =COUNTIFS( OFFSET(raw!$A$1,2,MATCH(回答数!$A71,raw!$2:$2,0)-1,COUNTA(raw!$A:$A)-1,1),回答数!$B71, OFFSET(raw!$A$1,2,MATCH($D$1,raw!$2:$2,0)-1,COUNTA(raw!$A:$A)-1,1),F$2) -> 16 | G71: =COUNTIFS( OFFSET(raw!$A$1,2,MATCH(回答数!$A71,raw!$2:$2,0)-1,COUNTA(raw!$A:$A)-1,1),回答数!$B71, OFFSET(raw!$A$1,2,MATCH($D$1,raw!$2:$2,0)-1,COUNTA(raw!$A:$A)-1,1),G$2) -> 20 | H71: =COUNTIFS( OFFSET(raw!$A$1,2,MATCH(回答数!$A71,raw!$2:$2,0)-1,COUNTA(raw!$A:$A)-1,1),回答数!$B71, OFFSET(raw!$A$1,2,MATCH($D$1,raw!$2:$2,0)-1,COUNTA(raw!$A:$A)-1,1),H$2) -> 20 | I71: =COUNTIFS( OFFSET(raw!$A$1,2,MATCH(回答数!$A71,raw!$2:$2,0)-1,COUNTA(raw!$A:$A)-1,1),回答数!$B71, OFFSET(raw!$A$1,2,MATCH($D$1,raw!$2:$2,0)-1,COUNTA(raw!$A:$A)-1,1),I$2) -> 23 | J71: =COUNTIFS( OFFSET(raw!$A$1,2,MATCH(回答数!$A71,raw!$2:$2,0)-1,COUNTA(raw!$A:$A)-1,1),回答数!$B71, OFFSET(raw!$A$1,2,MATCH($D$1,raw!$2:$2,0)-1,COUNTA(raw!$A:$A)-1,1),J$2) -> 22 | K71: =COUNTIFS( OFFSET(raw!$A$1,2,MATCH(回答数!$A71,raw!$2:$2,0)-1,COUNTA(raw!$A:$A)-1,1),回答数!$B71, OFFSET(raw!$A$1,2,MATCH($D$1,raw!$2:$2,0)-1,COUNTA(raw!$A:$A)-1,1),K$2) -> 28 | L71: =COUNTIFS( OFFSET(raw!$A$1,2,MATCH(回答数!$A71,raw!$2:$2,0)-1,COUNTA(raw!$A:$A)-1,1),回答数!$B71, OFFSET(raw!$A$1,2,MATCH($D$1,raw!$2:$2,0)-1,COUNTA(raw!$A:$A)-1,1),L$2) -> 15 | M71: =COUNTIFS( OFFSET(raw!$A$1,2,MATCH(回答数!$A71,raw!$2:$2,0)-1,COUNTA(raw!$A:$A)-1,1),回答数!$B71, OFFSET(raw!$A$1,2,MATCH($D$1,raw!$2:$2,0)-1,COUNTA(raw!$A:$A)-1,1),M$2) -> 7 | N71: =COUNTIFS( OFFSET(raw!$A$1,2,MATCH(回答数!$A71,raw!$2:$2,0)-1,COUNTA(raw!$A:$A)-1,1),回答数!$B71, OFFSET(raw!$A$1,2,MATCH($D$1,raw!$2:$2,0)-1,COUNTA(raw!$A:$A)-1,1),N$2) -> 3 | O71: =COUNTIFS( OFFSET(raw!$A$1,2,MATCH(回答数!$A71,raw!$2:$2,0)-1,COUNTA(raw!$A:$A)-1,1),回答数!$B71, OFFSET(raw!$A$1,2,MATCH($D$1,raw!$2:$2,0)-1,COUNTA(raw!$A:$A)-1,1),O$2) -> 1 | P71: =D71+E71+F71+G71+H71+I71+J71+K71+L71+M71+N71+O71 -> 174
A72: 回答エリア | B72: 赤礁崎オートキャンプ場 エリア | D72: =COUNTIFS( OFFSET(raw!$A$1,2,MATCH(回答数!$A72,raw!$2:$2,0)-1,COUNTA(raw!$A:$A)-1,1),回答数!$B72, OFFSET(raw!$A$1,2,MATCH($D$1,raw!$2:$2,0)-1,COUNTA(raw!$A:$A)-1,1),D$2) -> 0 | E72: =COUNTIFS( OFFSET(raw!$A$1,2,MATCH(回答数!$A72,raw!$2:$2,0)-1,COUNTA(raw!$A:$A)-1,1),回答数!$B72, OFFSET(raw!$A$1,2,MATCH($D$1,raw!$2:$2,0)-1,COUNTA(raw!$A:$A)-1,1),E$2) -> 0 | F72: =COUNTIFS( OFFSET(raw!$A$1,2,MATCH(回答数!$A72,raw!$2:$2,0)-1,COUNTA(raw!$A:$A)-1,1),回答数!$B72, OFFSET(raw!$A$1,2,MATCH($D$1,raw!$2:$2,0)-1,COUNTA(raw!$A:$A)-1,1),F$2) -> 2 | G72: =COUNTIFS( OFFSET(raw!$A$1,2,MATCH(回答数!$A72,raw!$2:$2,0)-1,COUNTA(raw!$A:$A)-1,1),回答数!$B72, OFFSET(raw!$A$1,2,MATCH($D$1,raw!$2:$2,0)-1,COUNTA(raw!$A:$A)-1,1),G$2) -> 1 | H72: =COUNTIFS( OFFSET(raw!$A$1,2,MATCH(回答数!$A72,raw!$2:$2,0)-1,COUNTA(raw!$A:$A)-1,1),回答数!$B72, OFFSET(raw!$A$1,2,MATCH($D$1,raw!$2:$2,0)-1,COUNTA(raw!$A:$A)-1,1),H$2) -> 1 | I72: =COUNTIFS( OFFSET(raw!$A$1,2,MATCH(回答数!$A72,raw!$2:$2,0)-1,COUNTA(raw!$A:$A)-1,1),回答数!$B72, OFFSET(raw!$A$1,2,MATCH($D$1,raw!$2:$2,0)-1,COUNTA(raw!$A:$A)-1,1),I$2) -> 5 | J72: =COUNTIFS( OFFSET(raw!$A$1,2,MATCH(回答数!$A72,raw!$2:$2,0)-1,COUNTA(raw!$A:$A)-1,1),回答数!$B72, OFFSET(raw!$A$1,2,MATCH($D$1,raw!$2:$2,0)-1,COUNTA(raw!$A:$A)-1,1),J$2) -> 1 | K72: =COUNTIFS( OFFSET(raw!$A$1,2,MATCH(回答数!$A72,raw!$2:$2,0)-1,COUNTA(raw!$A:$A)-1,1),回答数!$B72, OFFSET(raw!$A$1,2,MATCH($D$1,raw!$2:$2,0)-1,COUNTA(raw!$A:$A)-1,1),K$2) -> 0 | L72: =COUNTIFS( OFFSET(raw!$A$1,2,MATCH(回答数!$A72,raw!$2:$2,0)-1,COUNTA(raw!$A:$A)-1,1),回答数!$B72, OFFSET(raw!$A$1,2,MATCH($D$1,raw!$2:$2,0)-1,COUNTA(raw!$A:$A)-1,1),L$2) -> 0 | M72: =COUNTIFS( OFFSET(raw!$A$1,2,MATCH(回答数!$A72,raw!$2:$2,0)-1,COUNTA(raw!$A:$A)-1,1),回答数!$B72, OFFSET(raw!$A$1,2,MATCH($D$1,raw!$2:$2,0)-1,COUNTA(raw!$A:$A)-1,1),M$2) -> 0 | N72: =COUNTIFS( OFFSET(raw!$A$1,2,MATCH(回答数!$A72,raw!$2:$2,0)-1,COUNTA(raw!$A:$A)-1,1),回答数!$B72, OFFSET(raw!$A$1,2,MATCH($D$1,raw!$2:$2,0)-1,COUNTA(raw!$A:$A)-1,1),N$2) -> 0 | O72: =COUNTIFS( OFFSET(raw!$A$1,2,MATCH(回答数!$A72,raw!$2:$2,0)-1,COUNTA(raw!$A:$A)-1,1),回答数!$B72, OFFSET(raw!$A$1,2,MATCH($D$1,raw!$2:$2,0)-1,COUNTA(raw!$A:$A)-1,1),O$2) -> 0 | P72: 10
A73: 回答エリア | B73: 道の駅「シーサイド高浜」 エリア | D73: =COUNTIFS( OFFSET(raw!$A$1,2,MATCH(回答数!$A73,raw!$2:$2,0)-1,COUNTA(raw!$A:$A)-1,1),回答数!$B73, OFFSET(raw!$A$1,2,MATCH($D$1,raw!$2:$2,0)-1,COUNTA(raw!$A:$A)-1,1),D$2) -> 0 | E73: =COUNTIFS( OFFSET(raw!$A$1,2,MATCH(回答数!$A73,raw!$2:$2,0)-1,COUNTA(raw!$A:$A)-1,1),回答数!$B73, OFFSET(raw!$A$1,2,MATCH($D$1,raw!$2:$2,0)-1,COUNTA(raw!$A:$A)-1,1),E$2) -> 17 | F73: =COUNTIFS( OFFSET(raw!$A$1,2,MATCH(回答数!$A73,raw!$2:$2,0)-1,COUNTA(raw!$A:$A)-1,1),回答数!$B73, OFFSET(raw!$A$1,2,MATCH($D$1,raw!$2:$2,0)-1,COUNTA(raw!$A:$A)-1,1),F$2) -> 6 | G73: =COUNTIFS( OFFSET(raw!$A$1,2,MATCH(回答数!$A73,raw!$2:$2,0)-1,COUNTA(raw!$A:$A)-1,1),回答数!$B73, OFFSET(raw!$A$1,2,MATCH($D$1,raw!$2:$2,0)-1,COUNTA(raw!$A:$A)-1,1),G$2) -> 4 | H73: =COUNTIFS( OFFSET(raw!$A$1,2,MATCH(回答数!$A73,raw!$2:$2,0)-1,COUNTA(raw!$A:$A)-1,1),回答数!$B73, OFFSET(raw!$A$1,2,MATCH($D$1,raw!$2:$2,0)-1,COUNTA(raw!$A:$A)-1,1),H$2) -> 4 | I73: =COUNTIFS( OFFSET(raw!$A$1,2,MATCH(回答数!$A73,raw!$2:$2,0)-1,COUNTA(raw!$A:$A)-1,1),回答数!$B73, OFFSET(raw!$A$1,2,MATCH($D$1,raw!$2:$2,0)-1,COUNTA(raw!$A:$A)-1,1),I$2) -> 5 | J73: =COUNTIFS( OFFSET(raw!$A$1,2,MATCH(回答数!$A73,raw!$2:$2,0)-1,COUNTA(raw!$A:$A)-1,1),回答数!$B73, OFFSET(raw!$A$1,2,MATCH($D$1,raw!$2:$2,0)-1,COUNTA(raw!$A:$A)-1,1),J$2) -> 6 | K73: =COUNTIFS( OFFSET(raw!$A$1,2,MATCH(回答数!$A73,raw!$2:$2,0)-1,COUNTA(raw!$A:$A)-1,1),回答数!$B73, OFFSET(raw!$A$1,2,MATCH($D$1,raw!$2:$2,0)-1,COUNTA(raw!$A:$A)-1,1),K$2) -> 18 | L73: =COUNTIFS( OFFSET(raw!$A$1,2,MATCH(回答数!$A73,raw!$2:$2,0)-1,COUNTA(raw!$A:$A)-1,1),回答数!$B73, OFFSET(raw!$A$1,2,MATCH($D$1,raw!$2:$2,0)-1,COUNTA(raw!$A:$A)-1,1),L$2) -> 7 | M73: =COUNTIFS( OFFSET(raw!$A$1,2,MATCH(回答数!$A73,raw!$2:$2,0)-1,COUNTA(raw!$A:$A)-1,1),回答数!$B73, OFFSET(raw!$A$1,2,MATCH($D$1,raw!$2:$2,0)-1,COUNTA(raw!$A:$A)-1,1),M$2) -> 8 | N73: =COUNTIFS( OFFSET(raw!$A$1,2,MATCH(回答数!$A73,raw!$2:$2,0)-1,COUNTA(raw!$A:$A)-1,1),回答数!$B73, OFFSET(raw!$A$1,2,MATCH($D$1,raw!$2:$2,0)-1,COUNTA(raw!$A:$A)-1,1),N$2) -> 5 | O73: =COUNTIFS( OFFSET(raw!$A$1,2,MATCH(回答数!$A73,raw!$2:$2,0)-1,COUNTA(raw!$A:$A)-1,1),回答数!$B73, OFFSET(raw!$A$1,2,MATCH($D$1,raw!$2:$2,0)-1,COUNTA(raw!$A:$A)-1,1),O$2) -> 3 | P73: 83
A74: 回答エリア | B74: 青葉山ハーバルビレッジ エリア | D74: =COUNTIFS( OFFSET(raw!$A$1,2,MATCH(回答数!$A74,raw!$2:$2,0)-1,COUNTA(raw!$A:$A)-1,1),回答数!$B74, OFFSET(raw!$A$1,2,MATCH($D$1,raw!$2:$2,0)-1,COUNTA(raw!$A:$A)-1,1),D$2) -> 1 | E74: =COUNTIFS( OFFSET(raw!$A$1,2,MATCH(回答数!$A74,raw!$2:$2,0)-1,COUNTA(raw!$A:$A)-1,1),回答数!$B74, OFFSET(raw!$A$1,2,MATCH($D$1,raw!$2:$2,0)-1,COUNTA(raw!$A:$A)-1,1),E$2) -> 4 | F74: =COUNTIFS( OFFSET(raw!$A$1,2,MATCH(回答数!$A74,raw!$2:$2,0)-1,COUNTA(raw!$A:$A)-1,1),回答数!$B74, OFFSET(raw!$A$1,2,MATCH($D$1,raw!$2:$2,0)-1,COUNTA(raw!$A:$A)-1,1),F$2) -> 11 | G74: =COUNTIFS( OFFSET(raw!$A$1,2,MATCH(回答数!$A74,raw!$2:$2,0)-1,COUNTA(raw!$A:$A)-1,1),回答数!$B74, OFFSET(raw!$A$1,2,MATCH($D$1,raw!$2:$2,0)-1,COUNTA(raw!$A:$A)-1,1),G$2) -> 3 | H74: =COUNTIFS( OFFSET(raw!$A$1,2,MATCH(回答数!$A74,raw!$2:$2,0)-1,COUNTA(raw!$A:$A)-1,1),回答数!$B74, OFFSET(raw!$A$1,2,MATCH($D$1,raw!$2:$2,0)-1,COUNTA(raw!$A:$A)-1,1),H$2) -> 3 | I74: =COUNTIFS( OFFSET(raw!$A$1,2,MATCH(回答数!$A74,raw!$2:$2,0)-1,COUNTA(raw!$A:$A)-1,1),回答数!$B74, OFFSET(raw!$A$1,2,MATCH($D$1,raw!$2:$2,0)-1,COUNTA(raw!$A:$A)-1,1),I$2) -> 3 | J74: =COUNTIFS( OFFSET(raw!$A$1,2,MATCH(回答数!$A74,raw!$2:$2,0)-1,COUNTA(raw!$A:$A)-1,1),回答数!$B74, OFFSET(raw!$A$1,2,MATCH($D$1,raw!$2:$2,0)-1,COUNTA(raw!$A:$A)-1,1),J$2) -> 6 | K74: =COUNTIFS( OFFSET(raw!$A$1,2,MATCH(回答数!$A74,raw!$2:$2,0)-1,COUNTA(raw!$A:$A)-1,1),回答数!$B74, OFFSET(raw!$A$1,2,MATCH($D$1,raw!$2:$2,0)-1,COUNTA(raw!$A:$A)-1,1),K$2) -> 7 | L74: =COUNTIFS( OFFSET(raw!$A$1,2,MATCH(回答数!$A74,raw!$2:$2,0)-1,COUNTA(raw!$A:$A)-1,1),回答数!$B74, OFFSET(raw!$A$1,2,MATCH($D$1,raw!$2:$2,0)-1,COUNTA(raw!$A:$A)-1,1),L$2) -> 2 | M74: =COUNTIFS( OFFSET(raw!$A$1,2,MATCH(回答数!$A74,raw!$2:$2,0)-1,COUNTA(raw!$A:$A)-1,1),回答数!$B74, OFFSET(raw!$A$1,2,MATCH($D$1,raw!$2:$2,0)-1,COUNTA(raw!$A:$A)-1,1),M$2) -> 0 | N74: =COUNTIFS( OFFSET(raw!$A$1,2,MATCH(回答数!$A74,raw!$2:$2,0)-1,COUNTA(raw!$A:$A)-1,1),回答数!$B74, OFFSET(raw!$A$1,2,MATCH($D$1,raw!$2:$2,0)-1,COUNTA(raw!$A:$A)-1,1),N$2) -> 2 | O74: =COUNTIFS( OFFSET(raw!$A$1,2,MATCH(回答数!$A74,raw!$2:$2,0)-1,COUNTA(raw!$A:$A)-1,1),回答数!$B74, OFFSET(raw!$A$1,2,MATCH($D$1,raw!$2:$2,0)-1,COUNTA(raw!$A:$A)-1,1),O$2) -> 0 | P74: 42
A75: 回答エリア | B75: UMIKARA エリア | D75: =COUNTIFS( OFFSET(raw!$A$1,2,MATCH(回答数!$A75,raw!$2:$2,0)-1,COUNTA(raw!$A:$A)-1,1),回答数!$B75, OFFSET(raw!$A$1,2,MATCH($D$1,raw!$2:$2,0)-1,COUNTA(raw!$A:$A)-1,1),D$2) -> 0 | E75: =COUNTIFS( OFFSET(raw!$A$1,2,MATCH(回答数!$A75,raw!$2:$2,0)-1,COUNTA(raw!$A:$A)-1,1),回答数!$B75, OFFSET(raw!$A$1,2,MATCH($D$1,raw!$2:$2,0)-1,COUNTA(raw!$A:$A)-1,1),E$2) -> 19 | F75: =COUNTIFS( OFFSET(raw!$A$1,2,MATCH(回答数!$A75,raw!$2:$2,0)-1,COUNTA(raw!$A:$A)-1,1),回答数!$B75, OFFSET(raw!$A$1,2,MATCH($D$1,raw!$2:$2,0)-1,COUNTA(raw!$A:$A)-1,1),F$2) -> 7 | G75: =COUNTIFS( OFFSET(raw!$A$1,2,MATCH(回答数!$A75,raw!$2:$2,0)-1,COUNTA(raw!$A:$A)-1,1),回答数!$B75, OFFSET(raw!$A$1,2,MATCH($D$1,raw!$2:$2,0)-1,COUNTA(raw!$A:$A)-1,1),G$2) -> 1 | H75: =COUNTIFS( OFFSET(raw!$A$1,2,MATCH(回答数!$A75,raw!$2:$2,0)-1,COUNTA(raw!$A:$A)-1,1),回答数!$B75, OFFSET(raw!$A$1,2,MATCH($D$1,raw!$2:$2,0)-1,COUNTA(raw!$A:$A)-1,1),H$2) -> 2 | I75: =COUNTIFS( OFFSET(raw!$A$1,2,MATCH(回答数!$A75,raw!$2:$2,0)-1,COUNTA(raw!$A:$A)-1,1),回答数!$B75, OFFSET(raw!$A$1,2,MATCH($D$1,raw!$2:$2,0)-1,COUNTA(raw!$A:$A)-1,1),I$2) -> 10 | J75: =COUNTIFS( OFFSET(raw!$A$1,2,MATCH(回答数!$A75,raw!$2:$2,0)-1,COUNTA(raw!$A:$A)-1,1),回答数!$B75, OFFSET(raw!$A$1,2,MATCH($D$1,raw!$2:$2,0)-1,COUNTA(raw!$A:$A)-1,1),J$2) -> 5 | K75: =COUNTIFS( OFFSET(raw!$A$1,2,MATCH(回答数!$A75,raw!$2:$2,0)-1,COUNTA(raw!$A:$A)-1,1),回答数!$B75, OFFSET(raw!$A$1,2,MATCH($D$1,raw!$2:$2,0)-1,COUNTA(raw!$A:$A)-1,1),K$2) -> 12 | L75: =COUNTIFS( OFFSET(raw!$A$1,2,MATCH(回答数!$A75,raw!$2:$2,0)-1,COUNTA(raw!$A:$A)-1,1),回答数!$B75, OFFSET(raw!$A$1,2,MATCH($D$1,raw!$2:$2,0)-1,COUNTA(raw!$A:$A)-1,1),L$2) -> 5 | M75: =COUNTIFS( OFFSET(raw!$A$1,2,MATCH(回答数!$A75,raw!$2:$2,0)-1,COUNTA(raw!$A:$A)-1,1),回答数!$B75, OFFSET(raw!$A$1,2,MATCH($D$1,raw!$2:$2,0)-1,COUNTA(raw!$A:$A)-1,1),M$2) -> 6 | N75: =COUNTIFS( OFFSET(raw!$A$1,2,MATCH(回答数!$A75,raw!$2:$2,0)-1,COUNTA(raw!$A:$A)-1,1),回答数!$B75, OFFSET(raw!$A$1,2,MATCH($D$1,raw!$2:$2,0)-1,COUNTA(raw!$A:$A)-1,1),N$2) -> 6 | O75: =COUNTIFS( OFFSET(raw!$A$1,2,MATCH(回答数!$A75,raw!$2:$2,0)-1,COUNTA(raw!$A:$A)-1,1),回答数!$B75, OFFSET(raw!$A$1,2,MATCH($D$1,raw!$2:$2,0)-1,COUNTA(raw!$A:$A)-1,1),O$2) -> 6 | P75: 79
D76: =SUM(D3:D75) -> 479 | E76: =SUM(E3:E75) -> 4649 | F76: 2834 | G76: 2722 | H76: 2851 | I76: 3153 | J76: 5468 | K76: 7312 | L76: 4265 | M76: 1779 | N76: 2128 | O76: 984 | P76: 38624

Sheet NPS
A1: 集計区分 | C1: NPS | R1: Rank | S1: 回答月 | AG1: （処理用_順位） | AH1: 回答月 | AW1: =施設コード!$A$2 -> 3月 | BD1: 4月 | BE1: 5月 | BF1: 6月 | BG1: 7月 | BH1: 8月 | BI1: 9月 | BJ1: 10月 | BK1: 11月 | BL1: 12月 | BM1: 1月 | BN1: 2月 | BO1: 3月
D2: 4月 | E2: 5月 | F2: 6月 | G2: 7月 | H2: 8月 | I2: 9月 | J2: 10月 | K2: 11月 | L2: 12月 | M2: 1月 | N2: 2月 | O2: 3月 | P2: 通年 | S2: 4月 | T2: 5月 | U2: 6月 | V2: 7月 | W2: 8月 | X2: 9月 | Y2: 10月 | Z2: 11月 | AA2: 12月 | AB2: 1月 | AC2: 2月 | AD2: 3月 | AE2: 通年 | AH2: 4月 | AI2: 5月 | AJ2: 6月 | AK2: 7月 | AL2: 8月 | AM2: 9月 | AN2: 10月 | AO2: 11月 | AP2: 12月 | AQ2: 1月 | AR2: 2月 | AS2: 3月 | AT2: 通年 | AV2: （処理用_順位） | AW2: 順位 | AX2: 回答エリア | AY2: NPS | AZ2: 回答数 | BC2: 福井県 | BD2: =D3 -> 8.974358974 | BE2: =E3 -> 2.080566622 | BF2: 2.971014493 | BG2: 0.6849315068 | BH2: 1.15942029 | BI2: 3.708523097 | BJ2: 1.615326822 | BK2: 1.690617075 | BL2: 4.394012554 | BM2: 4.694835681 | BN2: -0.2884615385 | BO2: -1.059322034
A3: 全体 | B3: =施設コード!$D$2 -> 福井県 | D3: =INDEX(【D】NPS!$C$4:$GO$76,MATCH(NPS!$B3,【D】NPS!$B$4:$B$76,0), MATCH(NPS!D$2&NPS!$C$1,【D】NPS!$C$2:$GO$2&【D】NPS!$C$3:$GO$3,0)) -> 8.974358974 | E3: =INDEX(【D】NPS!$C$4:$GO$76,MATCH(NPS!$B3,【D】NPS!$B$4:$B$76,0), MATCH(NPS!E$2&NPS!$C$1,【D】NPS!$C$2:$GO$2&【D】NPS!$C$3:$GO$3,0)) -> 2.080566622 | F3: =INDEX(【D】NPS!$C$4:$GO$76,MATCH(NPS!$B3,【D】NPS!$B$4:$B$76,0), MATCH(NPS!F$2&NPS!$C$1,【D】NPS!$C$2:$GO$2&【D】NPS!$C$3:$GO$3,0)) -> 2.971014493 | G3: =INDEX(【D】NPS!$C$4:$GO$76,MATCH(NPS!$B3,【D】NPS!$B$4:$B$76,0), MATCH(NPS!G$2&NPS!$C$1,【D】NPS!$C$2:$GO$2&【D】NPS!$C$3:$GO$3,0)) -> 0.6849315068 | H3: =INDEX(【D】NPS!$C$4:$GO$76,MATCH(NPS!$B3,【D】NPS!$B$4:$B$76,0), MATCH(NPS!H$2&NPS!$C$1,【D】NPS!$C$2:$GO$2&【D】NPS!$C$3:$GO$3,0)) -> 1.15942029 | I3: =INDEX(【D】NPS!$C$4:$GO$76,MATCH(NPS!$B3,【D】NPS!$B$4:$B$76,0), MATCH(NPS!I$2&NPS!$C$1,【D】NPS!$C$2:$GO$2&【D】NPS!$C$3:$GO$3,0)) -> 3.708523097 | J3: =INDEX(【D】NPS!$C$4:$GO$76,MATCH(NPS!$B3,【D】NPS!$B$4:$B$76,0), MATCH(NPS!J$2&NPS!$C$1,【D】NPS!$C$2:$GO$2&【D】NPS!$C$3:$GO$3,0)) -> 1.615326822 | K3: =INDEX(【D】NPS!$C$4:$GO$76,MATCH(NPS!$B3,【D】NPS!$B$4:$B$76,0), MATCH(NPS!K$2&NPS!$C$1,【D】NPS!$C$2:$GO$2&【D】NPS!$C$3:$GO$3,0)) -> 1.690617075 | L3: =INDEX(【D】NPS!$C$4:$GO$76,MATCH(NPS!$B3,【D】NPS!$B$4:$B$76,0), MATCH(NPS!L$2&NPS!$C$1,【D】NPS!$C$2:$GO$2&【D】NPS!$C$3:$GO$3,0)) -> 4.394012554 | M3: =INDEX(【D】NPS!$C$4:$GO$76,MATCH(NPS!$B3,【D】NPS!$B$4:$B$76,0), MATCH(NPS!M$2&NPS!$C$1,【D】NPS!$C$2:$GO$2&【D】NPS!$C$3:$GO$3,0)) -> 4.694835681 | N3: =INDEX(【D】NPS!$C$4:$GO$76,MATCH(NPS!$B3,【D】NPS!$B$4:$B$76,0), MATCH(NPS!N$2&NPS!$C$1,【D】NPS!$C$2:$GO$2&【D】NPS!$C$3:$GO$3,0)) -> -0.2884615385 | O3: =INDEX(【D】NPS!$C$4:$GO$76,MATCH(NPS!$B3,【D】NPS!$B$4:$B$76,0), MATCH(NPS!O$2&NPS!$C$1,【D】NPS!$C$2:$GO$2&【D】NPS!$C$3:$GO$3,0)) -> -1.059322034 | P3: =INDEX(【D】NPS!$C$4:$GO$76,MATCH(NPS!$B3,【D】NPS!$B$4:$B$76,0), MATCH(NPS!P$2&NPS!$C$1,【D】NPS!$C$2:$GO$2&【D】NPS!$C$3:$GO$3,0)) -> 2.224 | S3: =INDEX(【D】NPS!$C$4:$GO$76,MATCH(NPS!$B3,【D】NPS!$B$4:$B$76,0), MATCH(NPS!S$2&NPS!$R$1,【D】NPS!$C$2:$GO$2&【D】NPS!$C$3:$GO$3,0)) -> - | T3: =INDEX(【D】NPS!$C$4:$GO$76,MATCH(NPS!$B3,【D】NPS!$B$4:$B$76,0), MATCH(NPS!T$2&NPS!$R$1,【D】NPS!$C$2:$GO$2&【D】NPS!$C$3:$GO$3,0)) -> - | U3: =INDEX(【D】NPS!$C$4:$GO$76,MATCH(NPS!$B3,【D】NPS!$B$4:$B$76,0), MATCH(NPS!U$2&NPS!$R$1,【D】NPS!$C$2:$GO$2&【D】NPS!$C$3:$GO$3,0)) -> - | V3: =INDEX(【D】NPS!$C$4:$GO$76,MATCH(NPS!$B3,【D】NPS!$B$4:$B$76,0), MATCH(NPS!V$2&NPS!$R$1,【D】NPS!$C$2:$GO$2&【D】NPS!$C$3:$GO$3,0)) -> - | W3: =INDEX(【D】NPS!$C$4:$GO$76,MATCH(NPS!$B3,【D】NPS!$B$4:$B$76,0), MATCH(NPS!W$2&NPS!$R$1,【D】NPS!$C$2:$GO$2&【D】NPS!$C$3:$GO$3,0)) -> - | X3: =INDEX(【D】NPS!$C$4:$GO$76,MATCH(NPS!$B3,【D】NPS!$B$4:$B$76,0), MATCH(NPS!X$2&NPS!$R$1,【D】NPS!$C$2:$GO$2&【D】NPS!$C$3:$GO$3,0)) -> - | Y3: =INDEX(【D】NPS!$C$4:$GO$76,MATCH(NPS!$B3,【D】NPS!$B$4:$B$76,0), MATCH(NPS!Y$2&NPS!$R$1,【D】NPS!$C$2:$GO$2&【D】NPS!$C$3:$GO$3,0)) -> - | Z3: =INDEX(【D】NPS!$C$4:$GO$76,MATCH(NPS!$B3,【D】NPS!$B$4:$B$76,0), MATCH(NPS!Z$2&NPS!$R$1,【D】NPS!$C$2:$GO$2&【D】NPS!$C$3:$GO$3,0)) -> - | AA3: =INDEX(【D】NPS!$C$4:$GO$76,MATCH(NPS!$B3,【D】NPS!$B$4:$B$76,0), MATCH(NPS!AA$2&NPS!$R$1,【D】NPS!$C$2:$GO$2&【D】NPS!$C$3:$GO$3,0)) -> - | AB3: =INDEX(【D】NPS!$C$4:$GO$76,MATCH(NPS!$B3,【D】NPS!$B$4:$B$76,0), MATCH(NPS!AB$2&NPS!$R$1,【D】NPS!$C$2:$GO$2&【D】NPS!$C$3:$GO$3,0)) -> - | AC3: =INDEX(【D】NPS!$C$4:$GO$76,MATCH(NPS!$B3,【D】NPS!$B$4:$B$76,0), MATCH(NPS!AC$2&NPS!$R$1,【D】NPS!$C$2:$GO$2&【D】NPS!$C$3:$GO$3,0)) -> - | AD3: =INDEX(【D】NPS!$C$4:$GO$76,MATCH(NPS!$B3,【D】NPS!$B$4:$B$76,0), MATCH(NPS!AD$2&NPS!$R$1,【D】NPS!$C$2:$GO$2&【D】NPS!$C$3:$GO$3,0)) -> - | AE3: =INDEX(【D】NPS!$C$4:$GO$76,MATCH(NPS!$B3,【D】NPS!$B$4:$B$76,0), MATCH(NPS!AE$2&NPS!$R$1,【D】NPS!$C$2:$GO$2&【D】NPS!$C$3:$GO$3,0)) -> - | AH3: =INDEX(【D】NPS!$C$4:$GO$76,MATCH(NPS!$B3,【D】NPS!$B$4:$B$76,0), MATCH(NPS!AH$2&NPS!$AG$1,【D】NPS!$C$2:$GO$2&【D】NPS!$C$3:$GO$3,0)) -> - | AI3: =INDEX(【D】NPS!$C$4:$GO$76,MATCH(NPS!$B3,【D】NPS!$B$4:$B$76,0), MATCH(NPS!AI$2&NPS!$AG$1,【D】NPS!$C$2:$GO$2&【D】NPS!$C$3:$GO$3,0)) -> - | AJ3: =INDEX(【D】NPS!$C$4:$GO$76,MATCH(NPS!$B3,【D】NPS!$B$4:$B$76,0), MATCH(NPS!AJ$2&NPS!$AG$1,【D】NPS!$C$2:$GO$2&【D】NPS!$C$3:$GO$3,0)) -> - | AK3: =INDEX(【D】NPS!$C$4:$GO$76,MATCH(NPS!$B3,【D】NPS!$B$4:$B$76,0), MATCH(NPS!AK$2&NPS!$AG$1,【D】NPS!$C$2:$GO$2&【D】NPS!$C$3:$GO$3,0)) -> - | AL3: =INDEX(【D】NPS!$C$4:$GO$76,MATCH(NPS!$B3,【D】NPS!$B$4:$B$76,0), MATCH(NPS!AL$2&NPS!$AG$1,【D】NPS!$C$2:$GO$2&【D】NPS!$C$3:$GO$3,0)) -> - | AM3: =INDEX(【D】NPS!$C$4:$GO$76,MATCH(NPS!$B3,【D】NPS!$B$4:$B$76,0), MATCH(NPS!AM$2&NPS!$AG$1,【D】NPS!$C$2:$GO$2&【D】NPS!$C$3:$GO$3,0)) -> - | AN3: =INDEX(【D】NPS!$C$4:$GO$76,MATCH(NPS!$B3,【D】NPS!$B$4:$B$76,0), MATCH(NPS!AN$2&NPS!$AG$1,【D】NPS!$C$2:$GO$2&【D】NPS!$C$3:$GO$3,0)) -> - | AO3: =INDEX(【D】NPS!$C$4:$GO$76,MATCH(NPS!$B3,【D】NPS!$B$4:$B$76,0), MATCH(NPS!AO$2&NPS!$AG$1,【D】NPS!$C$2:$GO$2&【D】NPS!$C$3:$GO$3,0)) -> - | AP3: =INDEX(【D】NPS!$C$4:$GO$76,MATCH(NPS!$B3,【D】NPS!$B$4:$B$76,0), MATCH(NPS!AP$2&NPS!$AG$1,【D】NPS!$C$2:$GO$2&【D】NPS!$C$3:$GO$3,0)) -> - | AQ3: =INDEX(【D】NPS!$C$4:$GO$76,MATCH(NPS!$B3,【D】NPS!$B$4:$B$76,0), MATCH(NPS!AQ$2&NPS!$AG$1,【D】NPS!$C$2:$GO$2&【D】NPS!$C$3:$GO$3,0)) -> - | AR3: =INDEX(【D】NPS!$C$4:$GO$76,MATCH(NPS!$B3,【D】NPS!$B$4:$B$76,0), MATCH(NPS!AR$2&NPS!$AG$1,【D】NPS!$C$2:$GO$2&【D】NPS!$C$3:$GO$3,0)) -> - | AS3: =INDEX(【D】NPS!$C$4:$GO$76,MATCH(NPS!$B3,【D】NPS!$B$4:$B$76,0), MATCH(NPS!AS$2&NPS!$AG$1,【D】NPS!$C$2:$GO$2&【D】NPS!$C$3:$GO$3,0)) -> - | AT3: =INDEX(【D】NPS!$C$4:$GO$76,MATCH(NPS!$B3,【D】NPS!$B$4:$B$76,0), MATCH(NPS!AT$2&NPS!$AG$1,【D】NPS!$C$2:$GO$2&【D】NPS!$C$3:$GO$3,0)) -> - | AV3: 1 | AW3: =IFERROR(INDEX($S$6:$AE$75,MATCH(AX3,$B$6:$B$75,0),MATCH(AW$1,$S$2:$AE$2,0)),"-") -> 1 | AX3: =IFERROR( INDEX($B$6:$B$75, MATCH($AV3,OFFSET($AH$6,0,MATCH($AW$1,$AH$2:$AT$2,0)-1,COUNTA($B$6:$B$75),1),0),1),"-") -> 越前岬 エリア | AY3: =INDEX($D$6:$P$75,MATCH($AX3,$B$6:$B$75,0),MATCH($AW$1,$D$2:$P$2,0)) -> 100 | AZ3: =INDEX(【D】NPS!$C$7:$HB$76, MATCH(NPS!$AX3,【D】NPS!$B$7:$B$76,0), MATCH(NPS!$AZ$2&NPS!$AW$1,【D】NPS!$C$1:$HB$1&【D】NPS!$C$2:$HB$2,0)) -> 2 | BC3: =施設コード!$E$2 -> (株)まちづくり小浜 | BD3: =D4 -> 27.27272727 | BE3: =E4 -> 13.74045802 | BF3: =F4 -> 1.351351351 | BG3: =G4 -> -14.89361702 | BH3: =H4 -> 1.098901099 | BI3: =I4 -> -7.594936709 | BJ3: =J4 -> -13.88888889 | BK3: =K4 -> 10.74766355 | BL3: =L4 -> -9.756097561 | BM3: =M4 -> -17.33333333 | BN3: =N4 -> -18.75 | BO3: =O4 -> 0
A4: DMO | B4: =施設コード!$E$2 -> (株)まちづくり小浜 | D4: =INDEX(【D】NPS!$C$4:$GO$76,MATCH(NPS!$B4,【D】NPS!$B$4:$B$76,0), MATCH(NPS!D$2&NPS!$C$1,【D】NPS!$C$2:$GO$2&【D】NPS!$C$3:$GO$3,0)) -> 27.27272727 | E4: =INDEX(【D】NPS!$C$4:$GO$76,MATCH(NPS!$B4,【D】NPS!$B$4:$B$76,0), MATCH(NPS!E$2&NPS!$C$1,【D】NPS!$C$2:$GO$2&【D】NPS!$C$3:$GO$3,0)) -> 13.74045802 | F4: =INDEX(【D】NPS!$C$4:$GO$76,MATCH(NPS!$B4,【D】NPS!$B$4:$B$76,0), MATCH(NPS!F$2&NPS!$C$1,【D】NPS!$C$2:$GO$2&【D】NPS!$C$3:$GO$3,0)) -> 1.351351351 | G4: =INDEX(【D】NPS!$C$4:$GO$76,MATCH(NPS!$B4,【D】NPS!$B$4:$B$76,0), MATCH(NPS!G$2&NPS!$C$1,【D】NPS!$C$2:$GO$2&【D】NPS!$C$3:$GO$3,0)) -> -14.89361702 | H4: =INDEX(【D】NPS!$C$4:$GO$76,MATCH(NPS!$B4,【D】NPS!$B$4:$B$76,0), MATCH(NPS!H$2&NPS!$C$1,【D】NPS!$C$2:$GO$2&【D】NPS!$C$3:$GO$3,0)) -> 1.098901099 | I4: =INDEX(【D】NPS!$C$4:$GO$76,MATCH(NPS!$B4,【D】NPS!$B$4:$B$76,0), MATCH(NPS!I$2&NPS!$C$1,【D】NPS!$C$2:$GO$2&【D】NPS!$C$3:$GO$3,0)) -> -7.594936709 | J4: =INDEX(【D】NPS!$C$4:$GO$76,MATCH(NPS!$B4,【D】NPS!$B$4:$B$76,0), MATCH(NPS!J$2&NPS!$C$1,【D】NPS!$C$2:$GO$2&【D】NPS!$C$3:$GO$3,0)) -> -13.88888889 | K4: =INDEX(【D】NPS!$C$4:$GO$76,MATCH(NPS!$B4,【D】NPS!$B$4:$B$76,0), MATCH(NPS!K$2&NPS!$C$1,【D】NPS!$C$2:$GO$2&【D】NPS!$C$3:$GO$3,0)) -> 10.74766355 | L4: =INDEX(【D】NPS!$C$4:$GO$76,MATCH(NPS!$B4,【D】NPS!$B$4:$B$76,0), MATCH(NPS!L$2&NPS!$C$1,【D】NPS!$C$2:$GO$2&【D】NPS!$C$3:$GO$3,0)) -> -9.756097561 | M4: =INDEX(【D】NPS!$C$4:$GO$76,MATCH(NPS!$B4,【D】NPS!$B$4:$B$76,0), MATCH(NPS!M$2&NPS!$C$1,【D】NPS!$C$2:$GO$2&【D】NPS!$C$3:$GO$3,0)) -> -17.33333333 | N4: =INDEX(【D】NPS!$C$4:$GO$76,MATCH(NPS!$B4,【D】NPS!$B$4:$B$76,0), MATCH(NPS!N$2&NPS!$C$1,【D】NPS!$C$2:$GO$2&【D】NPS!$C$3:$GO$3,0)) -> -18.75 | O4: =INDEX(【D】NPS!$C$4:$GO$76,MATCH(NPS!$B4,【D】NPS!$B$4:$B$76,0), MATCH(NPS!O$2&NPS!$C$1,【D】NPS!$C$2:$GO$2&【D】NPS!$C$3:$GO$3,0)) -> 0 | P4: =INDEX(【D】NPS!$C$4:$GO$76,MATCH(NPS!$B4,【D】NPS!$B$4:$B$76,0), MATCH(NPS!P$2&NPS!$C$1,【D】NPS!$C$2:$GO$2&【D】NPS!$C$3:$GO$3,0)) -> -2.491103203 | S4: =INDEX(【D】NPS!$C$4:$GO$76,MATCH(NPS!$B4,【D】NPS!$B$4:$B$76,0), MATCH(NPS!S$2&NPS!$R$1,【D】NPS!$C$2:$GO$2&【D】NPS!$C$3:$GO$3,0)) -> - | T4: =INDEX(【D】NPS!$C$4:$GO$76,MATCH(NPS!$B4,【D】NPS!$B$4:$B$76,0), MATCH(NPS!T$2&NPS!$R$1,【D】NPS!$C$2:$GO$2&【D】NPS!$C$3:$GO$3,0)) -> - | U4: =INDEX(【D】NPS!$C$4:$GO$76,MATCH(NPS!$B4,【D】NPS!$B$4:$B$76,0), MATCH(NPS!U$2&NPS!$R$1,【D】NPS!$C$2:$GO$2&【D】NPS!$C$3:$GO$3,0)) -> - | V4: =INDEX(【D】NPS!$C$4:$GO$76,MATCH(NPS!$B4,【D】NPS!$B$4:$B$76,0), MATCH(NPS!V$2&NPS!$R$1,【D】NPS!$C$2:$GO$2&【D】NPS!$C$3:$GO$3,0)) -> - | W4: =INDEX(【D】NPS!$C$4:$GO$76,MATCH(NPS!$B4,【D】NPS!$B$4:$B$76,0), MATCH(NPS!W$2&NPS!$R$1,【D】NPS!$C$2:$GO$2&【D】NPS!$C$3:$GO$3,0)) -> - | X4: =INDEX(【D】NPS!$C$4:$GO$76,MATCH(NPS!$B4,【D】NPS!$B$4:$B$76,0), MATCH(NPS!X$2&NPS!$R$1,【D】NPS!$C$2:$GO$2&【D】NPS!$C$3:$GO$3,0)) -> - | Y4: =INDEX(【D】NPS!$C$4:$GO$76,MATCH(NPS!$B4,【D】NPS!$B$4:$B$76,0), MATCH(NPS!Y$2&NPS!$R$1,【D】NPS!$C$2:$GO$2&【D】NPS!$C$3:$GO$3,0)) -> - | Z4: =INDEX(【D】NPS!$C$4:$GO$76,MATCH(NPS!$B4,【D】NPS!$B$4:$B$76,0), MATCH(NPS!Z$2&NPS!$R$1,【D】NPS!$C$2:$GO$2&【D】NPS!$C$3:$GO$3,0)) -> - | AA4: =INDEX(【D】NPS!$C$4:$GO$76,MATCH(NPS!$B4,【D】NPS!$B$4:$B$76,0), MATCH(NPS!AA$2&NPS!$R$1,【D】NPS!$C$2:$GO$2&【D】NPS!$C$3:$GO$3,0)) -> - | AB4: =INDEX(【D】NPS!$C$4:$GO$76,MATCH(NPS!$B4,【D】NPS!$B$4:$B$76,0), MATCH(NPS!AB$2&NPS!$R$1,【D】NPS!$C$2:$GO$2&【D】NPS!$C$3:$GO$3,0)) -> - | AC4: =INDEX(【D】NPS!$C$4:$GO$76,MATCH(NPS!$B4,【D】NPS!$B$4:$B$76,0), MATCH(NPS!AC$2&NPS!$R$1,【D】NPS!$C$2:$GO$2&【D】NPS!$C$3:$GO$3,0)) -> - | AD4: =INDEX(【D】NPS!$C$4:$GO$76,MATCH(NPS!$B4,【D】NPS!$B$4:$B$76,0), MATCH(NPS!AD$2&NPS!$R$1,【D】NPS!$C$2:$GO$2&【D】NPS!$C$3:$GO$3,0)) -> - | AE4: =INDEX(【D】NPS!$C$4:$GO$76,MATCH(NPS!$B4,【D】NPS!$B$4:$B$76,0), MATCH(NPS!AE$2&NPS!$R$1,【D】NPS!$C$2:$GO$2&【D】NPS!$C$3:$GO$3,0)) -> - | AH4: =INDEX(【D】NPS!$C$4:$GO$76,MATCH(NPS!$B4,【D】NPS!$B$4:$B$76,0), MATCH(NPS!AH$2&NPS!$AG$1,【D】NPS!$C$2:$GO$2&【D】NPS!$C$3:$GO$3,0)) -> - | AI4: =INDEX(【D】NPS!$C$4:$GO$76,MATCH(NPS!$B4,【D】NPS!$B$4:$B$76,0), MATCH(NPS!AI$2&NPS!$AG$1,【D】NPS!$C$2:$GO$2&【D】NPS!$C$3:$GO$3,0)) -> - | AJ4: =INDEX(【D】NPS!$C$4:$GO$76,MATCH(NPS!$B4,【D】NPS!$B$4:$B$76,0), MATCH(NPS!AJ$2&NPS!$AG$1,【D】NPS!$C$2:$GO$2&【D】NPS!$C$3:$GO$3,0)) -> - | AK4: =INDEX(【D】NPS!$C$4:$GO$76,MATCH(NPS!$B4,【D】NPS!$B$4:$B$76,0), MATCH(NPS!AK$2&NPS!$AG$1,【D】NPS!$C$2:$GO$2&【D】NPS!$C$3:$GO$3,0)) -> - | AL4: =INDEX(【D】NPS!$C$4:$GO$76,MATCH(NPS!$B4,【D】NPS!$B$4:$B$76,0), MATCH(NPS!AL$2&NPS!$AG$1,【D】NPS!$C$2:$GO$2&【D】NPS!$C$3:$GO$3,0)) -> - | AM4: =INDEX(【D】NPS!$C$4:$GO$76,MATCH(NPS!$B4,【D】NPS!$B$4:$B$76,0), MATCH(NPS!AM$2&NPS!$AG$1,【D】NPS!$C$2:$GO$2&【D】NPS!$C$3:$GO$3,0)) -> - | AN4: =INDEX(【D】NPS!$C$4:$GO$76,MATCH(NPS!$B4,【D】NPS!$B$4:$B$76,0), MATCH(NPS!AN$2&NPS!$AG$1,【D】NPS!$C$2:$GO$2&【D】NPS!$C$3:$GO$3,0)) -> - | AO4: =INDEX(【D】NPS!$C$4:$GO$76,MATCH(NPS!$B4,【D】NPS!$B$4:$B$76,0), MATCH(NPS!AO$2&NPS!$AG$1,【D】NPS!$C$2:$GO$2&【D】NPS!$C$3:$GO$3,0)) -> - | AP4: =INDEX(【D】NPS!$C$4:$GO$76,MATCH(NPS!$B4,【D】NPS!$B$4:$B$76,0), MATCH(NPS!AP$2&NPS!$AG$1,【D】NPS!$C$2:$GO$2&【D】NPS!$C$3:$GO$3,0)) -> - | AQ4: =INDEX(【D】NPS!$C$4:$GO$76,MATCH(NPS!$B4,【D】NPS!$B$4:$B$76,0), MATCH(NPS!AQ$2&NPS!$AG$1,【D】NPS!$C$2:$GO$2&【D】NPS!$C$3:$GO$3,0)) -> - | AR4: =INDEX(【D】NPS!$C$4:$GO$76,MATCH(NPS!$B4,【D】NPS!$B$4:$B$76,0), MATCH(NPS!AR$2&NPS!$AG$1,【D】NPS!$C$2:$GO$2&【D】NPS!$C$3:$GO$3,0)) -> - | AS4: =INDEX(【D】NPS!$C$4:$GO$76,MATCH(NPS!$B4,【D】NPS!$B$4:$B$76,0), MATCH(NPS!AS$2&NPS!$AG$1,【D】NPS!$C$2:$GO$2&【D】NPS!$C$3:$GO$3,0)) -> - | AT4: =INDEX(【D】NPS!$C$4:$GO$76,MATCH(NPS!$B4,【D】NPS!$B$4:$B$76,0), MATCH(NPS!AT$2&NPS!$AG$1,【D】NPS!$C$2:$GO$2&【D】NPS!$C$3:$GO$3,0)) -> - | AV4: 2 | AW4: =IFERROR(INDEX($S$6:$AE$75,MATCH(AX4,$B$6:$B$75,0),MATCH(AW$1,$S$2:$AE$2,0)),"-") -> 2 | AX4: =IFERROR( INDEX($B$6:$B$75, MATCH($AV4,OFFSET($AH$6,0,MATCH($AW$1,$AH$2:$AT$2,0)-1,COUNTA($B$6:$B$75),1),0),1),"-") -> 小浜町家ステイ エリア | AY4: =INDEX($D$6:$P$75,MATCH($AX4,$B$6:$B$75,0),MATCH($AW$1,$D$2:$P$2,0)) -> 75 | AZ4: =INDEX(【D】NPS!$C$7:$HB$76, MATCH(NPS!$AX4,【D】NPS!$B$7:$B$76,0), MATCH(NPS!$AZ$2&NPS!$AW$1,【D】NPS!$C$1:$HB$1&【D】NPS!$C$2:$HB$2,0)) -> 4 | BC4: =施設コード!$F$2 -> ID(施設コード)を入力してください。 | BD4: None | BE4: None | BF4: None | BG4: None | BH4: None | BI4: None | BJ4: None | BK4: None | BL4: None | BM4: None | BN4: None | BO4: None
A5: 市町村 | B5: =施設コード!$F$2 -> ID(施設コード)を入力してください。 | D5: =INDEX(【D】NPS!$C$4:$GO$76,MATCH(NPS!$B5,【D】NPS!$B$4:$B$76,0), MATCH(NPS!D$2&NPS!$C$1,【D】NPS!$C$2:$GO$2&【D】NPS!$C$3:$GO$3,0)) -> None | E5: =INDEX(【D】NPS!$C$4:$GO$76,MATCH(NPS!$B5,【D】NPS!$B$4:$B$76,0), MATCH(NPS!E$2&NPS!$C$1,【D】NPS!$C$2:$GO$2&【D】NPS!$C$3:$GO$3,0)) -> None | F5: =INDEX(【D】NPS!$C$4:$GO$76,MATCH(NPS!$B5,【D】NPS!$B$4:$B$76,0), MATCH(NPS!F$2&NPS!$C$1,【D】NPS!$C$2:$GO$2&【D】NPS!$C$3:$GO$3,0)) -> None | G5: =INDEX(【D】NPS!$C$4:$GO$76,MATCH(NPS!$B5,【D】NPS!$B$4:$B$76,0), MATCH(NPS!G$2&NPS!$C$1,【D】NPS!$C$2:$GO$2&【D】NPS!$C$3:$GO$3,0)) -> None | H5: =INDEX(【D】NPS!$C$4:$GO$76,MATCH(NPS!$B5,【D】NPS!$B$4:$B$76,0), MATCH(NPS!H$2&NPS!$C$1,【D】NPS!$C$2:$GO$2&【D】NPS!$C$3:$GO$3,0)) -> None | I5: =INDEX(【D】NPS!$C$4:$GO$76,MATCH(NPS!$B5,【D】NPS!$B$4:$B$76,0), MATCH(NPS!I$2&NPS!$C$1,【D】NPS!$C$2:$GO$2&【D】NPS!$C$3:$GO$3,0)) -> None | J5: =INDEX(【D】NPS!$C$4:$GO$76,MATCH(NPS!$B5,【D】NPS!$B$4:$B$76,0), MATCH(NPS!J$2&NPS!$C$1,【D】NPS!$C$2:$GO$2&【D】NPS!$C$3:$GO$3,0)) -> None | K5: =INDEX(【D】NPS!$C$4:$GO$76,MATCH(NPS!$B5,【D】NPS!$B$4:$B$76,0), MATCH(NPS!K$2&NPS!$C$1,【D】NPS!$C$2:$GO$2&【D】NPS!$C$3:$GO$3,0)) -> None | L5: =INDEX(【D】NPS!$C$4:$GO$76,MATCH(NPS!$B5,【D】NPS!$B$4:$B$76,0), MATCH(NPS!L$2&NPS!$C$1,【D】NPS!$C$2:$GO$2&【D】NPS!$C$3:$GO$3,0)) -> None | M5: =INDEX(【D】NPS!$C$4:$GO$76,MATCH(NPS!$B5,【D】NPS!$B$4:$B$76,0), MATCH(NPS!M$2&NPS!$C$1,【D】NPS!$C$2:$GO$2&【D】NPS!$C$3:$GO$3,0)) -> None | N5: =INDEX(【D】NPS!$C$4:$GO$76,MATCH(NPS!$B5,【D】NPS!$B$4:$B$76,0), MATCH(NPS!N$2&NPS!$C$1,【D】NPS!$C$2:$GO$2&【D】NPS!$C$3:$GO$3,0)) -> None | O5: =INDEX(【D】NPS!$C$4:$GO$76,MATCH(NPS!$B5,【D】NPS!$B$4:$B$76,0), MATCH(NPS!O$2&NPS!$C$1,【D】NPS!$C$2:$GO$2&【D】NPS!$C$3:$GO$3,0)) -> None | P5: =INDEX(【D】NPS!$C$4:$GO$76,MATCH(NPS!$B5,【D】NPS!$B$4:$B$76,0), MATCH(NPS!P$2&NPS!$C$1,【D】NPS!$C$2:$GO$2&【D】NPS!$C$3:$GO$3,0)) -> None | S5: =INDEX(【D】NPS!$C$4:$GO$76,MATCH(NPS!$B5,【D】NPS!$B$4:$B$76,0), MATCH(NPS!S$2&NPS!$R$1,【D】NPS!$C$2:$GO$2&【D】NPS!$C$3:$GO$3,0)) -> - | T5: =INDEX(【D】NPS!$C$4:$GO$76,MATCH(NPS!$B5,【D】NPS!$B$4:$B$76,0), MATCH(NPS!T$2&NPS!$R$1,【D】NPS!$C$2:$GO$2&【D】NPS!$C$3:$GO$3,0)) -> - | U5: =INDEX(【D】NPS!$C$4:$GO$76,MATCH(NPS!$B5,【D】NPS!$B$4:$B$76,0), MATCH(NPS!U$2&NPS!$R$1,【D】NPS!$C$2:$GO$2&【D】NPS!$C$3:$GO$3,0)) -> - | V5: =INDEX(【D】NPS!$C$4:$GO$76,MATCH(NPS!$B5,【D】NPS!$B$4:$B$76,0), MATCH(NPS!V$2&NPS!$R$1,【D】NPS!$C$2:$GO$2&【D】NPS!$C$3:$GO$3,0)) -> - | W5: =INDEX(【D】NPS!$C$4:$GO$76,MATCH(NPS!$B5,【D】NPS!$B$4:$B$76,0), MATCH(NPS!W$2&NPS!$R$1,【D】NPS!$C$2:$GO$2&【D】NPS!$C$3:$GO$3,0)) -> - | X5: =INDEX(【D】NPS!$C$4:$GO$76,MATCH(NPS!$B5,【D】NPS!$B$4:$B$76,0), MATCH(NPS!X$2&NPS!$R$1,【D】NPS!$C$2:$GO$2&【D】NPS!$C$3:$GO$3,0)) -> - | Y5: =INDEX(【D】NPS!$C$4:$GO$76,MATCH(NPS!$B5,【D】NPS!$B$4:$B$76,0), MATCH(NPS!Y$2&NPS!$R$1,【D】NPS!$C$2:$GO$2&【D】NPS!$C$3:$GO$3,0)) -> - | Z5: =INDEX(【D】NPS!$C$4:$GO$76,MATCH(NPS!$B5,【D】NPS!$B$4:$B$76,0), MATCH(NPS!Z$2&NPS!$R$1,【D】NPS!$C$2:$GO$2&【D】NPS!$C$3:$GO$3,0)) -> - | AA5: =INDEX(【D】NPS!$C$4:$GO$76,MATCH(NPS!$B5,【D】NPS!$B$4:$B$76,0), MATCH(NPS!AA$2&NPS!$R$1,【D】NPS!$C$2:$GO$2&【D】NPS!$C$3:$GO$3,0)) -> - | AB5: =INDEX(【D】NPS!$C$4:$GO$76,MATCH(NPS!$B5,【D】NPS!$B$4:$B$76,0), MATCH(NPS!AB$2&NPS!$R$1,【D】NPS!$C$2:$GO$2&【D】NPS!$C$3:$GO$3,0)) -> - | AC5: =INDEX(【D】NPS!$C$4:$GO$76,MATCH(NPS!$B5,【D】NPS!$B$4:$B$76,0), MATCH(NPS!AC$2&NPS!$R$1,【D】NPS!$C$2:$GO$2&【D】NPS!$C$3:$GO$3,0)) -> - | AD5: =INDEX(【D】NPS!$C$4:$GO$76,MATCH(NPS!$B5,【D】NPS!$B$4:$B$76,0), MATCH(NPS!AD$2&NPS!$R$1,【D】NPS!$C$2:$GO$2&【D】NPS!$C$3:$GO$3,0)) -> - | AE5: =INDEX(【D】NPS!$C$4:$GO$76,MATCH(NPS!$B5,【D】NPS!$B$4:$B$76,0), MATCH(NPS!AE$2&NPS!$R$1,【D】NPS!$C$2:$GO$2&【D】NPS!$C$3:$GO$3,0)) -> - | AH5: =INDEX(【D】NPS!$C$4:$GO$76,MATCH(NPS!$B5,【D】NPS!$B$4:$B$76,0), MATCH(NPS!AH$2&NPS!$AG$1,【D】NPS!$C$2:$GO$2&【D】NPS!$C$3:$GO$3,0)) -> - | AI5: =INDEX(【D】NPS!$C$4:$GO$76,MATCH(NPS!$B5,【D】NPS!$B$4:$B$76,0), MATCH(NPS!AI$2&NPS!$AG$1,【D】NPS!$C$2:$GO$2&【D】NPS!$C$3:$GO$3,0)) -> - | AJ5: =INDEX(【D】NPS!$C$4:$GO$76,MATCH(NPS!$B5,【D】NPS!$B$4:$B$76,0), MATCH(NPS!AJ$2&NPS!$AG$1,【D】NPS!$C$2:$GO$2&【D】NPS!$C$3:$GO$3,0)) -> - | AK5: =INDEX(【D】NPS!$C$4:$GO$76,MATCH(NPS!$B5,【D】NPS!$B$4:$B$76,0), MATCH(NPS!AK$2&NPS!$AG$1,【D】NPS!$C$2:$GO$2&【D】NPS!$C$3:$GO$3,0)) -> - | AL5: =INDEX(【D】NPS!$C$4:$GO$76,MATCH(NPS!$B5,【D】NPS!$B$4:$B$76,0), MATCH(NPS!AL$2&NPS!$AG$1,【D】NPS!$C$2:$GO$2&【D】NPS!$C$3:$GO$3,0)) -> - | AM5: =INDEX(【D】NPS!$C$4:$GO$76,MATCH(NPS!$B5,【D】NPS!$B$4:$B$76,0), MATCH(NPS!AM$2&NPS!$AG$1,【D】NPS!$C$2:$GO$2&【D】NPS!$C$3:$GO$3,0)) -> - | AN5: =INDEX(【D】NPS!$C$4:$GO$76,MATCH(NPS!$B5,【D】NPS!$B$4:$B$76,0), MATCH(NPS!AN$2&NPS!$AG$1,【D】NPS!$C$2:$GO$2&【D】NPS!$C$3:$GO$3,0)) -> - | AO5: =INDEX(【D】NPS!$C$4:$GO$76,MATCH(NPS!$B5,【D】NPS!$B$4:$B$76,0), MATCH(NPS!AO$2&NPS!$AG$1,【D】NPS!$C$2:$GO$2&【D】NPS!$C$3:$GO$3,0)) -> - | AP5: =INDEX(【D】NPS!$C$4:$GO$76,MATCH(NPS!$B5,【D】NPS!$B$4:$B$76,0), MATCH(NPS!AP$2&NPS!$AG$1,【D】NPS!$C$2:$GO$2&【D】NPS!$C$3:$GO$3,0)) -> - | AQ5: =INDEX(【D】NPS!$C$4:$GO$76,MATCH(NPS!$B5,【D】NPS!$B$4:$B$76,0), MATCH(NPS!AQ$2&NPS!$AG$1,【D】NPS!$C$2:$GO$2&【D】NPS!$C$3:$GO$3,0)) -> - | AR5: =INDEX(【D】NPS!$C$4:$GO$76,MATCH(NPS!$B5,【D】NPS!$B$4:$B$76,0), MATCH(NPS!AR$2&NPS!$AG$1,【D】NPS!$C$2:$GO$2&【D】NPS!$C$3:$GO$3,0)) -> - | AS5: =INDEX(【D】NPS!$C$4:$GO$76,MATCH(NPS!$B5,【D】NPS!$B$4:$B$76,0), MATCH(NPS!AS$2&NPS!$AG$1,【D】NPS!$C$2:$GO$2&【D】NPS!$C$3:$GO$3,0)) -> - | AT5: =INDEX(【D】NPS!$C$4:$GO$76,MATCH(NPS!$B5,【D】NPS!$B$4:$B$76,0), MATCH(NPS!AT$2&NPS!$AG$1,【D】NPS!$C$2:$GO$2&【D】NPS!$C$3:$GO$3,0)) -> - | AV5: 3 | AW5: 2 | AX5: 北前船主の館 右近家 エリア | AY5: 75 | AZ5: =INDEX(【D】NPS!$C$7:$HB$76, MATCH(NPS!$AX5,【D】NPS!$B$7:$B$76,0), MATCH(NPS!$AZ$2&NPS!$AW$1,【D】NPS!$C$1:$HB$1&【D】NPS!$C$2:$HB$2,0)) -> 4 | BC5: =施設コード!$C$2 -> ID(施設コード)を入力してください。 | BD5: =INDEX(D$6:D$75,MATCH($BC$5,$B$6:$B$75,0),1) ->  | BE5: =INDEX(E$6:E$75,MATCH($BC$5,$B$6:$B$75,0),1) -> 
A6: 回答エリア | B6: 一乗谷朝倉氏遺跡 エリア | D6: =INDEX(【D】NPS!$C$4:$GO$76,MATCH(NPS!$B6,【D】NPS!$B$4:$B$76,0), MATCH(NPS!D$2&NPS!$C$1,【D】NPS!$C$2:$GO$2&【D】NPS!$C$3:$GO$3,0)) -> 28.57142857 | E6: =INDEX(【D】NPS!$C$4:$GO$76,MATCH(NPS!$B6,【D】NPS!$B$4:$B$76,0), MATCH(NPS!E$2&NPS!$C$1,【D】NPS!$C$2:$GO$2&【D】NPS!$C$3:$GO$3,0)) -> 1.162790698 | F6: =INDEX(【D】NPS!$C$4:$GO$76,MATCH(NPS!$B6,【D】NPS!$B$4:$B$76,0), MATCH(NPS!F$2&NPS!$C$1,【D】NPS!$C$2:$GO$2&【D】NPS!$C$3:$GO$3,0)) -> -10.41666667 | G6: =INDEX(【D】NPS!$C$4:$GO$76,MATCH(NPS!$B6,【D】NPS!$B$4:$B$76,0), MATCH(NPS!G$2&NPS!$C$1,【D】NPS!$C$2:$GO$2&【D】NPS!$C$3:$GO$3,0)) -> 0 | H6: =INDEX(【D】NPS!$C$4:$GO$76,MATCH(NPS!$B6,【D】NPS!$B$4:$B$76,0), MATCH(NPS!H$2&NPS!$C$1,【D】NPS!$C$2:$GO$2&【D】NPS!$C$3:$GO$3,0)) -> -2.564102564 | I6: =INDEX(【D】NPS!$C$4:$GO$76,MATCH(NPS!$B6,【D】NPS!$B$4:$B$76,0), MATCH(NPS!I$2&NPS!$C$1,【D】NPS!$C$2:$GO$2&【D】NPS!$C$3:$GO$3,0)) -> -5.555555556 | J6: =INDEX(【D】NPS!$C$4:$GO$76,MATCH(NPS!$B6,【D】NPS!$B$4:$B$76,0), MATCH(NPS!J$2&NPS!$C$1,【D】NPS!$C$2:$GO$2&【D】NPS!$C$3:$GO$3,0)) -> 6.451612903 | K6: =INDEX(【D】NPS!$C$4:$GO$76,MATCH(NPS!$B6,【D】NPS!$B$4:$B$76,0), MATCH(NPS!K$2&NPS!$C$1,【D】NPS!$C$2:$GO$2&【D】NPS!$C$3:$GO$3,0)) -> 4.624277457 | L6: =INDEX(【D】NPS!$C$4:$GO$76,MATCH(NPS!$B6,【D】NPS!$B$4:$B$76,0), MATCH(NPS!L$2&NPS!$C$1,【D】NPS!$C$2:$GO$2&【D】NPS!$C$3:$GO$3,0)) -> 7.894736842 | M6: =INDEX(【D】NPS!$C$4:$GO$76,MATCH(NPS!$B6,【D】NPS!$B$4:$B$76,0), MATCH(NPS!M$2&NPS!$C$1,【D】NPS!$C$2:$GO$2&【D】NPS!$C$3:$GO$3,0)) -> 28.125 | N6: =INDEX(【D】NPS!$C$4:$GO$76,MATCH(NPS!$B6,【D】NPS!$B$4:$B$76,0), MATCH(NPS!N$2&NPS!$C$1,【D】NPS!$C$2:$GO$2&【D】NPS!$C$3:$GO$3,0)) -> 9.090909091 | O6: =INDEX(【D】NPS!$C$4:$GO$76,MATCH(NPS!$B6,【D】NPS!$B$4:$B$76,0), MATCH(NPS!O$2&NPS!$C$1,【D】NPS!$C$2:$GO$2&【D】NPS!$C$3:$GO$3,0)) -> -27.27272727 | P6: =INDEX(【D】NPS!$C$4:$GO$76,MATCH(NPS!$B6,【D】NPS!$B$4:$B$76,0), MATCH(NPS!P$2&NPS!$C$1,【D】NPS!$C$2:$GO$2&【D】NPS!$C$3:$GO$3,0)) -> 3.656998739 | S6: =INDEX(【D】NPS!$C$4:$GO$76,MATCH(NPS!$B6,【D】NPS!$B$4:$B$76,0), MATCH(NPS!S$2&NPS!$R$1,【D】NPS!$C$2:$GO$2&【D】NPS!$C$3:$GO$3,0)) -> 15 | T6: =INDEX(【D】NPS!$C$4:$GO$76,MATCH(NPS!$B6,【D】NPS!$B$4:$B$76,0), MATCH(NPS!T$2&NPS!$R$1,【D】NPS!$C$2:$GO$2&【D】NPS!$C$3:$GO$3,0)) -> 33 | U6: =INDEX(【D】NPS!$C$4:$GO$76,MATCH(NPS!$B6,【D】NPS!$B$4:$B$76,0), MATCH(NPS!U$2&NPS!$R$1,【D】NPS!$C$2:$GO$2&【D】NPS!$C$3:$GO$3,0)) -> 48 | V6: =INDEX(【D】NPS!$C$4:$GO$76,MATCH(NPS!$B6,【D】NPS!$B$4:$B$76,0), MATCH(NPS!V$2&NPS!$R$1,【D】NPS!$C$2:$GO$2&【D】NPS!$C$3:$GO$3,0)) -> 30 | W6: =INDEX(【D】NPS!$C$4:$GO$76,MATCH(NPS!$B6,【D】NPS!$B$4:$B$76,0), MATCH(NPS!W$2&NPS!$R$1,【D】NPS!$C$2:$GO$2&【D】NPS!$C$3:$GO$3,0)) -> 41 | X6: =INDEX(【D】NPS!$C$4:$GO$76,MATCH(NPS!$B6,【D】NPS!$B$4:$B$76,0), MATCH(NPS!X$2&NPS!$R$1,【D】NPS!$C$2:$GO$2&【D】NPS!$C$3:$GO$3,0)) -> 40 | Y6: =INDEX(【D】NPS!$C$4:$GO$76,MATCH(NPS!$B6,【D】NPS!$B$4:$B$76,0), MATCH(NPS!Y$2&NPS!$R$1,【D】NPS!$C$2:$GO$2&【D】NPS!$C$3:$GO$3,0)) -> 31 | Z6: =INDEX(【D】NPS!$C$4:$GO$76,MATCH(NPS!$B6,【D】NPS!$B$4:$B$76,0), MATCH(NPS!Z$2&NPS!$R$1,【D】NPS!$C$2:$GO$2&【D】NPS!$C$3:$GO$3,0)) -> 29 | AA6: =INDEX(【D】NPS!$C$4:$GO$76,MATCH(NPS!$B6,【D】NPS!$B$4:$B$76,0), MATCH(NPS!AA$2&NPS!$R$1,【D】NPS!$C$2:$GO$2&【D】NPS!$C$3:$GO$3,0)) -> 26 | AB6: =INDEX(【D】NPS!$C$4:$GO$76,MATCH(NPS!$B6,【D】NPS!$B$4:$B$76,0), MATCH(NPS!AB$2&NPS!$R$1,【D】NPS!$C$2:$GO$2&【D】NPS!$C$3:$GO$3,0)) -> 13 | AC6: =INDEX(【D】NPS!$C$4:$GO$76,MATCH(NPS!$B6,【D】NPS!$B$4:$B$76,0), MATCH(NPS!AC$2&NPS!$R$1,【D】NPS!$C$2:$GO$2&【D】NPS!$C$3:$GO$3,0)) -> 22 | AD6: =INDEX(【D】NPS!$C$4:$GO$76,MATCH(NPS!$B6,【D】NPS!$B$4:$B$76,0), MATCH(NPS!AD$2&NPS!$R$1,【D】NPS!$C$2:$GO$2&【D】NPS!$C$3:$GO$3,0)) -> 43 | AE6: =INDEX(【D】NPS!$C$4:$GO$76,MATCH(NPS!$B6,【D】NPS!$B$4:$B$76,0), MATCH(NPS!AE$2&NPS!$R$1,【D】NPS!$C$2:$GO$2&【D】NPS!$C$3:$GO$3,0)) -> 28 | AH6: =INDEX(【D】NPS!$C$4:$GO$76,MATCH(NPS!$B6,【D】NPS!$B$4:$B$76,0), MATCH(NPS!AH$2&NPS!$AG$1,【D】NPS!$C$2:$GO$2&【D】NPS!$C$3:$GO$3,0)) -> 16 | AI6: =INDEX(【D】NPS!$C$4:$GO$76,MATCH(NPS!$B6,【D】NPS!$B$4:$B$76,0), MATCH(NPS!AI$2&NPS!$AG$1,【D】NPS!$C$2:$GO$2&【D】NPS!$C$3:$GO$3,0)) -> 33 | AJ6: =INDEX(【D】NPS!$C$4:$GO$76,MATCH(NPS!$B6,【D】NPS!$B$4:$B$76,0), MATCH(NPS!AJ$2&NPS!$AG$1,【D】NPS!$C$2:$GO$2&【D】NPS!$C$3:$GO$3,0)) -> 48 | AK6: =INDEX(【D】NPS!$C$4:$GO$76,MATCH(NPS!$B6,【D】NPS!$B$4:$B$76,0), MATCH(NPS!AK$2&NPS!$AG$1,【D】NPS!$C$2:$GO$2&【D】NPS!$C$3:$GO$3,0)) -> 36 | AL6: =INDEX(【D】NPS!$C$4:$GO$76,MATCH(NPS!$B6,【D】NPS!$B$4:$B$76,0), MATCH(NPS!AL$2&NPS!$AG$1,【D】NPS!$C$2:$GO$2&【D】NPS!$C$3:$GO$3,0)) -> 41 | AM6: =INDEX(【D】NPS!$C$4:$GO$76,MATCH(NPS!$B6,【D】NPS!$B$4:$B$76,0), MATCH(NPS!AM$2&NPS!$AG$1,【D】NPS!$C$2:$GO$2&【D】NPS!$C$3:$GO$3,0)) -> 40 | AN6: =INDEX(【D】NPS!$C$4:$GO$76,MATCH(NPS!$B6,【D】NPS!$B$4:$B$76,0), MATCH(NPS!AN$2&NPS!$AG$1,【D】NPS!$C$2:$GO$2&【D】NPS!$C$3:$GO$3,0)) -> 31 | AO6: =INDEX(【D】NPS!$C$4:$GO$76,MATCH(NPS!$B6,【D】NPS!$B$4:$B$76,0), MATCH(NPS!AO$2&NPS!$AG$1,【D】NPS!$C$2:$GO$2&【D】NPS!$C$3:$GO$3,0)) -> 29 | AP6: =INDEX(【D】NPS!$C$4:$GO$76,MATCH(NPS!$B6,【D】NPS!$B$4:$B$76,0), MATCH(NPS!AP$2&NPS!$AG$1,【D】NPS!$C$2:$GO$2&【D】NPS!$C$3:$GO$3,0)) -> 26 | AQ6: =INDEX(【D】NPS!$C$4:$GO$76,MATCH(NPS!$B6,【D】NPS!$B$4:$B$76,0), MATCH(NPS!AQ$2&NPS!$AG$1,【D】NPS!$C$2:$GO$2&【D】NPS!$C$3:$GO$3,0)) -> 13 | AR6: =INDEX(【D】NPS!$C$4:$GO$76,MATCH(NPS!$B6,【D】NPS!$B$4:$B$76,0), MATCH(NPS!AR$2&NPS!$AG$1,【D】NPS!$C$2:$GO$2&【D】NPS!$C$3:$GO$3,0)) -> 22 | AS6: =INDEX(【D】NPS!$C$4:$GO$76,MATCH(NPS!$B6,【D】NPS!$B$4:$B$76,0), MATCH(NPS!AS$2&NPS!$AG$1,【D】NPS!$C$2:$GO$2&【D】NPS!$C$3:$GO$3,0)) -> 43 | AT6: =INDEX(【D】NPS!$C$4:$GO$76,MATCH(NPS!$B6,【D】NPS!$B$4:$B$76,0), MATCH(NPS!AT$2&NPS!$AG$1,【D】NPS!$C$2:$GO$2&【D】NPS!$C$3:$GO$3,0)) -> 28 | AV6: 4 | AW6: 4 | AX6: 東尋坊 エリア | AY6: 57.14285714 | AZ6: =INDEX(【D】NPS!$C$7:$HB$76, MATCH(NPS!$AX6,【D】NPS!$B$7:$B$76,0), MATCH(NPS!$AZ$2&NPS!$AW$1,【D】NPS!$C$1:$HB$1&【D】NPS!$C$2:$HB$2,0)) -> 14
B7: 越前海岸 エリア | D7: =INDEX(【D】NPS!$C$4:$GO$76,MATCH(NPS!$B7,【D】NPS!$B$4:$B$76,0), MATCH(NPS!D$2&NPS!$C$1,【D】NPS!$C$2:$GO$2&【D】NPS!$C$3:$GO$3,0)) -> None | E7: =INDEX(【D】NPS!$C$4:$GO$76,MATCH(NPS!$B7,【D】NPS!$B$4:$B$76,0), MATCH(NPS!E$2&NPS!$C$1,【D】NPS!$C$2:$GO$2&【D】NPS!$C$3:$GO$3,0)) -> -33.33333333 | F7: =INDEX(【D】NPS!$C$4:$GO$76,MATCH(NPS!$B7,【D】NPS!$B$4:$B$76,0), MATCH(NPS!F$2&NPS!$C$1,【D】NPS!$C$2:$GO$2&【D】NPS!$C$3:$GO$3,0)) -> 50 | G7: =INDEX(【D】NPS!$C$4:$GO$76,MATCH(NPS!$B7,【D】NPS!$B$4:$B$76,0), MATCH(NPS!G$2&NPS!$C$1,【D】NPS!$C$2:$GO$2&【D】NPS!$C$3:$GO$3,0)) -> 10 | H7: =INDEX(【D】NPS!$C$4:$GO$76,MATCH(NPS!$B7,【D】NPS!$B$4:$B$76,0), MATCH(NPS!H$2&NPS!$C$1,【D】NPS!$C$2:$GO$2&【D】NPS!$C$3:$GO$3,0)) -> 5.882352941 | I7: =INDEX(【D】NPS!$C$4:$GO$76,MATCH(NPS!$B7,【D】NPS!$B$4:$B$76,0), MATCH(NPS!I$2&NPS!$C$1,【D】NPS!$C$2:$GO$2&【D】NPS!$C$3:$GO$3,0)) -> 52.94117647 | J7: =INDEX(【D】NPS!$C$4:$GO$76,MATCH(NPS!$B7,【D】NPS!$B$4:$B$76,0), MATCH(NPS!J$2&NPS!$C$1,【D】NPS!$C$2:$GO$2&【D】NPS!$C$3:$GO$3,0)) -> 10 | K7: =INDEX(【D】NPS!$C$4:$GO$76,MATCH(NPS!$B7,【D】NPS!$B$4:$B$76,0), MATCH(NPS!K$2&NPS!$C$1,【D】NPS!$C$2:$GO$2&【D】NPS!$C$3:$GO$3,0)) -> 26.92307692 | L7: =INDEX(【D】NPS!$C$4:$GO$76,MATCH(NPS!$B7,【D】NPS!$B$4:$B$76,0), MATCH(NPS!L$2&NPS!$C$1,【D】NPS!$C$2:$GO$2&【D】NPS!$C$3:$GO$3,0)) -> 10.52631579 | M7: =INDEX(【D】NPS!$C$4:$GO$76,MATCH(NPS!$B7,【D】NPS!$B$4:$B$76,0), MATCH(NPS!M$2&NPS!$C$1,【D】NPS!$C$2:$GO$2&【D】NPS!$C$3:$GO$3,0)) -> 33.33333333 | N7: =INDEX(【D】NPS!$C$4:$GO$76,MATCH(NPS!$B7,【D】NPS!$B$4:$B$76,0), MATCH(NPS!N$2&NPS!$C$1,【D】NPS!$C$2:$GO$2&【D】NPS!$C$3:$GO$3,0)) -> -22.22222222 | O7: =INDEX(【D】NPS!$C$4:$GO$76,MATCH(NPS!$B7,【D】NPS!$B$4:$B$76,0), MATCH(NPS!O$2&NPS!$C$1,【D】NPS!$C$2:$GO$2&【D】NPS!$C$3:$GO$3,0)) -> 33.33333333 | P7: =INDEX(【D】NPS!$C$4:$GO$76,MATCH(NPS!$B7,【D】NPS!$B$4:$B$76,0), MATCH(NPS!P$2&NPS!$C$1,【D】NPS!$C$2:$GO$2&【D】NPS!$C$3:$GO$3,0)) -> 16.78832117 | S7: =INDEX(【D】NPS!$C$4:$GO$76,MATCH(NPS!$B7,【D】NPS!$B$4:$B$76,0), MATCH(NPS!S$2&NPS!$R$1,【D】NPS!$C$2:$GO$2&【D】NPS!$C$3:$GO$3,0)) -> - | T7: =INDEX(【D】NPS!$C$4:$GO$76,MATCH(NPS!$B7,【D】NPS!$B$4:$B$76,0), MATCH(NPS!T$2&NPS!$R$1,【D】NPS!$C$2:$GO$2&【D】NPS!$C$3:$GO$3,0)) -> 60 | U7: =INDEX(【D】NPS!$C$4:$GO$76,MATCH(NPS!$B7,【D】NPS!$B$4:$B$76,0), MATCH(NPS!U$2&NPS!$R$1,【D】NPS!$C$2:$GO$2&【D】NPS!$C$3:$GO$3,0)) -> 8 | V7: =INDEX(【D】NPS!$C$4:$GO$76,MATCH(NPS!$B7,【D】NPS!$B$4:$B$76,0), MATCH(NPS!V$2&NPS!$R$1,【D】NPS!$C$2:$GO$2&【D】NPS!$C$3:$GO$3,0)) -> 26 | W7: =INDEX(【D】NPS!$C$4:$GO$76,MATCH(NPS!$B7,【D】NPS!$B$4:$B$76,0), MATCH(NPS!W$2&NPS!$R$1,【D】NPS!$C$2:$GO$2&【D】NPS!$C$3:$GO$3,0)) -> 29 | X7: =INDEX(【D】NPS!$C$4:$GO$76,MATCH(NPS!$B7,【D】NPS!$B$4:$B$76,0), MATCH(NPS!X$2&NPS!$R$1,【D】NPS!$C$2:$GO$2&【D】NPS!$C$3:$GO$3,0)) -> 6 | Y7: =INDEX(【D】NPS!$C$4:$GO$76,MATCH(NPS!$B7,【D】NPS!$B$4:$B$76,0), MATCH(NPS!Y$2&NPS!$R$1,【D】NPS!$C$2:$GO$2&【D】NPS!$C$3:$GO$3,0)) -> 25 | Z7: =INDEX(【D】NPS!$C$4:$GO$76,MATCH(NPS!$B7,【D】NPS!$B$4:$B$76,0), MATCH(NPS!Z$2&NPS!$R$1,【D】NPS!$C$2:$GO$2&【D】NPS!$C$3:$GO$3,0)) -> 8 | AA7: =INDEX(【D】NPS!$C$4:$GO$76,MATCH(NPS!$B7,【D】NPS!$B$4:$B$76,0), MATCH(NPS!AA$2&NPS!$R$1,【D】NPS!$C$2:$GO$2&【D】NPS!$C$3:$GO$3,0)) -> 24 | AB7: =INDEX(【D】NPS!$C$4:$GO$76,MATCH(NPS!$B7,【D】NPS!$B$4:$B$76,0), MATCH(NPS!AB$2&NPS!$R$1,【D】NPS!$C$2:$GO$2&【D】NPS!$C$3:$GO$3,0)) -> 12 | AC7: =INDEX(【D】NPS!$C$4:$GO$76,MATCH(NPS!$B7,【D】NPS!$B$4:$B$76,0), MATCH(NPS!AC$2&NPS!$R$1,【D】NPS!$C$2:$GO$2&【D】NPS!$C$3:$GO$3,0)) -> 46 | AD7: =INDEX(【D】NPS!$C$4:$GO$76,MATCH(NPS!$B7,【D】NPS!$B$4:$B$76,0), MATCH(NPS!AD$2&NPS!$R$1,【D】NPS!$C$2:$GO$2&【D】NPS!$C$3:$GO$3,0)) -> 13 | AE7: =INDEX(【D】NPS!$C$4:$GO$76,MATCH(NPS!$B7,【D】NPS!$B$4:$B$76,0), MATCH(NPS!AE$2&NPS!$R$1,【D】NPS!$C$2:$GO$2&【D】NPS!$C$3:$GO$3,0)) -> 10 | AH7: =INDEX(【D】NPS!$C$4:$GO$76,MATCH(NPS!$B7,【D】NPS!$B$4:$B$76,0), MATCH(NPS!AH$2&NPS!$AG$1,【D】NPS!$C$2:$GO$2&【D】NPS!$C$3:$GO$3,0)) -> - | AI7: =INDEX(【D】NPS!$C$4:$GO$76,MATCH(NPS!$B7,【D】NPS!$B$4:$B$76,0), MATCH(NPS!AI$2&NPS!$AG$1,【D】NPS!$C$2:$GO$2&【D】NPS!$C$3:$GO$3,0)) -> 60 | AJ7: =INDEX(【D】NPS!$C$4:$GO$76,MATCH(NPS!$B7,【D】NPS!$B$4:$B$76,0), MATCH(NPS!AJ$2&NPS!$AG$1,【D】NPS!$C$2:$GO$2&【D】NPS!$C$3:$GO$3,0)) -> 11 | AK7: =INDEX(【D】NPS!$C$4:$GO$76,MATCH(NPS!$B7,【D】NPS!$B$4:$B$76,0), MATCH(NPS!AK$2&NPS!$AG$1,【D】NPS!$C$2:$GO$2&【D】NPS!$C$3:$GO$3,0)) -> 26 | AL7: =INDEX(【D】NPS!$C$4:$GO$76,MATCH(NPS!$B7,【D】NPS!$B$4:$B$76,0), MATCH(NPS!AL$2&NPS!$AG$1,【D】NPS!$C$2:$GO$2&【D】NPS!$C$3:$GO$3,0)) -> 29 | AM7: =INDEX(【D】NPS!$C$4:$GO$76,MATCH(NPS!$B7,【D】NPS!$B$4:$B$76,0), MATCH(NPS!AM$2&NPS!$AG$1,【D】NPS!$C$2:$GO$2&【D】NPS!$C$3:$GO$3,0)) -> 6 | AN7: =INDEX(【D】NPS!$C$4:$GO$76,MATCH(NPS!$B7,【D】NPS!$B$4:$B$76,0), MATCH(NPS!AN$2&NPS!$AG$1,【D】NPS!$C$2:$GO$2&【D】NPS!$C$3:$GO$3,0)) -> 25 | AO7: =INDEX(【D】NPS!$C$4:$GO$76,MATCH(NPS!$B7,【D】NPS!$B$4:$B$76,0), MATCH(NPS!AO$2&NPS!$AG$1,【D】NPS!$C$2:$GO$2&【D】NPS!$C$3:$GO$3,0)) -> 8 | AP7: =INDEX(【D】NPS!$C$4:$GO$76,MATCH(NPS!$B7,【D】NPS!$B$4:$B$76,0), MATCH(NPS!AP$2&NPS!$AG$1,【D】NPS!$C$2:$GO$2&【D】NPS!$C$3:$GO$3,0)) -> 24 | AQ7: =INDEX(【D】NPS!$C$4:$GO$76,MATCH(NPS!$B7,【D】NPS!$B$4:$B$76,0), MATCH(NPS!AQ$2&NPS!$AG$1,【D】NPS!$C$2:$GO$2&【D】NPS!$C$3:$GO$3,0)) -> 12 | AR7: =INDEX(【D】NPS!$C$4:$GO$76,MATCH(NPS!$B7,【D】NPS!$B$4:$B$76,0), MATCH(NPS!AR$2&NPS!$AG$1,【D】NPS!$C$2:$GO$2&【D】NPS!$C$3:$GO$3,0)) -> 47 | AS7: =INDEX(【D】NPS!$C$4:$GO$76,MATCH(NPS!$B7,【D】NPS!$B$4:$B$76,0), MATCH(NPS!AS$2&NPS!$AG$1,【D】NPS!$C$2:$GO$2&【D】NPS!$C$3:$GO$3,0)) -> 15 | AT7: =INDEX(【D】NPS!$C$4:$GO$76,MATCH(NPS!$B7,【D】NPS!$B$4:$B$76,0), MATCH(NPS!AT$2&NPS!$AG$1,【D】NPS!$C$2:$GO$2&【D】NPS!$C$3:$GO$3,0)) -> 10 | AV7: 5 | AW7: 5 | AX7: レインボーライン エリア | AY7: 50 | AZ7: =INDEX(【D】NPS!$C$7:$HB$76, MATCH(NPS!$AX7,【D】NPS!$B$7:$B$76,0), MATCH(NPS!$AZ$2&NPS!$AW$1,【D】NPS!$C$1:$HB$1&【D】NPS!$C$2:$HB$2,0)) -> 6
B8: ガラガラ山キャンプ場 エリア | D8: =INDEX(【D】NPS!$C$4:$GO$76,MATCH(NPS!$B8,【D】NPS!$B$4:$B$76,0), MATCH(NPS!D$2&NPS!$C$1,【D】NPS!$C$2:$GO$2&【D】NPS!$C$3:$GO$3,0)) -> None | E8: =INDEX(【D】NPS!$C$4:$GO$76,MATCH(NPS!$B8,【D】NPS!$B$4:$B$76,0), MATCH(NPS!E$2&NPS!$C$1,【D】NPS!$C$2:$GO$2&【D】NPS!$C$3:$GO$3,0)) -> 33.33333333 | F8: =INDEX(【D】NPS!$C$4:$GO$76,MATCH(NPS!$B8,【D】NPS!$B$4:$B$76,0), MATCH(NPS!F$2&NPS!$C$1,【D】NPS!$C$2:$GO$2&【D】NPS!$C$3:$GO$3,0)) -> 80 | G8: =INDEX(【D】NPS!$C$4:$GO$76,MATCH(NPS!$B8,【D】NPS!$B$4:$B$76,0), MATCH(NPS!G$2&NPS!$C$1,【D】NPS!$C$2:$GO$2&【D】NPS!$C$3:$GO$3,0)) -> 50 | H8: =INDEX(【D】NPS!$C$4:$GO$76,MATCH(NPS!$B8,【D】NPS!$B$4:$B$76,0), MATCH(NPS!H$2&NPS!$C$1,【D】NPS!$C$2:$GO$2&【D】NPS!$C$3:$GO$3,0)) -> 80 | I8: =INDEX(【D】NPS!$C$4:$GO$76,MATCH(NPS!$B8,【D】NPS!$B$4:$B$76,0), MATCH(NPS!I$2&NPS!$C$1,【D】NPS!$C$2:$GO$2&【D】NPS!$C$3:$GO$3,0)) -> 100 | J8: =INDEX(【D】NPS!$C$4:$GO$76,MATCH(NPS!$B8,【D】NPS!$B$4:$B$76,0), MATCH(NPS!J$2&NPS!$C$1,【D】NPS!$C$2:$GO$2&【D】NPS!$C$3:$GO$3,0)) -> 0 | K8: =INDEX(【D】NPS!$C$4:$GO$76,MATCH(NPS!$B8,【D】NPS!$B$4:$B$76,0), MATCH(NPS!K$2&NPS!$C$1,【D】NPS!$C$2:$GO$2&【D】NPS!$C$3:$GO$3,0)) -> 33.33333333 | L8: =INDEX(【D】NPS!$C$4:$GO$76,MATCH(NPS!$B8,【D】NPS!$B$4:$B$76,0), MATCH(NPS!L$2&NPS!$C$1,【D】NPS!$C$2:$GO$2&【D】NPS!$C$3:$GO$3,0)) -> 20 | M8: =INDEX(【D】NPS!$C$4:$GO$76,MATCH(NPS!$B8,【D】NPS!$B$4:$B$76,0), MATCH(NPS!M$2&NPS!$C$1,【D】NPS!$C$2:$GO$2&【D】NPS!$C$3:$GO$3,0)) -> 0 | N8: =INDEX(【D】NPS!$C$4:$GO$76,MATCH(NPS!$B8,【D】NPS!$B$4:$B$76,0), MATCH(NPS!N$2&NPS!$C$1,【D】NPS!$C$2:$GO$2&【D】NPS!$C$3:$GO$3,0)) -> None | O8: =INDEX(【D】NPS!$C$4:$GO$76,MATCH(NPS!$B8,【D】NPS!$B$4:$B$76,0), MATCH(NPS!O$2&NPS!$C$1,【D】NPS!$C$2:$GO$2&【D】NPS!$C$3:$GO$3,0)) -> None | P8: =INDEX(【D】NPS!$C$4:$GO$76,MATCH(NPS!$B8,【D】NPS!$B$4:$B$76,0), MATCH(NPS!P$2&NPS!$C$1,【D】NPS!$C$2:$GO$2&【D】NPS!$C$3:$GO$3,0)) -> 48.64864865 | S8: =INDEX(【D】NPS!$C$4:$GO$76,MATCH(NPS!$B8,【D】NPS!$B$4:$B$76,0), MATCH(NPS!S$2&NPS!$R$1,【D】NPS!$C$2:$GO$2&【D】NPS!$C$3:$GO$3,0)) -> - | T8: =INDEX(【D】NPS!$C$4:$GO$76,MATCH(NPS!$B8,【D】NPS!$B$4:$B$76,0), MATCH(NPS!T$2&NPS!$R$1,【D】NPS!$C$2:$GO$2&【D】NPS!$C$3:$GO$3,0)) -> 6 | U8: =INDEX(【D】NPS!$C$4:$GO$76,MATCH(NPS!$B8,【D】NPS!$B$4:$B$76,0), MATCH(NPS!U$2&NPS!$R$1,【D】NPS!$C$2:$GO$2&【D】NPS!$C$3:$GO$3,0)) -> 7 | V8: =INDEX(【D】NPS!$C$4:$GO$76,MATCH(NPS!$B8,【D】NPS!$B$4:$B$76,0), MATCH(NPS!V$2&NPS!$R$1,【D】NPS!$C$2:$GO$2&【D】NPS!$C$3:$GO$3,0)) -> 8 | W8: =INDEX(【D】NPS!$C$4:$GO$76,MATCH(NPS!$B8,【D】NPS!$B$4:$B$76,0), MATCH(NPS!W$2&NPS!$R$1,【D】NPS!$C$2:$GO$2&【D】NPS!$C$3:$GO$3,0)) -> 2 | X8: =INDEX(【D】NPS!$C$4:$GO$76,MATCH(NPS!$B8,【D】NPS!$B$4:$B$76,0), MATCH(NPS!X$2&NPS!$R$1,【D】NPS!$C$2:$GO$2&【D】NPS!$C$3:$GO$3,0)) -> 1 | Y8: =INDEX(【D】NPS!$C$4:$GO$76,MATCH(NPS!$B8,【D】NPS!$B$4:$B$76,0), MATCH(NPS!Y$2&NPS!$R$1,【D】NPS!$C$2:$GO$2&【D】NPS!$C$3:$GO$3,0)) -> 37 | Z8: =INDEX(【D】NPS!$C$4:$GO$76,MATCH(NPS!$B8,【D】NPS!$B$4:$B$76,0), MATCH(NPS!Z$2&NPS!$R$1,【D】NPS!$C$2:$GO$2&【D】NPS!$C$3:$GO$3,0)) -> 4 | AA8: =INDEX(【D】NPS!$C$4:$GO$76,MATCH(NPS!$B8,【D】NPS!$B$4:$B$76,0), MATCH(NPS!AA$2&NPS!$R$1,【D】NPS!$C$2:$GO$2&【D】NPS!$C$3:$GO$3,0)) -> 9 | AB8: =INDEX(【D】NPS!$C$4:$GO$76,MATCH(NPS!$B8,【D】NPS!$B$4:$B$76,0), MATCH(NPS!AB$2&NPS!$R$1,【D】NPS!$C$2:$GO$2&【D】NPS!$C$3:$GO$3,0)) -> 27 | AC8: =INDEX(【D】NPS!$C$4:$GO$76,MATCH(NPS!$B8,【D】NPS!$B$4:$B$76,0), MATCH(NPS!AC$2&NPS!$R$1,【D】NPS!$C$2:$GO$2&【D】NPS!$C$3:$GO$3,0)) -> - | AD8: =INDEX(【D】NPS!$C$4:$GO$76,MATCH(NPS!$B8,【D】NPS!$B$4:$B$76,0), MATCH(NPS!AD$2&NPS!$R$1,【D】NPS!$C$2:$GO$2&【D】NPS!$C$3:$GO$3,0)) -> - | AE8: =INDEX(【D】NPS!$C$4:$GO$76,MATCH(NPS!$B8,【D】NPS!$B$4:$B$76,0), MATCH(NPS!AE$2&NPS!$R$1,【D】NPS!$C$2:$GO$2&【D】NPS!$C$3:$GO$3,0)) -> 2 | AH8: =INDEX(【D】NPS!$C$4:$GO$76,MATCH(NPS!$B8,【D】NPS!$B$4:$B$76,0), MATCH(NPS!AH$2&NPS!$AG$1,【D】NPS!$C$2:$GO$2&【D】NPS!$C$3:$GO$3,0)) -> - | AI8: =INDEX(【D】NPS!$C$4:$GO$76,MATCH(NPS!$B8,【D】NPS!$B$4:$B$76,0), MATCH(NPS!AI$2&NPS!$AG$1,【D】NPS!$C$2:$GO$2&【D】NPS!$C$3:$GO$3,0)) -> 6 | AJ8: =INDEX(【D】NPS!$C$4:$GO$76,MATCH(NPS!$B8,【D】NPS!$B$4:$B$76,0), MATCH(NPS!AJ$2&NPS!$AG$1,【D】NPS!$C$2:$GO$2&【D】NPS!$C$3:$GO$3,0)) -> 7 | AK8: =INDEX(【D】NPS!$C$4:$GO$76,MATCH(NPS!$B8,【D】NPS!$B$4:$B$76,0), MATCH(NPS!AK$2&NPS!$AG$1,【D】NPS!$C$2:$GO$2&【D】NPS!$C$3:$GO$3,0)) -> 10 | AL8: =INDEX(【D】NPS!$C$4:$GO$76,MATCH(NPS!$B8,【D】NPS!$B$4:$B$76,0), MATCH(NPS!AL$2&NPS!$AG$1,【D】NPS!$C$2:$GO$2&【D】NPS!$C$3:$GO$3,0)) -> 2 | AM8: =INDEX(【D】NPS!$C$4:$GO$76,MATCH(NPS!$B8,【D】NPS!$B$4:$B$76,0), MATCH(NPS!AM$2&NPS!$AG$1,【D】NPS!$C$2:$GO$2&【D】NPS!$C$3:$GO$3,0)) -> 4 | AN8: =INDEX(【D】NPS!$C$4:$GO$76,MATCH(NPS!$B8,【D】NPS!$B$4:$B$76,0), MATCH(NPS!AN$2&NPS!$AG$1,【D】NPS!$C$2:$GO$2&【D】NPS!$C$3:$GO$3,0)) -> 40 | AO8: =INDEX(【D】NPS!$C$4:$GO$76,MATCH(NPS!$B8,【D】NPS!$B$4:$B$76,0), MATCH(NPS!AO$2&NPS!$AG$1,【D】NPS!$C$2:$GO$2&【D】NPS!$C$3:$GO$3,0)) -> 4 | AP8: =INDEX(【D】NPS!$C$4:$GO$76,MATCH(NPS!$B8,【D】NPS!$B$4:$B$76,0), MATCH(NPS!AP$2&NPS!$AG$1,【D】NPS!$C$2:$GO$2&【D】NPS!$C$3:$GO$3,0)) -> 11 | AQ8: =INDEX(【D】NPS!$C$4:$GO$76,MATCH(NPS!$B8,【D】NPS!$B$4:$B$76,0), MATCH(NPS!AQ$2&NPS!$AG$1,【D】NPS!$C$2:$GO$2&【D】NPS!$C$3:$GO$3,0)) -> 36 | AR8: =INDEX(【D】NPS!$C$4:$GO$76,MATCH(NPS!$B8,【D】NPS!$B$4:$B$76,0), MATCH(NPS!AR$2&NPS!$AG$1,【D】NPS!$C$2:$GO$2&【D】NPS!$C$3:$GO$3,0)) -> - | AS8: =INDEX(【D】NPS!$C$4:$GO$76,MATCH(NPS!$B8,【D】NPS!$B$4:$B$76,0), MATCH(NPS!AS$2&NPS!$AG$1,【D】NPS!$C$2:$GO$2&【D】NPS!$C$3:$GO$3,0)) -> - | AT8: =INDEX(【D】NPS!$C$4:$GO$76,MATCH(NPS!$B8,【D】NPS!$B$4:$B$76,0), MATCH(NPS!AT$2&NPS!$AG$1,【D】NPS!$C$2:$GO$2&【D】NPS!$C$3:$GO$3,0)) -> 2 | AV8: 6 | AW8: 5 | AX8: 箸のふるさと館WAKASA エリア | AY8: 50 | AZ8: =INDEX(【D】NPS!$C$7:$HB$76, MATCH(NPS!$AX8,【D】NPS!$B$7:$B$76,0), MATCH(NPS!$AZ$2&NPS!$AW$1,【D】NPS!$C$1:$HB$1&【D】NPS!$C$2:$HB$2,0)) -> 2
B9: 福井駅前 エリア | D9: =INDEX(【D】NPS!$C$4:$GO$76,MATCH(NPS!$B9,【D】NPS!$B$4:$B$76,0), MATCH(NPS!D$2&NPS!$C$1,【D】NPS!$C$2:$GO$2&【D】NPS!$C$3:$GO$3,0)) -> 16.66666667 | E9: =INDEX(【D】NPS!$C$4:$GO$76,MATCH(NPS!$B9,【D】NPS!$B$4:$B$76,0), MATCH(NPS!E$2&NPS!$C$1,【D】NPS!$C$2:$GO$2&【D】NPS!$C$3:$GO$3,0)) -> -17.24137931 | F9: =INDEX(【D】NPS!$C$4:$GO$76,MATCH(NPS!$B9,【D】NPS!$B$4:$B$76,0), MATCH(NPS!F$2&NPS!$C$1,【D】NPS!$C$2:$GO$2&【D】NPS!$C$3:$GO$3,0)) -> -28.57142857 | G9: =INDEX(【D】NPS!$C$4:$GO$76,MATCH(NPS!$B9,【D】NPS!$B$4:$B$76,0), MATCH(NPS!G$2&NPS!$C$1,【D】NPS!$C$2:$GO$2&【D】NPS!$C$3:$GO$3,0)) -> 14 | H9: =INDEX(【D】NPS!$C$4:$GO$76,MATCH(NPS!$B9,【D】NPS!$B$4:$B$76,0), MATCH(NPS!H$2&NPS!$C$1,【D】NPS!$C$2:$GO$2&【D】NPS!$C$3:$GO$3,0)) -> -12.5 | I9: =INDEX(【D】NPS!$C$4:$GO$76,MATCH(NPS!$B9,【D】NPS!$B$4:$B$76,0), MATCH(NPS!I$2&NPS!$C$1,【D】NPS!$C$2:$GO$2&【D】NPS!$C$3:$GO$3,0)) -> -16.21621622 | J9: =INDEX(【D】NPS!$C$4:$GO$76,MATCH(NPS!$B9,【D】NPS!$B$4:$B$76,0), MATCH(NPS!J$2&NPS!$C$1,【D】NPS!$C$2:$GO$2&【D】NPS!$C$3:$GO$3,0)) -> -4.666666667 | K9: =INDEX(【D】NPS!$C$4:$GO$76,MATCH(NPS!$B9,【D】NPS!$B$4:$B$76,0), MATCH(NPS!K$2&NPS!$C$1,【D】NPS!$C$2:$GO$2&【D】NPS!$C$3:$GO$3,0)) -> -4.615384615 | L9: =INDEX(【D】NPS!$C$4:$GO$76,MATCH(NPS!$B9,【D】NPS!$B$4:$B$76,0), MATCH(NPS!L$2&NPS!$C$1,【D】NPS!$C$2:$GO$2&【D】NPS!$C$3:$GO$3,0)) -> -3.2 | M9: =INDEX(【D】NPS!$C$4:$GO$76,MATCH(NPS!$B9,【D】NPS!$B$4:$B$76,0), MATCH(NPS!M$2&NPS!$C$1,【D】NPS!$C$2:$GO$2&【D】NPS!$C$3:$GO$3,0)) -> 2.941176471 | N9: =INDEX(【D】NPS!$C$4:$GO$76,MATCH(NPS!$B9,【D】NPS!$B$4:$B$76,0), MATCH(NPS!N$2&NPS!$C$1,【D】NPS!$C$2:$GO$2&【D】NPS!$C$3:$GO$3,0)) -> -2.469135802 | O9: =INDEX(【D】NPS!$C$4:$GO$76,MATCH(NPS!$B9,【D】NPS!$B$4:$B$76,0), MATCH(NPS!O$2&NPS!$C$1,【D】NPS!$C$2:$GO$2&【D】NPS!$C$3:$GO$3,0)) -> 10 | P9: =INDEX(【D】NPS!$C$4:$GO$76,MATCH(NPS!$B9,【D】NPS!$B$4:$B$76,0), MATCH(NPS!P$2&NPS!$C$1,【D】NPS!$C$2:$GO$2&【D】NPS!$C$3:$GO$3,0)) -> -5.599104143 | S9: =INDEX(【D】NPS!$C$4:$GO$76,MATCH(NPS!$B9,【D】NPS!$B$4:$B$76,0), MATCH(NPS!S$2&NPS!$R$1,【D】NPS!$C$2:$GO$2&【D】NPS!$C$3:$GO$3,0)) -> 20 | T9: =INDEX(【D】NPS!$C$4:$GO$76,MATCH(NPS!$B9,【D】NPS!$B$4:$B$76,0), MATCH(NPS!T$2&NPS!$R$1,【D】NPS!$C$2:$GO$2&【D】NPS!$C$3:$GO$3,0)) -> 54 | U9: =INDEX(【D】NPS!$C$4:$GO$76,MATCH(NPS!$B9,【D】NPS!$B$4:$B$76,0), MATCH(NPS!U$2&NPS!$R$1,【D】NPS!$C$2:$GO$2&【D】NPS!$C$3:$GO$3,0)) -> 60 | V9: =INDEX(【D】NPS!$C$4:$GO$76,MATCH(NPS!$B9,【D】NPS!$B$4:$B$76,0), MATCH(NPS!V$2&NPS!$R$1,【D】NPS!$C$2:$GO$2&【D】NPS!$C$3:$GO$3,0)) -> 23 | W9: =INDEX(【D】NPS!$C$4:$GO$76,MATCH(NPS!$B9,【D】NPS!$B$4:$B$76,0), MATCH(NPS!W$2&NPS!$R$1,【D】NPS!$C$2:$GO$2&【D】NPS!$C$3:$GO$3,0)) -> 50 | X9: =INDEX(【D】NPS!$C$4:$GO$76,MATCH(NPS!$B9,【D】NPS!$B$4:$B$76,0), MATCH(NPS!X$2&NPS!$R$1,【D】NPS!$C$2:$GO$2&【D】NPS!$C$3:$GO$3,0)) -> 55 | Y9: =INDEX(【D】NPS!$C$4:$GO$76,MATCH(NPS!$B9,【D】NPS!$B$4:$B$76,0), MATCH(NPS!Y$2&NPS!$R$1,【D】NPS!$C$2:$GO$2&【D】NPS!$C$3:$GO$3,0)) -> 48 | Z9: =INDEX(【D】NPS!$C$4:$GO$76,MATCH(NPS!$B9,【D】NPS!$B$4:$B$76,0), MATCH(NPS!Z$2&NPS!$R$1,【D】NPS!$C$2:$GO$2&【D】NPS!$C$3:$GO$3,0)) -> 42 | AA9: =INDEX(【D】NPS!$C$4:$GO$76,MATCH(NPS!$B9,【D】NPS!$B$4:$B$76,0), MATCH(NPS!AA$2&NPS!$R$1,【D】NPS!$C$2:$GO$2&【D】NPS!$C$3:$GO$3,0)) -> 43 | AB9: =INDEX(【D】NPS!$C$4:$GO$76,MATCH(NPS!$B9,【D】NPS!$B$4:$B$76,0), MATCH(NPS!AB$2&NPS!$R$1,【D】NPS!$C$2:$GO$2&【D】NPS!$C$3:$GO$3,0)) -> 26 | AC9: =INDEX(【D】NPS!$C$4:$GO$76,MATCH(NPS!$B9,【D】NPS!$B$4:$B$76,0), MATCH(NPS!AC$2&NPS!$R$1,【D】NPS!$C$2:$GO$2&【D】NPS!$C$3:$GO$3,0)) -> 32 | AD9: =INDEX(【D】NPS!$C$4:$GO$76,MATCH(NPS!$B9,【D】NPS!$B$4:$B$76,0), MATCH(NPS!AD$2&NPS!$R$1,【D】NPS!$C$2:$GO$2&【D】NPS!$C$3:$GO$3,0)) -> 23 | AE9: =INDEX(【D】NPS!$C$4:$GO$76,MATCH(NPS!$B9,【D】NPS!$B$4:$B$76,0), MATCH(NPS!AE$2&NPS!$R$1,【D】NPS!$C$2:$GO$2&【D】NPS!$C$3:$GO$3,0)) -> 46 | AH9: =INDEX(【D】NPS!$C$4:$GO$76,MATCH(NPS!$B9,【D】NPS!$B$4:$B$76,0), MATCH(NPS!AH$2&NPS!$AG$1,【D】NPS!$C$2:$GO$2&【D】NPS!$C$3:$GO$3,0)) -> 21 | AI9: =INDEX(【D】NPS!$C$4:$GO$76,MATCH(NPS!$B9,【D】NPS!$B$4:$B$76,0), MATCH(NPS!AI$2&NPS!$AG$1,【D】NPS!$C$2:$GO$2&【D】NPS!$C$3:$GO$3,0)) -> 54 | AJ9: =INDEX(【D】NPS!$C$4:$GO$76,MATCH(NPS!$B9,【D】NPS!$B$4:$B$76,0), MATCH(NPS!AJ$2&NPS!$AG$1,【D】NPS!$C$2:$GO$2&【D】NPS!$C$3:$GO$3,0)) -> 61 | AK9: =INDEX(【D】NPS!$C$4:$GO$76,MATCH(NPS!$B9,【D】NPS!$B$4:$B$76,0), MATCH(NPS!AK$2&NPS!$AG$1,【D】NPS!$C$2:$GO$2&【D】NPS!$C$3:$GO$3,0)) -> 23 | AL9: =INDEX(【D】NPS!$C$4:$GO$76,MATCH(NPS!$B9,【D】NPS!$B$4:$B$76,0), MATCH(NPS!AL$2&NPS!$AG$1,【D】NPS!$C$2:$GO$2&【D】NPS!$C$3:$GO$3,0)) -> 50 | AM9: =INDEX(【D】NPS!$C$4:$GO$76,MATCH(NPS!$B9,【D】NPS!$B$4:$B$76,0), MATCH(NPS!AM$2&NPS!$AG$1,【D】NPS!$C$2:$GO$2&【D】NPS!$C$3:$GO$3,0)) -> 55 | AN9: =INDEX(【D】NPS!$C$4:$GO$76,MATCH(NPS!$B9,【D】NPS!$B$4:$B$76,0), MATCH(NPS!AN$2&NPS!$AG$1,【D】NPS!$C$2:$GO$2&【D】NPS!$C$3:$GO$3,0)) -> 48 | AO9: =INDEX(【D】NPS!$C$4:$GO$76,MATCH(NPS!$B9,【D】NPS!$B$4:$B$76,0), MATCH(NPS!AO$2&NPS!$AG$1,【D】NPS!$C$2:$GO$2&【D】NPS!$C$3:$GO$3,0)) -> 42 | AP9: =INDEX(【D】NPS!$C$4:$GO$76,MATCH(NPS!$B9,【D】NPS!$B$4:$B$76,0), MATCH(NPS!AP$2&NPS!$AG$1,【D】NPS!$C$2:$GO$2&【D】NPS!$C$3:$GO$3,0)) -> 43 | AQ9: =INDEX(【D】NPS!$C$4:$GO$76,MATCH(NPS!$B9,【D】NPS!$B$4:$B$76,0), MATCH(NPS!AQ$2&NPS!$AG$1,【D】NPS!$C$2:$GO$2&【D】NPS!$C$3:$GO$3,0)) -> 26 | AR9: =INDEX(【D】NPS!$C$4:$GO$76,MATCH(NPS!$B9,【D】NPS!$B$4:$B$76,0), MATCH(NPS!AR$2&NPS!$AG$1,【D】NPS!$C$2:$GO$2&【D】NPS!$C$3:$GO$3,0)) -> 32 | AS9: =INDEX(【D】NPS!$C$4:$GO$76,MATCH(NPS!$B9,【D】NPS!$B$4:$B$76,0), MATCH(NPS!AS$2&NPS!$AG$1,【D】NPS!$C$2:$GO$2&【D】NPS!$C$3:$GO$3,0)) -> 25 | AT9: =INDEX(【D】NPS!$C$4:$GO$76,MATCH(NPS!$B9,【D】NPS!$B$4:$B$76,0), MATCH(NPS!AT$2&NPS!$AG$1,【D】NPS!$C$2:$GO$2&【D】NPS!$C$3:$GO$3,0)) -> 46 | AV9: 7 | AW9: 5 | AX9: 福井県立若狭歴史博物館 エリア | AY9: 50 | AZ9: =INDEX(【D】NPS!$C$7:$HB$76, MATCH(NPS!$AX9,【D】NPS!$B$7:$B$76,0), MATCH(NPS!$AZ$2&NPS!$AW$1,【D】NPS!$C$1:$HB$1&【D】NPS!$C$2:$HB$2,0)) -> 2
B10: 名勝 養浩館庭園 エリア | D10: =INDEX(【D】NPS!$C$4:$GO$76,MATCH(NPS!$B10,【D】NPS!$B$4:$B$76,0), MATCH(NPS!D$2&NPS!$C$1,【D】NPS!$C$2:$GO$2&【D】NPS!$C$3:$GO$3,0)) -> 0 | E10: =INDEX(【D】NPS!$C$4:$GO$76,MATCH(NPS!$B10,【D】NPS!$B$4:$B$76,0), MATCH(NPS!E$2&NPS!$C$1,【D】NPS!$C$2:$GO$2&【D】NPS!$C$3:$GO$3,0)) -> -8.695652174 | F10: =INDEX(【D】NPS!$C$4:$GO$76,MATCH(NPS!$B10,【D】NPS!$B$4:$B$76,0), MATCH(NPS!F$2&NPS!$C$1,【D】NPS!$C$2:$GO$2&【D】NPS!$C$3:$GO$3,0)) -> 100 | G10: =INDEX(【D】NPS!$C$4:$GO$76,MATCH(NPS!$B10,【D】NPS!$B$4:$B$76,0), MATCH(NPS!G$2&NPS!$C$1,【D】NPS!$C$2:$GO$2&【D】NPS!$C$3:$GO$3,0)) -> None | H10: =INDEX(【D】NPS!$C$4:$GO$76,MATCH(NPS!$B10,【D】NPS!$B$4:$B$76,0), MATCH(NPS!H$2&NPS!$C$1,【D】NPS!$C$2:$GO$2&【D】NPS!$C$3:$GO$3,0)) -> -60 | I10: =INDEX(【D】NPS!$C$4:$GO$76,MATCH(NPS!$B10,【D】NPS!$B$4:$B$76,0), MATCH(NPS!I$2&NPS!$C$1,【D】NPS!$C$2:$GO$2&【D】NPS!$C$3:$GO$3,0)) -> 100 | J10: =INDEX(【D】NPS!$C$4:$GO$76,MATCH(NPS!$B10,【D】NPS!$B$4:$B$76,0), MATCH(NPS!J$2&NPS!$C$1,【D】NPS!$C$2:$GO$2&【D】NPS!$C$3:$GO$3,0)) -> -12.5 | K10: =INDEX(【D】NPS!$C$4:$GO$76,MATCH(NPS!$B10,【D】NPS!$B$4:$B$76,0), MATCH(NPS!K$2&NPS!$C$1,【D】NPS!$C$2:$GO$2&【D】NPS!$C$3:$GO$3,0)) -> 11.11111111 | L10: =INDEX(【D】NPS!$C$4:$GO$76,MATCH(NPS!$B10,【D】NPS!$B$4:$B$76,0), MATCH(NPS!L$2&NPS!$C$1,【D】NPS!$C$2:$GO$2&【D】NPS!$C$3:$GO$3,0)) -> 0 | M10: =INDEX(【D】NPS!$C$4:$GO$76,MATCH(NPS!$B10,【D】NPS!$B$4:$B$76,0), MATCH(NPS!M$2&NPS!$C$1,【D】NPS!$C$2:$GO$2&【D】NPS!$C$3:$GO$3,0)) -> -50 | N10: =INDEX(【D】NPS!$C$4:$GO$76,MATCH(NPS!$B10,【D】NPS!$B$4:$B$76,0), MATCH(NPS!N$2&NPS!$C$1,【D】NPS!$C$2:$GO$2&【D】NPS!$C$3:$GO$3,0)) -> 10.52631579 | O10: =INDEX(【D】NPS!$C$4:$GO$76,MATCH(NPS!$B10,【D】NPS!$B$4:$B$76,0), MATCH(NPS!O$2&NPS!$C$1,【D】NPS!$C$2:$GO$2&【D】NPS!$C$3:$GO$3,0)) -> -33.33333333 | P10: =INDEX(【D】NPS!$C$4:$GO$76,MATCH(NPS!$B10,【D】NPS!$B$4:$B$76,0), MATCH(NPS!P$2&NPS!$C$1,【D】NPS!$C$2:$GO$2&【D】NPS!$C$3:$GO$3,0)) -> -0.7874015748 | S10: =INDEX(【D】NPS!$C$4:$GO$76,MATCH(NPS!$B10,【D】NPS!$B$4:$B$76,0), MATCH(NPS!S$2&NPS!$R$1,【D】NPS!$C$2:$GO$2&【D】NPS!$C$3:$GO$3,0)) -> 25 | T10: =INDEX(【D】NPS!$C$4:$GO$76,MATCH(NPS!$B10,【D】NPS!$B$4:$B$76,0), MATCH(NPS!T$2&NPS!$R$1,【D】NPS!$C$2:$GO$2&【D】NPS!$C$3:$GO$3,0)) -> 44 | U10: =INDEX(【D】NPS!$C$4:$GO$76,MATCH(NPS!$B10,【D】NPS!$B$4:$B$76,0), MATCH(NPS!U$2&NPS!$R$1,【D】NPS!$C$2:$GO$2&【D】NPS!$C$3:$GO$3,0)) -> 1 | V10: =INDEX(【D】NPS!$C$4:$GO$76,MATCH(NPS!$B10,【D】NPS!$B$4:$B$76,0), MATCH(NPS!V$2&NPS!$R$1,【D】NPS!$C$2:$GO$2&【D】NPS!$C$3:$GO$3,0)) -> - | W10: =INDEX(【D】NPS!$C$4:$GO$76,MATCH(NPS!$B10,【D】NPS!$B$4:$B$76,0), MATCH(NPS!W$2&NPS!$R$1,【D】NPS!$C$2:$GO$2&【D】NPS!$C$3:$GO$3,0)) -> 68 | X10: =INDEX(【D】NPS!$C$4:$GO$76,MATCH(NPS!$B10,【D】NPS!$B$4:$B$76,0), MATCH(NPS!X$2&NPS!$R$1,【D】NPS!$C$2:$GO$2&【D】NPS!$C$3:$GO$3,0)) -> 1 | Y10: =INDEX(【D】NPS!$C$4:$GO$76,MATCH(NPS!$B10,【D】NPS!$B$4:$B$76,0), MATCH(NPS!Y$2&NPS!$R$1,【D】NPS!$C$2:$GO$2&【D】NPS!$C$3:$GO$3,0)) -> 54 | Z10: =INDEX(【D】NPS!$C$4:$GO$76,MATCH(NPS!$B10,【D】NPS!$B$4:$B$76,0), MATCH(NPS!Z$2&NPS!$R$1,【D】NPS!$C$2:$GO$2&【D】NPS!$C$3:$GO$3,0)) -> 19 | AA10: =INDEX(【D】NPS!$C$4:$GO$76,MATCH(NPS!$B10,【D】NPS!$B$4:$B$76,0), MATCH(NPS!AA$2&NPS!$R$1,【D】NPS!$C$2:$GO$2&【D】NPS!$C$3:$GO$3,0)) -> 35 | AB10: =INDEX(【D】NPS!$C$4:$GO$76,MATCH(NPS!$B10,【D】NPS!$B$4:$B$76,0), MATCH(NPS!AB$2&NPS!$R$1,【D】NPS!$C$2:$GO$2&【D】NPS!$C$3:$GO$3,0)) -> 59 | AC10: =INDEX(【D】NPS!$C$4:$GO$76,MATCH(NPS!$B10,【D】NPS!$B$4:$B$76,0), MATCH(NPS!AC$2&NPS!$R$1,【D】NPS!$C$2:$GO$2&【D】NPS!$C$3:$GO$3,0)) -> 18 | AD10: =INDEX(【D】NPS!$C$4:$GO$76,MATCH(NPS!$B10,【D】NPS!$B$4:$B$76,0), MATCH(NPS!AD$2&NPS!$R$1,【D】NPS!$C$2:$GO$2&【D】NPS!$C$3:$GO$3,0)) -> 44 | AE10: =INDEX(【D】NPS!$C$4:$GO$76,MATCH(NPS!$B10,【D】NPS!$B$4:$B$76,0), MATCH(NPS!AE$2&NPS!$R$1,【D】NPS!$C$2:$GO$2&【D】NPS!$C$3:$GO$3,0)) -> 38 | AH10: =INDEX(【D】NPS!$C$4:$GO$76,MATCH(NPS!$B10,【D】NPS!$B$4:$B$76,0), MATCH(NPS!AH$2&NPS!$AG$1,【D】NPS!$C$2:$GO$2&【D】NPS!$C$3:$GO$3,0)) -> 33 | AI10: =INDEX(【D】NPS!$C$4:$GO$76,MATCH(NPS!$B10,【D】NPS!$B$4:$B$76,0), MATCH(NPS!AI$2&NPS!$AG$1,【D】NPS!$C$2:$GO$2&【D】NPS!$C$3:$GO$3,0)) -> 44 | AJ10: =INDEX(【D】NPS!$C$4:$GO$76,MATCH(NPS!$B10,【D】NPS!$B$4:$B$76,0), MATCH(NPS!AJ$2&NPS!$AG$1,【D】NPS!$C$2:$GO$2&【D】NPS!$C$3:$GO$3,0)) -> 6 | AK10: =INDEX(【D】NPS!$C$4:$GO$76,MATCH(NPS!$B10,【D】NPS!$B$4:$B$76,0), MATCH(NPS!AK$2&NPS!$AG$1,【D】NPS!$C$2:$GO$2&【D】NPS!$C$3:$GO$3,0)) -> - | AL10: =INDEX(【D】NPS!$C$4:$GO$76,MATCH(NPS!$B10,【D】NPS!$B$4:$B$76,0), MATCH(NPS!AL$2&NPS!$AG$1,【D】NPS!$C$2:$GO$2&【D】NPS!$C$3:$GO$3,0)) -> 68 | AM10: =INDEX(【D】NPS!$C$4:$GO$76,MATCH(NPS!$B10,【D】NPS!$B$4:$B$76,0), MATCH(NPS!AM$2&NPS!$AG$1,【D】NPS!$C$2:$GO$2&【D】NPS!$C$3:$GO$3,0)) -> 3 | AN10: =INDEX(【D】NPS!$C$4:$GO$76,MATCH(NPS!$B10,【D】NPS!$B$4:$B$76,0), MATCH(NPS!AN$2&NPS!$AG$1,【D】NPS!$C$2:$GO$2&【D】NPS!$C$3:$GO$3,0)) -> 54 | AO10: =INDEX(【D】NPS!$C$4:$GO$76,MATCH(NPS!$B10,【D】NPS!$B$4:$B$76,0), MATCH(NPS!AO$2&NPS!$AG$1,【D】NPS!$C$2:$GO$2&【D】NPS!$C$3:$GO$3,0)) -> 19 | AP10: =INDEX(【D】NPS!$C$4:$GO$76,MATCH(NPS!$B10,【D】NPS!$B$4:$B$76,0), MATCH(NPS!AP$2&NPS!$AG$1,【D】NPS!$C$2:$GO$2&【D】NPS!$C$3:$GO$3,0)) -> 42 | AQ10: =INDEX(【D】NPS!$C$4:$GO$76,MATCH(NPS!$B10,【D】NPS!$B$4:$B$76,0), MATCH(NPS!AQ$2&NPS!$AG$1,【D】NPS!$C$2:$GO$2&【D】NPS!$C$3:$GO$3,0)) -> 61 | AR10: =INDEX(【D】NPS!$C$4:$GO$76,MATCH(NPS!$B10,【D】NPS!$B$4:$B$76,0), MATCH(NPS!AR$2&NPS!$AG$1,【D】NPS!$C$2:$GO$2&【D】NPS!$C$3:$GO$3,0)) -> 19 | AS10: =INDEX(【D】NPS!$C$4:$GO$76,MATCH(NPS!$B10,【D】NPS!$B$4:$B$76,0), MATCH(NPS!AS$2&NPS!$AG$1,【D】NPS!$C$2:$GO$2&【D】NPS!$C$3:$GO$3,0)) -> 47 | AT10: =INDEX(【D】NPS!$C$4:$GO$76,MATCH(NPS!$B10,【D】NPS!$B$4:$B$76,0), MATCH(NPS!AT$2&NPS!$AG$1,【D】NPS!$C$2:$GO$2&【D】NPS!$C$3:$GO$3,0)) -> 38 | AV10: 8 | AW10: 5 | AX10: 永平寺町 エリア | AY10: 50 | AZ10: =INDEX(【D】NPS!$C$7:$HB$76, MATCH(NPS!$AX10,【D】NPS!$B$7:$B$76,0), MATCH(NPS!$AZ$2&NPS!$AW$1,【D】NPS!$C$1:$HB$1&【D】NPS!$C$2:$HB$2,0)) -> 2
B11: 東尋坊 エリア | D11: =INDEX(【D】NPS!$C$4:$GO$76,MATCH(NPS!$B11,【D】NPS!$B$4:$B$76,0), MATCH(NPS!D$2&NPS!$C$1,【D】NPS!$C$2:$GO$2&【D】NPS!$C$3:$GO$3,0)) -> 29.41176471 | E11: =INDEX(【D】NPS!$C$4:$GO$76,MATCH(NPS!$B11,【D】NPS!$B$4:$B$76,0), MATCH(NPS!E$2&NPS!$C$1,【D】NPS!$C$2:$GO$2&【D】NPS!$C$3:$GO$3,0)) -> 3.278688525 | F11: =INDEX(【D】NPS!$C$4:$GO$76,MATCH(NPS!$B11,【D】NPS!$B$4:$B$76,0), MATCH(NPS!F$2&NPS!$C$1,【D】NPS!$C$2:$GO$2&【D】NPS!$C$3:$GO$3,0)) -> 22.72727273 | G11: =INDEX(【D】NPS!$C$4:$GO$76,MATCH(NPS!$B11,【D】NPS!$B$4:$B$76,0), MATCH(NPS!G$2&NPS!$C$1,【D】NPS!$C$2:$GO$2&【D】NPS!$C$3:$GO$3,0)) -> 2.631578947 | H11: =INDEX(【D】NPS!$C$4:$GO$76,MATCH(NPS!$B11,【D】NPS!$B$4:$B$76,0), MATCH(NPS!H$2&NPS!$C$1,【D】NPS!$C$2:$GO$2&【D】NPS!$C$3:$GO$3,0)) -> -2.272727273 | I11: =INDEX(【D】NPS!$C$4:$GO$76,MATCH(NPS!$B11,【D】NPS!$B$4:$B$76,0), MATCH(NPS!I$2&NPS!$C$1,【D】NPS!$C$2:$GO$2&【D】NPS!$C$3:$GO$3,0)) -> 22.03389831 | J11: =INDEX(【D】NPS!$C$4:$GO$76,MATCH(NPS!$B11,【D】NPS!$B$4:$B$76,0), MATCH(NPS!J$2&NPS!$C$1,【D】NPS!$C$2:$GO$2&【D】NPS!$C$3:$GO$3,0)) -> 0 | K11: =INDEX(【D】NPS!$C$4:$GO$76,MATCH(NPS!$B11,【D】NPS!$B$4:$B$76,0), MATCH(NPS!K$2&NPS!$C$1,【D】NPS!$C$2:$GO$2&【D】NPS!$C$3:$GO$3,0)) -> 6.040268456 | L11: =INDEX(【D】NPS!$C$4:$GO$76,MATCH(NPS!$B11,【D】NPS!$B$4:$B$76,0), MATCH(NPS!L$2&NPS!$C$1,【D】NPS!$C$2:$GO$2&【D】NPS!$C$3:$GO$3,0)) -> 16 | M11: =INDEX(【D】NPS!$C$4:$GO$76,MATCH(NPS!$B11,【D】NPS!$B$4:$B$76,0), MATCH(NPS!M$2&NPS!$C$1,【D】NPS!$C$2:$GO$2&【D】NPS!$C$3:$GO$3,0)) -> 0 | N11: =INDEX(【D】NPS!$C$4:$GO$76,MATCH(NPS!$B11,【D】NPS!$B$4:$B$76,0), MATCH(NPS!N$2&NPS!$C$1,【D】NPS!$C$2:$GO$2&【D】NPS!$C$3:$GO$3,0)) -> -11.42857143 | O11: =INDEX(【D】NPS!$C$4:$GO$76,MATCH(NPS!$B11,【D】NPS!$B$4:$B$76,0), MATCH(NPS!O$2&NPS!$C$1,【D】NPS!$C$2:$GO$2&【D】NPS!$C$3:$GO$3,0)) -> 57.14285714 | P11: =INDEX(【D】NPS!$C$4:$GO$76,MATCH(NPS!$B11,【D】NPS!$B$4:$B$76,0), MATCH(NPS!P$2&NPS!$C$1,【D】NPS!$C$2:$GO$2&【D】NPS!$C$3:$GO$3,0)) -> 7.670454545 | S11: =INDEX(【D】NPS!$C$4:$GO$76,MATCH(NPS!$B11,【D】NPS!$B$4:$B$76,0), MATCH(NPS!S$2&NPS!$R$1,【D】NPS!$C$2:$GO$2&【D】NPS!$C$3:$GO$3,0)) -> 14 | T11: =INDEX(【D】NPS!$C$4:$GO$76,MATCH(NPS!$B11,【D】NPS!$B$4:$B$76,0), MATCH(NPS!T$2&NPS!$R$1,【D】NPS!$C$2:$GO$2&【D】NPS!$C$3:$GO$3,0)) -> 30 | U11: =INDEX(【D】NPS!$C$4:$GO$76,MATCH(NPS!$B11,【D】NPS!$B$4:$B$76,0), MATCH(NPS!U$2&NPS!$R$1,【D】NPS!$C$2:$GO$2&【D】NPS!$C$3:$GO$3,0)) -> 21 | V11: =INDEX(【D】NPS!$C$4:$GO$76,MATCH(NPS!$B11,【D】NPS!$B$4:$B$76,0), MATCH(NPS!V$2&NPS!$R$1,【D】NPS!$C$2:$GO$2&【D】NPS!$C$3:$GO$3,0)) -> 29 | W11: =INDEX(【D】NPS!$C$4:$GO$76,MATCH(NPS!$B11,【D】NPS!$B$4:$B$76,0), MATCH(NPS!W$2&NPS!$R$1,【D】NPS!$C$2:$GO$2&【D】NPS!$C$3:$GO$3,0)) -> 40 | X11: =INDEX(【D】NPS!$C$4:$GO$76,MATCH(NPS!$B11,【D】NPS!$B$4:$B$76,0), MATCH(NPS!X$2&NPS!$R$1,【D】NPS!$C$2:$GO$2&【D】NPS!$C$3:$GO$3,0)) -> 18 | Y11: =INDEX(【D】NPS!$C$4:$GO$76,MATCH(NPS!$B11,【D】NPS!$B$4:$B$76,0), MATCH(NPS!Y$2&NPS!$R$1,【D】NPS!$C$2:$GO$2&【D】NPS!$C$3:$GO$3,0)) -> 37 | Z11: =INDEX(【D】NPS!$C$4:$GO$76,MATCH(NPS!$B11,【D】NPS!$B$4:$B$76,0), MATCH(NPS!Z$2&NPS!$R$1,【D】NPS!$C$2:$GO$2&【D】NPS!$C$3:$GO$3,0)) -> 28 | AA11: =INDEX(【D】NPS!$C$4:$GO$76,MATCH(NPS!$B11,【D】NPS!$B$4:$B$76,0), MATCH(NPS!AA$2&NPS!$R$1,【D】NPS!$C$2:$GO$2&【D】NPS!$C$3:$GO$3,0)) -> 16 | AB11: =INDEX(【D】NPS!$C$4:$GO$76,MATCH(NPS!$B11,【D】NPS!$B$4:$B$76,0), MATCH(NPS!AB$2&NPS!$R$1,【D】NPS!$C$2:$GO$2&【D】NPS!$C$3:$GO$3,0)) -> 27 | AC11: =INDEX(【D】NPS!$C$4:$GO$76,MATCH(NPS!$B11,【D】NPS!$B$4:$B$76,0), MATCH(NPS!AC$2&NPS!$R$1,【D】NPS!$C$2:$GO$2&【D】NPS!$C$3:$GO$3,0)) -> 37 | AD11: =INDEX(【D】NPS!$C$4:$GO$76,MATCH(NPS!$B11,【D】NPS!$B$4:$B$76,0), MATCH(NPS!AD$2&NPS!$R$1,【D】NPS!$C$2:$GO$2&【D】NPS!$C$3:$GO$3,0)) -> 4 | AE11: =INDEX(【D】NPS!$C$4:$GO$76,MATCH(NPS!$B11,【D】NPS!$B$4:$B$76,0), MATCH(NPS!AE$2&NPS!$R$1,【D】NPS!$C$2:$GO$2&【D】NPS!$C$3:$GO$3,0)) -> 21 | AH11: =INDEX(【D】NPS!$C$4:$GO$76,MATCH(NPS!$B11,【D】NPS!$B$4:$B$76,0), MATCH(NPS!AH$2&NPS!$AG$1,【D】NPS!$C$2:$GO$2&【D】NPS!$C$3:$GO$3,0)) -> 14 | AI11: =INDEX(【D】NPS!$C$4:$GO$76,MATCH(NPS!$B11,【D】NPS!$B$4:$B$76,0), MATCH(NPS!AI$2&NPS!$AG$1,【D】NPS!$C$2:$GO$2&【D】NPS!$C$3:$GO$3,0)) -> 30 | AJ11: =INDEX(【D】NPS!$C$4:$GO$76,MATCH(NPS!$B11,【D】NPS!$B$4:$B$76,0), MATCH(NPS!AJ$2&NPS!$AG$1,【D】NPS!$C$2:$GO$2&【D】NPS!$C$3:$GO$3,0)) -> 21 | AK11: =INDEX(【D】NPS!$C$4:$GO$76,MATCH(NPS!$B11,【D】NPS!$B$4:$B$76,0), MATCH(NPS!AK$2&NPS!$AG$1,【D】NPS!$C$2:$GO$2&【D】NPS!$C$3:$GO$3,0)) -> 29 | AL11: =INDEX(【D】NPS!$C$4:$GO$76,MATCH(NPS!$B11,【D】NPS!$B$4:$B$76,0), MATCH(NPS!AL$2&NPS!$AG$1,【D】NPS!$C$2:$GO$2&【D】NPS!$C$3:$GO$3,0)) -> 40 | AM11: =INDEX(【D】NPS!$C$4:$GO$76,MATCH(NPS!$B11,【D】NPS!$B$4:$B$76,0), MATCH(NPS!AM$2&NPS!$AG$1,【D】NPS!$C$2:$GO$2&【D】NPS!$C$3:$GO$3,0)) -> 18 | AN11: =INDEX(【D】NPS!$C$4:$GO$76,MATCH(NPS!$B11,【D】NPS!$B$4:$B$76,0), MATCH(NPS!AN$2&NPS!$AG$1,【D】NPS!$C$2:$GO$2&【D】NPS!$C$3:$GO$3,0)) -> 39 | AO11: =INDEX(【D】NPS!$C$4:$GO$76,MATCH(NPS!$B11,【D】NPS!$B$4:$B$76,0), MATCH(NPS!AO$2&NPS!$AG$1,【D】NPS!$C$2:$GO$2&【D】NPS!$C$3:$GO$3,0)) -> 28 | AP11: =INDEX(【D】NPS!$C$4:$GO$76,MATCH(NPS!$B11,【D】NPS!$B$4:$B$76,0), MATCH(NPS!AP$2&NPS!$AG$1,【D】NPS!$C$2:$GO$2&【D】NPS!$C$3:$GO$3,0)) -> 16 | AQ11: =INDEX(【D】NPS!$C$4:$GO$76,MATCH(NPS!$B11,【D】NPS!$B$4:$B$76,0), MATCH(NPS!AQ$2&NPS!$AG$1,【D】NPS!$C$2:$GO$2&【D】NPS!$C$3:$GO$3,0)) -> 35 | AR11: =INDEX(【D】NPS!$C$4:$GO$76,MATCH(NPS!$B11,【D】NPS!$B$4:$B$76,0), MATCH(NPS!AR$2&NPS!$AG$1,【D】NPS!$C$2:$GO$2&【D】NPS!$C$3:$GO$3,0)) -> 37 | AS11: =INDEX(【D】NPS!$C$4:$GO$76,MATCH(NPS!$B11,【D】NPS!$B$4:$B$76,0), MATCH(NPS!AS$2&NPS!$AG$1,【D】NPS!$C$2:$GO$2&【D】NPS!$C$3:$GO$3,0)) -> 4 | AT11: =INDEX(【D】NPS!$C$4:$GO$76,MATCH(NPS!$B11,【D】NPS!$B$4:$B$76,0), MATCH(NPS!AT$2&NPS!$AG$1,【D】NPS!$C$2:$GO$2&【D】NPS!$C$3:$GO$3,0)) -> 21 | AV11: 9 | AW11: 5 | AX11: スーベニアショップ ラプトル エリア | AY11: 50 | AZ11: =INDEX(【D】NPS!$C$7:$HB$76, MATCH(NPS!$AX11,【D】NPS!$B$7:$B$76,0), MATCH(NPS!$AZ$2&NPS!$AW$1,【D】NPS!$C$1:$HB$1&【D】NPS!$C$2:$HB$2,0)) -> 2
B12: 芝政ワールド エリア | D12: =INDEX(【D】NPS!$C$4:$GO$76,MATCH(NPS!$B12,【D】NPS!$B$4:$B$76,0), MATCH(NPS!D$2&NPS!$C$1,【D】NPS!$C$2:$GO$2&【D】NPS!$C$3:$GO$3,0)) -> 0 | E12: =INDEX(【D】NPS!$C$4:$GO$76,MATCH(NPS!$B12,【D】NPS!$B$4:$B$76,0), MATCH(NPS!E$2&NPS!$C$1,【D】NPS!$C$2:$GO$2&【D】NPS!$C$3:$GO$3,0)) -> -20 | F12: =INDEX(【D】NPS!$C$4:$GO$76,MATCH(NPS!$B12,【D】NPS!$B$4:$B$76,0), MATCH(NPS!F$2&NPS!$C$1,【D】NPS!$C$2:$GO$2&【D】NPS!$C$3:$GO$3,0)) -> 100 | G12: =INDEX(【D】NPS!$C$4:$GO$76,MATCH(NPS!$B12,【D】NPS!$B$4:$B$76,0), MATCH(NPS!G$2&NPS!$C$1,【D】NPS!$C$2:$GO$2&【D】NPS!$C$3:$GO$3,0)) -> 50 | H12: =INDEX(【D】NPS!$C$4:$GO$76,MATCH(NPS!$B12,【D】NPS!$B$4:$B$76,0), MATCH(NPS!H$2&NPS!$C$1,【D】NPS!$C$2:$GO$2&【D】NPS!$C$3:$GO$3,0)) -> 42.42424242 | I12: =INDEX(【D】NPS!$C$4:$GO$76,MATCH(NPS!$B12,【D】NPS!$B$4:$B$76,0), MATCH(NPS!I$2&NPS!$C$1,【D】NPS!$C$2:$GO$2&【D】NPS!$C$3:$GO$3,0)) -> 66.66666667 | J12: =INDEX(【D】NPS!$C$4:$GO$76,MATCH(NPS!$B12,【D】NPS!$B$4:$B$76,0), MATCH(NPS!J$2&NPS!$C$1,【D】NPS!$C$2:$GO$2&【D】NPS!$C$3:$GO$3,0)) -> 8 | K12: =INDEX(【D】NPS!$C$4:$GO$76,MATCH(NPS!$B12,【D】NPS!$B$4:$B$76,0), MATCH(NPS!K$2&NPS!$C$1,【D】NPS!$C$2:$GO$2&【D】NPS!$C$3:$GO$3,0)) -> -2.777777778 | L12: =INDEX(【D】NPS!$C$4:$GO$76,MATCH(NPS!$B12,【D】NPS!$B$4:$B$76,0), MATCH(NPS!L$2&NPS!$C$1,【D】NPS!$C$2:$GO$2&【D】NPS!$C$3:$GO$3,0)) -> 0 | M12: =INDEX(【D】NPS!$C$4:$GO$76,MATCH(NPS!$B12,【D】NPS!$B$4:$B$76,0), MATCH(NPS!M$2&NPS!$C$1,【D】NPS!$C$2:$GO$2&【D】NPS!$C$3:$GO$3,0)) -> -10.52631579 | N12: =INDEX(【D】NPS!$C$4:$GO$76,MATCH(NPS!$B12,【D】NPS!$B$4:$B$76,0), MATCH(NPS!N$2&NPS!$C$1,【D】NPS!$C$2:$GO$2&【D】NPS!$C$3:$GO$3,0)) -> -18.75 | O12: =INDEX(【D】NPS!$C$4:$GO$76,MATCH(NPS!$B12,【D】NPS!$B$4:$B$76,0), MATCH(NPS!O$2&NPS!$C$1,【D】NPS!$C$2:$GO$2&【D】NPS!$C$3:$GO$3,0)) -> 0 | P12: =INDEX(【D】NPS!$C$4:$GO$76,MATCH(NPS!$B12,【D】NPS!$B$4:$B$76,0), MATCH(NPS!P$2&NPS!$C$1,【D】NPS!$C$2:$GO$2&【D】NPS!$C$3:$GO$3,0)) -> 11.76470588 | S12: =INDEX(【D】NPS!$C$4:$GO$76,MATCH(NPS!$B12,【D】NPS!$B$4:$B$76,0), MATCH(NPS!S$2&NPS!$R$1,【D】NPS!$C$2:$GO$2&【D】NPS!$C$3:$GO$3,0)) -> 25 | T12: =INDEX(【D】NPS!$C$4:$GO$76,MATCH(NPS!$B12,【D】NPS!$B$4:$B$76,0), MATCH(NPS!T$2&NPS!$R$1,【D】NPS!$C$2:$GO$2&【D】NPS!$C$3:$GO$3,0)) -> 56 | U12: =INDEX(【D】NPS!$C$4:$GO$76,MATCH(NPS!$B12,【D】NPS!$B$4:$B$76,0), MATCH(NPS!U$2&NPS!$R$1,【D】NPS!$C$2:$GO$2&【D】NPS!$C$3:$GO$3,0)) -> 1 | V12: =INDEX(【D】NPS!$C$4:$GO$76,MATCH(NPS!$B12,【D】NPS!$B$4:$B$76,0), MATCH(NPS!V$2&NPS!$R$1,【D】NPS!$C$2:$GO$2&【D】NPS!$C$3:$GO$3,0)) -> 8 | W12: =INDEX(【D】NPS!$C$4:$GO$76,MATCH(NPS!$B12,【D】NPS!$B$4:$B$76,0), MATCH(NPS!W$2&NPS!$R$1,【D】NPS!$C$2:$GO$2&【D】NPS!$C$3:$GO$3,0)) -> 10 | X12: =INDEX(【D】NPS!$C$4:$GO$76,MATCH(NPS!$B12,【D】NPS!$B$4:$B$76,0), MATCH(NPS!X$2&NPS!$R$1,【D】NPS!$C$2:$GO$2&【D】NPS!$C$3:$GO$3,0)) -> 5 | Y12: =INDEX(【D】NPS!$C$4:$GO$76,MATCH(NPS!$B12,【D】NPS!$B$4:$B$76,0), MATCH(NPS!Y$2&NPS!$R$1,【D】NPS!$C$2:$GO$2&【D】NPS!$C$3:$GO$3,0)) -> 28 | Z12: =INDEX(【D】NPS!$C$4:$GO$76,MATCH(NPS!$B12,【D】NPS!$B$4:$B$76,0), MATCH(NPS!Z$2&NPS!$R$1,【D】NPS!$C$2:$GO$2&【D】NPS!$C$3:$GO$3,0)) -> 38 | AA12: =INDEX(【D】NPS!$C$4:$GO$76,MATCH(NPS!$B12,【D】NPS!$B$4:$B$76,0), MATCH(NPS!AA$2&NPS!$R$1,【D】NPS!$C$2:$GO$2&【D】NPS!$C$3:$GO$3,0)) -> 35 | AB12: =INDEX(【D】NPS!$C$4:$GO$76,MATCH(NPS!$B12,【D】NPS!$B$4:$B$76,0), MATCH(NPS!AB$2&NPS!$R$1,【D】NPS!$C$2:$GO$2&【D】NPS!$C$3:$GO$3,0)) -> 42 | AC12: =INDEX(【D】NPS!$C$4:$GO$76,MATCH(NPS!$B12,【D】NPS!$B$4:$B$76,0), MATCH(NPS!AC$2&NPS!$R$1,【D】NPS!$C$2:$GO$2&【D】NPS!$C$3:$GO$3,0)) -> 42 | AD12: =INDEX(【D】NPS!$C$4:$GO$76,MATCH(NPS!$B12,【D】NPS!$B$4:$B$76,0), MATCH(NPS!AD$2&NPS!$R$1,【D】NPS!$C$2:$GO$2&【D】NPS!$C$3:$GO$3,0)) -> 27 | AE12: =INDEX(【D】NPS!$C$4:$GO$76,MATCH(NPS!$B12,【D】NPS!$B$4:$B$76,0), MATCH(NPS!AE$2&NPS!$R$1,【D】NPS!$C$2:$GO$2&【D】NPS!$C$3:$GO$3,0)) -> 16 | AH12: =INDEX(【D】NPS!$C$4:$GO$76,MATCH(NPS!$B12,【D】NPS!$B$4:$B$76,0), MATCH(NPS!AH$2&NPS!$AG$1,【D】NPS!$C$2:$GO$2&【D】NPS!$C$3:$GO$3,0)) -> 32 | AI12: =INDEX(【D】NPS!$C$4:$GO$76,MATCH(NPS!$B12,【D】NPS!$B$4:$B$76,0), MATCH(NPS!AI$2&NPS!$AG$1,【D】NPS!$C$2:$GO$2&【D】NPS!$C$3:$GO$3,0)) -> 56 | AJ12: =INDEX(【D】NPS!$C$4:$GO$76,MATCH(NPS!$B12,【D】NPS!$B$4:$B$76,0), MATCH(NPS!AJ$2&NPS!$AG$1,【D】NPS!$C$2:$GO$2&【D】NPS!$C$3:$GO$3,0)) -> 5 | AK12: =INDEX(【D】NPS!$C$4:$GO$76,MATCH(NPS!$B12,【D】NPS!$B$4:$B$76,0), MATCH(NPS!AK$2&NPS!$AG$1,【D】NPS!$C$2:$GO$2&【D】NPS!$C$3:$GO$3,0)) -> 9 | AL12: =INDEX(【D】NPS!$C$4:$GO$76,MATCH(NPS!$B12,【D】NPS!$B$4:$B$76,0), MATCH(NPS!AL$2&NPS!$AG$1,【D】NPS!$C$2:$GO$2&【D】NPS!$C$3:$GO$3,0)) -> 10 | AM12: =INDEX(【D】NPS!$C$4:$GO$76,MATCH(NPS!$B12,【D】NPS!$B$4:$B$76,0), MATCH(NPS!AM$2&NPS!$AG$1,【D】NPS!$C$2:$GO$2&【D】NPS!$C$3:$GO$3,0)) -> 5 | AN12: =INDEX(【D】NPS!$C$4:$GO$76,MATCH(NPS!$B12,【D】NPS!$B$4:$B$76,0), MATCH(NPS!AN$2&NPS!$AG$1,【D】NPS!$C$2:$GO$2&【D】NPS!$C$3:$GO$3,0)) -> 28 | AO12: =INDEX(【D】NPS!$C$4:$GO$76,MATCH(NPS!$B12,【D】NPS!$B$4:$B$76,0), MATCH(NPS!AO$2&NPS!$AG$1,【D】NPS!$C$2:$GO$2&【D】NPS!$C$3:$GO$3,0)) -> 38 | AP12: =INDEX(【D】NPS!$C$4:$GO$76,MATCH(NPS!$B12,【D】NPS!$B$4:$B$76,0), MATCH(NPS!AP$2&NPS!$AG$1,【D】NPS!$C$2:$GO$2&【D】NPS!$C$3:$GO$3,0)) -> 41 | AQ12: =INDEX(【D】NPS!$C$4:$GO$76,MATCH(NPS!$B12,【D】NPS!$B$4:$B$76,0), MATCH(NPS!AQ$2&NPS!$AG$1,【D】NPS!$C$2:$GO$2&【D】NPS!$C$3:$GO$3,0)) -> 42 | AR12: =INDEX(【D】NPS!$C$4:$GO$76,MATCH(NPS!$B12,【D】NPS!$B$4:$B$76,0), MATCH(NPS!AR$2&NPS!$AG$1,【D】NPS!$C$2:$GO$2&【D】NPS!$C$3:$GO$3,0)) -> 42 | AS12: =INDEX(【D】NPS!$C$4:$GO$76,MATCH(NPS!$B12,【D】NPS!$B$4:$B$76,0), MATCH(NPS!AS$2&NPS!$AG$1,【D】NPS!$C$2:$GO$2&【D】NPS!$C$3:$GO$3,0)) -> 35 | AT12: =INDEX(【D】NPS!$C$4:$GO$76,MATCH(NPS!$B12,【D】NPS!$B$4:$B$76,0), MATCH(NPS!AT$2&NPS!$AG$1,【D】NPS!$C$2:$GO$2&【D】NPS!$C$3:$GO$3,0)) -> 16 | AV12: 10 | AW12: 5 | AX12: 道の駅「越前おおの荒島の郷」 エリア | AY12: 50 | AZ12: =INDEX(【D】NPS!$C$7:$HB$76, MATCH(NPS!$AX12,【D】NPS!$B$7:$B$76,0), MATCH(NPS!$AZ$2&NPS!$AW$1,【D】NPS!$C$1:$HB$1&【D】NPS!$C$2:$HB$2,0)) -> 14
B13: 丸岡城 エリア | D13: =INDEX(【D】NPS!$C$4:$GO$76,MATCH(NPS!$B13,【D】NPS!$B$4:$B$76,0), MATCH(NPS!D$2&NPS!$C$1,【D】NPS!$C$2:$GO$2&【D】NPS!$C$3:$GO$3,0)) -> None | E13: =INDEX(【D】NPS!$C$4:$GO$76,MATCH(NPS!$B13,【D】NPS!$B$4:$B$76,0), MATCH(NPS!E$2&NPS!$C$1,【D】NPS!$C$2:$GO$2&【D】NPS!$C$3:$GO$3,0)) -> 16.66666667 | F13: =INDEX(【D】NPS!$C$4:$GO$76,MATCH(NPS!$B13,【D】NPS!$B$4:$B$76,0), MATCH(NPS!F$2&NPS!$C$1,【D】NPS!$C$2:$GO$2&【D】NPS!$C$3:$GO$3,0)) -> 8.333333333 | G13: =INDEX(【D】NPS!$C$4:$GO$76,MATCH(NPS!$B13,【D】NPS!$B$4:$B$76,0), MATCH(NPS!G$2&NPS!$C$1,【D】NPS!$C$2:$GO$2&【D】NPS!$C$3:$GO$3,0)) -> -21.42857143 | H13: =INDEX(【D】NPS!$C$4:$GO$76,MATCH(NPS!$B13,【D】NPS!$B$4:$B$76,0), MATCH(NPS!H$2&NPS!$C$1,【D】NPS!$C$2:$GO$2&【D】NPS!$C$3:$GO$3,0)) -> -11.76470588 | I13: =INDEX(【D】NPS!$C$4:$GO$76,MATCH(NPS!$B13,【D】NPS!$B$4:$B$76,0), MATCH(NPS!I$2&NPS!$C$1,【D】NPS!$C$2:$GO$2&【D】NPS!$C$3:$GO$3,0)) -> 33.33333333 | J13: =INDEX(【D】NPS!$C$4:$GO$76,MATCH(NPS!$B13,【D】NPS!$B$4:$B$76,0), MATCH(NPS!J$2&NPS!$C$1,【D】NPS!$C$2:$GO$2&【D】NPS!$C$3:$GO$3,0)) -> -9.523809524 | K13: =INDEX(【D】NPS!$C$4:$GO$76,MATCH(NPS!$B13,【D】NPS!$B$4:$B$76,0), MATCH(NPS!K$2&NPS!$C$1,【D】NPS!$C$2:$GO$2&【D】NPS!$C$3:$GO$3,0)) -> 3.157894737 | L13: =INDEX(【D】NPS!$C$4:$GO$76,MATCH(NPS!$B13,【D】NPS!$B$4:$B$76,0), MATCH(NPS!L$2&NPS!$C$1,【D】NPS!$C$2:$GO$2&【D】NPS!$C$3:$GO$3,0)) -> 21.95121951 | M13: =INDEX(【D】NPS!$C$4:$GO$76,MATCH(NPS!$B13,【D】NPS!$B$4:$B$76,0), MATCH(NPS!M$2&NPS!$C$1,【D】NPS!$C$2:$GO$2&【D】NPS!$C$3:$GO$3,0)) -> -8.695652174 | N13: =INDEX(【D】NPS!$C$4:$GO$76,MATCH(NPS!$B13,【D】NPS!$B$4:$B$76,0), MATCH(NPS!N$2&NPS!$C$1,【D】NPS!$C$2:$GO$2&【D】NPS!$C$3:$GO$3,0)) -> -12.5 | O13: =INDEX(【D】NPS!$C$4:$GO$76,MATCH(NPS!$B13,【D】NPS!$B$4:$B$76,0), MATCH(NPS!O$2&NPS!$C$1,【D】NPS!$C$2:$GO$2&【D】NPS!$C$3:$GO$3,0)) -> 42.85714286 | P13: =INDEX(【D】NPS!$C$4:$GO$76,MATCH(NPS!$B13,【D】NPS!$B$4:$B$76,0), MATCH(NPS!P$2&NPS!$C$1,【D】NPS!$C$2:$GO$2&【D】NPS!$C$3:$GO$3,0)) -> 3.012048193 | S13: =INDEX(【D】NPS!$C$4:$GO$76,MATCH(NPS!$B13,【D】NPS!$B$4:$B$76,0), MATCH(NPS!S$2&NPS!$R$1,【D】NPS!$C$2:$GO$2&【D】NPS!$C$3:$GO$3,0)) -> - | T13: =INDEX(【D】NPS!$C$4:$GO$76,MATCH(NPS!$B13,【D】NPS!$B$4:$B$76,0), MATCH(NPS!T$2&NPS!$R$1,【D】NPS!$C$2:$GO$2&【D】NPS!$C$3:$GO$3,0)) -> 17 | U13: =INDEX(【D】NPS!$C$4:$GO$76,MATCH(NPS!$B13,【D】NPS!$B$4:$B$76,0), MATCH(NPS!U$2&NPS!$R$1,【D】NPS!$C$2:$GO$2&【D】NPS!$C$3:$GO$3,0)) -> 31 | V13: =INDEX(【D】NPS!$C$4:$GO$76,MATCH(NPS!$B13,【D】NPS!$B$4:$B$76,0), MATCH(NPS!V$2&NPS!$R$1,【D】NPS!$C$2:$GO$2&【D】NPS!$C$3:$GO$3,0)) -> 48 | W13: =INDEX(【D】NPS!$C$4:$GO$76,MATCH(NPS!$B13,【D】NPS!$B$4:$B$76,0), MATCH(NPS!W$2&NPS!$R$1,【D】NPS!$C$2:$GO$2&【D】NPS!$C$3:$GO$3,0)) -> 47 | X13: =INDEX(【D】NPS!$C$4:$GO$76,MATCH(NPS!$B13,【D】NPS!$B$4:$B$76,0), MATCH(NPS!X$2&NPS!$R$1,【D】NPS!$C$2:$GO$2&【D】NPS!$C$3:$GO$3,0)) -> 10 | Y13: =INDEX(【D】NPS!$C$4:$GO$76,MATCH(NPS!$B13,【D】NPS!$B$4:$B$76,0), MATCH(NPS!Y$2&NPS!$R$1,【D】NPS!$C$2:$GO$2&【D】NPS!$C$3:$GO$3,0)) -> 53 | Z13: =INDEX(【D】NPS!$C$4:$GO$76,MATCH(NPS!$B13,【D】NPS!$B$4:$B$76,0), MATCH(NPS!Z$2&NPS!$R$1,【D】NPS!$C$2:$GO$2&【D】NPS!$C$3:$GO$3,0)) -> 31 | AA13: =INDEX(【D】NPS!$C$4:$GO$76,MATCH(NPS!$B13,【D】NPS!$B$4:$B$76,0), MATCH(NPS!AA$2&NPS!$R$1,【D】NPS!$C$2:$GO$2&【D】NPS!$C$3:$GO$3,0)) -> 8 | AB13: =INDEX(【D】NPS!$C$4:$GO$76,MATCH(NPS!$B13,【D】NPS!$B$4:$B$76,0), MATCH(NPS!AB$2&NPS!$R$1,【D】NPS!$C$2:$GO$2&【D】NPS!$C$3:$GO$3,0)) -> 39 | AC13: =INDEX(【D】NPS!$C$4:$GO$76,MATCH(NPS!$B13,【D】NPS!$B$4:$B$76,0), MATCH(NPS!AC$2&NPS!$R$1,【D】NPS!$C$2:$GO$2&【D】NPS!$C$3:$GO$3,0)) -> 38 | AD13: =INDEX(【D】NPS!$C$4:$GO$76,MATCH(NPS!$B13,【D】NPS!$B$4:$B$76,0), MATCH(NPS!AD$2&NPS!$R$1,【D】NPS!$C$2:$GO$2&【D】NPS!$C$3:$GO$3,0)) -> 11 | AE13: =INDEX(【D】NPS!$C$4:$GO$76,MATCH(NPS!$B13,【D】NPS!$B$4:$B$76,0), MATCH(NPS!AE$2&NPS!$R$1,【D】NPS!$C$2:$GO$2&【D】NPS!$C$3:$GO$3,0)) -> 30 | AH13: =INDEX(【D】NPS!$C$4:$GO$76,MATCH(NPS!$B13,【D】NPS!$B$4:$B$76,0), MATCH(NPS!AH$2&NPS!$AG$1,【D】NPS!$C$2:$GO$2&【D】NPS!$C$3:$GO$3,0)) -> - | AI13: =INDEX(【D】NPS!$C$4:$GO$76,MATCH(NPS!$B13,【D】NPS!$B$4:$B$76,0), MATCH(NPS!AI$2&NPS!$AG$1,【D】NPS!$C$2:$GO$2&【D】NPS!$C$3:$GO$3,0)) -> 17 | AJ13: =INDEX(【D】NPS!$C$4:$GO$76,MATCH(NPS!$B13,【D】NPS!$B$4:$B$76,0), MATCH(NPS!AJ$2&NPS!$AG$1,【D】NPS!$C$2:$GO$2&【D】NPS!$C$3:$GO$3,0)) -> 32 | AK13: =INDEX(【D】NPS!$C$4:$GO$76,MATCH(NPS!$B13,【D】NPS!$B$4:$B$76,0), MATCH(NPS!AK$2&NPS!$AG$1,【D】NPS!$C$2:$GO$2&【D】NPS!$C$3:$GO$3,0)) -> 48 | AL13: =INDEX(【D】NPS!$C$4:$GO$76,MATCH(NPS!$B13,【D】NPS!$B$4:$B$76,0), MATCH(NPS!AL$2&NPS!$AG$1,【D】NPS!$C$2:$GO$2&【D】NPS!$C$3:$GO$3,0)) -> 48 | AM13: =INDEX(【D】NPS!$C$4:$GO$76,MATCH(NPS!$B13,【D】NPS!$B$4:$B$76,0), MATCH(NPS!AM$2&NPS!$AG$1,【D】NPS!$C$2:$GO$2&【D】NPS!$C$3:$GO$3,0)) -> 10 | AN13: =INDEX(【D】NPS!$C$4:$GO$76,MATCH(NPS!$B13,【D】NPS!$B$4:$B$76,0), MATCH(NPS!AN$2&NPS!$AG$1,【D】NPS!$C$2:$GO$2&【D】NPS!$C$3:$GO$3,0)) -> 53 | AO13: =INDEX(【D】NPS!$C$4:$GO$76,MATCH(NPS!$B13,【D】NPS!$B$4:$B$76,0), MATCH(NPS!AO$2&NPS!$AG$1,【D】NPS!$C$2:$GO$2&【D】NPS!$C$3:$GO$3,0)) -> 31 | AP13: =INDEX(【D】NPS!$C$4:$GO$76,MATCH(NPS!$B13,【D】NPS!$B$4:$B$76,0), MATCH(NPS!AP$2&NPS!$AG$1,【D】NPS!$C$2:$GO$2&【D】NPS!$C$3:$GO$3,0)) -> 8 | AQ13: =INDEX(【D】NPS!$C$4:$GO$76,MATCH(NPS!$B13,【D】NPS!$B$4:$B$76,0), MATCH(NPS!AQ$2&NPS!$AG$1,【D】NPS!$C$2:$GO$2&【D】NPS!$C$3:$GO$3,0)) -> 39 | AR13: =INDEX(【D】NPS!$C$4:$GO$76,MATCH(NPS!$B13,【D】NPS!$B$4:$B$76,0), MATCH(NPS!AR$2&NPS!$AG$1,【D】NPS!$C$2:$GO$2&【D】NPS!$C$3:$GO$3,0)) -> 38 | AS13: =INDEX(【D】NPS!$C$4:$GO$76,MATCH(NPS!$B13,【D】NPS!$B$4:$B$76,0), MATCH(NPS!AS$2&NPS!$AG$1,【D】NPS!$C$2:$GO$2&【D】NPS!$C$3:$GO$3,0)) -> 11 | AT13: =INDEX(【D】NPS!$C$4:$GO$76,MATCH(NPS!$B13,【D】NPS!$B$4:$B$76,0), MATCH(NPS!AT$2&NPS!$AG$1,【D】NPS!$C$2:$GO$2&【D】NPS!$C$3:$GO$3,0)) -> 30 | AV13: 11 | AW13: 11 | AX13: 丸岡城 エリア | AY13: 42.85714286 | AZ13: =INDEX(【D】NPS!$C$7:$HB$76, MATCH(NPS!$AX13,【D】NPS!$B$7:$B$76,0), MATCH(NPS!$AZ$2&NPS!$AW$1,【D】NPS!$C$1:$HB$1&【D】NPS!$C$2:$HB$2,0)) -> 7
B14: 花の駅 ゆりの里公園 エリア | D14: =INDEX(【D】NPS!$C$4:$GO$76,MATCH(NPS!$B14,【D】NPS!$B$4:$B$76,0), MATCH(NPS!D$2&NPS!$C$1,【D】NPS!$C$2:$GO$2&【D】NPS!$C$3:$GO$3,0)) -> -66.66666667 | E14: =INDEX(【D】NPS!$C$4:$GO$76,MATCH(NPS!$B14,【D】NPS!$B$4:$B$76,0), MATCH(NPS!E$2&NPS!$C$1,【D】NPS!$C$2:$GO$2&【D】NPS!$C$3:$GO$3,0)) -> 1.923076923 | F14: =INDEX(【D】NPS!$C$4:$GO$76,MATCH(NPS!$B14,【D】NPS!$B$4:$B$76,0), MATCH(NPS!F$2&NPS!$C$1,【D】NPS!$C$2:$GO$2&【D】NPS!$C$3:$GO$3,0)) -> 10 | G14: =INDEX(【D】NPS!$C$4:$GO$76,MATCH(NPS!$B14,【D】NPS!$B$4:$B$76,0), MATCH(NPS!G$2&NPS!$C$1,【D】NPS!$C$2:$GO$2&【D】NPS!$C$3:$GO$3,0)) -> -11.76470588 | H14: =INDEX(【D】NPS!$C$4:$GO$76,MATCH(NPS!$B14,【D】NPS!$B$4:$B$76,0), MATCH(NPS!H$2&NPS!$C$1,【D】NPS!$C$2:$GO$2&【D】NPS!$C$3:$GO$3,0)) -> 7.692307692 | I14: =INDEX(【D】NPS!$C$4:$GO$76,MATCH(NPS!$B14,【D】NPS!$B$4:$B$76,0), MATCH(NPS!I$2&NPS!$C$1,【D】NPS!$C$2:$GO$2&【D】NPS!$C$3:$GO$3,0)) -> 0 | J14: =INDEX(【D】NPS!$C$4:$GO$76,MATCH(NPS!$B14,【D】NPS!$B$4:$B$76,0), MATCH(NPS!J$2&NPS!$C$1,【D】NPS!$C$2:$GO$2&【D】NPS!$C$3:$GO$3,0)) -> 2.777777778 | K14: =INDEX(【D】NPS!$C$4:$GO$76,MATCH(NPS!$B14,【D】NPS!$B$4:$B$76,0), MATCH(NPS!K$2&NPS!$C$1,【D】NPS!$C$2:$GO$2&【D】NPS!$C$3:$GO$3,0)) -> -3.846153846 | L14: =INDEX(【D】NPS!$C$4:$GO$76,MATCH(NPS!$B14,【D】NPS!$B$4:$B$76,0), MATCH(NPS!L$2&NPS!$C$1,【D】NPS!$C$2:$GO$2&【D】NPS!$C$3:$GO$3,0)) -> 4.166666667 | M14: =INDEX(【D】NPS!$C$4:$GO$76,MATCH(NPS!$B14,【D】NPS!$B$4:$B$76,0), MATCH(NPS!M$2&NPS!$C$1,【D】NPS!$C$2:$GO$2&【D】NPS!$C$3:$GO$3,0)) -> -10 | N14: =INDEX(【D】NPS!$C$4:$GO$76,MATCH(NPS!$B14,【D】NPS!$B$4:$B$76,0), MATCH(NPS!N$2&NPS!$C$1,【D】NPS!$C$2:$GO$2&【D】NPS!$C$3:$GO$3,0)) -> 10.52631579 | O14: =INDEX(【D】NPS!$C$4:$GO$76,MATCH(NPS!$B14,【D】NPS!$B$4:$B$76,0), MATCH(NPS!O$2&NPS!$C$1,【D】NPS!$C$2:$GO$2&【D】NPS!$C$3:$GO$3,0)) -> -33.33333333 | P14: =INDEX(【D】NPS!$C$4:$GO$76,MATCH(NPS!$B14,【D】NPS!$B$4:$B$76,0), MATCH(NPS!P$2&NPS!$C$1,【D】NPS!$C$2:$GO$2&【D】NPS!$C$3:$GO$3,0)) -> 1.398601399 | S14: =INDEX(【D】NPS!$C$4:$GO$76,MATCH(NPS!$B14,【D】NPS!$B$4:$B$76,0), MATCH(NPS!S$2&NPS!$R$1,【D】NPS!$C$2:$GO$2&【D】NPS!$C$3:$GO$3,0)) -> 42 | T14: =INDEX(【D】NPS!$C$4:$GO$76,MATCH(NPS!$B14,【D】NPS!$B$4:$B$76,0), MATCH(NPS!T$2&NPS!$R$1,【D】NPS!$C$2:$GO$2&【D】NPS!$C$3:$GO$3,0)) -> 32 | U14: =INDEX(【D】NPS!$C$4:$GO$76,MATCH(NPS!$B14,【D】NPS!$B$4:$B$76,0), MATCH(NPS!U$2&NPS!$R$1,【D】NPS!$C$2:$GO$2&【D】NPS!$C$3:$GO$3,0)) -> 27 | V14: =INDEX(【D】NPS!$C$4:$GO$76,MATCH(NPS!$B14,【D】NPS!$B$4:$B$76,0), MATCH(NPS!V$2&NPS!$R$1,【D】NPS!$C$2:$GO$2&【D】NPS!$C$3:$GO$3,0)) -> 40 | W14: =INDEX(【D】NPS!$C$4:$GO$76,MATCH(NPS!$B14,【D】NPS!$B$4:$B$76,0), MATCH(NPS!W$2&NPS!$R$1,【D】NPS!$C$2:$GO$2&【D】NPS!$C$3:$GO$3,0)) -> 25 | X14: =INDEX(【D】NPS!$C$4:$GO$76,MATCH(NPS!$B14,【D】NPS!$B$4:$B$76,0), MATCH(NPS!X$2&NPS!$R$1,【D】NPS!$C$2:$GO$2&【D】NPS!$C$3:$GO$3,0)) -> 28 | Y14: =INDEX(【D】NPS!$C$4:$GO$76,MATCH(NPS!$B14,【D】NPS!$B$4:$B$76,0), MATCH(NPS!Y$2&NPS!$R$1,【D】NPS!$C$2:$GO$2&【D】NPS!$C$3:$GO$3,0)) -> 35 | Z14: =INDEX(【D】NPS!$C$4:$GO$76,MATCH(NPS!$B14,【D】NPS!$B$4:$B$76,0), MATCH(NPS!Z$2&NPS!$R$1,【D】NPS!$C$2:$GO$2&【D】NPS!$C$3:$GO$3,0)) -> 40 | AA14: =INDEX(【D】NPS!$C$4:$GO$76,MATCH(NPS!$B14,【D】NPS!$B$4:$B$76,0), MATCH(NPS!AA$2&NPS!$R$1,【D】NPS!$C$2:$GO$2&【D】NPS!$C$3:$GO$3,0)) -> 30 | AB14: =INDEX(【D】NPS!$C$4:$GO$76,MATCH(NPS!$B14,【D】NPS!$B$4:$B$76,0), MATCH(NPS!AB$2&NPS!$R$1,【D】NPS!$C$2:$GO$2&【D】NPS!$C$3:$GO$3,0)) -> 41 | AC14: =INDEX(【D】NPS!$C$4:$GO$76,MATCH(NPS!$B14,【D】NPS!$B$4:$B$76,0), MATCH(NPS!AC$2&NPS!$R$1,【D】NPS!$C$2:$GO$2&【D】NPS!$C$3:$GO$3,0)) -> 18 | AD14: =INDEX(【D】NPS!$C$4:$GO$76,MATCH(NPS!$B14,【D】NPS!$B$4:$B$76,0), MATCH(NPS!AD$2&NPS!$R$1,【D】NPS!$C$2:$GO$2&【D】NPS!$C$3:$GO$3,0)) -> 48 | AE14: =INDEX(【D】NPS!$C$4:$GO$76,MATCH(NPS!$B14,【D】NPS!$B$4:$B$76,0), MATCH(NPS!AE$2&NPS!$R$1,【D】NPS!$C$2:$GO$2&【D】NPS!$C$3:$GO$3,0)) -> 34 | AH14: =INDEX(【D】NPS!$C$4:$GO$76,MATCH(NPS!$B14,【D】NPS!$B$4:$B$76,0), MATCH(NPS!AH$2&NPS!$AG$1,【D】NPS!$C$2:$GO$2&【D】NPS!$C$3:$GO$3,0)) -> 42 | AI14: =INDEX(【D】NPS!$C$4:$GO$76,MATCH(NPS!$B14,【D】NPS!$B$4:$B$76,0), MATCH(NPS!AI$2&NPS!$AG$1,【D】NPS!$C$2:$GO$2&【D】NPS!$C$3:$GO$3,0)) -> 32 | AJ14: =INDEX(【D】NPS!$C$4:$GO$76,MATCH(NPS!$B14,【D】NPS!$B$4:$B$76,0), MATCH(NPS!AJ$2&NPS!$AG$1,【D】NPS!$C$2:$GO$2&【D】NPS!$C$3:$GO$3,0)) -> 28 | AK14: =INDEX(【D】NPS!$C$4:$GO$76,MATCH(NPS!$B14,【D】NPS!$B$4:$B$76,0), MATCH(NPS!AK$2&NPS!$AG$1,【D】NPS!$C$2:$GO$2&【D】NPS!$C$3:$GO$3,0)) -> 41 | AL14: =INDEX(【D】NPS!$C$4:$GO$76,MATCH(NPS!$B14,【D】NPS!$B$4:$B$76,0), MATCH(NPS!AL$2&NPS!$AG$1,【D】NPS!$C$2:$GO$2&【D】NPS!$C$3:$GO$3,0)) -> 26 | AM14: =INDEX(【D】NPS!$C$4:$GO$76,MATCH(NPS!$B14,【D】NPS!$B$4:$B$76,0), MATCH(NPS!AM$2&NPS!$AG$1,【D】NPS!$C$2:$GO$2&【D】NPS!$C$3:$GO$3,0)) -> 36 | AN14: =INDEX(【D】NPS!$C$4:$GO$76,MATCH(NPS!$B14,【D】NPS!$B$4:$B$76,0), MATCH(NPS!AN$2&NPS!$AG$1,【D】NPS!$C$2:$GO$2&【D】NPS!$C$3:$GO$3,0)) -> 35 | AO14: =INDEX(【D】NPS!$C$4:$GO$76,MATCH(NPS!$B14,【D】NPS!$B$4:$B$76,0), MATCH(NPS!AO$2&NPS!$AG$1,【D】NPS!$C$2:$GO$2&【D】NPS!$C$3:$GO$3,0)) -> 40 | AP14: =INDEX(【D】NPS!$C$4:$GO$76,MATCH(NPS!$B14,【D】NPS!$B$4:$B$76,0), MATCH(NPS!AP$2&NPS!$AG$1,【D】NPS!$C$2:$GO$2&【D】NPS!$C$3:$GO$3,0)) -> 30 | AQ14: =INDEX(【D】NPS!$C$4:$GO$76,MATCH(NPS!$B14,【D】NPS!$B$4:$B$76,0), MATCH(NPS!AQ$2&NPS!$AG$1,【D】NPS!$C$2:$GO$2&【D】NPS!$C$3:$GO$3,0)) -> 41 | AR14: =INDEX(【D】NPS!$C$4:$GO$76,MATCH(NPS!$B14,【D】NPS!$B$4:$B$76,0), MATCH(NPS!AR$2&NPS!$AG$1,【D】NPS!$C$2:$GO$2&【D】NPS!$C$3:$GO$3,0)) -> 18 | AS14: =INDEX(【D】NPS!$C$4:$GO$76,MATCH(NPS!$B14,【D】NPS!$B$4:$B$76,0), MATCH(NPS!AS$2&NPS!$AG$1,【D】NPS!$C$2:$GO$2&【D】NPS!$C$3:$GO$3,0)) -> 49 | AT14: =INDEX(【D】NPS!$C$4:$GO$76,MATCH(NPS!$B14,【D】NPS!$B$4:$B$76,0), MATCH(NPS!AT$2&NPS!$AG$1,【D】NPS!$C$2:$GO$2&【D】NPS!$C$3:$GO$3,0)) -> 34 | AV14: 12 | AW14: 12 | AX14: 三方五湖 エリア | AY14: 38.46153846 | AZ14: =INDEX(【D】NPS!$C$7:$HB$76, MATCH(NPS!$AX14,【D】NPS!$B$7:$B$76,0), MATCH(NPS!$AZ$2&NPS!$AW$1,【D】NPS!$C$1:$HB$1&【D】NPS!$C$2:$HB$2,0)) -> 13
B15: 道の駅みくに ふれあいパーク三里浜 エリア | D15: =INDEX(【D】NPS!$C$4:$GO$76,MATCH(NPS!$B15,【D】NPS!$B$4:$B$76,0), MATCH(NPS!D$2&NPS!$C$1,【D】NPS!$C$2:$GO$2&【D】NPS!$C$3:$GO$3,0)) -> 16.66666667 | E15: =INDEX(【D】NPS!$C$4:$GO$76,MATCH(NPS!$B15,【D】NPS!$B$4:$B$76,0), MATCH(NPS!E$2&NPS!$C$1,【D】NPS!$C$2:$GO$2&【D】NPS!$C$3:$GO$3,0)) -> -18.51851852 | F15: =INDEX(【D】NPS!$C$4:$GO$76,MATCH(NPS!$B15,【D】NPS!$B$4:$B$76,0), MATCH(NPS!F$2&NPS!$C$1,【D】NPS!$C$2:$GO$2&【D】NPS!$C$3:$GO$3,0)) -> -3.448275862 | G15: =INDEX(【D】NPS!$C$4:$GO$76,MATCH(NPS!$B15,【D】NPS!$B$4:$B$76,0), MATCH(NPS!G$2&NPS!$C$1,【D】NPS!$C$2:$GO$2&【D】NPS!$C$3:$GO$3,0)) -> -17.85714286 | H15: =INDEX(【D】NPS!$C$4:$GO$76,MATCH(NPS!$B15,【D】NPS!$B$4:$B$76,0), MATCH(NPS!H$2&NPS!$C$1,【D】NPS!$C$2:$GO$2&【D】NPS!$C$3:$GO$3,0)) -> -5.263157895 | I15: =INDEX(【D】NPS!$C$4:$GO$76,MATCH(NPS!$B15,【D】NPS!$B$4:$B$76,0), MATCH(NPS!I$2&NPS!$C$1,【D】NPS!$C$2:$GO$2&【D】NPS!$C$3:$GO$3,0)) -> -10.71428571 | J15: =INDEX(【D】NPS!$C$4:$GO$76,MATCH(NPS!$B15,【D】NPS!$B$4:$B$76,0), MATCH(NPS!J$2&NPS!$C$1,【D】NPS!$C$2:$GO$2&【D】NPS!$C$3:$GO$3,0)) -> -2.857142857 | K15: =INDEX(【D】NPS!$C$4:$GO$76,MATCH(NPS!$B15,【D】NPS!$B$4:$B$76,0), MATCH(NPS!K$2&NPS!$C$1,【D】NPS!$C$2:$GO$2&【D】NPS!$C$3:$GO$3,0)) -> -20.96774194 | L15: =INDEX(【D】NPS!$C$4:$GO$76,MATCH(NPS!$B15,【D】NPS!$B$4:$B$76,0), MATCH(NPS!L$2&NPS!$C$1,【D】NPS!$C$2:$GO$2&【D】NPS!$C$3:$GO$3,0)) -> 11.11111111 | M15: =INDEX(【D】NPS!$C$4:$GO$76,MATCH(NPS!$B15,【D】NPS!$B$4:$B$76,0), MATCH(NPS!M$2&NPS!$C$1,【D】NPS!$C$2:$GO$2&【D】NPS!$C$3:$GO$3,0)) -> -14.28571429 | N15: =INDEX(【D】NPS!$C$4:$GO$76,MATCH(NPS!$B15,【D】NPS!$B$4:$B$76,0), MATCH(NPS!N$2&NPS!$C$1,【D】NPS!$C$2:$GO$2&【D】NPS!$C$3:$GO$3,0)) -> -16.66666667 | O15: =INDEX(【D】NPS!$C$4:$GO$76,MATCH(NPS!$B15,【D】NPS!$B$4:$B$76,0), MATCH(NPS!O$2&NPS!$C$1,【D】NPS!$C$2:$GO$2&【D】NPS!$C$3:$GO$3,0)) -> 12.5 | P15: =INDEX(【D】NPS!$C$4:$GO$76,MATCH(NPS!$B15,【D】NPS!$B$4:$B$76,0), MATCH(NPS!P$2&NPS!$C$1,【D】NPS!$C$2:$GO$2&【D】NPS!$C$3:$GO$3,0)) -> -8.881578947 | S15: =INDEX(【D】NPS!$C$4:$GO$76,MATCH(NPS!$B15,【D】NPS!$B$4:$B$76,0), MATCH(NPS!S$2&NPS!$R$1,【D】NPS!$C$2:$GO$2&【D】NPS!$C$3:$GO$3,0)) -> 20 | T15: =INDEX(【D】NPS!$C$4:$GO$76,MATCH(NPS!$B15,【D】NPS!$B$4:$B$76,0), MATCH(NPS!T$2&NPS!$R$1,【D】NPS!$C$2:$GO$2&【D】NPS!$C$3:$GO$3,0)) -> 55 | U15: =INDEX(【D】NPS!$C$4:$GO$76,MATCH(NPS!$B15,【D】NPS!$B$4:$B$76,0), MATCH(NPS!U$2&NPS!$R$1,【D】NPS!$C$2:$GO$2&【D】NPS!$C$3:$GO$3,0)) -> 44 | V15: =INDEX(【D】NPS!$C$4:$GO$76,MATCH(NPS!$B15,【D】NPS!$B$4:$B$76,0), MATCH(NPS!V$2&NPS!$R$1,【D】NPS!$C$2:$GO$2&【D】NPS!$C$3:$GO$3,0)) -> 45 | W15: =INDEX(【D】NPS!$C$4:$GO$76,MATCH(NPS!$B15,【D】NPS!$B$4:$B$76,0), MATCH(NPS!W$2&NPS!$R$1,【D】NPS!$C$2:$GO$2&【D】NPS!$C$3:$GO$3,0)) -> 43 | X15: =INDEX(【D】NPS!$C$4:$GO$76,MATCH(NPS!$B15,【D】NPS!$B$4:$B$76,0), MATCH(NPS!X$2&NPS!$R$1,【D】NPS!$C$2:$GO$2&【D】NPS!$C$3:$GO$3,0)) -> 46 | Y15: =INDEX(【D】NPS!$C$4:$GO$76,MATCH(NPS!$B15,【D】NPS!$B$4:$B$76,0), MATCH(NPS!Y$2&NPS!$R$1,【D】NPS!$C$2:$GO$2&【D】NPS!$C$3:$GO$3,0)) -> 43 | Z15: =INDEX(【D】NPS!$C$4:$GO$76,MATCH(NPS!$B15,【D】NPS!$B$4:$B$76,0), MATCH(NPS!Z$2&NPS!$R$1,【D】NPS!$C$2:$GO$2&【D】NPS!$C$3:$GO$3,0)) -> 55 | AA15: =INDEX(【D】NPS!$C$4:$GO$76,MATCH(NPS!$B15,【D】NPS!$B$4:$B$76,0), MATCH(NPS!AA$2&NPS!$R$1,【D】NPS!$C$2:$GO$2&【D】NPS!$C$3:$GO$3,0)) -> 22 | AB15: =INDEX(【D】NPS!$C$4:$GO$76,MATCH(NPS!$B15,【D】NPS!$B$4:$B$76,0), MATCH(NPS!AB$2&NPS!$R$1,【D】NPS!$C$2:$GO$2&【D】NPS!$C$3:$GO$3,0)) -> 47 | AC15: =INDEX(【D】NPS!$C$4:$GO$76,MATCH(NPS!$B15,【D】NPS!$B$4:$B$76,0), MATCH(NPS!AC$2&NPS!$R$1,【D】NPS!$C$2:$GO$2&【D】NPS!$C$3:$GO$3,0)) -> 41 | AD15: =INDEX(【D】NPS!$C$4:$GO$76,MATCH(NPS!$B15,【D】NPS!$B$4:$B$76,0), MATCH(NPS!AD$2&NPS!$R$1,【D】NPS!$C$2:$GO$2&【D】NPS!$C$3:$GO$3,0)) -> 20 | AE15: =INDEX(【D】NPS!$C$4:$GO$76,MATCH(NPS!$B15,【D】NPS!$B$4:$B$76,0), MATCH(NPS!AE$2&NPS!$R$1,【D】NPS!$C$2:$GO$2&【D】NPS!$C$3:$GO$3,0)) -> 51 | AH15: =INDEX(【D】NPS!$C$4:$GO$76,MATCH(NPS!$B15,【D】NPS!$B$4:$B$76,0), MATCH(NPS!AH$2&NPS!$AG$1,【D】NPS!$C$2:$GO$2&【D】NPS!$C$3:$GO$3,0)) -> 20 | AI15: =INDEX(【D】NPS!$C$4:$GO$76,MATCH(NPS!$B15,【D】NPS!$B$4:$B$76,0), MATCH(NPS!AI$2&NPS!$AG$1,【D】NPS!$C$2:$GO$2&【D】NPS!$C$3:$GO$3,0)) -> 55 | AJ15: =INDEX(【D】NPS!$C$4:$GO$76,MATCH(NPS!$B15,【D】NPS!$B$4:$B$76,0), MATCH(NPS!AJ$2&NPS!$AG$1,【D】NPS!$C$2:$GO$2&【D】NPS!$C$3:$GO$3,0)) -> 44 | AK15: =INDEX(【D】NPS!$C$4:$GO$76,MATCH(NPS!$B15,【D】NPS!$B$4:$B$76,0), MATCH(NPS!AK$2&NPS!$AG$1,【D】NPS!$C$2:$GO$2&【D】NPS!$C$3:$GO$3,0)) -> 45 | AL15: =INDEX(【D】NPS!$C$4:$GO$76,MATCH(NPS!$B15,【D】NPS!$B$4:$B$76,0), MATCH(NPS!AL$2&NPS!$AG$1,【D】NPS!$C$2:$GO$2&【D】NPS!$C$3:$GO$3,0)) -> 43 | AM15: =INDEX(【D】NPS!$C$4:$GO$76,MATCH(NPS!$B15,【D】NPS!$B$4:$B$76,0), MATCH(NPS!AM$2&NPS!$AG$1,【D】NPS!$C$2:$GO$2&【D】NPS!$C$3:$GO$3,0)) -> 46 | AN15: =INDEX(【D】NPS!$C$4:$GO$76,MATCH(NPS!$B15,【D】NPS!$B$4:$B$76,0), MATCH(NPS!AN$2&NPS!$AG$1,【D】NPS!$C$2:$GO$2&【D】NPS!$C$3:$GO$3,0)) -> 44 | AO15: =INDEX(【D】NPS!$C$4:$GO$76,MATCH(NPS!$B15,【D】NPS!$B$4:$B$76,0), MATCH(NPS!AO$2&NPS!$AG$1,【D】NPS!$C$2:$GO$2&【D】NPS!$C$3:$GO$3,0)) -> 55 | AP15: =INDEX(【D】NPS!$C$4:$GO$76,MATCH(NPS!$B15,【D】NPS!$B$4:$B$76,0), MATCH(NPS!AP$2&NPS!$AG$1,【D】NPS!$C$2:$GO$2&【D】NPS!$C$3:$GO$3,0)) -> 23 | AQ15: =INDEX(【D】NPS!$C$4:$GO$76,MATCH(NPS!$B15,【D】NPS!$B$4:$B$76,0), MATCH(NPS!AQ$2&NPS!$AG$1,【D】NPS!$C$2:$GO$2&【D】NPS!$C$3:$GO$3,0)) -> 47 | AR15: =INDEX(【D】NPS!$C$4:$GO$76,MATCH(NPS!$B15,【D】NPS!$B$4:$B$76,0), MATCH(NPS!AR$2&NPS!$AG$1,【D】NPS!$C$2:$GO$2&【D】NPS!$C$3:$GO$3,0)) -> 41 | AS15: =INDEX(【D】NPS!$C$4:$GO$76,MATCH(NPS!$B15,【D】NPS!$B$4:$B$76,0), MATCH(NPS!AS$2&NPS!$AG$1,【D】NPS!$C$2:$GO$2&【D】NPS!$C$3:$GO$3,0)) -> 21 | AT15: =INDEX(【D】NPS!$C$4:$GO$76,MATCH(NPS!$B15,【D】NPS!$B$4:$B$76,0), MATCH(NPS!AT$2&NPS!$AG$1,【D】NPS!$C$2:$GO$2&【D】NPS!$C$3:$GO$3,0)) -> 51 | AV15: 13 | AW15: 13 | AX15: UMIKARA エリア | AY15: 33.33333333 | AZ15: =INDEX(【D】NPS!$C$7:$HB$76, MATCH(NPS!$AX15,【D】NPS!$B$7:$B$76,0), MATCH(NPS!$AZ$2&NPS!$AW$1,【D】NPS!$C$1:$HB$1&【D】NPS!$C$2:$HB$2,0)) -> 6
B16: あわら温泉 エリア | D16: =INDEX(【D】NPS!$C$4:$GO$76,MATCH(NPS!$B16,【D】NPS!$B$4:$B$76,0), MATCH(NPS!D$2&NPS!$C$1,【D】NPS!$C$2:$GO$2&【D】NPS!$C$3:$GO$3,0)) -> 16.66666667 | E16: =INDEX(【D】NPS!$C$4:$GO$76,MATCH(NPS!$B16,【D】NPS!$B$4:$B$76,0), MATCH(NPS!E$2&NPS!$C$1,【D】NPS!$C$2:$GO$2&【D】NPS!$C$3:$GO$3,0)) -> 0.9803921569 | F16: =INDEX(【D】NPS!$C$4:$GO$76,MATCH(NPS!$B16,【D】NPS!$B$4:$B$76,0), MATCH(NPS!F$2&NPS!$C$1,【D】NPS!$C$2:$GO$2&【D】NPS!$C$3:$GO$3,0)) -> -7.01754386 | G16: =INDEX(【D】NPS!$C$4:$GO$76,MATCH(NPS!$B16,【D】NPS!$B$4:$B$76,0), MATCH(NPS!G$2&NPS!$C$1,【D】NPS!$C$2:$GO$2&【D】NPS!$C$3:$GO$3,0)) -> 10.95890411 | H16: =INDEX(【D】NPS!$C$4:$GO$76,MATCH(NPS!$B16,【D】NPS!$B$4:$B$76,0), MATCH(NPS!H$2&NPS!$C$1,【D】NPS!$C$2:$GO$2&【D】NPS!$C$3:$GO$3,0)) -> 15.11627907 | I16: =INDEX(【D】NPS!$C$4:$GO$76,MATCH(NPS!$B16,【D】NPS!$B$4:$B$76,0), MATCH(NPS!I$2&NPS!$C$1,【D】NPS!$C$2:$GO$2&【D】NPS!$C$3:$GO$3,0)) -> 27.35849057 | J16: =INDEX(【D】NPS!$C$4:$GO$76,MATCH(NPS!$B16,【D】NPS!$B$4:$B$76,0), MATCH(NPS!J$2&NPS!$C$1,【D】NPS!$C$2:$GO$2&【D】NPS!$C$3:$GO$3,0)) -> 6.976744186 | K16: =INDEX(【D】NPS!$C$4:$GO$76,MATCH(NPS!$B16,【D】NPS!$B$4:$B$76,0), MATCH(NPS!K$2&NPS!$C$1,【D】NPS!$C$2:$GO$2&【D】NPS!$C$3:$GO$3,0)) -> 11.14754098 | L16: =INDEX(【D】NPS!$C$4:$GO$76,MATCH(NPS!$B16,【D】NPS!$B$4:$B$76,0), MATCH(NPS!L$2&NPS!$C$1,【D】NPS!$C$2:$GO$2&【D】NPS!$C$3:$GO$3,0)) -> 19.89247312 | M16: =INDEX(【D】NPS!$C$4:$GO$76,MATCH(NPS!$B16,【D】NPS!$B$4:$B$76,0), MATCH(NPS!M$2&NPS!$C$1,【D】NPS!$C$2:$GO$2&【D】NPS!$C$3:$GO$3,0)) -> 8.333333333 | N16: =INDEX(【D】NPS!$C$4:$GO$76,MATCH(NPS!$B16,【D】NPS!$B$4:$B$76,0), MATCH(NPS!N$2&NPS!$C$1,【D】NPS!$C$2:$GO$2&【D】NPS!$C$3:$GO$3,0)) -> 12.19512195 | O16: =INDEX(【D】NPS!$C$4:$GO$76,MATCH(NPS!$B16,【D】NPS!$B$4:$B$76,0), MATCH(NPS!O$2&NPS!$C$1,【D】NPS!$C$2:$GO$2&【D】NPS!$C$3:$GO$3,0)) -> -13.33333333 | P16: =INDEX(【D】NPS!$C$4:$GO$76,MATCH(NPS!$B16,【D】NPS!$B$4:$B$76,0), MATCH(NPS!P$2&NPS!$C$1,【D】NPS!$C$2:$GO$2&【D】NPS!$C$3:$GO$3,0)) -> 10.95690285 | S16: =INDEX(【D】NPS!$C$4:$GO$76,MATCH(NPS!$B16,【D】NPS!$B$4:$B$76,0), MATCH(NPS!S$2&NPS!$R$1,【D】NPS!$C$2:$GO$2&【D】NPS!$C$3:$GO$3,0)) -> 19 | T16: =INDEX(【D】NPS!$C$4:$GO$76,MATCH(NPS!$B16,【D】NPS!$B$4:$B$76,0), MATCH(NPS!T$2&NPS!$R$1,【D】NPS!$C$2:$GO$2&【D】NPS!$C$3:$GO$3,0)) -> 34 | U16: =INDEX(【D】NPS!$C$4:$GO$76,MATCH(NPS!$B16,【D】NPS!$B$4:$B$76,0), MATCH(NPS!U$2&NPS!$R$1,【D】NPS!$C$2:$GO$2&【D】NPS!$C$3:$GO$3,0)) -> 46 | V16: =INDEX(【D】NPS!$C$4:$GO$76,MATCH(NPS!$B16,【D】NPS!$B$4:$B$76,0), MATCH(NPS!V$2&NPS!$R$1,【D】NPS!$C$2:$GO$2&【D】NPS!$C$3:$GO$3,0)) -> 25 | W16: =INDEX(【D】NPS!$C$4:$GO$76,MATCH(NPS!$B16,【D】NPS!$B$4:$B$76,0), MATCH(NPS!W$2&NPS!$R$1,【D】NPS!$C$2:$GO$2&【D】NPS!$C$3:$GO$3,0)) -> 17 | X16: =INDEX(【D】NPS!$C$4:$GO$76,MATCH(NPS!$B16,【D】NPS!$B$4:$B$76,0), MATCH(NPS!X$2&NPS!$R$1,【D】NPS!$C$2:$GO$2&【D】NPS!$C$3:$GO$3,0)) -> 13 | Y16: =INDEX(【D】NPS!$C$4:$GO$76,MATCH(NPS!$B16,【D】NPS!$B$4:$B$76,0), MATCH(NPS!Y$2&NPS!$R$1,【D】NPS!$C$2:$GO$2&【D】NPS!$C$3:$GO$3,0)) -> 30 | Z16: =INDEX(【D】NPS!$C$4:$GO$76,MATCH(NPS!$B16,【D】NPS!$B$4:$B$76,0), MATCH(NPS!Z$2&NPS!$R$1,【D】NPS!$C$2:$GO$2&【D】NPS!$C$3:$GO$3,0)) -> 18 | AA16: =INDEX(【D】NPS!$C$4:$GO$76,MATCH(NPS!$B16,【D】NPS!$B$4:$B$76,0), MATCH(NPS!AA$2&NPS!$R$1,【D】NPS!$C$2:$GO$2&【D】NPS!$C$3:$GO$3,0)) -> 12 | AB16: =INDEX(【D】NPS!$C$4:$GO$76,MATCH(NPS!$B16,【D】NPS!$B$4:$B$76,0), MATCH(NPS!AB$2&NPS!$R$1,【D】NPS!$C$2:$GO$2&【D】NPS!$C$3:$GO$3,0)) -> 25 | AC16: =INDEX(【D】NPS!$C$4:$GO$76,MATCH(NPS!$B16,【D】NPS!$B$4:$B$76,0), MATCH(NPS!AC$2&NPS!$R$1,【D】NPS!$C$2:$GO$2&【D】NPS!$C$3:$GO$3,0)) -> 17 | AD16: =INDEX(【D】NPS!$C$4:$GO$76,MATCH(NPS!$B16,【D】NPS!$B$4:$B$76,0), MATCH(NPS!AD$2&NPS!$R$1,【D】NPS!$C$2:$GO$2&【D】NPS!$C$3:$GO$3,0)) -> 38 | AE16: =INDEX(【D】NPS!$C$4:$GO$76,MATCH(NPS!$B16,【D】NPS!$B$4:$B$76,0), MATCH(NPS!AE$2&NPS!$R$1,【D】NPS!$C$2:$GO$2&【D】NPS!$C$3:$GO$3,0)) -> 17 | AH16: =INDEX(【D】NPS!$C$4:$GO$76,MATCH(NPS!$B16,【D】NPS!$B$4:$B$76,0), MATCH(NPS!AH$2&NPS!$AG$1,【D】NPS!$C$2:$GO$2&【D】NPS!$C$3:$GO$3,0)) -> 19 | AI16: =INDEX(【D】NPS!$C$4:$GO$76,MATCH(NPS!$B16,【D】NPS!$B$4:$B$76,0), MATCH(NPS!AI$2&NPS!$AG$1,【D】NPS!$C$2:$GO$2&【D】NPS!$C$3:$GO$3,0)) -> 34 | AJ16: =INDEX(【D】NPS!$C$4:$GO$76,MATCH(NPS!$B16,【D】NPS!$B$4:$B$76,0), MATCH(NPS!AJ$2&NPS!$AG$1,【D】NPS!$C$2:$GO$2&【D】NPS!$C$3:$GO$3,0)) -> 46 | AK16: =INDEX(【D】NPS!$C$4:$GO$76,MATCH(NPS!$B16,【D】NPS!$B$4:$B$76,0), MATCH(NPS!AK$2&NPS!$AG$1,【D】NPS!$C$2:$GO$2&【D】NPS!$C$3:$GO$3,0)) -> 25 | AL16: =INDEX(【D】NPS!$C$4:$GO$76,MATCH(NPS!$B16,【D】NPS!$B$4:$B$76,0), MATCH(NPS!AL$2&NPS!$AG$1,【D】NPS!$C$2:$GO$2&【D】NPS!$C$3:$GO$3,0)) -> 17 | AM16: =INDEX(【D】NPS!$C$4:$GO$76,MATCH(NPS!$B16,【D】NPS!$B$4:$B$76,0), MATCH(NPS!AM$2&NPS!$AG$1,【D】NPS!$C$2:$GO$2&【D】NPS!$C$3:$GO$3,0)) -> 13 | AN16: =INDEX(【D】NPS!$C$4:$GO$76,MATCH(NPS!$B16,【D】NPS!$B$4:$B$76,0), MATCH(NPS!AN$2&NPS!$AG$1,【D】NPS!$C$2:$GO$2&【D】NPS!$C$3:$GO$3,0)) -> 30 | AO16: =INDEX(【D】NPS!$C$4:$GO$76,MATCH(NPS!$B16,【D】NPS!$B$4:$B$76,0), MATCH(NPS!AO$2&NPS!$AG$1,【D】NPS!$C$2:$GO$2&【D】NPS!$C$3:$GO$3,0)) -> 18 | AP16: =INDEX(【D】NPS!$C$4:$GO$76,MATCH(NPS!$B16,【D】NPS!$B$4:$B$76,0), MATCH(NPS!AP$2&NPS!$AG$1,【D】NPS!$C$2:$GO$2&【D】NPS!$C$3:$GO$3,0)) -> 12 | AQ16: =INDEX(【D】NPS!$C$4:$GO$76,MATCH(NPS!$B16,【D】NPS!$B$4:$B$76,0), MATCH(NPS!AQ$2&NPS!$AG$1,【D】NPS!$C$2:$GO$2&【D】NPS!$C$3:$GO$3,0)) -> 25 | AR16: =INDEX(【D】NPS!$C$4:$GO$76,MATCH(NPS!$B16,【D】NPS!$B$4:$B$76,0), MATCH(NPS!AR$2&NPS!$AG$1,【D】NPS!$C$2:$GO$2&【D】NPS!$C$3:$GO$3,0)) -> 17 | AS16: =INDEX(【D】NPS!$C$4:$GO$76,MATCH(NPS!$B16,【D】NPS!$B$4:$B$76,0), MATCH(NPS!AS$2&NPS!$AG$1,【D】NPS!$C$2:$GO$2&【D】NPS!$C$3:$GO$3,0)) -> 38 | AT16: =INDEX(【D】NPS!$C$4:$GO$76,MATCH(NPS!$B16,【D】NPS!$B$4:$B$76,0), MATCH(NPS!AT$2&NPS!$AG$1,【D】NPS!$C$2:$GO$2&【D】NPS!$C$3:$GO$3,0)) -> 17 | AV16: 14 | AW16: 13 | AX16: 永平寺門前 エリア | AY16: 33.33333333 | AZ16: =INDEX(【D】NPS!$C$7:$HB$76, MATCH(NPS!$AX16,【D】NPS!$B$7:$B$76,0), MATCH(NPS!$AZ$2&NPS!$AW$1,【D】NPS!$C$1:$HB$1&【D】NPS!$C$2:$HB$2,0)) -> 6
B17: 金津創作の森 エリア | D17: =INDEX(【D】NPS!$C$4:$GO$76,MATCH(NPS!$B17,【D】NPS!$B$4:$B$76,0), MATCH(NPS!D$2&NPS!$C$1,【D】NPS!$C$2:$GO$2&【D】NPS!$C$3:$GO$3,0)) -> None | E17: =INDEX(【D】NPS!$C$4:$GO$76,MATCH(NPS!$B17,【D】NPS!$B$4:$B$76,0), MATCH(NPS!E$2&NPS!$C$1,【D】NPS!$C$2:$GO$2&【D】NPS!$C$3:$GO$3,0)) -> None | F17: =INDEX(【D】NPS!$C$4:$GO$76,MATCH(NPS!$B17,【D】NPS!$B$4:$B$76,0), MATCH(NPS!F$2&NPS!$C$1,【D】NPS!$C$2:$GO$2&【D】NPS!$C$3:$GO$3,0)) -> None | G17: =INDEX(【D】NPS!$C$4:$GO$76,MATCH(NPS!$B17,【D】NPS!$B$4:$B$76,0), MATCH(NPS!G$2&NPS!$C$1,【D】NPS!$C$2:$GO$2&【D】NPS!$C$3:$GO$3,0)) -> 0 | H17: =INDEX(【D】NPS!$C$4:$GO$76,MATCH(NPS!$B17,【D】NPS!$B$4:$B$76,0), MATCH(NPS!H$2&NPS!$C$1,【D】NPS!$C$2:$GO$2&【D】NPS!$C$3:$GO$3,0)) -> -66.66666667 | I17: =INDEX(【D】NPS!$C$4:$GO$76,MATCH(NPS!$B17,【D】NPS!$B$4:$B$76,0), MATCH(NPS!I$2&NPS!$C$1,【D】NPS!$C$2:$GO$2&【D】NPS!$C$3:$GO$3,0)) -> -11.11111111 | J17: =INDEX(【D】NPS!$C$4:$GO$76,MATCH(NPS!$B17,【D】NPS!$B$4:$B$76,0), MATCH(NPS!J$2&NPS!$C$1,【D】NPS!$C$2:$GO$2&【D】NPS!$C$3:$GO$3,0)) -> 25 | K17: =INDEX(【D】NPS!$C$4:$GO$76,MATCH(NPS!$B17,【D】NPS!$B$4:$B$76,0), MATCH(NPS!K$2&NPS!$C$1,【D】NPS!$C$2:$GO$2&【D】NPS!$C$3:$GO$3,0)) -> -55.55555556 | L17: =INDEX(【D】NPS!$C$4:$GO$76,MATCH(NPS!$B17,【D】NPS!$B$4:$B$76,0), MATCH(NPS!L$2&NPS!$C$1,【D】NPS!$C$2:$GO$2&【D】NPS!$C$3:$GO$3,0)) -> -66.66666667 | M17: =INDEX(【D】NPS!$C$4:$GO$76,MATCH(NPS!$B17,【D】NPS!$B$4:$B$76,0), MATCH(NPS!M$2&NPS!$C$1,【D】NPS!$C$2:$GO$2&【D】NPS!$C$3:$GO$3,0)) -> None | N17: =INDEX(【D】NPS!$C$4:$GO$76,MATCH(NPS!$B17,【D】NPS!$B$4:$B$76,0), MATCH(NPS!N$2&NPS!$C$1,【D】NPS!$C$2:$GO$2&【D】NPS!$C$3:$GO$3,0)) -> None | O17: =INDEX(【D】NPS!$C$4:$GO$76,MATCH(NPS!$B17,【D】NPS!$B$4:$B$76,0), MATCH(NPS!O$2&NPS!$C$1,【D】NPS!$C$2:$GO$2&【D】NPS!$C$3:$GO$3,0)) -> 0 | P17: =INDEX(【D】NPS!$C$4:$GO$76,MATCH(NPS!$B17,【D】NPS!$B$4:$B$76,0), MATCH(NPS!P$2&NPS!$C$1,【D】NPS!$C$2:$GO$2&【D】NPS!$C$3:$GO$3,0)) -> -28.20512821 | S17: =INDEX(【D】NPS!$C$4:$GO$76,MATCH(NPS!$B17,【D】NPS!$B$4:$B$76,0), MATCH(NPS!S$2&NPS!$R$1,【D】NPS!$C$2:$GO$2&【D】NPS!$C$3:$GO$3,0)) -> - | T17: =INDEX(【D】NPS!$C$4:$GO$76,MATCH(NPS!$B17,【D】NPS!$B$4:$B$76,0), MATCH(NPS!T$2&NPS!$R$1,【D】NPS!$C$2:$GO$2&【D】NPS!$C$3:$GO$3,0)) -> - | U17: =INDEX(【D】NPS!$C$4:$GO$76,MATCH(NPS!$B17,【D】NPS!$B$4:$B$76,0), MATCH(NPS!U$2&NPS!$R$1,【D】NPS!$C$2:$GO$2&【D】NPS!$C$3:$GO$3,0)) -> - | V17: =INDEX(【D】NPS!$C$4:$GO$76,MATCH(NPS!$B17,【D】NPS!$B$4:$B$76,0), MATCH(NPS!V$2&NPS!$R$1,【D】NPS!$C$2:$GO$2&【D】NPS!$C$3:$GO$3,0)) -> 30 | W17: =INDEX(【D】NPS!$C$4:$GO$76,MATCH(NPS!$B17,【D】NPS!$B$4:$B$76,0), MATCH(NPS!W$2&NPS!$R$1,【D】NPS!$C$2:$GO$2&【D】NPS!$C$3:$GO$3,0)) -> 69 | X17: =INDEX(【D】NPS!$C$4:$GO$76,MATCH(NPS!$B17,【D】NPS!$B$4:$B$76,0), MATCH(NPS!X$2&NPS!$R$1,【D】NPS!$C$2:$GO$2&【D】NPS!$C$3:$GO$3,0)) -> 47 | Y17: =INDEX(【D】NPS!$C$4:$GO$76,MATCH(NPS!$B17,【D】NPS!$B$4:$B$76,0), MATCH(NPS!Y$2&NPS!$R$1,【D】NPS!$C$2:$GO$2&【D】NPS!$C$3:$GO$3,0)) -> 9 | Z17: =INDEX(【D】NPS!$C$4:$GO$76,MATCH(NPS!$B17,【D】NPS!$B$4:$B$76,0), MATCH(NPS!Z$2&NPS!$R$1,【D】NPS!$C$2:$GO$2&【D】NPS!$C$3:$GO$3,0)) -> 67 | AA17: =INDEX(【D】NPS!$C$4:$GO$76,MATCH(NPS!$B17,【D】NPS!$B$4:$B$76,0), MATCH(NPS!AA$2&NPS!$R$1,【D】NPS!$C$2:$GO$2&【D】NPS!$C$3:$GO$3,0)) -> 65 | AB17: =INDEX(【D】NPS!$C$4:$GO$76,MATCH(NPS!$B17,【D】NPS!$B$4:$B$76,0), MATCH(NPS!AB$2&NPS!$R$1,【D】NPS!$C$2:$GO$2&【D】NPS!$C$3:$GO$3,0)) -> - | AC17: =INDEX(【D】NPS!$C$4:$GO$76,MATCH(NPS!$B17,【D】NPS!$B$4:$B$76,0), MATCH(NPS!AC$2&NPS!$R$1,【D】NPS!$C$2:$GO$2&【D】NPS!$C$3:$GO$3,0)) -> - | AD17: =INDEX(【D】NPS!$C$4:$GO$76,MATCH(NPS!$B17,【D】NPS!$B$4:$B$76,0), MATCH(NPS!AD$2&NPS!$R$1,【D】NPS!$C$2:$GO$2&【D】NPS!$C$3:$GO$3,0)) -> 27 | AE17: =INDEX(【D】NPS!$C$4:$GO$76,MATCH(NPS!$B17,【D】NPS!$B$4:$B$76,0), MATCH(NPS!AE$2&NPS!$R$1,【D】NPS!$C$2:$GO$2&【D】NPS!$C$3:$GO$3,0)) -> 67 | AH17: =INDEX(【D】NPS!$C$4:$GO$76,MATCH(NPS!$B17,【D】NPS!$B$4:$B$76,0), MATCH(NPS!AH$2&NPS!$AG$1,【D】NPS!$C$2:$GO$2&【D】NPS!$C$3:$GO$3,0)) -> - | AI17: =INDEX(【D】NPS!$C$4:$GO$76,MATCH(NPS!$B17,【D】NPS!$B$4:$B$76,0), MATCH(NPS!AI$2&NPS!$AG$1,【D】NPS!$C$2:$GO$2&【D】NPS!$C$3:$GO$3,0)) -> - | AJ17: =INDEX(【D】NPS!$C$4:$GO$76,MATCH(NPS!$B17,【D】NPS!$B$4:$B$76,0), MATCH(NPS!AJ$2&NPS!$AG$1,【D】NPS!$C$2:$GO$2&【D】NPS!$C$3:$GO$3,0)) -> - | AK17: =INDEX(【D】NPS!$C$4:$GO$76,MATCH(NPS!$B17,【D】NPS!$B$4:$B$76,0), MATCH(NPS!AK$2&NPS!$AG$1,【D】NPS!$C$2:$GO$2&【D】NPS!$C$3:$GO$3,0)) -> 35 | AL17: =INDEX(【D】NPS!$C$4:$GO$76,MATCH(NPS!$B17,【D】NPS!$B$4:$B$76,0), MATCH(NPS!AL$2&NPS!$AG$1,【D】NPS!$C$2:$GO$2&【D】NPS!$C$3:$GO$3,0)) -> 69 | AM17: =INDEX(【D】NPS!$C$4:$GO$76,MATCH(NPS!$B17,【D】NPS!$B$4:$B$76,0), MATCH(NPS!AM$2&NPS!$AG$1,【D】NPS!$C$2:$GO$2&【D】NPS!$C$3:$GO$3,0)) -> 47 | AN17: =INDEX(【D】NPS!$C$4:$GO$76,MATCH(NPS!$B17,【D】NPS!$B$4:$B$76,0), MATCH(NPS!AN$2&NPS!$AG$1,【D】NPS!$C$2:$GO$2&【D】NPS!$C$3:$GO$3,0)) -> 9 | AO17: =INDEX(【D】NPS!$C$4:$GO$76,MATCH(NPS!$B17,【D】NPS!$B$4:$B$76,0), MATCH(NPS!AO$2&NPS!$AG$1,【D】NPS!$C$2:$GO$2&【D】NPS!$C$3:$GO$3,0)) -> 67 | AP17: =INDEX(【D】NPS!$C$4:$GO$76,MATCH(NPS!$B17,【D】NPS!$B$4:$B$76,0), MATCH(NPS!AP$2&NPS!$AG$1,【D】NPS!$C$2:$GO$2&【D】NPS!$C$3:$GO$3,0)) -> 66 | AQ17: =INDEX(【D】NPS!$C$4:$GO$76,MATCH(NPS!$B17,【D】NPS!$B$4:$B$76,0), MATCH(NPS!AQ$2&NPS!$AG$1,【D】NPS!$C$2:$GO$2&【D】NPS!$C$3:$GO$3,0)) -> - | AR17: =INDEX(【D】NPS!$C$4:$GO$76,MATCH(NPS!$B17,【D】NPS!$B$4:$B$76,0), MATCH(NPS!AR$2&NPS!$AG$1,【D】NPS!$C$2:$GO$2&【D】NPS!$C$3:$GO$3,0)) -> - | AS17: =INDEX(【D】NPS!$C$4:$GO$76,MATCH(NPS!$B17,【D】NPS!$B$4:$B$76,0), MATCH(NPS!AS$2&NPS!$AG$1,【D】NPS!$C$2:$GO$2&【D】NPS!$C$3:$GO$3,0)) -> 34 | AT17: =INDEX(【D】NPS!$C$4:$GO$76,MATCH(NPS!$B17,【D】NPS!$B$4:$B$76,0), MATCH(NPS!AT$2&NPS!$AG$1,【D】NPS!$C$2:$GO$2&【D】NPS!$C$3:$GO$3,0)) -> 67 | AV17: 15 | AW17: 13 | AX17: 越前海岸 エリア | AY17: 33.33333333 | AZ17: =INDEX(【D】NPS!$C$7:$HB$76, MATCH(NPS!$AX17,【D】NPS!$B$7:$B$76,0), MATCH(NPS!$AZ$2&NPS!$AW$1,【D】NPS!$C$1:$HB$1&【D】NPS!$C$2:$HB$2,0)) -> 6
B18: JA福井県ファーマーズマーケットきららの丘 エリア | D18: =INDEX(【D】NPS!$C$4:$GO$76,MATCH(NPS!$B18,【D】NPS!$B$4:$B$76,0), MATCH(NPS!D$2&NPS!$C$1,【D】NPS!$C$2:$GO$2&【D】NPS!$C$3:$GO$3,0)) -> None | E18: =INDEX(【D】NPS!$C$4:$GO$76,MATCH(NPS!$B18,【D】NPS!$B$4:$B$76,0), MATCH(NPS!E$2&NPS!$C$1,【D】NPS!$C$2:$GO$2&【D】NPS!$C$3:$GO$3,0)) -> 3.846153846 | F18: =INDEX(【D】NPS!$C$4:$GO$76,MATCH(NPS!$B18,【D】NPS!$B$4:$B$76,0), MATCH(NPS!F$2&NPS!$C$1,【D】NPS!$C$2:$GO$2&【D】NPS!$C$3:$GO$3,0)) -> 0 | G18: =INDEX(【D】NPS!$C$4:$GO$76,MATCH(NPS!$B18,【D】NPS!$B$4:$B$76,0), MATCH(NPS!G$2&NPS!$C$1,【D】NPS!$C$2:$GO$2&【D】NPS!$C$3:$GO$3,0)) -> 17.14285714 | H18: =INDEX(【D】NPS!$C$4:$GO$76,MATCH(NPS!$B18,【D】NPS!$B$4:$B$76,0), MATCH(NPS!H$2&NPS!$C$1,【D】NPS!$C$2:$GO$2&【D】NPS!$C$3:$GO$3,0)) -> -15.15151515 | I18: =INDEX(【D】NPS!$C$4:$GO$76,MATCH(NPS!$B18,【D】NPS!$B$4:$B$76,0), MATCH(NPS!I$2&NPS!$C$1,【D】NPS!$C$2:$GO$2&【D】NPS!$C$3:$GO$3,0)) -> 17.94871795 | J18: =INDEX(【D】NPS!$C$4:$GO$76,MATCH(NPS!$B18,【D】NPS!$B$4:$B$76,0), MATCH(NPS!J$2&NPS!$C$1,【D】NPS!$C$2:$GO$2&【D】NPS!$C$3:$GO$3,0)) -> -3.571428571 | K18: =INDEX(【D】NPS!$C$4:$GO$76,MATCH(NPS!$B18,【D】NPS!$B$4:$B$76,0), MATCH(NPS!K$2&NPS!$C$1,【D】NPS!$C$2:$GO$2&【D】NPS!$C$3:$GO$3,0)) -> 11.36363636 | L18: =INDEX(【D】NPS!$C$4:$GO$76,MATCH(NPS!$B18,【D】NPS!$B$4:$B$76,0), MATCH(NPS!L$2&NPS!$C$1,【D】NPS!$C$2:$GO$2&【D】NPS!$C$3:$GO$3,0)) -> 11.11111111 | M18: =INDEX(【D】NPS!$C$4:$GO$76,MATCH(NPS!$B18,【D】NPS!$B$4:$B$76,0), MATCH(NPS!M$2&NPS!$C$1,【D】NPS!$C$2:$GO$2&【D】NPS!$C$3:$GO$3,0)) -> 0 | N18: =INDEX(【D】NPS!$C$4:$GO$76,MATCH(NPS!$B18,【D】NPS!$B$4:$B$76,0), MATCH(NPS!N$2&NPS!$C$1,【D】NPS!$C$2:$GO$2&【D】NPS!$C$3:$GO$3,0)) -> 21.42857143 | O18: =INDEX(【D】NPS!$C$4:$GO$76,MATCH(NPS!$B18,【D】NPS!$B$4:$B$76,0), MATCH(NPS!O$2&NPS!$C$1,【D】NPS!$C$2:$GO$2&【D】NPS!$C$3:$GO$3,0)) -> -33.33333333 | P18: =INDEX(【D】NPS!$C$4:$GO$76,MATCH(NPS!$B18,【D】NPS!$B$4:$B$76,0), MATCH(NPS!P$2&NPS!$C$1,【D】NPS!$C$2:$GO$2&【D】NPS!$C$3:$GO$3,0)) -> 5.405405405 | S18: =INDEX(【D】NPS!$C$4:$GO$76,MATCH(NPS!$B18,【D】NPS!$B$4:$B$76,0), MATCH(NPS!S$2&NPS!$R$1,【D】NPS!$C$2:$GO$2&【D】NPS!$C$3:$GO$3,0)) -> - | T18: =INDEX(【D】NPS!$C$4:$GO$76,MATCH(NPS!$B18,【D】NPS!$B$4:$B$76,0), MATCH(NPS!T$2&NPS!$R$1,【D】NPS!$C$2:$GO$2&【D】NPS!$C$3:$GO$3,0)) -> 28 | U18: =INDEX(【D】NPS!$C$4:$GO$76,MATCH(NPS!$B18,【D】NPS!$B$4:$B$76,0), MATCH(NPS!U$2&NPS!$R$1,【D】NPS!$C$2:$GO$2&【D】NPS!$C$3:$GO$3,0)) -> 35 | V18: =INDEX(【D】NPS!$C$4:$GO$76,MATCH(NPS!$B18,【D】NPS!$B$4:$B$76,0), MATCH(NPS!V$2&NPS!$R$1,【D】NPS!$C$2:$GO$2&【D】NPS!$C$3:$GO$3,0)) -> 19 | W18: =INDEX(【D】NPS!$C$4:$GO$76,MATCH(NPS!$B18,【D】NPS!$B$4:$B$76,0), MATCH(NPS!W$2&NPS!$R$1,【D】NPS!$C$2:$GO$2&【D】NPS!$C$3:$GO$3,0)) -> 53 | X18: =INDEX(【D】NPS!$C$4:$GO$76,MATCH(NPS!$B18,【D】NPS!$B$4:$B$76,0), MATCH(NPS!X$2&NPS!$R$1,【D】NPS!$C$2:$GO$2&【D】NPS!$C$3:$GO$3,0)) -> 19 | Y18: =INDEX(【D】NPS!$C$4:$GO$76,MATCH(NPS!$B18,【D】NPS!$B$4:$B$76,0), MATCH(NPS!Y$2&NPS!$R$1,【D】NPS!$C$2:$GO$2&【D】NPS!$C$3:$GO$3,0)) -> 46 | Z18: =INDEX(【D】NPS!$C$4:$GO$76,MATCH(NPS!$B18,【D】NPS!$B$4:$B$76,0), MATCH(NPS!Z$2&NPS!$R$1,【D】NPS!$C$2:$GO$2&【D】NPS!$C$3:$GO$3,0)) -> 17 | AA18: =INDEX(【D】NPS!$C$4:$GO$76,MATCH(NPS!$B18,【D】NPS!$B$4:$B$76,0), MATCH(NPS!AA$2&NPS!$R$1,【D】NPS!$C$2:$GO$2&【D】NPS!$C$3:$GO$3,0)) -> 22 | AB18: =INDEX(【D】NPS!$C$4:$GO$76,MATCH(NPS!$B18,【D】NPS!$B$4:$B$76,0), MATCH(NPS!AB$2&NPS!$R$1,【D】NPS!$C$2:$GO$2&【D】NPS!$C$3:$GO$3,0)) -> 27 | AC18: =INDEX(【D】NPS!$C$4:$GO$76,MATCH(NPS!$B18,【D】NPS!$B$4:$B$76,0), MATCH(NPS!AC$2&NPS!$R$1,【D】NPS!$C$2:$GO$2&【D】NPS!$C$3:$GO$3,0)) -> 9 | AD18: =INDEX(【D】NPS!$C$4:$GO$76,MATCH(NPS!$B18,【D】NPS!$B$4:$B$76,0), MATCH(NPS!AD$2&NPS!$R$1,【D】NPS!$C$2:$GO$2&【D】NPS!$C$3:$GO$3,0)) -> 48 | AE18: =INDEX(【D】NPS!$C$4:$GO$76,MATCH(NPS!$B18,【D】NPS!$B$4:$B$76,0), MATCH(NPS!AE$2&NPS!$R$1,【D】NPS!$C$2:$GO$2&【D】NPS!$C$3:$GO$3,0)) -> 26 | AH18: =INDEX(【D】NPS!$C$4:$GO$76,MATCH(NPS!$B18,【D】NPS!$B$4:$B$76,0), MATCH(NPS!AH$2&NPS!$AG$1,【D】NPS!$C$2:$GO$2&【D】NPS!$C$3:$GO$3,0)) -> - | AI18: =INDEX(【D】NPS!$C$4:$GO$76,MATCH(NPS!$B18,【D】NPS!$B$4:$B$76,0), MATCH(NPS!AI$2&NPS!$AG$1,【D】NPS!$C$2:$GO$2&【D】NPS!$C$3:$GO$3,0)) -> 28 | AJ18: =INDEX(【D】NPS!$C$4:$GO$76,MATCH(NPS!$B18,【D】NPS!$B$4:$B$76,0), MATCH(NPS!AJ$2&NPS!$AG$1,【D】NPS!$C$2:$GO$2&【D】NPS!$C$3:$GO$3,0)) -> 43 | AK18: =INDEX(【D】NPS!$C$4:$GO$76,MATCH(NPS!$B18,【D】NPS!$B$4:$B$76,0), MATCH(NPS!AK$2&NPS!$AG$1,【D】NPS!$C$2:$GO$2&【D】NPS!$C$3:$GO$3,0)) -> 19 | AL18: =INDEX(【D】NPS!$C$4:$GO$76,MATCH(NPS!$B18,【D】NPS!$B$4:$B$76,0), MATCH(NPS!AL$2&NPS!$AG$1,【D】NPS!$C$2:$GO$2&【D】NPS!$C$3:$GO$3,0)) -> 53 | AM18: =INDEX(【D】NPS!$C$4:$GO$76,MATCH(NPS!$B18,【D】NPS!$B$4:$B$76,0), MATCH(NPS!AM$2&NPS!$AG$1,【D】NPS!$C$2:$GO$2&【D】NPS!$C$3:$GO$3,0)) -> 19 | AN18: =INDEX(【D】NPS!$C$4:$GO$76,MATCH(NPS!$B18,【D】NPS!$B$4:$B$76,0), MATCH(NPS!AN$2&NPS!$AG$1,【D】NPS!$C$2:$GO$2&【D】NPS!$C$3:$GO$3,0)) -> 46 | AO18: =INDEX(【D】NPS!$C$4:$GO$76,MATCH(NPS!$B18,【D】NPS!$B$4:$B$76,0), MATCH(NPS!AO$2&NPS!$AG$1,【D】NPS!$C$2:$GO$2&【D】NPS!$C$3:$GO$3,0)) -> 17 | AP18: =INDEX(【D】NPS!$C$4:$GO$76,MATCH(NPS!$B18,【D】NPS!$B$4:$B$76,0), MATCH(NPS!AP$2&NPS!$AG$1,【D】NPS!$C$2:$GO$2&【D】NPS!$C$3:$GO$3,0)) -> 22 | AQ18: =INDEX(【D】NPS!$C$4:$GO$76,MATCH(NPS!$B18,【D】NPS!$B$4:$B$76,0), MATCH(NPS!AQ$2&NPS!$AG$1,【D】NPS!$C$2:$GO$2&【D】NPS!$C$3:$GO$3,0)) -> 34 | AR18: =INDEX(【D】NPS!$C$4:$GO$76,MATCH(NPS!$B18,【D】NPS!$B$4:$B$76,0), MATCH(NPS!AR$2&NPS!$AG$1,【D】NPS!$C$2:$GO$2&【D】NPS!$C$3:$GO$3,0)) -> 9 | AS18: =INDEX(【D】NPS!$C$4:$GO$76,MATCH(NPS!$B18,【D】NPS!$B$4:$B$76,0), MATCH(NPS!AS$2&NPS!$AG$1,【D】NPS!$C$2:$GO$2&【D】NPS!$C$3:$GO$3,0)) -> 48 | AT18: =INDEX(【D】NPS!$C$4:$GO$76,MATCH(NPS!$B18,【D】NPS!$B$4:$B$76,0), MATCH(NPS!AT$2&NPS!$AG$1,【D】NPS!$C$2:$GO$2&【D】NPS!$C$3:$GO$3,0)) -> 26 | AV18: 16 | AW18: 16 | AX18: うるしの里 エリア | AY18: 33.33333333 | AZ18: =INDEX(【D】NPS!$C$7:$HB$76, MATCH(NPS!$AX18,【D】NPS!$B$7:$B$76,0), MATCH(NPS!$AZ$2&NPS!$AW$1,【D】NPS!$C$1:$HB$1&【D】NPS!$C$2:$HB$2,0)) -> 3
B19: 北潟湖 エリア | D19: =INDEX(【D】NPS!$C$4:$GO$76,MATCH(NPS!$B19,【D】NPS!$B$4:$B$76,0), MATCH(NPS!D$2&NPS!$C$1,【D】NPS!$C$2:$GO$2&【D】NPS!$C$3:$GO$3,0)) -> -100 | E19: =INDEX(【D】NPS!$C$4:$GO$76,MATCH(NPS!$B19,【D】NPS!$B$4:$B$76,0), MATCH(NPS!E$2&NPS!$C$1,【D】NPS!$C$2:$GO$2&【D】NPS!$C$3:$GO$3,0)) -> 0 | F19: =INDEX(【D】NPS!$C$4:$GO$76,MATCH(NPS!$B19,【D】NPS!$B$4:$B$76,0), MATCH(NPS!F$2&NPS!$C$1,【D】NPS!$C$2:$GO$2&【D】NPS!$C$3:$GO$3,0)) -> 16.66666667 | G19: =INDEX(【D】NPS!$C$4:$GO$76,MATCH(NPS!$B19,【D】NPS!$B$4:$B$76,0), MATCH(NPS!G$2&NPS!$C$1,【D】NPS!$C$2:$GO$2&【D】NPS!$C$3:$GO$3,0)) -> 0 | H19: =INDEX(【D】NPS!$C$4:$GO$76,MATCH(NPS!$B19,【D】NPS!$B$4:$B$76,0), MATCH(NPS!H$2&NPS!$C$1,【D】NPS!$C$2:$GO$2&【D】NPS!$C$3:$GO$3,0)) -> 0 | I19: =INDEX(【D】NPS!$C$4:$GO$76,MATCH(NPS!$B19,【D】NPS!$B$4:$B$76,0), MATCH(NPS!I$2&NPS!$C$1,【D】NPS!$C$2:$GO$2&【D】NPS!$C$3:$GO$3,0)) -> -15.38461538 | J19: =INDEX(【D】NPS!$C$4:$GO$76,MATCH(NPS!$B19,【D】NPS!$B$4:$B$76,0), MATCH(NPS!J$2&NPS!$C$1,【D】NPS!$C$2:$GO$2&【D】NPS!$C$3:$GO$3,0)) -> -4 | K19: =INDEX(【D】NPS!$C$4:$GO$76,MATCH(NPS!$B19,【D】NPS!$B$4:$B$76,0), MATCH(NPS!K$2&NPS!$C$1,【D】NPS!$C$2:$GO$2&【D】NPS!$C$3:$GO$3,0)) -> -23.80952381 | L19: =INDEX(【D】NPS!$C$4:$GO$76,MATCH(NPS!$B19,【D】NPS!$B$4:$B$76,0), MATCH(NPS!L$2&NPS!$C$1,【D】NPS!$C$2:$GO$2&【D】NPS!$C$3:$GO$3,0)) -> 25 | M19: =INDEX(【D】NPS!$C$4:$GO$76,MATCH(NPS!$B19,【D】NPS!$B$4:$B$76,0), MATCH(NPS!M$2&NPS!$C$1,【D】NPS!$C$2:$GO$2&【D】NPS!$C$3:$GO$3,0)) -> 0 | N19: =INDEX(【D】NPS!$C$4:$GO$76,MATCH(NPS!$B19,【D】NPS!$B$4:$B$76,0), MATCH(NPS!N$2&NPS!$C$1,【D】NPS!$C$2:$GO$2&【D】NPS!$C$3:$GO$3,0)) -> 40 | O19: =INDEX(【D】NPS!$C$4:$GO$76,MATCH(NPS!$B19,【D】NPS!$B$4:$B$76,0), MATCH(NPS!O$2&NPS!$C$1,【D】NPS!$C$2:$GO$2&【D】NPS!$C$3:$GO$3,0)) -> 0 | P19: =INDEX(【D】NPS!$C$4:$GO$76,MATCH(NPS!$B19,【D】NPS!$B$4:$B$76,0), MATCH(NPS!P$2&NPS!$C$1,【D】NPS!$C$2:$GO$2&【D】NPS!$C$3:$GO$3,0)) -> 0 | S19: =INDEX(【D】NPS!$C$4:$GO$76,MATCH(NPS!$B19,【D】NPS!$B$4:$B$76,0), MATCH(NPS!S$2&NPS!$R$1,【D】NPS!$C$2:$GO$2&【D】NPS!$C$3:$GO$3,0)) -> 44 | T19: =INDEX(【D】NPS!$C$4:$GO$76,MATCH(NPS!$B19,【D】NPS!$B$4:$B$76,0), MATCH(NPS!T$2&NPS!$R$1,【D】NPS!$C$2:$GO$2&【D】NPS!$C$3:$GO$3,0)) -> 35 | U19: =INDEX(【D】NPS!$C$4:$GO$76,MATCH(NPS!$B19,【D】NPS!$B$4:$B$76,0), MATCH(NPS!U$2&NPS!$R$1,【D】NPS!$C$2:$GO$2&【D】NPS!$C$3:$GO$3,0)) -> 22 | V19: =INDEX(【D】NPS!$C$4:$GO$76,MATCH(NPS!$B19,【D】NPS!$B$4:$B$76,0), MATCH(NPS!V$2&NPS!$R$1,【D】NPS!$C$2:$GO$2&【D】NPS!$C$3:$GO$3,0)) -> 30 | W19: =INDEX(【D】NPS!$C$4:$GO$76,MATCH(NPS!$B19,【D】NPS!$B$4:$B$76,0), MATCH(NPS!W$2&NPS!$R$1,【D】NPS!$C$2:$GO$2&【D】NPS!$C$3:$GO$3,0)) -> 30 | X19: =INDEX(【D】NPS!$C$4:$GO$76,MATCH(NPS!$B19,【D】NPS!$B$4:$B$76,0), MATCH(NPS!X$2&NPS!$R$1,【D】NPS!$C$2:$GO$2&【D】NPS!$C$3:$GO$3,0)) -> 54 | Y19: =INDEX(【D】NPS!$C$4:$GO$76,MATCH(NPS!$B19,【D】NPS!$B$4:$B$76,0), MATCH(NPS!Y$2&NPS!$R$1,【D】NPS!$C$2:$GO$2&【D】NPS!$C$3:$GO$3,0)) -> 47 | Z19: =INDEX(【D】NPS!$C$4:$GO$76,MATCH(NPS!$B19,【D】NPS!$B$4:$B$76,0), MATCH(NPS!Z$2&NPS!$R$1,【D】NPS!$C$2:$GO$2&【D】NPS!$C$3:$GO$3,0)) -> 57 | AA19: =INDEX(【D】NPS!$C$4:$GO$76,MATCH(NPS!$B19,【D】NPS!$B$4:$B$76,0), MATCH(NPS!AA$2&NPS!$R$1,【D】NPS!$C$2:$GO$2&【D】NPS!$C$3:$GO$3,0)) -> 5 | AB19: =INDEX(【D】NPS!$C$4:$GO$76,MATCH(NPS!$B19,【D】NPS!$B$4:$B$76,0), MATCH(NPS!AB$2&NPS!$R$1,【D】NPS!$C$2:$GO$2&【D】NPS!$C$3:$GO$3,0)) -> 27 | AC19: =INDEX(【D】NPS!$C$4:$GO$76,MATCH(NPS!$B19,【D】NPS!$B$4:$B$76,0), MATCH(NPS!AC$2&NPS!$R$1,【D】NPS!$C$2:$GO$2&【D】NPS!$C$3:$GO$3,0)) -> 4 | AD19: =INDEX(【D】NPS!$C$4:$GO$76,MATCH(NPS!$B19,【D】NPS!$B$4:$B$76,0), MATCH(NPS!AD$2&NPS!$R$1,【D】NPS!$C$2:$GO$2&【D】NPS!$C$3:$GO$3,0)) -> 27 | AE19: =INDEX(【D】NPS!$C$4:$GO$76,MATCH(NPS!$B19,【D】NPS!$B$4:$B$76,0), MATCH(NPS!AE$2&NPS!$R$1,【D】NPS!$C$2:$GO$2&【D】NPS!$C$3:$GO$3,0)) -> 35 | AH19: =INDEX(【D】NPS!$C$4:$GO$76,MATCH(NPS!$B19,【D】NPS!$B$4:$B$76,0), MATCH(NPS!AH$2&NPS!$AG$1,【D】NPS!$C$2:$GO$2&【D】NPS!$C$3:$GO$3,0)) -> 48 | AI19: =INDEX(【D】NPS!$C$4:$GO$76,MATCH(NPS!$B19,【D】NPS!$B$4:$B$76,0), MATCH(NPS!AI$2&NPS!$AG$1,【D】NPS!$C$2:$GO$2&【D】NPS!$C$3:$GO$3,0)) -> 37 | AJ19: =INDEX(【D】NPS!$C$4:$GO$76,MATCH(NPS!$B19,【D】NPS!$B$4:$B$76,0), MATCH(NPS!AJ$2&NPS!$AG$1,【D】NPS!$C$2:$GO$2&【D】NPS!$C$3:$GO$3,0)) -> 22 | AK19: =INDEX(【D】NPS!$C$4:$GO$76,MATCH(NPS!$B19,【D】NPS!$B$4:$B$76,0), MATCH(NPS!AK$2&NPS!$AG$1,【D】NPS!$C$2:$GO$2&【D】NPS!$C$3:$GO$3,0)) -> 34 | AL19: =INDEX(【D】NPS!$C$4:$GO$76,MATCH(NPS!$B19,【D】NPS!$B$4:$B$76,0), MATCH(NPS!AL$2&NPS!$AG$1,【D】NPS!$C$2:$GO$2&【D】NPS!$C$3:$GO$3,0)) -> 39 | AM19: =INDEX(【D】NPS!$C$4:$GO$76,MATCH(NPS!$B19,【D】NPS!$B$4:$B$76,0), MATCH(NPS!AM$2&NPS!$AG$1,【D】NPS!$C$2:$GO$2&【D】NPS!$C$3:$GO$3,0)) -> 54 | AN19: =INDEX(【D】NPS!$C$4:$GO$76,MATCH(NPS!$B19,【D】NPS!$B$4:$B$76,0), MATCH(NPS!AN$2&NPS!$AG$1,【D】NPS!$C$2:$GO$2&【D】NPS!$C$3:$GO$3,0)) -> 47 | AO19: =INDEX(【D】NPS!$C$4:$GO$76,MATCH(NPS!$B19,【D】NPS!$B$4:$B$76,0), MATCH(NPS!AO$2&NPS!$AG$1,【D】NPS!$C$2:$GO$2&【D】NPS!$C$3:$GO$3,0)) -> 57 | AP19: =INDEX(【D】NPS!$C$4:$GO$76,MATCH(NPS!$B19,【D】NPS!$B$4:$B$76,0), MATCH(NPS!AP$2&NPS!$AG$1,【D】NPS!$C$2:$GO$2&【D】NPS!$C$3:$GO$3,0)) -> 6 | AQ19: =INDEX(【D】NPS!$C$4:$GO$76,MATCH(NPS!$B19,【D】NPS!$B$4:$B$76,0), MATCH(NPS!AQ$2&NPS!$AG$1,【D】NPS!$C$2:$GO$2&【D】NPS!$C$3:$GO$3,0)) -> 33 | AR19: =INDEX(【D】NPS!$C$4:$GO$76,MATCH(NPS!$B19,【D】NPS!$B$4:$B$76,0), MATCH(NPS!AR$2&NPS!$AG$1,【D】NPS!$C$2:$GO$2&【D】NPS!$C$3:$GO$3,0)) -> 5 | AS19: =INDEX(【D】NPS!$C$4:$GO$76,MATCH(NPS!$B19,【D】NPS!$B$4:$B$76,0), MATCH(NPS!AS$2&NPS!$AG$1,【D】NPS!$C$2:$GO$2&【D】NPS!$C$3:$GO$3,0)) -> 33 | AT19: =INDEX(【D】NPS!$C$4:$GO$76,MATCH(NPS!$B19,【D】NPS!$B$4:$B$76,0), MATCH(NPS!AT$2&NPS!$AG$1,【D】NPS!$C$2:$GO$2&【D】NPS!$C$3:$GO$3,0)) -> 36 | AV19: 17 | AW19: 17 | AX19: JR敦賀駅前 エリア | AY19: 25 | AZ19: =INDEX(【D】NPS!$C$7:$HB$76, MATCH(NPS!$AX19,【D】NPS!$B$7:$B$76,0), MATCH(NPS!$AZ$2&NPS!$AW$1,【D】NPS!$C$1:$HB$1&【D】NPS!$C$2:$HB$2,0)) -> 16
B20: 越前大野城・城下町 エリア | D20: =INDEX(【D】NPS!$C$4:$GO$76,MATCH(NPS!$B20,【D】NPS!$B$4:$B$76,0), MATCH(NPS!D$2&NPS!$C$1,【D】NPS!$C$2:$GO$2&【D】NPS!$C$3:$GO$3,0)) -> -28.57142857 | E20: =INDEX(【D】NPS!$C$4:$GO$76,MATCH(NPS!$B20,【D】NPS!$B$4:$B$76,0), MATCH(NPS!E$2&NPS!$C$1,【D】NPS!$C$2:$GO$2&【D】NPS!$C$3:$GO$3,0)) -> 9.615384615 | F20: =INDEX(【D】NPS!$C$4:$GO$76,MATCH(NPS!$B20,【D】NPS!$B$4:$B$76,0), MATCH(NPS!F$2&NPS!$C$1,【D】NPS!$C$2:$GO$2&【D】NPS!$C$3:$GO$3,0)) -> 13.33333333 | G20: =INDEX(【D】NPS!$C$4:$GO$76,MATCH(NPS!$B20,【D】NPS!$B$4:$B$76,0), MATCH(NPS!G$2&NPS!$C$1,【D】NPS!$C$2:$GO$2&【D】NPS!$C$3:$GO$3,0)) -> 7.894736842 | H20: =INDEX(【D】NPS!$C$4:$GO$76,MATCH(NPS!$B20,【D】NPS!$B$4:$B$76,0), MATCH(NPS!H$2&NPS!$C$1,【D】NPS!$C$2:$GO$2&【D】NPS!$C$3:$GO$3,0)) -> -11.76470588 | I20: =INDEX(【D】NPS!$C$4:$GO$76,MATCH(NPS!$B20,【D】NPS!$B$4:$B$76,0), MATCH(NPS!I$2&NPS!$C$1,【D】NPS!$C$2:$GO$2&【D】NPS!$C$3:$GO$3,0)) -> -8.108108108 | J20: =INDEX(【D】NPS!$C$4:$GO$76,MATCH(NPS!$B20,【D】NPS!$B$4:$B$76,0), MATCH(NPS!J$2&NPS!$C$1,【D】NPS!$C$2:$GO$2&【D】NPS!$C$3:$GO$3,0)) -> -1.449275362 | K20: =INDEX(【D】NPS!$C$4:$GO$76,MATCH(NPS!$B20,【D】NPS!$B$4:$B$76,0), MATCH(NPS!K$2&NPS!$C$1,【D】NPS!$C$2:$GO$2&【D】NPS!$C$3:$GO$3,0)) -> -2.941176471 | L20: =INDEX(【D】NPS!$C$4:$GO$76,MATCH(NPS!$B20,【D】NPS!$B$4:$B$76,0), MATCH(NPS!L$2&NPS!$C$1,【D】NPS!$C$2:$GO$2&【D】NPS!$C$3:$GO$3,0)) -> -38.46153846 | M20: =INDEX(【D】NPS!$C$4:$GO$76,MATCH(NPS!$B20,【D】NPS!$B$4:$B$76,0), MATCH(NPS!M$2&NPS!$C$1,【D】NPS!$C$2:$GO$2&【D】NPS!$C$3:$GO$3,0)) -> -20 | N20: =INDEX(【D】NPS!$C$4:$GO$76,MATCH(NPS!$B20,【D】NPS!$B$4:$B$76,0), MATCH(NPS!N$2&NPS!$C$1,【D】NPS!$C$2:$GO$2&【D】NPS!$C$3:$GO$3,0)) -> 14.81481481 | O20: =INDEX(【D】NPS!$C$4:$GO$76,MATCH(NPS!$B20,【D】NPS!$B$4:$B$76,0), MATCH(NPS!O$2&NPS!$C$1,【D】NPS!$C$2:$GO$2&【D】NPS!$C$3:$GO$3,0)) -> -75 | P20: =INDEX(【D】NPS!$C$4:$GO$76,MATCH(NPS!$B20,【D】NPS!$B$4:$B$76,0), MATCH(NPS!P$2&NPS!$C$1,【D】NPS!$C$2:$GO$2&【D】NPS!$C$3:$GO$3,0)) -> -1.435406699 | S20: =INDEX(【D】NPS!$C$4:$GO$76,MATCH(NPS!$B20,【D】NPS!$B$4:$B$76,0), MATCH(NPS!S$2&NPS!$R$1,【D】NPS!$C$2:$GO$2&【D】NPS!$C$3:$GO$3,0)) -> 37 | T20: =INDEX(【D】NPS!$C$4:$GO$76,MATCH(NPS!$B20,【D】NPS!$B$4:$B$76,0), MATCH(NPS!T$2&NPS!$R$1,【D】NPS!$C$2:$GO$2&【D】NPS!$C$3:$GO$3,0)) -> 21 | U20: =INDEX(【D】NPS!$C$4:$GO$76,MATCH(NPS!$B20,【D】NPS!$B$4:$B$76,0), MATCH(NPS!U$2&NPS!$R$1,【D】NPS!$C$2:$GO$2&【D】NPS!$C$3:$GO$3,0)) -> 25 | V20: =INDEX(【D】NPS!$C$4:$GO$76,MATCH(NPS!$B20,【D】NPS!$B$4:$B$76,0), MATCH(NPS!V$2&NPS!$R$1,【D】NPS!$C$2:$GO$2&【D】NPS!$C$3:$GO$3,0)) -> 28 | W20: =INDEX(【D】NPS!$C$4:$GO$76,MATCH(NPS!$B20,【D】NPS!$B$4:$B$76,0), MATCH(NPS!W$2&NPS!$R$1,【D】NPS!$C$2:$GO$2&【D】NPS!$C$3:$GO$3,0)) -> 47 | X20: =INDEX(【D】NPS!$C$4:$GO$76,MATCH(NPS!$B20,【D】NPS!$B$4:$B$76,0), MATCH(NPS!X$2&NPS!$R$1,【D】NPS!$C$2:$GO$2&【D】NPS!$C$3:$GO$3,0)) -> 44 | Y20: =INDEX(【D】NPS!$C$4:$GO$76,MATCH(NPS!$B20,【D】NPS!$B$4:$B$76,0), MATCH(NPS!Y$2&NPS!$R$1,【D】NPS!$C$2:$GO$2&【D】NPS!$C$3:$GO$3,0)) -> 41 | Z20: =INDEX(【D】NPS!$C$4:$GO$76,MATCH(NPS!$B20,【D】NPS!$B$4:$B$76,0), MATCH(NPS!Z$2&NPS!$R$1,【D】NPS!$C$2:$GO$2&【D】NPS!$C$3:$GO$3,0)) -> 39 | AA20: =INDEX(【D】NPS!$C$4:$GO$76,MATCH(NPS!$B20,【D】NPS!$B$4:$B$76,0), MATCH(NPS!AA$2&NPS!$R$1,【D】NPS!$C$2:$GO$2&【D】NPS!$C$3:$GO$3,0)) -> 59 | AB20: =INDEX(【D】NPS!$C$4:$GO$76,MATCH(NPS!$B20,【D】NPS!$B$4:$B$76,0), MATCH(NPS!AB$2&NPS!$R$1,【D】NPS!$C$2:$GO$2&【D】NPS!$C$3:$GO$3,0)) -> 49 | AC20: =INDEX(【D】NPS!$C$4:$GO$76,MATCH(NPS!$B20,【D】NPS!$B$4:$B$76,0), MATCH(NPS!AC$2&NPS!$R$1,【D】NPS!$C$2:$GO$2&【D】NPS!$C$3:$GO$3,0)) -> 15 | AD20: =INDEX(【D】NPS!$C$4:$GO$76,MATCH(NPS!$B20,【D】NPS!$B$4:$B$76,0), MATCH(NPS!AD$2&NPS!$R$1,【D】NPS!$C$2:$GO$2&【D】NPS!$C$3:$GO$3,0)) -> 62 | AE20: =INDEX(【D】NPS!$C$4:$GO$76,MATCH(NPS!$B20,【D】NPS!$B$4:$B$76,0), MATCH(NPS!AE$2&NPS!$R$1,【D】NPS!$C$2:$GO$2&【D】NPS!$C$3:$GO$3,0)) -> 39 | AH20: =INDEX(【D】NPS!$C$4:$GO$76,MATCH(NPS!$B20,【D】NPS!$B$4:$B$76,0), MATCH(NPS!AH$2&NPS!$AG$1,【D】NPS!$C$2:$GO$2&【D】NPS!$C$3:$GO$3,0)) -> 37 | AI20: =INDEX(【D】NPS!$C$4:$GO$76,MATCH(NPS!$B20,【D】NPS!$B$4:$B$76,0), MATCH(NPS!AI$2&NPS!$AG$1,【D】NPS!$C$2:$GO$2&【D】NPS!$C$3:$GO$3,0)) -> 21 | AJ20: =INDEX(【D】NPS!$C$4:$GO$76,MATCH(NPS!$B20,【D】NPS!$B$4:$B$76,0), MATCH(NPS!AJ$2&NPS!$AG$1,【D】NPS!$C$2:$GO$2&【D】NPS!$C$3:$GO$3,0)) -> 25 | AK20: =INDEX(【D】NPS!$C$4:$GO$76,MATCH(NPS!$B20,【D】NPS!$B$4:$B$76,0), MATCH(NPS!AK$2&NPS!$AG$1,【D】NPS!$C$2:$GO$2&【D】NPS!$C$3:$GO$3,0)) -> 28 | AL20: =INDEX(【D】NPS!$C$4:$GO$76,MATCH(NPS!$B20,【D】NPS!$B$4:$B$76,0), MATCH(NPS!AL$2&NPS!$AG$1,【D】NPS!$C$2:$GO$2&【D】NPS!$C$3:$GO$3,0)) -> 47 | AM20: =INDEX(【D】NPS!$C$4:$GO$76,MATCH(NPS!$B20,【D】NPS!$B$4:$B$76,0), MATCH(NPS!AM$2&NPS!$AG$1,【D】NPS!$C$2:$GO$2&【D】NPS!$C$3:$GO$3,0)) -> 44 | AN20: =INDEX(【D】NPS!$C$4:$GO$76,MATCH(NPS!$B20,【D】NPS!$B$4:$B$76,0), MATCH(NPS!AN$2&NPS!$AG$1,【D】NPS!$C$2:$GO$2&【D】NPS!$C$3:$GO$3,0)) -> 41 | AO20: =INDEX(【D】NPS!$C$4:$GO$76,MATCH(NPS!$B20,【D】NPS!$B$4:$B$76,0), MATCH(NPS!AO$2&NPS!$AG$1,【D】NPS!$C$2:$GO$2&【D】NPS!$C$3:$GO$3,0)) -> 39 | AP20: =INDEX(【D】NPS!$C$4:$GO$76,MATCH(NPS!$B20,【D】NPS!$B$4:$B$76,0), MATCH(NPS!AP$2&NPS!$AG$1,【D】NPS!$C$2:$GO$2&【D】NPS!$C$3:$GO$3,0)) -> 59 | AQ20: =INDEX(【D】NPS!$C$4:$GO$76,MATCH(NPS!$B20,【D】NPS!$B$4:$B$76,0), MATCH(NPS!AQ$2&NPS!$AG$1,【D】NPS!$C$2:$GO$2&【D】NPS!$C$3:$GO$3,0)) -> 49 | AR20: =INDEX(【D】NPS!$C$4:$GO$76,MATCH(NPS!$B20,【D】NPS!$B$4:$B$76,0), MATCH(NPS!AR$2&NPS!$AG$1,【D】NPS!$C$2:$GO$2&【D】NPS!$C$3:$GO$3,0)) -> 15 | AS20: =INDEX(【D】NPS!$C$4:$GO$76,MATCH(NPS!$B20,【D】NPS!$B$4:$B$76,0), MATCH(NPS!AS$2&NPS!$AG$1,【D】NPS!$C$2:$GO$2&【D】NPS!$C$3:$GO$3,0)) -> 62 | AT20: =INDEX(【D】NPS!$C$4:$GO$76,MATCH(NPS!$B20,【D】NPS!$B$4:$B$76,0), MATCH(NPS!AT$2&NPS!$AG$1,【D】NPS!$C$2:$GO$2&【D】NPS!$C$3:$GO$3,0)) -> 39 | AV20: 18 | AW20: 17 | AX20: 平泉寺白山神社 エリア | AY20: 25 | AZ20: =INDEX(【D】NPS!$C$7:$HB$76, MATCH(NPS!$AX20,【D】NPS!$B$7:$B$76,0), MATCH(NPS!$AZ$2&NPS!$AW$1,【D】NPS!$C$1:$HB$1&【D】NPS!$C$2:$HB$2,0)) -> 4
B21: 道の駅「越前おおの荒島の郷」 エリア | D21: =INDEX(【D】NPS!$C$4:$GO$76,MATCH(NPS!$B21,【D】NPS!$B$4:$B$76,0), MATCH(NPS!D$2&NPS!$C$1,【D】NPS!$C$2:$GO$2&【D】NPS!$C$3:$GO$3,0)) -> -42.85714286 | E21: =INDEX(【D】NPS!$C$4:$GO$76,MATCH(NPS!$B21,【D】NPS!$B$4:$B$76,0), MATCH(NPS!E$2&NPS!$C$1,【D】NPS!$C$2:$GO$2&【D】NPS!$C$3:$GO$3,0)) -> 9.090909091 | F21: =INDEX(【D】NPS!$C$4:$GO$76,MATCH(NPS!$B21,【D】NPS!$B$4:$B$76,0), MATCH(NPS!F$2&NPS!$C$1,【D】NPS!$C$2:$GO$2&【D】NPS!$C$3:$GO$3,0)) -> 9.230769231 | G21: =INDEX(【D】NPS!$C$4:$GO$76,MATCH(NPS!$B21,【D】NPS!$B$4:$B$76,0), MATCH(NPS!G$2&NPS!$C$1,【D】NPS!$C$2:$GO$2&【D】NPS!$C$3:$GO$3,0)) -> 16.92307692 | H21: =INDEX(【D】NPS!$C$4:$GO$76,MATCH(NPS!$B21,【D】NPS!$B$4:$B$76,0), MATCH(NPS!H$2&NPS!$C$1,【D】NPS!$C$2:$GO$2&【D】NPS!$C$3:$GO$3,0)) -> 8.823529412 | I21: =INDEX(【D】NPS!$C$4:$GO$76,MATCH(NPS!$B21,【D】NPS!$B$4:$B$76,0), MATCH(NPS!I$2&NPS!$C$1,【D】NPS!$C$2:$GO$2&【D】NPS!$C$3:$GO$3,0)) -> 16.66666667 | J21: =INDEX(【D】NPS!$C$4:$GO$76,MATCH(NPS!$B21,【D】NPS!$B$4:$B$76,0), MATCH(NPS!J$2&NPS!$C$1,【D】NPS!$C$2:$GO$2&【D】NPS!$C$3:$GO$3,0)) -> -2.02020202 | K21: =INDEX(【D】NPS!$C$4:$GO$76,MATCH(NPS!$B21,【D】NPS!$B$4:$B$76,0), MATCH(NPS!K$2&NPS!$C$1,【D】NPS!$C$2:$GO$2&【D】NPS!$C$3:$GO$3,0)) -> 8.333333333 | L21: =INDEX(【D】NPS!$C$4:$GO$76,MATCH(NPS!$B21,【D】NPS!$B$4:$B$76,0), MATCH(NPS!L$2&NPS!$C$1,【D】NPS!$C$2:$GO$2&【D】NPS!$C$3:$GO$3,0)) -> 2.127659574 | M21: =INDEX(【D】NPS!$C$4:$GO$76,MATCH(NPS!$B21,【D】NPS!$B$4:$B$76,0), MATCH(NPS!M$2&NPS!$C$1,【D】NPS!$C$2:$GO$2&【D】NPS!$C$3:$GO$3,0)) -> 25 | N21: =INDEX(【D】NPS!$C$4:$GO$76,MATCH(NPS!$B21,【D】NPS!$B$4:$B$76,0), MATCH(NPS!N$2&NPS!$C$1,【D】NPS!$C$2:$GO$2&【D】NPS!$C$3:$GO$3,0)) -> 30 | O21: =INDEX(【D】NPS!$C$4:$GO$76,MATCH(NPS!$B21,【D】NPS!$B$4:$B$76,0), MATCH(NPS!O$2&NPS!$C$1,【D】NPS!$C$2:$GO$2&【D】NPS!$C$3:$GO$3,0)) -> 50 | P21: =INDEX(【D】NPS!$C$4:$GO$76,MATCH(NPS!$B21,【D】NPS!$B$4:$B$76,0), MATCH(NPS!P$2&NPS!$C$1,【D】NPS!$C$2:$GO$2&【D】NPS!$C$3:$GO$3,0)) -> 10.13333333 | S21: =INDEX(【D】NPS!$C$4:$GO$76,MATCH(NPS!$B21,【D】NPS!$B$4:$B$76,0), MATCH(NPS!S$2&NPS!$R$1,【D】NPS!$C$2:$GO$2&【D】NPS!$C$3:$GO$3,0)) -> 41 | T21: =INDEX(【D】NPS!$C$4:$GO$76,MATCH(NPS!$B21,【D】NPS!$B$4:$B$76,0), MATCH(NPS!T$2&NPS!$R$1,【D】NPS!$C$2:$GO$2&【D】NPS!$C$3:$GO$3,0)) -> 23 | U21: =INDEX(【D】NPS!$C$4:$GO$76,MATCH(NPS!$B21,【D】NPS!$B$4:$B$76,0), MATCH(NPS!U$2&NPS!$R$1,【D】NPS!$C$2:$GO$2&【D】NPS!$C$3:$GO$3,0)) -> 30 | V21: =INDEX(【D】NPS!$C$4:$GO$76,MATCH(NPS!$B21,【D】NPS!$B$4:$B$76,0), MATCH(NPS!V$2&NPS!$R$1,【D】NPS!$C$2:$GO$2&【D】NPS!$C$3:$GO$3,0)) -> 20 | W21: =INDEX(【D】NPS!$C$4:$GO$76,MATCH(NPS!$B21,【D】NPS!$B$4:$B$76,0), MATCH(NPS!W$2&NPS!$R$1,【D】NPS!$C$2:$GO$2&【D】NPS!$C$3:$GO$3,0)) -> 23 | X21: =INDEX(【D】NPS!$C$4:$GO$76,MATCH(NPS!$B21,【D】NPS!$B$4:$B$76,0), MATCH(NPS!X$2&NPS!$R$1,【D】NPS!$C$2:$GO$2&【D】NPS!$C$3:$GO$3,0)) -> 20 | Y21: =INDEX(【D】NPS!$C$4:$GO$76,MATCH(NPS!$B21,【D】NPS!$B$4:$B$76,0), MATCH(NPS!Y$2&NPS!$R$1,【D】NPS!$C$2:$GO$2&【D】NPS!$C$3:$GO$3,0)) -> 42 | Z21: =INDEX(【D】NPS!$C$4:$GO$76,MATCH(NPS!$B21,【D】NPS!$B$4:$B$76,0), MATCH(NPS!Z$2&NPS!$R$1,【D】NPS!$C$2:$GO$2&【D】NPS!$C$3:$GO$3,0)) -> 24 | AA21: =INDEX(【D】NPS!$C$4:$GO$76,MATCH(NPS!$B21,【D】NPS!$B$4:$B$76,0), MATCH(NPS!AA$2&NPS!$R$1,【D】NPS!$C$2:$GO$2&【D】NPS!$C$3:$GO$3,0)) -> 34 | AB21: =INDEX(【D】NPS!$C$4:$GO$76,MATCH(NPS!$B21,【D】NPS!$B$4:$B$76,0), MATCH(NPS!AB$2&NPS!$R$1,【D】NPS!$C$2:$GO$2&【D】NPS!$C$3:$GO$3,0)) -> 14 | AC21: =INDEX(【D】NPS!$C$4:$GO$76,MATCH(NPS!$B21,【D】NPS!$B$4:$B$76,0), MATCH(NPS!AC$2&NPS!$R$1,【D】NPS!$C$2:$GO$2&【D】NPS!$C$3:$GO$3,0)) -> 7 | AD21: =INDEX(【D】NPS!$C$4:$GO$76,MATCH(NPS!$B21,【D】NPS!$B$4:$B$76,0), MATCH(NPS!AD$2&NPS!$R$1,【D】NPS!$C$2:$GO$2&【D】NPS!$C$3:$GO$3,0)) -> 5 | AE21: =INDEX(【D】NPS!$C$4:$GO$76,MATCH(NPS!$B21,【D】NPS!$B$4:$B$76,0), MATCH(NPS!AE$2&NPS!$R$1,【D】NPS!$C$2:$GO$2&【D】NPS!$C$3:$GO$3,0)) -> 19 | AH21: =INDEX(【D】NPS!$C$4:$GO$76,MATCH(NPS!$B21,【D】NPS!$B$4:$B$76,0), MATCH(NPS!AH$2&NPS!$AG$1,【D】NPS!$C$2:$GO$2&【D】NPS!$C$3:$GO$3,0)) -> 41 | AI21: =INDEX(【D】NPS!$C$4:$GO$76,MATCH(NPS!$B21,【D】NPS!$B$4:$B$76,0), MATCH(NPS!AI$2&NPS!$AG$1,【D】NPS!$C$2:$GO$2&【D】NPS!$C$3:$GO$3,0)) -> 23 | AJ21: =INDEX(【D】NPS!$C$4:$GO$76,MATCH(NPS!$B21,【D】NPS!$B$4:$B$76,0), MATCH(NPS!AJ$2&NPS!$AG$1,【D】NPS!$C$2:$GO$2&【D】NPS!$C$3:$GO$3,0)) -> 30 | AK21: =INDEX(【D】NPS!$C$4:$GO$76,MATCH(NPS!$B21,【D】NPS!$B$4:$B$76,0), MATCH(NPS!AK$2&NPS!$AG$1,【D】NPS!$C$2:$GO$2&【D】NPS!$C$3:$GO$3,0)) -> 20 | AL21: =INDEX(【D】NPS!$C$4:$GO$76,MATCH(NPS!$B21,【D】NPS!$B$4:$B$76,0), MATCH(NPS!AL$2&NPS!$AG$1,【D】NPS!$C$2:$GO$2&【D】NPS!$C$3:$GO$3,0)) -> 23 | AM21: =INDEX(【D】NPS!$C$4:$GO$76,MATCH(NPS!$B21,【D】NPS!$B$4:$B$76,0), MATCH(NPS!AM$2&NPS!$AG$1,【D】NPS!$C$2:$GO$2&【D】NPS!$C$3:$GO$3,0)) -> 20 | AN21: =INDEX(【D】NPS!$C$4:$GO$76,MATCH(NPS!$B21,【D】NPS!$B$4:$B$76,0), MATCH(NPS!AN$2&NPS!$AG$1,【D】NPS!$C$2:$GO$2&【D】NPS!$C$3:$GO$3,0)) -> 42 | AO21: =INDEX(【D】NPS!$C$4:$GO$76,MATCH(NPS!$B21,【D】NPS!$B$4:$B$76,0), MATCH(NPS!AO$2&NPS!$AG$1,【D】NPS!$C$2:$GO$2&【D】NPS!$C$3:$GO$3,0)) -> 25 | AP21: =INDEX(【D】NPS!$C$4:$GO$76,MATCH(NPS!$B21,【D】NPS!$B$4:$B$76,0), MATCH(NPS!AP$2&NPS!$AG$1,【D】NPS!$C$2:$GO$2&【D】NPS!$C$3:$GO$3,0)) -> 34 | AQ21: =INDEX(【D】NPS!$C$4:$GO$76,MATCH(NPS!$B21,【D】NPS!$B$4:$B$76,0), MATCH(NPS!AQ$2&NPS!$AG$1,【D】NPS!$C$2:$GO$2&【D】NPS!$C$3:$GO$3,0)) -> 14 | AR21: =INDEX(【D】NPS!$C$4:$GO$76,MATCH(NPS!$B21,【D】NPS!$B$4:$B$76,0), MATCH(NPS!AR$2&NPS!$AG$1,【D】NPS!$C$2:$GO$2&【D】NPS!$C$3:$GO$3,0)) -> 7 | AS21: =INDEX(【D】NPS!$C$4:$GO$76,MATCH(NPS!$B21,【D】NPS!$B$4:$B$76,0), MATCH(NPS!AS$2&NPS!$AG$1,【D】NPS!$C$2:$GO$2&【D】NPS!$C$3:$GO$3,0)) -> 10 | AT21: =INDEX(【D】NPS!$C$4:$GO$76,MATCH(NPS!$B21,【D】NPS!$B$4:$B$76,0), MATCH(NPS!AT$2&NPS!$AG$1,【D】NPS!$C$2:$GO$2&【D】NPS!$C$3:$GO$3,0)) -> 19 | AV21: 19 | AW21: 19 | AX21: 越前陶芸村 エリア | AY21: 22.22222222 | AZ21: =INDEX(【D】NPS!$C$7:$HB$76, MATCH(NPS!$AX21,【D】NPS!$B$7:$B$76,0), MATCH(NPS!$AZ$2&NPS!$AW$1,【D】NPS!$C$1:$HB$1&【D】NPS!$C$2:$HB$2,0)) -> 9
B22: 道の駅「九頭竜」 エリア | D22: =INDEX(【D】NPS!$C$4:$GO$76,MATCH(NPS!$B22,【D】NPS!$B$4:$B$76,0), MATCH(NPS!D$2&NPS!$C$1,【D】NPS!$C$2:$GO$2&【D】NPS!$C$3:$GO$3,0)) -> -100 | E22: =INDEX(【D】NPS!$C$4:$GO$76,MATCH(NPS!$B22,【D】NPS!$B$4:$B$76,0), MATCH(NPS!E$2&NPS!$C$1,【D】NPS!$C$2:$GO$2&【D】NPS!$C$3:$GO$3,0)) -> -16.66666667 | F22: =INDEX(【D】NPS!$C$4:$GO$76,MATCH(NPS!$B22,【D】NPS!$B$4:$B$76,0), MATCH(NPS!F$2&NPS!$C$1,【D】NPS!$C$2:$GO$2&【D】NPS!$C$3:$GO$3,0)) -> -33.33333333 | G22: =INDEX(【D】NPS!$C$4:$GO$76,MATCH(NPS!$B22,【D】NPS!$B$4:$B$76,0), MATCH(NPS!G$2&NPS!$C$1,【D】NPS!$C$2:$GO$2&【D】NPS!$C$3:$GO$3,0)) -> 0 | H22: =INDEX(【D】NPS!$C$4:$GO$76,MATCH(NPS!$B22,【D】NPS!$B$4:$B$76,0), MATCH(NPS!H$2&NPS!$C$1,【D】NPS!$C$2:$GO$2&【D】NPS!$C$3:$GO$3,0)) -> -50 | I22: =INDEX(【D】NPS!$C$4:$GO$76,MATCH(NPS!$B22,【D】NPS!$B$4:$B$76,0), MATCH(NPS!I$2&NPS!$C$1,【D】NPS!$C$2:$GO$2&【D】NPS!$C$3:$GO$3,0)) -> -5.555555556 | J22: =INDEX(【D】NPS!$C$4:$GO$76,MATCH(NPS!$B22,【D】NPS!$B$4:$B$76,0), MATCH(NPS!J$2&NPS!$C$1,【D】NPS!$C$2:$GO$2&【D】NPS!$C$3:$GO$3,0)) -> -18.91891892 | K22: =INDEX(【D】NPS!$C$4:$GO$76,MATCH(NPS!$B22,【D】NPS!$B$4:$B$76,0), MATCH(NPS!K$2&NPS!$C$1,【D】NPS!$C$2:$GO$2&【D】NPS!$C$3:$GO$3,0)) -> -19.44444444 | L22: =INDEX(【D】NPS!$C$4:$GO$76,MATCH(NPS!$B22,【D】NPS!$B$4:$B$76,0), MATCH(NPS!L$2&NPS!$C$1,【D】NPS!$C$2:$GO$2&【D】NPS!$C$3:$GO$3,0)) -> -25 | M22: =INDEX(【D】NPS!$C$4:$GO$76,MATCH(NPS!$B22,【D】NPS!$B$4:$B$76,0), MATCH(NPS!M$2&NPS!$C$1,【D】NPS!$C$2:$GO$2&【D】NPS!$C$3:$GO$3,0)) -> -33.33333333 | N22: =INDEX(【D】NPS!$C$4:$GO$76,MATCH(NPS!$B22,【D】NPS!$B$4:$B$76,0), MATCH(NPS!N$2&NPS!$C$1,【D】NPS!$C$2:$GO$2&【D】NPS!$C$3:$GO$3,0)) -> -50 | O22: =INDEX(【D】NPS!$C$4:$GO$76,MATCH(NPS!$B22,【D】NPS!$B$4:$B$76,0), MATCH(NPS!O$2&NPS!$C$1,【D】NPS!$C$2:$GO$2&【D】NPS!$C$3:$GO$3,0)) -> -33.33333333 | P22: =INDEX(【D】NPS!$C$4:$GO$76,MATCH(NPS!$B22,【D】NPS!$B$4:$B$76,0), MATCH(NPS!P$2&NPS!$C$1,【D】NPS!$C$2:$GO$2&【D】NPS!$C$3:$GO$3,0)) -> -20.3125 | S22: =INDEX(【D】NPS!$C$4:$GO$76,MATCH(NPS!$B22,【D】NPS!$B$4:$B$76,0), MATCH(NPS!S$2&NPS!$R$1,【D】NPS!$C$2:$GO$2&【D】NPS!$C$3:$GO$3,0)) -> 44 | T22: =INDEX(【D】NPS!$C$4:$GO$76,MATCH(NPS!$B22,【D】NPS!$B$4:$B$76,0), MATCH(NPS!T$2&NPS!$R$1,【D】NPS!$C$2:$GO$2&【D】NPS!$C$3:$GO$3,0)) -> 53 | U22: =INDEX(【D】NPS!$C$4:$GO$76,MATCH(NPS!$B22,【D】NPS!$B$4:$B$76,0), MATCH(NPS!U$2&NPS!$R$1,【D】NPS!$C$2:$GO$2&【D】NPS!$C$3:$GO$3,0)) -> 62 | V22: =INDEX(【D】NPS!$C$4:$GO$76,MATCH(NPS!$B22,【D】NPS!$B$4:$B$76,0), MATCH(NPS!V$2&NPS!$R$1,【D】NPS!$C$2:$GO$2&【D】NPS!$C$3:$GO$3,0)) -> 30 | W22: =INDEX(【D】NPS!$C$4:$GO$76,MATCH(NPS!$B22,【D】NPS!$B$4:$B$76,0), MATCH(NPS!W$2&NPS!$R$1,【D】NPS!$C$2:$GO$2&【D】NPS!$C$3:$GO$3,0)) -> 63 | X22: =INDEX(【D】NPS!$C$4:$GO$76,MATCH(NPS!$B22,【D】NPS!$B$4:$B$76,0), MATCH(NPS!X$2&NPS!$R$1,【D】NPS!$C$2:$GO$2&【D】NPS!$C$3:$GO$3,0)) -> 39 | Y22: =INDEX(【D】NPS!$C$4:$GO$76,MATCH(NPS!$B22,【D】NPS!$B$4:$B$76,0), MATCH(NPS!Y$2&NPS!$R$1,【D】NPS!$C$2:$GO$2&【D】NPS!$C$3:$GO$3,0)) -> 61 | Z22: =INDEX(【D】NPS!$C$4:$GO$76,MATCH(NPS!$B22,【D】NPS!$B$4:$B$76,0), MATCH(NPS!Z$2&NPS!$R$1,【D】NPS!$C$2:$GO$2&【D】NPS!$C$3:$GO$3,0)) -> 54 | AA22: =INDEX(【D】NPS!$C$4:$GO$76,MATCH(NPS!$B22,【D】NPS!$B$4:$B$76,0), MATCH(NPS!AA$2&NPS!$R$1,【D】NPS!$C$2:$GO$2&【D】NPS!$C$3:$GO$3,0)) -> 54 | AB22: =INDEX(【D】NPS!$C$4:$GO$76,MATCH(NPS!$B22,【D】NPS!$B$4:$B$76,0), MATCH(NPS!AB$2&NPS!$R$1,【D】NPS!$C$2:$GO$2&【D】NPS!$C$3:$GO$3,0)) -> 55 | AC22: =INDEX(【D】NPS!$C$4:$GO$76,MATCH(NPS!$B22,【D】NPS!$B$4:$B$76,0), MATCH(NPS!AC$2&NPS!$R$1,【D】NPS!$C$2:$GO$2&【D】NPS!$C$3:$GO$3,0)) -> 57 | AD22: =INDEX(【D】NPS!$C$4:$GO$76,MATCH(NPS!$B22,【D】NPS!$B$4:$B$76,0), MATCH(NPS!AD$2&NPS!$R$1,【D】NPS!$C$2:$GO$2&【D】NPS!$C$3:$GO$3,0)) -> 44 | AE22: =INDEX(【D】NPS!$C$4:$GO$76,MATCH(NPS!$B22,【D】NPS!$B$4:$B$76,0), MATCH(NPS!AE$2&NPS!$R$1,【D】NPS!$C$2:$GO$2&【D】NPS!$C$3:$GO$3,0)) -> 62 | AH22: =INDEX(【D】NPS!$C$4:$GO$76,MATCH(NPS!$B22,【D】NPS!$B$4:$B$76,0), MATCH(NPS!AH$2&NPS!$AG$1,【D】NPS!$C$2:$GO$2&【D】NPS!$C$3:$GO$3,0)) -> 47 | AI22: =INDEX(【D】NPS!$C$4:$GO$76,MATCH(NPS!$B22,【D】NPS!$B$4:$B$76,0), MATCH(NPS!AI$2&NPS!$AG$1,【D】NPS!$C$2:$GO$2&【D】NPS!$C$3:$GO$3,0)) -> 53 | AJ22: =INDEX(【D】NPS!$C$4:$GO$76,MATCH(NPS!$B22,【D】NPS!$B$4:$B$76,0), MATCH(NPS!AJ$2&NPS!$AG$1,【D】NPS!$C$2:$GO$2&【D】NPS!$C$3:$GO$3,0)) -> 62 | AK22: =INDEX(【D】NPS!$C$4:$GO$76,MATCH(NPS!$B22,【D】NPS!$B$4:$B$76,0), MATCH(NPS!AK$2&NPS!$AG$1,【D】NPS!$C$2:$GO$2&【D】NPS!$C$3:$GO$3,0)) -> 33 | AL22: =INDEX(【D】NPS!$C$4:$GO$76,MATCH(NPS!$B22,【D】NPS!$B$4:$B$76,0), MATCH(NPS!AL$2&NPS!$AG$1,【D】NPS!$C$2:$GO$2&【D】NPS!$C$3:$GO$3,0)) -> 66 | AM22: =INDEX(【D】NPS!$C$4:$GO$76,MATCH(NPS!$B22,【D】NPS!$B$4:$B$76,0), MATCH(NPS!AM$2&NPS!$AG$1,【D】NPS!$C$2:$GO$2&【D】NPS!$C$3:$GO$3,0)) -> 39 | AN22: =INDEX(【D】NPS!$C$4:$GO$76,MATCH(NPS!$B22,【D】NPS!$B$4:$B$76,0), MATCH(NPS!AN$2&NPS!$AG$1,【D】NPS!$C$2:$GO$2&【D】NPS!$C$3:$GO$3,0)) -> 61 | AO22: =INDEX(【D】NPS!$C$4:$GO$76,MATCH(NPS!$B22,【D】NPS!$B$4:$B$76,0), MATCH(NPS!AO$2&NPS!$AG$1,【D】NPS!$C$2:$GO$2&【D】NPS!$C$3:$GO$3,0)) -> 54 | AP22: =INDEX(【D】NPS!$C$4:$GO$76,MATCH(NPS!$B22,【D】NPS!$B$4:$B$76,0), MATCH(NPS!AP$2&NPS!$AG$1,【D】NPS!$C$2:$GO$2&【D】NPS!$C$3:$GO$3,0)) -> 54 | AQ22: =INDEX(【D】NPS!$C$4:$GO$76,MATCH(NPS!$B22,【D】NPS!$B$4:$B$76,0), MATCH(NPS!AQ$2&NPS!$AG$1,【D】NPS!$C$2:$GO$2&【D】NPS!$C$3:$GO$3,0)) -> 55 | AR22: =INDEX(【D】NPS!$C$4:$GO$76,MATCH(NPS!$B22,【D】NPS!$B$4:$B$76,0), MATCH(NPS!AR$2&NPS!$AG$1,【D】NPS!$C$2:$GO$2&【D】NPS!$C$3:$GO$3,0)) -> 58 | AS22: =INDEX(【D】NPS!$C$4:$GO$76,MATCH(NPS!$B22,【D】NPS!$B$4:$B$76,0), MATCH(NPS!AS$2&NPS!$AG$1,【D】NPS!$C$2:$GO$2&【D】NPS!$C$3:$GO$3,0)) -> 46 | AT22: =INDEX(【D】NPS!$C$4:$GO$76,MATCH(NPS!$B22,【D】NPS!$B$4:$B$76,0), MATCH(NPS!AT$2&NPS!$AG$1,【D】NPS!$C$2:$GO$2&【D】NPS!$C$3:$GO$3,0)) -> 62 | AV22: 20 | AW22: 20 | AX22: 今庄宿 エリア | AY22: 12.5 | AZ22: =INDEX(【D】NPS!$C$7:$HB$76, MATCH(NPS!$AX22,【D】NPS!$B$7:$B$76,0), MATCH(NPS!$AZ$2&NPS!$AW$1,【D】NPS!$C$1:$HB$1&【D】NPS!$C$2:$HB$2,0)) -> 8
B23: 六呂師高原 エリア | D23: =INDEX(【D】NPS!$C$4:$GO$76,MATCH(NPS!$B23,【D】NPS!$B$4:$B$76,0), MATCH(NPS!D$2&NPS!$C$1,【D】NPS!$C$2:$GO$2&【D】NPS!$C$3:$GO$3,0)) -> 0 | E23: =INDEX(【D】NPS!$C$4:$GO$76,MATCH(NPS!$B23,【D】NPS!$B$4:$B$76,0), MATCH(NPS!E$2&NPS!$C$1,【D】NPS!$C$2:$GO$2&【D】NPS!$C$3:$GO$3,0)) -> 17.64705882 | F23: =INDEX(【D】NPS!$C$4:$GO$76,MATCH(NPS!$B23,【D】NPS!$B$4:$B$76,0), MATCH(NPS!F$2&NPS!$C$1,【D】NPS!$C$2:$GO$2&【D】NPS!$C$3:$GO$3,0)) -> -25 | G23: =INDEX(【D】NPS!$C$4:$GO$76,MATCH(NPS!$B23,【D】NPS!$B$4:$B$76,0), MATCH(NPS!G$2&NPS!$C$1,【D】NPS!$C$2:$GO$2&【D】NPS!$C$3:$GO$3,0)) -> -33.33333333 | H23: =INDEX(【D】NPS!$C$4:$GO$76,MATCH(NPS!$B23,【D】NPS!$B$4:$B$76,0), MATCH(NPS!H$2&NPS!$C$1,【D】NPS!$C$2:$GO$2&【D】NPS!$C$3:$GO$3,0)) -> 50 | I23: =INDEX(【D】NPS!$C$4:$GO$76,MATCH(NPS!$B23,【D】NPS!$B$4:$B$76,0), MATCH(NPS!I$2&NPS!$C$1,【D】NPS!$C$2:$GO$2&【D】NPS!$C$3:$GO$3,0)) -> 11.11111111 | J23: =INDEX(【D】NPS!$C$4:$GO$76,MATCH(NPS!$B23,【D】NPS!$B$4:$B$76,0), MATCH(NPS!J$2&NPS!$C$1,【D】NPS!$C$2:$GO$2&【D】NPS!$C$3:$GO$3,0)) -> 50 | K23: =INDEX(【D】NPS!$C$4:$GO$76,MATCH(NPS!$B23,【D】NPS!$B$4:$B$76,0), MATCH(NPS!K$2&NPS!$C$1,【D】NPS!$C$2:$GO$2&【D】NPS!$C$3:$GO$3,0)) -> 8.333333333 | L23: =INDEX(【D】NPS!$C$4:$GO$76,MATCH(NPS!$B23,【D】NPS!$B$4:$B$76,0), MATCH(NPS!L$2&NPS!$C$1,【D】NPS!$C$2:$GO$2&【D】NPS!$C$3:$GO$3,0)) -> None | M23: =INDEX(【D】NPS!$C$4:$GO$76,MATCH(NPS!$B23,【D】NPS!$B$4:$B$76,0), MATCH(NPS!M$2&NPS!$C$1,【D】NPS!$C$2:$GO$2&【D】NPS!$C$3:$GO$3,0)) -> None | N23: =INDEX(【D】NPS!$C$4:$GO$76,MATCH(NPS!$B23,【D】NPS!$B$4:$B$76,0), MATCH(NPS!N$2&NPS!$C$1,【D】NPS!$C$2:$GO$2&【D】NPS!$C$3:$GO$3,0)) -> None | O23: =INDEX(【D】NPS!$C$4:$GO$76,MATCH(NPS!$B23,【D】NPS!$B$4:$B$76,0), MATCH(NPS!O$2&NPS!$C$1,【D】NPS!$C$2:$GO$2&【D】NPS!$C$3:$GO$3,0)) -> 0 | P23: =INDEX(【D】NPS!$C$4:$GO$76,MATCH(NPS!$B23,【D】NPS!$B$4:$B$76,0), MATCH(NPS!P$2&NPS!$C$1,【D】NPS!$C$2:$GO$2&【D】NPS!$C$3:$GO$3,0)) -> 10.29411765 | S23: =INDEX(【D】NPS!$C$4:$GO$76,MATCH(NPS!$B23,【D】NPS!$B$4:$B$76,0), MATCH(NPS!S$2&NPS!$R$1,【D】NPS!$C$2:$GO$2&【D】NPS!$C$3:$GO$3,0)) -> 25 | T23: =INDEX(【D】NPS!$C$4:$GO$76,MATCH(NPS!$B23,【D】NPS!$B$4:$B$76,0), MATCH(NPS!T$2&NPS!$R$1,【D】NPS!$C$2:$GO$2&【D】NPS!$C$3:$GO$3,0)) -> 16 | U23: =INDEX(【D】NPS!$C$4:$GO$76,MATCH(NPS!$B23,【D】NPS!$B$4:$B$76,0), MATCH(NPS!U$2&NPS!$R$1,【D】NPS!$C$2:$GO$2&【D】NPS!$C$3:$GO$3,0)) -> 56 | V23: =INDEX(【D】NPS!$C$4:$GO$76,MATCH(NPS!$B23,【D】NPS!$B$4:$B$76,0), MATCH(NPS!V$2&NPS!$R$1,【D】NPS!$C$2:$GO$2&【D】NPS!$C$3:$GO$3,0)) -> 55 | W23: =INDEX(【D】NPS!$C$4:$GO$76,MATCH(NPS!$B23,【D】NPS!$B$4:$B$76,0), MATCH(NPS!W$2&NPS!$R$1,【D】NPS!$C$2:$GO$2&【D】NPS!$C$3:$GO$3,0)) -> 5 | X23: =INDEX(【D】NPS!$C$4:$GO$76,MATCH(NPS!$B23,【D】NPS!$B$4:$B$76,0), MATCH(NPS!X$2&NPS!$R$1,【D】NPS!$C$2:$GO$2&【D】NPS!$C$3:$GO$3,0)) -> 24 | Y23: =INDEX(【D】NPS!$C$4:$GO$76,MATCH(NPS!$B23,【D】NPS!$B$4:$B$76,0), MATCH(NPS!Y$2&NPS!$R$1,【D】NPS!$C$2:$GO$2&【D】NPS!$C$3:$GO$3,0)) -> 3 | Z23: =INDEX(【D】NPS!$C$4:$GO$76,MATCH(NPS!$B23,【D】NPS!$B$4:$B$76,0), MATCH(NPS!Z$2&NPS!$R$1,【D】NPS!$C$2:$GO$2&【D】NPS!$C$3:$GO$3,0)) -> 24 | AA23: =INDEX(【D】NPS!$C$4:$GO$76,MATCH(NPS!$B23,【D】NPS!$B$4:$B$76,0), MATCH(NPS!AA$2&NPS!$R$1,【D】NPS!$C$2:$GO$2&【D】NPS!$C$3:$GO$3,0)) -> - | AB23: =INDEX(【D】NPS!$C$4:$GO$76,MATCH(NPS!$B23,【D】NPS!$B$4:$B$76,0), MATCH(NPS!AB$2&NPS!$R$1,【D】NPS!$C$2:$GO$2&【D】NPS!$C$3:$GO$3,0)) -> - | AC23: =INDEX(【D】NPS!$C$4:$GO$76,MATCH(NPS!$B23,【D】NPS!$B$4:$B$76,0), MATCH(NPS!AC$2&NPS!$R$1,【D】NPS!$C$2:$GO$2&【D】NPS!$C$3:$GO$3,0)) -> - | AD23: =INDEX(【D】NPS!$C$4:$GO$76,MATCH(NPS!$B23,【D】NPS!$B$4:$B$76,0), MATCH(NPS!AD$2&NPS!$R$1,【D】NPS!$C$2:$GO$2&【D】NPS!$C$3:$GO$3,0)) -> 27 | AE23: =INDEX(【D】NPS!$C$4:$GO$76,MATCH(NPS!$B23,【D】NPS!$B$4:$B$76,0), MATCH(NPS!AE$2&NPS!$R$1,【D】NPS!$C$2:$GO$2&【D】NPS!$C$3:$GO$3,0)) -> 18 | AH23: =INDEX(【D】NPS!$C$4:$GO$76,MATCH(NPS!$B23,【D】NPS!$B$4:$B$76,0), MATCH(NPS!AH$2&NPS!$AG$1,【D】NPS!$C$2:$GO$2&【D】NPS!$C$3:$GO$3,0)) -> 31 | AI23: =INDEX(【D】NPS!$C$4:$GO$76,MATCH(NPS!$B23,【D】NPS!$B$4:$B$76,0), MATCH(NPS!AI$2&NPS!$AG$1,【D】NPS!$C$2:$GO$2&【D】NPS!$C$3:$GO$3,0)) -> 16 | AJ23: =INDEX(【D】NPS!$C$4:$GO$76,MATCH(NPS!$B23,【D】NPS!$B$4:$B$76,0), MATCH(NPS!AJ$2&NPS!$AG$1,【D】NPS!$C$2:$GO$2&【D】NPS!$C$3:$GO$3,0)) -> 57 | AK23: =INDEX(【D】NPS!$C$4:$GO$76,MATCH(NPS!$B23,【D】NPS!$B$4:$B$76,0), MATCH(NPS!AK$2&NPS!$AG$1,【D】NPS!$C$2:$GO$2&【D】NPS!$C$3:$GO$3,0)) -> 55 | AL23: =INDEX(【D】NPS!$C$4:$GO$76,MATCH(NPS!$B23,【D】NPS!$B$4:$B$76,0), MATCH(NPS!AL$2&NPS!$AG$1,【D】NPS!$C$2:$GO$2&【D】NPS!$C$3:$GO$3,0)) -> 8 | AM23: =INDEX(【D】NPS!$C$4:$GO$76,MATCH(NPS!$B23,【D】NPS!$B$4:$B$76,0), MATCH(NPS!AM$2&NPS!$AG$1,【D】NPS!$C$2:$GO$2&【D】NPS!$C$3:$GO$3,0)) -> 24 | AN23: =INDEX(【D】NPS!$C$4:$GO$76,MATCH(NPS!$B23,【D】NPS!$B$4:$B$76,0), MATCH(NPS!AN$2&NPS!$AG$1,【D】NPS!$C$2:$GO$2&【D】NPS!$C$3:$GO$3,0)) -> 4 | AO23: =INDEX(【D】NPS!$C$4:$GO$76,MATCH(NPS!$B23,【D】NPS!$B$4:$B$76,0), MATCH(NPS!AO$2&NPS!$AG$1,【D】NPS!$C$2:$GO$2&【D】NPS!$C$3:$GO$3,0)) -> 24 | AP23: =INDEX(【D】NPS!$C$4:$GO$76,MATCH(NPS!$B23,【D】NPS!$B$4:$B$76,0), MATCH(NPS!AP$2&NPS!$AG$1,【D】NPS!$C$2:$GO$2&【D】NPS!$C$3:$GO$3,0)) -> - | AQ23: =INDEX(【D】NPS!$C$4:$GO$76,MATCH(NPS!$B23,【D】NPS!$B$4:$B$76,0), MATCH(NPS!AQ$2&NPS!$AG$1,【D】NPS!$C$2:$GO$2&【D】NPS!$C$3:$GO$3,0)) -> - | AR23: =INDEX(【D】NPS!$C$4:$GO$76,MATCH(NPS!$B23,【D】NPS!$B$4:$B$76,0), MATCH(NPS!AR$2&NPS!$AG$1,【D】NPS!$C$2:$GO$2&【D】NPS!$C$3:$GO$3,0)) -> - | AS23: =INDEX(【D】NPS!$C$4:$GO$76,MATCH(NPS!$B23,【D】NPS!$B$4:$B$76,0), MATCH(NPS!AS$2&NPS!$AG$1,【D】NPS!$C$2:$GO$2&【D】NPS!$C$3:$GO$3,0)) -> 32 | AT23: =INDEX(【D】NPS!$C$4:$GO$76,MATCH(NPS!$B23,【D】NPS!$B$4:$B$76,0), MATCH(NPS!AT$2&NPS!$AG$1,【D】NPS!$C$2:$GO$2&【D】NPS!$C$3:$GO$3,0)) -> 18 | AV23: 21 | AW23: 20 | AX23: 道の駅みくに ふれあいパーク三里浜 エリア | AY23: 12.5 | AZ23: 52
B24: スーベニアショップ ラプトル エリア | D24: =INDEX(【D】NPS!$C$4:$GO$76,MATCH(NPS!$B24,【D】NPS!$B$4:$B$76,0), MATCH(NPS!D$2&NPS!$C$1,【D】NPS!$C$2:$GO$2&【D】NPS!$C$3:$GO$3,0)) -> 38.88888889 | E24: =INDEX(【D】NPS!$C$4:$GO$76,MATCH(NPS!$B24,【D】NPS!$B$4:$B$76,0), MATCH(NPS!E$2&NPS!$C$1,【D】NPS!$C$2:$GO$2&【D】NPS!$C$3:$GO$3,0)) -> -4 | F24: =INDEX(【D】NPS!$C$4:$GO$76,MATCH(NPS!$B24,【D】NPS!$B$4:$B$76,0), MATCH(NPS!F$2&NPS!$C$1,【D】NPS!$C$2:$GO$2&【D】NPS!$C$3:$GO$3,0)) -> -25 | G24: =INDEX(【D】NPS!$C$4:$GO$76,MATCH(NPS!$B24,【D】NPS!$B$4:$B$76,0), MATCH(NPS!G$2&NPS!$C$1,【D】NPS!$C$2:$GO$2&【D】NPS!$C$3:$GO$3,0)) -> 16.66666667 | H24: =INDEX(【D】NPS!$C$4:$GO$76,MATCH(NPS!$B24,【D】NPS!$B$4:$B$76,0), MATCH(NPS!H$2&NPS!$C$1,【D】NPS!$C$2:$GO$2&【D】NPS!$C$3:$GO$3,0)) -> 11.76470588 | I24: =INDEX(【D】NPS!$C$4:$GO$76,MATCH(NPS!$B24,【D】NPS!$B$4:$B$76,0), MATCH(NPS!I$2&NPS!$C$1,【D】NPS!$C$2:$GO$2&【D】NPS!$C$3:$GO$3,0)) -> 9.302325581 | J24: =INDEX(【D】NPS!$C$4:$GO$76,MATCH(NPS!$B24,【D】NPS!$B$4:$B$76,0), MATCH(NPS!J$2&NPS!$C$1,【D】NPS!$C$2:$GO$2&【D】NPS!$C$3:$GO$3,0)) -> 22.47191011 | K24: =INDEX(【D】NPS!$C$4:$GO$76,MATCH(NPS!$B24,【D】NPS!$B$4:$B$76,0), MATCH(NPS!K$2&NPS!$C$1,【D】NPS!$C$2:$GO$2&【D】NPS!$C$3:$GO$3,0)) -> 1.526717557 | L24: =INDEX(【D】NPS!$C$4:$GO$76,MATCH(NPS!$B24,【D】NPS!$B$4:$B$76,0), MATCH(NPS!L$2&NPS!$C$1,【D】NPS!$C$2:$GO$2&【D】NPS!$C$3:$GO$3,0)) -> 13.63636364 | M24: =INDEX(【D】NPS!$C$4:$GO$76,MATCH(NPS!$B24,【D】NPS!$B$4:$B$76,0), MATCH(NPS!M$2&NPS!$C$1,【D】NPS!$C$2:$GO$2&【D】NPS!$C$3:$GO$3,0)) -> None | N24: =INDEX(【D】NPS!$C$4:$GO$76,MATCH(NPS!$B24,【D】NPS!$B$4:$B$76,0), MATCH(NPS!N$2&NPS!$C$1,【D】NPS!$C$2:$GO$2&【D】NPS!$C$3:$GO$3,0)) -> -62.5 | O24: =INDEX(【D】NPS!$C$4:$GO$76,MATCH(NPS!$B24,【D】NPS!$B$4:$B$76,0), MATCH(NPS!O$2&NPS!$C$1,【D】NPS!$C$2:$GO$2&【D】NPS!$C$3:$GO$3,0)) -> 50 | P24: =INDEX(【D】NPS!$C$4:$GO$76,MATCH(NPS!$B24,【D】NPS!$B$4:$B$76,0), MATCH(NPS!P$2&NPS!$C$1,【D】NPS!$C$2:$GO$2&【D】NPS!$C$3:$GO$3,0)) -> 7.474747475 | S24: =INDEX(【D】NPS!$C$4:$GO$76,MATCH(NPS!$B24,【D】NPS!$B$4:$B$76,0), MATCH(NPS!S$2&NPS!$R$1,【D】NPS!$C$2:$GO$2&【D】NPS!$C$3:$GO$3,0)) -> 13 | T24: =INDEX(【D】NPS!$C$4:$GO$76,MATCH(NPS!$B24,【D】NPS!$B$4:$B$76,0), MATCH(NPS!T$2&NPS!$R$1,【D】NPS!$C$2:$GO$2&【D】NPS!$C$3:$GO$3,0)) -> 38 | U24: =INDEX(【D】NPS!$C$4:$GO$76,MATCH(NPS!$B24,【D】NPS!$B$4:$B$76,0), MATCH(NPS!U$2&NPS!$R$1,【D】NPS!$C$2:$GO$2&【D】NPS!$C$3:$GO$3,0)) -> 56 | V24: =INDEX(【D】NPS!$C$4:$GO$76,MATCH(NPS!$B24,【D】NPS!$B$4:$B$76,0), MATCH(NPS!V$2&NPS!$R$1,【D】NPS!$C$2:$GO$2&【D】NPS!$C$3:$GO$3,0)) -> 21 | W24: =INDEX(【D】NPS!$C$4:$GO$76,MATCH(NPS!$B24,【D】NPS!$B$4:$B$76,0), MATCH(NPS!W$2&NPS!$R$1,【D】NPS!$C$2:$GO$2&【D】NPS!$C$3:$GO$3,0)) -> 18 | X24: =INDEX(【D】NPS!$C$4:$GO$76,MATCH(NPS!$B24,【D】NPS!$B$4:$B$76,0), MATCH(NPS!X$2&NPS!$R$1,【D】NPS!$C$2:$GO$2&【D】NPS!$C$3:$GO$3,0)) -> 25 | Y24: =INDEX(【D】NPS!$C$4:$GO$76,MATCH(NPS!$B24,【D】NPS!$B$4:$B$76,0), MATCH(NPS!Y$2&NPS!$R$1,【D】NPS!$C$2:$GO$2&【D】NPS!$C$3:$GO$3,0)) -> 11 | Z24: =INDEX(【D】NPS!$C$4:$GO$76,MATCH(NPS!$B24,【D】NPS!$B$4:$B$76,0), MATCH(NPS!Z$2&NPS!$R$1,【D】NPS!$C$2:$GO$2&【D】NPS!$C$3:$GO$3,0)) -> 33 | AA24: =INDEX(【D】NPS!$C$4:$GO$76,MATCH(NPS!$B24,【D】NPS!$B$4:$B$76,0), MATCH(NPS!AA$2&NPS!$R$1,【D】NPS!$C$2:$GO$2&【D】NPS!$C$3:$GO$3,0)) -> 19 | AB24: =INDEX(【D】NPS!$C$4:$GO$76,MATCH(NPS!$B24,【D】NPS!$B$4:$B$76,0), MATCH(NPS!AB$2&NPS!$R$1,【D】NPS!$C$2:$GO$2&【D】NPS!$C$3:$GO$3,0)) -> - | AC24: =INDEX(【D】NPS!$C$4:$GO$76,MATCH(NPS!$B24,【D】NPS!$B$4:$B$76,0), MATCH(NPS!AC$2&NPS!$R$1,【D】NPS!$C$2:$GO$2&【D】NPS!$C$3:$GO$3,0)) -> 59 | AD24: =INDEX(【D】NPS!$C$4:$GO$76,MATCH(NPS!$B24,【D】NPS!$B$4:$B$76,0), MATCH(NPS!AD$2&NPS!$R$1,【D】NPS!$C$2:$GO$2&【D】NPS!$C$3:$GO$3,0)) -> 5 | AE24: =INDEX(【D】NPS!$C$4:$GO$76,MATCH(NPS!$B24,【D】NPS!$B$4:$B$76,0), MATCH(NPS!AE$2&NPS!$R$1,【D】NPS!$C$2:$GO$2&【D】NPS!$C$3:$GO$3,0)) -> 22 | AH24: =INDEX(【D】NPS!$C$4:$GO$76,MATCH(NPS!$B24,【D】NPS!$B$4:$B$76,0), MATCH(NPS!AH$2&NPS!$AG$1,【D】NPS!$C$2:$GO$2&【D】NPS!$C$3:$GO$3,0)) -> 13 | AI24: =INDEX(【D】NPS!$C$4:$GO$76,MATCH(NPS!$B24,【D】NPS!$B$4:$B$76,0), MATCH(NPS!AI$2&NPS!$AG$1,【D】NPS!$C$2:$GO$2&【D】NPS!$C$3:$GO$3,0)) -> 38 | AJ24: =INDEX(【D】NPS!$C$4:$GO$76,MATCH(NPS!$B24,【D】NPS!$B$4:$B$76,0), MATCH(NPS!AJ$2&NPS!$AG$1,【D】NPS!$C$2:$GO$2&【D】NPS!$C$3:$GO$3,0)) -> 56 | AK24: =INDEX(【D】NPS!$C$4:$GO$76,MATCH(NPS!$B24,【D】NPS!$B$4:$B$76,0), MATCH(NPS!AK$2&NPS!$AG$1,【D】NPS!$C$2:$GO$2&【D】NPS!$C$3:$GO$3,0)) -> 21 | AL24: =INDEX(【D】NPS!$C$4:$GO$76,MATCH(NPS!$B24,【D】NPS!$B$4:$B$76,0), MATCH(NPS!AL$2&NPS!$AG$1,【D】NPS!$C$2:$GO$2&【D】NPS!$C$3:$GO$3,0)) -> 18 | AM24: =INDEX(【D】NPS!$C$4:$GO$76,MATCH(NPS!$B24,【D】NPS!$B$4:$B$76,0), MATCH(NPS!AM$2&NPS!$AG$1,【D】NPS!$C$2:$GO$2&【D】NPS!$C$3:$GO$3,0)) -> 25 | AN24: =INDEX(【D】NPS!$C$4:$GO$76,MATCH(NPS!$B24,【D】NPS!$B$4:$B$76,0), MATCH(NPS!AN$2&NPS!$AG$1,【D】NPS!$C$2:$GO$2&【D】NPS!$C$3:$GO$3,0)) -> 11 | AO24: =INDEX(【D】NPS!$C$4:$GO$76,MATCH(NPS!$B24,【D】NPS!$B$4:$B$76,0), MATCH(NPS!AO$2&NPS!$AG$1,【D】NPS!$C$2:$GO$2&【D】NPS!$C$3:$GO$3,0)) -> 33 | AP24: =INDEX(【D】NPS!$C$4:$GO$76,MATCH(NPS!$B24,【D】NPS!$B$4:$B$76,0), MATCH(NPS!AP$2&NPS!$AG$1,【D】NPS!$C$2:$GO$2&【D】NPS!$C$3:$GO$3,0)) -> 19 | AQ24: =INDEX(【D】NPS!$C$4:$GO$76,MATCH(NPS!$B24,【D】NPS!$B$4:$B$76,0), MATCH(NPS!AQ$2&NPS!$AG$1,【D】NPS!$C$2:$GO$2&【D】NPS!$C$3:$GO$3,0)) -> - | AR24: =INDEX(【D】NPS!$C$4:$GO$76,MATCH(NPS!$B24,【D】NPS!$B$4:$B$76,0), MATCH(NPS!AR$2&NPS!$AG$1,【D】NPS!$C$2:$GO$2&【D】NPS!$C$3:$GO$3,0)) -> 59 | AS24: =INDEX(【D】NPS!$C$4:$GO$76,MATCH(NPS!$B24,【D】NPS!$B$4:$B$76,0), MATCH(NPS!AS$2&NPS!$AG$1,【D】NPS!$C$2:$GO$2&【D】NPS!$C$3:$GO$3,0)) -> 9 | AT24: =INDEX(【D】NPS!$C$4:$GO$76,MATCH(NPS!$B24,【D】NPS!$B$4:$B$76,0), MATCH(NPS!AT$2&NPS!$AG$1,【D】NPS!$C$2:$GO$2&【D】NPS!$C$3:$GO$3,0)) -> 22 | AV24: 22 | AW24: 22 | AX24: 道の駅「南えちぜん山海里」 エリア | AY24: 10 | AZ24: 11
B25: 道の駅「恐竜渓谷かつやま」 エリア | D25: =INDEX(【D】NPS!$C$4:$GO$76,MATCH(NPS!$B25,【D】NPS!$B$4:$B$76,0), MATCH(NPS!D$2&NPS!$C$1,【D】NPS!$C$2:$GO$2&【D】NPS!$C$3:$GO$3,0)) -> 7.692307692 | E25: =INDEX(【D】NPS!$C$4:$GO$76,MATCH(NPS!$B25,【D】NPS!$B$4:$B$76,0), MATCH(NPS!E$2&NPS!$C$1,【D】NPS!$C$2:$GO$2&【D】NPS!$C$3:$GO$3,0)) -> 3.614457831 | F25: =INDEX(【D】NPS!$C$4:$GO$76,MATCH(NPS!$B25,【D】NPS!$B$4:$B$76,0), MATCH(NPS!F$2&NPS!$C$1,【D】NPS!$C$2:$GO$2&【D】NPS!$C$3:$GO$3,0)) -> -19.23076923 | G25: =INDEX(【D】NPS!$C$4:$GO$76,MATCH(NPS!$B25,【D】NPS!$B$4:$B$76,0), MATCH(NPS!G$2&NPS!$C$1,【D】NPS!$C$2:$GO$2&【D】NPS!$C$3:$GO$3,0)) -> -6.52173913 | H25: =INDEX(【D】NPS!$C$4:$GO$76,MATCH(NPS!$B25,【D】NPS!$B$4:$B$76,0), MATCH(NPS!H$2&NPS!$C$1,【D】NPS!$C$2:$GO$2&【D】NPS!$C$3:$GO$3,0)) -> 6.25 | I25: =INDEX(【D】NPS!$C$4:$GO$76,MATCH(NPS!$B25,【D】NPS!$B$4:$B$76,0), MATCH(NPS!I$2&NPS!$C$1,【D】NPS!$C$2:$GO$2&【D】NPS!$C$3:$GO$3,0)) -> -1.960784314 | J25: =INDEX(【D】NPS!$C$4:$GO$76,MATCH(NPS!$B25,【D】NPS!$B$4:$B$76,0), MATCH(NPS!J$2&NPS!$C$1,【D】NPS!$C$2:$GO$2&【D】NPS!$C$3:$GO$3,0)) -> -3.03030303 | K25: =INDEX(【D】NPS!$C$4:$GO$76,MATCH(NPS!$B25,【D】NPS!$B$4:$B$76,0), MATCH(NPS!K$2&NPS!$C$1,【D】NPS!$C$2:$GO$2&【D】NPS!$C$3:$GO$3,0)) -> -5.333333333 | L25: =INDEX(【D】NPS!$C$4:$GO$76,MATCH(NPS!$B25,【D】NPS!$B$4:$B$76,0), MATCH(NPS!L$2&NPS!$C$1,【D】NPS!$C$2:$GO$2&【D】NPS!$C$3:$GO$3,0)) -> -18.18181818 | M25: =INDEX(【D】NPS!$C$4:$GO$76,MATCH(NPS!$B25,【D】NPS!$B$4:$B$76,0), MATCH(NPS!M$2&NPS!$C$1,【D】NPS!$C$2:$GO$2&【D】NPS!$C$3:$GO$3,0)) -> 46.15384615 | N25: =INDEX(【D】NPS!$C$4:$GO$76,MATCH(NPS!$B25,【D】NPS!$B$4:$B$76,0), MATCH(NPS!N$2&NPS!$C$1,【D】NPS!$C$2:$GO$2&【D】NPS!$C$3:$GO$3,0)) -> -5.263157895 | O25: =INDEX(【D】NPS!$C$4:$GO$76,MATCH(NPS!$B25,【D】NPS!$B$4:$B$76,0), MATCH(NPS!O$2&NPS!$C$1,【D】NPS!$C$2:$GO$2&【D】NPS!$C$3:$GO$3,0)) -> -66.66666667 | P25: =INDEX(【D】NPS!$C$4:$GO$76,MATCH(NPS!$B25,【D】NPS!$B$4:$B$76,0), MATCH(NPS!P$2&NPS!$C$1,【D】NPS!$C$2:$GO$2&【D】NPS!$C$3:$GO$3,0)) -> -2.654867257 | S25: =INDEX(【D】NPS!$C$4:$GO$76,MATCH(NPS!$B25,【D】NPS!$B$4:$B$76,0), MATCH(NPS!S$2&NPS!$R$1,【D】NPS!$C$2:$GO$2&【D】NPS!$C$3:$GO$3,0)) -> 24 | T25: =INDEX(【D】NPS!$C$4:$GO$76,MATCH(NPS!$B25,【D】NPS!$B$4:$B$76,0), MATCH(NPS!T$2&NPS!$R$1,【D】NPS!$C$2:$GO$2&【D】NPS!$C$3:$GO$3,0)) -> 29 | U25: =INDEX(【D】NPS!$C$4:$GO$76,MATCH(NPS!$B25,【D】NPS!$B$4:$B$76,0), MATCH(NPS!U$2&NPS!$R$1,【D】NPS!$C$2:$GO$2&【D】NPS!$C$3:$GO$3,0)) -> 53 | V25: =INDEX(【D】NPS!$C$4:$GO$76,MATCH(NPS!$B25,【D】NPS!$B$4:$B$76,0), MATCH(NPS!V$2&NPS!$R$1,【D】NPS!$C$2:$GO$2&【D】NPS!$C$3:$GO$3,0)) -> 37 | W25: =INDEX(【D】NPS!$C$4:$GO$76,MATCH(NPS!$B25,【D】NPS!$B$4:$B$76,0), MATCH(NPS!W$2&NPS!$R$1,【D】NPS!$C$2:$GO$2&【D】NPS!$C$3:$GO$3,0)) -> 28 | X25: =INDEX(【D】NPS!$C$4:$GO$76,MATCH(NPS!$B25,【D】NPS!$B$4:$B$76,0), MATCH(NPS!X$2&NPS!$R$1,【D】NPS!$C$2:$GO$2&【D】NPS!$C$3:$GO$3,0)) -> 37 | Y25: =INDEX(【D】NPS!$C$4:$GO$76,MATCH(NPS!$B25,【D】NPS!$B$4:$B$76,0), MATCH(NPS!Y$2&NPS!$R$1,【D】NPS!$C$2:$GO$2&【D】NPS!$C$3:$GO$3,0)) -> 45 | Z25: =INDEX(【D】NPS!$C$4:$GO$76,MATCH(NPS!$B25,【D】NPS!$B$4:$B$76,0), MATCH(NPS!Z$2&NPS!$R$1,【D】NPS!$C$2:$GO$2&【D】NPS!$C$3:$GO$3,0)) -> 44 | AA25: =INDEX(【D】NPS!$C$4:$GO$76,MATCH(NPS!$B25,【D】NPS!$B$4:$B$76,0), MATCH(NPS!AA$2&NPS!$R$1,【D】NPS!$C$2:$GO$2&【D】NPS!$C$3:$GO$3,0)) -> 51 | AB25: =INDEX(【D】NPS!$C$4:$GO$76,MATCH(NPS!$B25,【D】NPS!$B$4:$B$76,0), MATCH(NPS!AB$2&NPS!$R$1,【D】NPS!$C$2:$GO$2&【D】NPS!$C$3:$GO$3,0)) -> 7 | AC25: =INDEX(【D】NPS!$C$4:$GO$76,MATCH(NPS!$B25,【D】NPS!$B$4:$B$76,0), MATCH(NPS!AC$2&NPS!$R$1,【D】NPS!$C$2:$GO$2&【D】NPS!$C$3:$GO$3,0)) -> 33 | AD25: =INDEX(【D】NPS!$C$4:$GO$76,MATCH(NPS!$B25,【D】NPS!$B$4:$B$76,0), MATCH(NPS!AD$2&NPS!$R$1,【D】NPS!$C$2:$GO$2&【D】NPS!$C$3:$GO$3,0)) -> 59 | AE25: =INDEX(【D】NPS!$C$4:$GO$76,MATCH(NPS!$B25,【D】NPS!$B$4:$B$76,0), MATCH(NPS!AE$2&NPS!$R$1,【D】NPS!$C$2:$GO$2&【D】NPS!$C$3:$GO$3,0)) -> 40 | AH25: =INDEX(【D】NPS!$C$4:$GO$76,MATCH(NPS!$B25,【D】NPS!$B$4:$B$76,0), MATCH(NPS!AH$2&NPS!$AG$1,【D】NPS!$C$2:$GO$2&【D】NPS!$C$3:$GO$3,0)) -> 24 | AI25: =INDEX(【D】NPS!$C$4:$GO$76,MATCH(NPS!$B25,【D】NPS!$B$4:$B$76,0), MATCH(NPS!AI$2&NPS!$AG$1,【D】NPS!$C$2:$GO$2&【D】NPS!$C$3:$GO$3,0)) -> 29 | AJ25: =INDEX(【D】NPS!$C$4:$GO$76,MATCH(NPS!$B25,【D】NPS!$B$4:$B$76,0), MATCH(NPS!AJ$2&NPS!$AG$1,【D】NPS!$C$2:$GO$2&【D】NPS!$C$3:$GO$3,0)) -> 53 | AK25: =INDEX(【D】NPS!$C$4:$GO$76,MATCH(NPS!$B25,【D】NPS!$B$4:$B$76,0), MATCH(NPS!AK$2&NPS!$AG$1,【D】NPS!$C$2:$GO$2&【D】NPS!$C$3:$GO$3,0)) -> 37 | AL25: =INDEX(【D】NPS!$C$4:$GO$76,MATCH(NPS!$B25,【D】NPS!$B$4:$B$76,0), MATCH(NPS!AL$2&NPS!$AG$1,【D】NPS!$C$2:$GO$2&【D】NPS!$C$3:$GO$3,0)) -> 28 | AM25: =INDEX(【D】NPS!$C$4:$GO$76,MATCH(NPS!$B25,【D】NPS!$B$4:$B$76,0), MATCH(NPS!AM$2&NPS!$AG$1,【D】NPS!$C$2:$GO$2&【D】NPS!$C$3:$GO$3,0)) -> 37 | AN25: =INDEX(【D】NPS!$C$4:$GO$76,MATCH(NPS!$B25,【D】NPS!$B$4:$B$76,0), MATCH(NPS!AN$2&NPS!$AG$1,【D】NPS!$C$2:$GO$2&【D】NPS!$C$3:$GO$3,0)) -> 45 | AO25: =INDEX(【D】NPS!$C$4:$GO$76,MATCH(NPS!$B25,【D】NPS!$B$4:$B$76,0), MATCH(NPS!AO$2&NPS!$AG$1,【D】NPS!$C$2:$GO$2&【D】NPS!$C$3:$GO$3,0)) -> 44 | AP25: =INDEX(【D】NPS!$C$4:$GO$76,MATCH(NPS!$B25,【D】NPS!$B$4:$B$76,0), MATCH(NPS!AP$2&NPS!$AG$1,【D】NPS!$C$2:$GO$2&【D】NPS!$C$3:$GO$3,0)) -> 51 | AQ25: =INDEX(【D】NPS!$C$4:$GO$76,MATCH(NPS!$B25,【D】NPS!$B$4:$B$76,0), MATCH(NPS!AQ$2&NPS!$AG$1,【D】NPS!$C$2:$GO$2&【D】NPS!$C$3:$GO$3,0)) -> 7 | AR25: =INDEX(【D】NPS!$C$4:$GO$76,MATCH(NPS!$B25,【D】NPS!$B$4:$B$76,0), MATCH(NPS!AR$2&NPS!$AG$1,【D】NPS!$C$2:$GO$2&【D】NPS!$C$3:$GO$3,0)) -> 33 | AS25: =INDEX(【D】NPS!$C$4:$GO$76,MATCH(NPS!$B25,【D】NPS!$B$4:$B$76,0), MATCH(NPS!AS$2&NPS!$AG$1,【D】NPS!$C$2:$GO$2&【D】NPS!$C$3:$GO$3,0)) -> 60 | AT25: =INDEX(【D】NPS!$C$4:$GO$76,MATCH(NPS!$B25,【D】NPS!$B$4:$B$76,0), MATCH(NPS!AT$2&NPS!$AG$1,【D】NPS!$C$2:$GO$2&【D】NPS!$C$3:$GO$3,0)) -> 40 | AV25: 23 | AW25: 23 | AX25: 道の駅「越前」 エリア | AY25: 10 | AZ25: 121
B26: スキージャム勝山 エリア | D26: =INDEX(【D】NPS!$C$4:$GO$76,MATCH(NPS!$B26,【D】NPS!$B$4:$B$76,0), MATCH(NPS!D$2&NPS!$C$1,【D】NPS!$C$2:$GO$2&【D】NPS!$C$3:$GO$3,0)) -> None | E26: =INDEX(【D】NPS!$C$4:$GO$76,MATCH(NPS!$B26,【D】NPS!$B$4:$B$76,0), MATCH(NPS!E$2&NPS!$C$1,【D】NPS!$C$2:$GO$2&【D】NPS!$C$3:$GO$3,0)) -> 75 | F26: =INDEX(【D】NPS!$C$4:$GO$76,MATCH(NPS!$B26,【D】NPS!$B$4:$B$76,0), MATCH(NPS!F$2&NPS!$C$1,【D】NPS!$C$2:$GO$2&【D】NPS!$C$3:$GO$3,0)) -> 0 | G26: =INDEX(【D】NPS!$C$4:$GO$76,MATCH(NPS!$B26,【D】NPS!$B$4:$B$76,0), MATCH(NPS!G$2&NPS!$C$1,【D】NPS!$C$2:$GO$2&【D】NPS!$C$3:$GO$3,0)) -> 8.333333333 | H26: =INDEX(【D】NPS!$C$4:$GO$76,MATCH(NPS!$B26,【D】NPS!$B$4:$B$76,0), MATCH(NPS!H$2&NPS!$C$1,【D】NPS!$C$2:$GO$2&【D】NPS!$C$3:$GO$3,0)) -> 0 | I26: =INDEX(【D】NPS!$C$4:$GO$76,MATCH(NPS!$B26,【D】NPS!$B$4:$B$76,0), MATCH(NPS!I$2&NPS!$C$1,【D】NPS!$C$2:$GO$2&【D】NPS!$C$3:$GO$3,0)) -> -20 | J26: =INDEX(【D】NPS!$C$4:$GO$76,MATCH(NPS!$B26,【D】NPS!$B$4:$B$76,0), MATCH(NPS!J$2&NPS!$C$1,【D】NPS!$C$2:$GO$2&【D】NPS!$C$3:$GO$3,0)) -> 17.85714286 | K26: =INDEX(【D】NPS!$C$4:$GO$76,MATCH(NPS!$B26,【D】NPS!$B$4:$B$76,0), MATCH(NPS!K$2&NPS!$C$1,【D】NPS!$C$2:$GO$2&【D】NPS!$C$3:$GO$3,0)) -> -8 | L26: =INDEX(【D】NPS!$C$4:$GO$76,MATCH(NPS!$B26,【D】NPS!$B$4:$B$76,0), MATCH(NPS!L$2&NPS!$C$1,【D】NPS!$C$2:$GO$2&【D】NPS!$C$3:$GO$3,0)) -> 20 | M26: =INDEX(【D】NPS!$C$4:$GO$76,MATCH(NPS!$B26,【D】NPS!$B$4:$B$76,0), MATCH(NPS!M$2&NPS!$C$1,【D】NPS!$C$2:$GO$2&【D】NPS!$C$3:$GO$3,0)) -> 25 | N26: =INDEX(【D】NPS!$C$4:$GO$76,MATCH(NPS!$B26,【D】NPS!$B$4:$B$76,0), MATCH(NPS!N$2&NPS!$C$1,【D】NPS!$C$2:$GO$2&【D】NPS!$C$3:$GO$3,0)) -> 19.44444444 | O26: =INDEX(【D】NPS!$C$4:$GO$76,MATCH(NPS!$B26,【D】NPS!$B$4:$B$76,0), MATCH(NPS!O$2&NPS!$C$1,【D】NPS!$C$2:$GO$2&【D】NPS!$C$3:$GO$3,0)) -> -14.28571429 | P26: =INDEX(【D】NPS!$C$4:$GO$76,MATCH(NPS!$B26,【D】NPS!$B$4:$B$76,0), MATCH(NPS!P$2&NPS!$C$1,【D】NPS!$C$2:$GO$2&【D】NPS!$C$3:$GO$3,0)) -> 12.87128713 | S26: =INDEX(【D】NPS!$C$4:$GO$76,MATCH(NPS!$B26,【D】NPS!$B$4:$B$76,0), MATCH(NPS!S$2&NPS!$R$1,【D】NPS!$C$2:$GO$2&【D】NPS!$C$3:$GO$3,0)) -> - | T26: =INDEX(【D】NPS!$C$4:$GO$76,MATCH(NPS!$B26,【D】NPS!$B$4:$B$76,0), MATCH(NPS!T$2&NPS!$R$1,【D】NPS!$C$2:$GO$2&【D】NPS!$C$3:$GO$3,0)) -> 2 | U26: =INDEX(【D】NPS!$C$4:$GO$76,MATCH(NPS!$B26,【D】NPS!$B$4:$B$76,0), MATCH(NPS!U$2&NPS!$R$1,【D】NPS!$C$2:$GO$2&【D】NPS!$C$3:$GO$3,0)) -> 35 | V26: =INDEX(【D】NPS!$C$4:$GO$76,MATCH(NPS!$B26,【D】NPS!$B$4:$B$76,0), MATCH(NPS!V$2&NPS!$R$1,【D】NPS!$C$2:$GO$2&【D】NPS!$C$3:$GO$3,0)) -> 27 | W26: =INDEX(【D】NPS!$C$4:$GO$76,MATCH(NPS!$B26,【D】NPS!$B$4:$B$76,0), MATCH(NPS!W$2&NPS!$R$1,【D】NPS!$C$2:$GO$2&【D】NPS!$C$3:$GO$3,0)) -> 30 | X26: =INDEX(【D】NPS!$C$4:$GO$76,MATCH(NPS!$B26,【D】NPS!$B$4:$B$76,0), MATCH(NPS!X$2&NPS!$R$1,【D】NPS!$C$2:$GO$2&【D】NPS!$C$3:$GO$3,0)) -> 57 | Y26: =INDEX(【D】NPS!$C$4:$GO$76,MATCH(NPS!$B26,【D】NPS!$B$4:$B$76,0), MATCH(NPS!Y$2&NPS!$R$1,【D】NPS!$C$2:$GO$2&【D】NPS!$C$3:$GO$3,0)) -> 15 | Z26: =INDEX(【D】NPS!$C$4:$GO$76,MATCH(NPS!$B26,【D】NPS!$B$4:$B$76,0), MATCH(NPS!Z$2&NPS!$R$1,【D】NPS!$C$2:$GO$2&【D】NPS!$C$3:$GO$3,0)) -> 47 | AA26: =INDEX(【D】NPS!$C$4:$GO$76,MATCH(NPS!$B26,【D】NPS!$B$4:$B$76,0), MATCH(NPS!AA$2&NPS!$R$1,【D】NPS!$C$2:$GO$2&【D】NPS!$C$3:$GO$3,0)) -> 9 | AB26: =INDEX(【D】NPS!$C$4:$GO$76,MATCH(NPS!$B26,【D】NPS!$B$4:$B$76,0), MATCH(NPS!AB$2&NPS!$R$1,【D】NPS!$C$2:$GO$2&【D】NPS!$C$3:$GO$3,0)) -> 15 | AC26: =INDEX(【D】NPS!$C$4:$GO$76,MATCH(NPS!$B26,【D】NPS!$B$4:$B$76,0), MATCH(NPS!AC$2&NPS!$R$1,【D】NPS!$C$2:$GO$2&【D】NPS!$C$3:$GO$3,0)) -> 11 | AD26: =INDEX(【D】NPS!$C$4:$GO$76,MATCH(NPS!$B26,【D】NPS!$B$4:$B$76,0), MATCH(NPS!AD$2&NPS!$R$1,【D】NPS!$C$2:$GO$2&【D】NPS!$C$3:$GO$3,0)) -> 39 | AE26: =INDEX(【D】NPS!$C$4:$GO$76,MATCH(NPS!$B26,【D】NPS!$B$4:$B$76,0), MATCH(NPS!AE$2&NPS!$R$1,【D】NPS!$C$2:$GO$2&【D】NPS!$C$3:$GO$3,0)) -> 15 | AH26: =INDEX(【D】NPS!$C$4:$GO$76,MATCH(NPS!$B26,【D】NPS!$B$4:$B$76,0), MATCH(NPS!AH$2&NPS!$AG$1,【D】NPS!$C$2:$GO$2&【D】NPS!$C$3:$GO$3,0)) -> - | AI26: =INDEX(【D】NPS!$C$4:$GO$76,MATCH(NPS!$B26,【D】NPS!$B$4:$B$76,0), MATCH(NPS!AI$2&NPS!$AG$1,【D】NPS!$C$2:$GO$2&【D】NPS!$C$3:$GO$3,0)) -> 2 | AJ26: =INDEX(【D】NPS!$C$4:$GO$76,MATCH(NPS!$B26,【D】NPS!$B$4:$B$76,0), MATCH(NPS!AJ$2&NPS!$AG$1,【D】NPS!$C$2:$GO$2&【D】NPS!$C$3:$GO$3,0)) -> 42 | AK26: =INDEX(【D】NPS!$C$4:$GO$76,MATCH(NPS!$B26,【D】NPS!$B$4:$B$76,0), MATCH(NPS!AK$2&NPS!$AG$1,【D】NPS!$C$2:$GO$2&【D】NPS!$C$3:$GO$3,0)) -> 27 | AL26: =INDEX(【D】NPS!$C$4:$GO$76,MATCH(NPS!$B26,【D】NPS!$B$4:$B$76,0), MATCH(NPS!AL$2&NPS!$AG$1,【D】NPS!$C$2:$GO$2&【D】NPS!$C$3:$GO$3,0)) -> 38 | AM26: =INDEX(【D】NPS!$C$4:$GO$76,MATCH(NPS!$B26,【D】NPS!$B$4:$B$76,0), MATCH(NPS!AM$2&NPS!$AG$1,【D】NPS!$C$2:$GO$2&【D】NPS!$C$3:$GO$3,0)) -> 58 | AN26: =INDEX(【D】NPS!$C$4:$GO$76,MATCH(NPS!$B26,【D】NPS!$B$4:$B$76,0), MATCH(NPS!AN$2&NPS!$AG$1,【D】NPS!$C$2:$GO$2&【D】NPS!$C$3:$GO$3,0)) -> 15 | AO26: =INDEX(【D】NPS!$C$4:$GO$76,MATCH(NPS!$B26,【D】NPS!$B$4:$B$76,0), MATCH(NPS!AO$2&NPS!$AG$1,【D】NPS!$C$2:$GO$2&【D】NPS!$C$3:$GO$3,0)) -> 47 | AP26: =INDEX(【D】NPS!$C$4:$GO$76,MATCH(NPS!$B26,【D】NPS!$B$4:$B$76,0), MATCH(NPS!AP$2&NPS!$AG$1,【D】NPS!$C$2:$GO$2&【D】NPS!$C$3:$GO$3,0)) -> 10 | AQ26: =INDEX(【D】NPS!$C$4:$GO$76,MATCH(NPS!$B26,【D】NPS!$B$4:$B$76,0), MATCH(NPS!AQ$2&NPS!$AG$1,【D】NPS!$C$2:$GO$2&【D】NPS!$C$3:$GO$3,0)) -> 15 | AR26: =INDEX(【D】NPS!$C$4:$GO$76,MATCH(NPS!$B26,【D】NPS!$B$4:$B$76,0), MATCH(NPS!AR$2&NPS!$AG$1,【D】NPS!$C$2:$GO$2&【D】NPS!$C$3:$GO$3,0)) -> 11 | AS26: =INDEX(【D】NPS!$C$4:$GO$76,MATCH(NPS!$B26,【D】NPS!$B$4:$B$76,0), MATCH(NPS!AS$2&NPS!$AG$1,【D】NPS!$C$2:$GO$2&【D】NPS!$C$3:$GO$3,0)) -> 41 | AT26: =INDEX(【D】NPS!$C$4:$GO$76,MATCH(NPS!$B26,【D】NPS!$B$4:$B$76,0), MATCH(NPS!AT$2&NPS!$AG$1,【D】NPS!$C$2:$GO$2&【D】NPS!$C$3:$GO$3,0)) -> 15 | AV26: 24 | AW26: 23 | AX26: 道の駅「西山公園」 エリア | AY26: 10 | AZ26: 23
